{"text_format":"3","workbook":"xlsx","n_sheets":5,"sheets":["Auswertung","Statistik nach Autor(in)","Top 10 Bilder","Fotografen","online"],"not_rendered":{"images":6,"macros":1,"defined_names":1,"comments":1},"read":"whole","date_system":"1900"}

{"sheet":"Auswertung","index":0,"n_rows":131,"n_cols":44,"rows_kept":131,"merged":[[0,0,0,20],[0,21,0,24],[0,35,3,35],[0,38,3,38],[0,41,3,41]]}
[{"$nulls":36},"Platz 1",{"$f":"VERKETTEN_P1(Z5:Z131,CHAR(10))","v":"Schneeflocke.jpg von Nadja Cassim"},null,"Platz 2",{"$f":"VERKETTEN_P1(AA5:AA131,CHAR(10))","v":"Aufzug.jpg von Andreas Toltz\nHuch.jpg von Andreas Toltz"},null,"Platz 3",{"$f":"VERKETTEN_P1(AB5:AB131,CHAR(10))","v":""}]
[{"$nulls":36},"Bestes Bild",null,null,"Bestes Bild",null,null,"Bestes Bild"]
[{"$nulls":36},"Platz 1",{"$f":"VERKETTEN_P1('Statistik nach Autor(in)'!E6:'Statistik nach Autor(in)'!E35,CHAR(10))","v":"Nadja Cassim"},null,"Platz 2",{"$f":"VERKETTEN_P1('Statistik nach Autor(in)'!F6:'Statistik nach Autor(in)'!F35,CHAR(10))","v":"Andreas Toltz"},null,"Platz 3",{"$f":"VERKETTEN_P1('Statistik nach Autor(in)'!G6:'Statistik nach Autor(in)'!G35,CHAR(10))","v":"Gerhard Rieß"}]
["Bildname","Juror 1","Juror 2","Juror 3","Juror 4","Juror 5","Juror 6","Juror 7","Juror 8","Juror 9","Juror 10","Juror 11","Juror 12","Juror 13","Juror 14","Juror 15","Juror 16","Juror 17","Juror 18","Juror 19","Juror 20","Punkte","Schnitt","Platz","Autor(in)","Platz 1","Platz 2","Platz 3","Platz 4","Platz 5","Platz 6","Platz 7","Platz 8","Platz 9","Platz 10",null,"Bester Fotograf",null,null,"Bester Fotograf",null,null,"Bester Fotograf"]
["Schneeflocke.jpg",8,8,9,8,{"$nulls":16},{"$f":"IF(Tabelle_Auswertung[[#This Row],[Bildname]]<>\"\",SUM(Tabelle_Auswertung[[#This Row],[Juror 1]:[Juror 20]]),\" - \")","v":33},{"$f":"IF(Tabelle_Auswertung[[#This Row],[Bildname]]<>\"\",IF(Tabelle_Auswertung[[#This Row],[Punkte]]>0,AVERAGE(Tabelle_Auswertung[[#This Row],[Juror 1]:[Juror 20]]),\" - \"),\" - \")","v":{"v":8.25,"d":"8.25 "}},{"$f":"IF(Tabelle_Auswertung[[#This Row],[Bildname]]<>\"\",IF(Tabelle_Auswertung[[#This Row],[Punkte]]>0,RANK(Tabelle_Auswertung[[#This Row],[Punkte]],[Punkte],0),\" - \"),\" - \")","v":1},"Nadja Cassim",{"$f":"IF(Tabelle_Auswertung[[#This Row],[Platz]]=1,CONCATENATE(Tabelle_Auswertung[[#This Row],[Bildname]],\" von \",Tabelle_Auswertung[[#This Row],[Autor(in)]]),\"\")","v":"Schneeflocke.jpg von Nadja Cassim"},{"$f":"IF(Tabelle_Auswertung[[#This Row],[Platz]]=2,CONCATENATE(Tabelle_Auswertung[[#This Row],[Bildname]],\" von \",Tabelle_Auswertung[[#This Row],[Autor(in)]]),\"\")","v":""},{"$f":"IF(Tabelle_Auswertung[[#This Row],[Platz]]=3,CONCATENATE(Tabelle_Auswertung[[#This Row],[Bildname]],\" von \",Tabelle_Auswertung[[#This Row],[Autor(in)]]),\"\")","v":""},{"$f":"IF(Tabelle_Auswertung[[#This Row],[Platz]]=4,CONCATENATE(Tabelle_Auswertung[[#This Row],[Bildname]],\" von \",Tabelle_Auswertung[[#This Row],[Autor(in)]]),\"\")","v":""},{"$f":"IF(Tabelle_Auswertung[[#This Row],[Platz]]=5,CONCATENATE(Tabelle_Auswertung[[#This Row],[Bildname]],\" von \",Tabelle_Auswertung[[#This Row],[Autor(in)]]),\"\")","v":""},{"$f":"IF(Tabelle_Auswertung[[#This Row],[Platz]]=6,CONCATENATE(Tabelle_Auswertung[[#This Row],[Bildname]],\" von \",Tabelle_Auswertung[[#This Row],[Autor(in)]]),\"\")","v":""},{"$f":"IF(Tabelle_Auswertung[[#This Row],[Platz]]=7,CONCATENATE(Tabelle_Auswertung[[#This Row],[Bildname]],\" von \",Tabelle_Auswertung[[#This Row],[Autor(in)]]),\"\")","v":""},{"$f":"IF(Tabelle_Auswertung[[#This Row],[Platz]]=8,CONCATENATE(Tabelle_Auswertung[[#This Row],[Bildname]],\" von \",Tabelle_Auswertung[[#This Row],[Autor(in)]]),\"\")","v":""},{"$f":"IF(Tabelle_Auswertung[[#This Row],[Platz]]=9,CONCATENATE(Tabelle_Auswertung[[#This Row],[Bildname]],\" von \",Tabelle_Auswertung[[#This Row],[Autor(in)]]),\"\")","v":""},{"$f":"IF(Tabelle_Auswertung[[#This Row],[Platz]]=10,CONCATENATE(Tabelle_Auswertung[[#This Row],[Bildname]],\" von \",Tabelle_Auswertung[[#This Row],[Autor(in)]]),\"\")","v":""}]
["Aufzug.jpg",7,9,8,8,{"$nulls":16},{"$f":"IF(Tabelle_Auswertung[[#This Row],[Bildname]]<>\"\",SUM(Tabelle_Auswertung[[#This Row],[Juror 1]:[Juror 20]]),\" - \")","v":32},{"$f":"IF(Tabelle_Auswertung[[#This Row],[Bildname]]<>\"\",IF(Tabelle_Auswertung[[#This Row],[Punkte]]>0,AVERAGE(Tabelle_Auswertung[[#This Row],[Juror 1]:[Juror 20]]),\" - \"),\" - \")","v":{"v":8,"d":"8.00 "}},{"$f":"IF(Tabelle_Auswertung[[#This Row],[Bildname]]<>\"\",IF(Tabelle_Auswertung[[#This Row],[Punkte]]>0,RANK(Tabelle_Auswertung[[#This Row],[Punkte]],[Punkte],0),\" - \"),\" - \")","v":2},"Andreas Toltz",{"$f":"IF(Tabelle_Auswertung[[#This Row],[Platz]]=1,CONCATENATE(Tabelle_Auswertung[[#This Row],[Bildname]],\" von \",Tabelle_Auswertung[[#This Row],[Autor(in)]]),\"\")","v":""},{"$f":"IF(Tabelle_Auswertung[[#This Row],[Platz]]=2,CONCATENATE(Tabelle_Auswertung[[#This Row],[Bildname]],\" von \",Tabelle_Auswertung[[#This Row],[Autor(in)]]),\"\")","v":"Aufzug.jpg von Andreas Toltz"},{"$f":"IF(Tabelle_Auswertung[[#This Row],[Platz]]=3,CONCATENATE(Tabelle_Auswertung[[#This Row],[Bildname]],\" von \",Tabelle_Auswertung[[#This Row],[Autor(in)]]),\"\")","v":""},{"$f":"IF(Tabelle_Auswertung[[#This Row],[Platz]]=4,CONCATENATE(Tabelle_Auswertung[[#This Row],[Bildname]],\" von \",Tabelle_Auswertung[[#This Row],[Autor(in)]]),\"\")","v":""},{"$f":"IF(Tabelle_Auswertung[[#This Row],[Platz]]=5,CONCATENATE(Tabelle_Auswertung[[#This Row],[Bildname]],\" von \",Tabelle_Auswertung[[#This Row],[Autor(in)]]),\"\")","v":""},{"$f":"IF(Tabelle_Auswertung[[#This Row],[Platz]]=6,CONCATENATE(Tabelle_Auswertung[[#This Row],[Bildname]],\" von \",Tabelle_Auswertung[[#This Row],[Autor(in)]]),\"\")","v":""},{"$f":"IF(Tabelle_Auswertung[[#This Row],[Platz]]=7,CONCATENATE(Tabelle_Auswertung[[#This Row],[Bildname]],\" von \",Tabelle_Auswertung[[#This Row],[Autor(in)]]),\"\")","v":""},{"$f":"IF(Tabelle_Auswertung[[#This Row],[Platz]]=8,CONCATENATE(Tabelle_Auswertung[[#This Row],[Bildname]],\" von \",Tabelle_Auswertung[[#This Row],[Autor(in)]]),\"\")","v":""},{"$f":"IF(Tabelle_Auswertung[[#This Row],[Platz]]=9,CONCATENATE(Tabelle_Auswertung[[#This Row],[Bildname]],\" von \",Tabelle_Auswertung[[#This Row],[Autor(in)]]),\"\")","v":""},{"$f":"IF(Tabelle_Auswertung[[#This Row],[Platz]]=10,CONCATENATE(Tabelle_Auswertung[[#This Row],[Bildname]],\" von \",Tabelle_Auswertung[[#This Row],[Autor(in)]]),\"\")","v":""},null,"Fotoclub Weidenbach"]
["Huch.jpg",8,9,6,9,{"$nulls":16},{"$f":"IF(Tabelle_Auswertung[[#This Row],[Bildname]]<>\"\",SUM(Tabelle_Auswertung[[#This Row],[Juror 1]:[Juror 20]]),\" - \")","v":32},{"$f":"IF(Tabelle_Auswertung[[#This Row],[Bildname]]<>\"\",IF(Tabelle_Auswertung[[#This Row],[Punkte]]>0,AVERAGE(Tabelle_Auswertung[[#This Row],[Juror 1]:[Juror 20]]),\" - \"),\" - \")","v":{"v":8,"d":"8.00 "}},{"$f":"IF(Tabelle_Auswertung[[#This Row],[Bildname]]<>\"\",IF(Tabelle_Auswertung[[#This Row],[Punkte]]>0,RANK(Tabelle_Auswertung[[#This Row],[Punkte]],[Punkte],0),\" - \"),\" - \")","v":2},"Andreas Toltz",{"$f":"IF(Tabelle_Auswertung[[#This Row],[Platz]]=1,CONCATENATE(Tabelle_Auswertung[[#This Row],[Bildname]],\" von \",Tabelle_Auswertung[[#This Row],[Autor(in)]]),\"\")","v":""},{"$f":"IF(Tabelle_Auswertung[[#This Row],[Platz]]=2,CONCATENATE(Tabelle_Auswertung[[#This Row],[Bildname]],\" von \",Tabelle_Auswertung[[#This Row],[Autor(in)]]),\"\")","v":"Huch.jpg von Andreas Toltz"},{"$f":"IF(Tabelle_Auswertung[[#This Row],[Platz]]=3,CONCATENATE(Tabelle_Auswertung[[#This Row],[Bildname]],\" von \",Tabelle_Auswertung[[#This Row],[Autor(in)]]),\"\")","v":""},{"$f":"IF(Tabelle_Auswertung[[#This Row],[Platz]]=4,CONCATENATE(Tabelle_Auswertung[[#This Row],[Bildname]],\" von \",Tabelle_Auswertung[[#This Row],[Autor(in)]]),\"\")","v":""},{"$f":"IF(Tabelle_Auswertung[[#This Row],[Platz]]=5,CONCATENATE(Tabelle_Auswertung[[#This Row],[Bildname]],\" von \",Tabelle_Auswertung[[#This Row],[Autor(in)]]),\"\")","v":""},{"$f":"IF(Tabelle_Auswertung[[#This Row],[Platz]]=6,CONCATENATE(Tabelle_Auswertung[[#This Row],[Bildname]],\" von \",Tabelle_Auswertung[[#This Row],[Autor(in)]]),\"\")","v":""},{"$f":"IF(Tabelle_Auswertung[[#This Row],[Platz]]=7,CONCATENATE(Tabelle_Auswertung[[#This Row],[Bildname]],\" von \",Tabelle_Auswertung[[#This Row],[Autor(in)]]),\"\")","v":""},{"$f":"IF(Tabelle_Auswertung[[#This Row],[Platz]]=8,CONCATENATE(Tabelle_Auswertung[[#This Row],[Bildname]],\" von \",Tabelle_Auswertung[[#This Row],[Autor(in)]]),\"\")","v":""},{"$f":"IF(Tabelle_Auswertung[[#This Row],[Platz]]=9,CONCATENATE(Tabelle_Auswertung[[#This Row],[Bildname]],\" von \",Tabelle_Auswertung[[#This Row],[Autor(in)]]),\"\")","v":""},{"$f":"IF(Tabelle_Auswertung[[#This Row],[Platz]]=10,CONCATENATE(Tabelle_Auswertung[[#This Row],[Bildname]],\" von \",Tabelle_Auswertung[[#This Row],[Autor(in)]]),\"\")","v":""}]
["Hallo.jpg",8,7,8,7,{"$nulls":16},{"$f":"IF(Tabelle_Auswertung[[#This Row],[Bildname]]<>\"\",SUM(Tabelle_Auswertung[[#This Row],[Juror 1]:[Juror 20]]),\" - \")","v":30},{"$f":"IF(Tabelle_Auswertung[[#This Row],[Bildname]]<>\"\",IF(Tabelle_Auswertung[[#This Row],[Punkte]]>0,AVERAGE(Tabelle_Auswertung[[#This Row],[Juror 1]:[Juror 20]]),\" - \"),\" - \")","v":{"v":7.5,"d":"7.50 "}},{"$f":"IF(Tabelle_Auswertung[[#This Row],[Bildname]]<>\"\",IF(Tabelle_Auswertung[[#This Row],[Punkte]]>0,RANK(Tabelle_Auswertung[[#This Row],[Punkte]],[Punkte],0),\" - \"),\" - \")","v":4},"Nadja Cassim",{"$f":"IF(Tabelle_Auswertung[[#This Row],[Platz]]=1,CONCATENATE(Tabelle_Auswertung[[#This Row],[Bildname]],\" von \",Tabelle_Auswertung[[#This Row],[Autor(in)]]),\"\")","v":""},{"$f":"IF(Tabelle_Auswertung[[#This Row],[Platz]]=2,CONCATENATE(Tabelle_Auswertung[[#This Row],[Bildname]],\" von \",Tabelle_Auswertung[[#This Row],[Autor(in)]]),\"\")","v":""},{"$f":"IF(Tabelle_Auswertung[[#This Row],[Platz]]=3,CONCATENATE(Tabelle_Auswertung[[#This Row],[Bildname]],\" von \",Tabelle_Auswertung[[#This Row],[Autor(in)]]),\"\")","v":""},{"$f":"IF(Tabelle_Auswertung[[#This Row],[Platz]]=4,CONCATENATE(Tabelle_Auswertung[[#This Row],[Bildname]],\" von \",Tabelle_Auswertung[[#This Row],[Autor(in)]]),\"\")","v":"Hallo.jpg von Nadja Cassim"},{"$f":"IF(Tabelle_Auswertung[[#This Row],[Platz]]=5,CONCATENATE(Tabelle_Auswertung[[#This Row],[Bildname]],\" von \",Tabelle_Auswertung[[#This Row],[Autor(in)]]),\"\")","v":""},{"$f":"IF(Tabelle_Auswertung[[#This Row],[Platz]]=6,CONCATENATE(Tabelle_Auswertung[[#This Row],[Bildname]],\" von \",Tabelle_Auswertung[[#This Row],[Autor(in)]]),\"\")","v":""},{"$f":"IF(Tabelle_Auswertung[[#This Row],[Platz]]=7,CONCATENATE(Tabelle_Auswertung[[#This Row],[Bildname]],\" von \",Tabelle_Auswertung[[#This Row],[Autor(in)]]),\"\")","v":""},{"$f":"IF(Tabelle_Auswertung[[#This Row],[Platz]]=8,CONCATENATE(Tabelle_Auswertung[[#This Row],[Bildname]],\" von \",Tabelle_Auswertung[[#This Row],[Autor(in)]]),\"\")","v":""},{"$f":"IF(Tabelle_Auswertung[[#This Row],[Platz]]=9,CONCATENATE(Tabelle_Auswertung[[#This Row],[Bildname]],\" von \",Tabelle_Auswertung[[#This Row],[Autor(in)]]),\"\")","v":""},{"$f":"IF(Tabelle_Auswertung[[#This Row],[Platz]]=10,CONCATENATE(Tabelle_Auswertung[[#This Row],[Bildname]],\" von \",Tabelle_Auswertung[[#This Row],[Autor(in)]]),\"\")","v":""}]
["Jongleurin.jpg",7,9,7,7,{"$nulls":16},{"$f":"IF(Tabelle_Auswertung[[#This Row],[Bildname]]<>\"\",SUM(Tabelle_Auswertung[[#This Row],[Juror 1]:[Juror 20]]),\" - \")","v":30},{"$f":"IF(Tabelle_Auswertung[[#This Row],[Bildname]]<>\"\",IF(Tabelle_Auswertung[[#This Row],[Punkte]]>0,AVERAGE(Tabelle_Auswertung[[#This Row],[Juror 1]:[Juror 20]]),\" - \"),\" - \")","v":{"v":7.5,"d":"7.50 "}},{"$f":"IF(Tabelle_Auswertung[[#This Row],[Bildname]]<>\"\",IF(Tabelle_Auswertung[[#This Row],[Punkte]]>0,RANK(Tabelle_Auswertung[[#This Row],[Punkte]],[Punkte],0),\" - \"),\" - \")","v":4},"Gert Häberlein",{"$f":"IF(Tabelle_Auswertung[[#This Row],[Platz]]=1,CONCATENATE(Tabelle_Auswertung[[#This Row],[Bildname]],\" von \",Tabelle_Auswertung[[#This Row],[Autor(in)]]),\"\")","v":""},{"$f":"IF(Tabelle_Auswertung[[#This Row],[Platz]]=2,CONCATENATE(Tabelle_Auswertung[[#This Row],[Bildname]],\" von \",Tabelle_Auswertung[[#This Row],[Autor(in)]]),\"\")","v":""},{"$f":"IF(Tabelle_Auswertung[[#This Row],[Platz]]=3,CONCATENATE(Tabelle_Auswertung[[#This Row],[Bildname]],\" von \",Tabelle_Auswertung[[#This Row],[Autor(in)]]),\"\")","v":""},{"$f":"IF(Tabelle_Auswertung[[#This Row],[Platz]]=4,CONCATENATE(Tabelle_Auswertung[[#This Row],[Bildname]],\" von \",Tabelle_Auswertung[[#This Row],[Autor(in)]]),\"\")","v":"Jongleurin.jpg von Gert Häberlein"},{"$f":"IF(Tabelle_Auswertung[[#This Row],[Platz]]=5,CONCATENATE(Tabelle_Auswertung[[#This Row],[Bildname]],\" von \",Tabelle_Auswertung[[#This Row],[Autor(in)]]),\"\")","v":""},{"$f":"IF(Tabelle_Auswertung[[#This Row],[Platz]]=6,CONCATENATE(Tabelle_Auswertung[[#This Row],[Bildname]],\" von \",Tabelle_Auswertung[[#This Row],[Autor(in)]]),\"\")","v":""},{"$f":"IF(Tabelle_Auswertung[[#This Row],[Platz]]=7,CONCATENATE(Tabelle_Auswertung[[#This Row],[Bildname]],\" von \",Tabelle_Auswertung[[#This Row],[Autor(in)]]),\"\")","v":""},{"$f":"IF(Tabelle_Auswertung[[#This Row],[Platz]]=8,CONCATENATE(Tabelle_Auswertung[[#This Row],[Bildname]],\" von \",Tabelle_Auswertung[[#This Row],[Autor(in)]]),\"\")","v":""},{"$f":"IF(Tabelle_Auswertung[[#This Row],[Platz]]=9,CONCATENATE(Tabelle_Auswertung[[#This Row],[Bildname]],\" von \",Tabelle_Auswertung[[#This Row],[Autor(in)]]),\"\")","v":""},{"$f":"IF(Tabelle_Auswertung[[#This Row],[Platz]]=10,CONCATENATE(Tabelle_Auswertung[[#This Row],[Bildname]],\" von \",Tabelle_Auswertung[[#This Row],[Autor(in)]]),\"\")","v":""}]
["Larven.JPG",7,8,8,7,{"$nulls":16},{"$f":"IF(Tabelle_Auswertung[[#This Row],[Bildname]]<>\"\",SUM(Tabelle_Auswertung[[#This Row],[Juror 1]:[Juror 20]]),\" - \")","v":30},{"$f":"IF(Tabelle_Auswertung[[#This Row],[Bildname]]<>\"\",IF(Tabelle_Auswertung[[#This Row],[Punkte]]>0,AVERAGE(Tabelle_Auswertung[[#This Row],[Juror 1]:[Juror 20]]),\" - \"),\" - \")","v":{"v":7.5,"d":"7.50 "}},{"$f":"IF(Tabelle_Auswertung[[#This Row],[Bildname]]<>\"\",IF(Tabelle_Auswertung[[#This Row],[Punkte]]>0,RANK(Tabelle_Auswertung[[#This Row],[Punkte]],[Punkte],0),\" - \"),\" - \")","v":4},"Nadja Cassim",{"$f":"IF(Tabelle_Auswertung[[#This Row],[Platz]]=1,CONCATENATE(Tabelle_Auswertung[[#This Row],[Bildname]],\" von \",Tabelle_Auswertung[[#This Row],[Autor(in)]]),\"\")","v":""},{"$f":"IF(Tabelle_Auswertung[[#This Row],[Platz]]=2,CONCATENATE(Tabelle_Auswertung[[#This Row],[Bildname]],\" von \",Tabelle_Auswertung[[#This Row],[Autor(in)]]),\"\")","v":""},{"$f":"IF(Tabelle_Auswertung[[#This Row],[Platz]]=3,CONCATENATE(Tabelle_Auswertung[[#This Row],[Bildname]],\" von \",Tabelle_Auswertung[[#This Row],[Autor(in)]]),\"\")","v":""},{"$f":"IF(Tabelle_Auswertung[[#This Row],[Platz]]=4,CONCATENATE(Tabelle_Auswertung[[#This Row],[Bildname]],\" von \",Tabelle_Auswertung[[#This Row],[Autor(in)]]),\"\")","v":"Larven.JPG von Nadja Cassim"},{"$f":"IF(Tabelle_Auswertung[[#This Row],[Platz]]=5,CONCATENATE(Tabelle_Auswertung[[#This Row],[Bildname]],\" von \",Tabelle_Auswertung[[#This Row],[Autor(in)]]),\"\")","v":""},{"$f":"IF(Tabelle_Auswertung[[#This Row],[Platz]]=6,CONCATENATE(Tabelle_Auswertung[[#This Row],[Bildname]],\" von \",Tabelle_Auswertung[[#This Row],[Autor(in)]]),\"\")","v":""},{"$f":"IF(Tabelle_Auswertung[[#This Row],[Platz]]=7,CONCATENATE(Tabelle_Auswertung[[#This Row],[Bildname]],\" von \",Tabelle_Auswertung[[#This Row],[Autor(in)]]),\"\")","v":""},{"$f":"IF(Tabelle_Auswertung[[#This Row],[Platz]]=8,CONCATENATE(Tabelle_Auswertung[[#This Row],[Bildname]],\" von \",Tabelle_Auswertung[[#This Row],[Autor(in)]]),\"\")","v":""},{"$f":"IF(Tabelle_Auswertung[[#This Row],[Platz]]=9,CONCATENATE(Tabelle_Auswertung[[#This Row],[Bildname]],\" von \",Tabelle_Auswertung[[#This Row],[Autor(in)]]),\"\")","v":""},{"$f":"IF(Tabelle_Auswertung[[#This Row],[Platz]]=10,CONCATENATE(Tabelle_Auswertung[[#This Row],[Bildname]],\" von \",Tabelle_Auswertung[[#This Row],[Autor(in)]]),\"\")","v":""}]
["TowerBridgePano.jpg",7,8,8,7,{"$nulls":16},{"$f":"IF(Tabelle_Auswertung[[#This Row],[Bildname]]<>\"\",SUM(Tabelle_Auswertung[[#This Row],[Juror 1]:[Juror 20]]),\" - \")","v":30},{"$f":"IF(Tabelle_Auswertung[[#This Row],[Bildname]]<>\"\",IF(Tabelle_Auswertung[[#This Row],[Punkte]]>0,AVERAGE(Tabelle_Auswertung[[#This Row],[Juror 1]:[Juror 20]]),\" - \"),\" - \")","v":{"v":7.5,"d":"7.50 "}},{"$f":"IF(Tabelle_Auswertung[[#This Row],[Bildname]]<>\"\",IF(Tabelle_Auswertung[[#This Row],[Punkte]]>0,RANK(Tabelle_Auswertung[[#This Row],[Punkte]],[Punkte],0),\" - \"),\" - \")","v":4},"Andreas Toltz",{"$f":"IF(Tabelle_Auswertung[[#This Row],[Platz]]=1,CONCATENATE(Tabelle_Auswertung[[#This Row],[Bildname]],\" von \",Tabelle_Auswertung[[#This Row],[Autor(in)]]),\"\")","v":""},{"$f":"IF(Tabelle_Auswertung[[#This Row],[Platz]]=2,CONCATENATE(Tabelle_Auswertung[[#This Row],[Bildname]],\" von \",Tabelle_Auswertung[[#This Row],[Autor(in)]]),\"\")","v":""},{"$f":"IF(Tabelle_Auswertung[[#This Row],[Platz]]=3,CONCATENATE(Tabelle_Auswertung[[#This Row],[Bildname]],\" von \",Tabelle_Auswertung[[#This Row],[Autor(in)]]),\"\")","v":""},{"$f":"IF(Tabelle_Auswertung[[#This Row],[Platz]]=4,CONCATENATE(Tabelle_Auswertung[[#This Row],[Bildname]],\" von \",Tabelle_Auswertung[[#This Row],[Autor(in)]]),\"\")","v":"TowerBridgePano.jpg von Andreas Toltz"},{"$f":"IF(Tabelle_Auswertung[[#This Row],[Platz]]=5,CONCATENATE(Tabelle_Auswertung[[#This Row],[Bildname]],\" von \",Tabelle_Auswertung[[#This Row],[Autor(in)]]),\"\")","v":""},{"$f":"IF(Tabelle_Auswertung[[#This Row],[Platz]]=6,CONCATENATE(Tabelle_Auswertung[[#This Row],[Bildname]],\" von \",Tabelle_Auswertung[[#This Row],[Autor(in)]]),\"\")","v":""},{"$f":"IF(Tabelle_Auswertung[[#This Row],[Platz]]=7,CONCATENATE(Tabelle_Auswertung[[#This Row],[Bildname]],\" von \",Tabelle_Auswertung[[#This Row],[Autor(in)]]),\"\")","v":""},{"$f":"IF(Tabelle_Auswertung[[#This Row],[Platz]]=8,CONCATENATE(Tabelle_Auswertung[[#This Row],[Bildname]],\" von \",Tabelle_Auswertung[[#This Row],[Autor(in)]]),\"\")","v":""},{"$f":"IF(Tabelle_Auswertung[[#This Row],[Platz]]=9,CONCATENATE(Tabelle_Auswertung[[#This Row],[Bildname]],\" von \",Tabelle_Auswertung[[#This Row],[Autor(in)]]),\"\")","v":""},{"$f":"IF(Tabelle_Auswertung[[#This Row],[Platz]]=10,CONCATENATE(Tabelle_Auswertung[[#This Row],[Bildname]],\" von \",Tabelle_Auswertung[[#This Row],[Autor(in)]]),\"\")","v":""}]
["Big Belly.jpg",6,7,9,7,{"$nulls":16},{"$f":"IF(Tabelle_Auswertung[[#This Row],[Bildname]]<>\"\",SUM(Tabelle_Auswertung[[#This Row],[Juror 1]:[Juror 20]]),\" - \")","v":29},{"$f":"IF(Tabelle_Auswertung[[#This Row],[Bildname]]<>\"\",IF(Tabelle_Auswertung[[#This Row],[Punkte]]>0,AVERAGE(Tabelle_Auswertung[[#This Row],[Juror 1]:[Juror 20]]),\" - \"),\" - \")","v":{"v":7.25,"d":"7.25 "}},{"$f":"IF(Tabelle_Auswertung[[#This Row],[Bildname]]<>\"\",IF(Tabelle_Auswertung[[#This Row],[Punkte]]>0,RANK(Tabelle_Auswertung[[#This Row],[Punkte]],[Punkte],0),\" - \"),\" - \")","v":8},"Jan Grünler",{"$f":"IF(Tabelle_Auswertung[[#This Row],[Platz]]=1,CONCATENATE(Tabelle_Auswertung[[#This Row],[Bildname]],\" von \",Tabelle_Auswertung[[#This Row],[Autor(in)]]),\"\")","v":""},{"$f":"IF(Tabelle_Auswertung[[#This Row],[Platz]]=2,CONCATENATE(Tabelle_Auswertung[[#This Row],[Bildname]],\" von \",Tabelle_Auswertung[[#This Row],[Autor(in)]]),\"\")","v":""},{"$f":"IF(Tabelle_Auswertung[[#This Row],[Platz]]=3,CONCATENATE(Tabelle_Auswertung[[#This Row],[Bildname]],\" von \",Tabelle_Auswertung[[#This Row],[Autor(in)]]),\"\")","v":""},{"$f":"IF(Tabelle_Auswertung[[#This Row],[Platz]]=4,CONCATENATE(Tabelle_Auswertung[[#This Row],[Bildname]],\" von \",Tabelle_Auswertung[[#This Row],[Autor(in)]]),\"\")","v":""},{"$f":"IF(Tabelle_Auswertung[[#This Row],[Platz]]=5,CONCATENATE(Tabelle_Auswertung[[#This Row],[Bildname]],\" von \",Tabelle_Auswertung[[#This Row],[Autor(in)]]),\"\")","v":""},{"$f":"IF(Tabelle_Auswertung[[#This Row],[Platz]]=6,CONCATENATE(Tabelle_Auswertung[[#This Row],[Bildname]],\" von \",Tabelle_Auswertung[[#This Row],[Autor(in)]]),\"\")","v":""},{"$f":"IF(Tabelle_Auswertung[[#This Row],[Platz]]=7,CONCATENATE(Tabelle_Auswertung[[#This Row],[Bildname]],\" von \",Tabelle_Auswertung[[#This Row],[Autor(in)]]),\"\")","v":""},{"$f":"IF(Tabelle_Auswertung[[#This Row],[Platz]]=8,CONCATENATE(Tabelle_Auswertung[[#This Row],[Bildname]],\" von \",Tabelle_Auswertung[[#This Row],[Autor(in)]]),\"\")","v":"Big Belly.jpg von Jan Grünler"},{"$f":"IF(Tabelle_Auswertung[[#This Row],[Platz]]=9,CONCATENATE(Tabelle_Auswertung[[#This Row],[Bildname]],\" von \",Tabelle_Auswertung[[#This Row],[Autor(in)]]),\"\")","v":""},{"$f":"IF(Tabelle_Auswertung[[#This Row],[Platz]]=10,CONCATENATE(Tabelle_Auswertung[[#This Row],[Bildname]],\" von \",Tabelle_Auswertung[[#This Row],[Autor(in)]]),\"\")","v":""}]
["Hunger.JPG",7,8,7,7,{"$nulls":16},{"$f":"IF(Tabelle_Auswertung[[#This Row],[Bildname]]<>\"\",SUM(Tabelle_Auswertung[[#This Row],[Juror 1]:[Juror 20]]),\" - \")","v":29},{"$f":"IF(Tabelle_Auswertung[[#This Row],[Bildname]]<>\"\",IF(Tabelle_Auswertung[[#This Row],[Punkte]]>0,AVERAGE(Tabelle_Auswertung[[#This Row],[Juror 1]:[Juror 20]]),\" - \"),\" - \")","v":{"v":7.25,"d":"7.25 "}},{"$f":"IF(Tabelle_Auswertung[[#This Row],[Bildname]]<>\"\",IF(Tabelle_Auswertung[[#This Row],[Punkte]]>0,RANK(Tabelle_Auswertung[[#This Row],[Punkte]],[Punkte],0),\" - \"),\" - \")","v":8},"Nadja Cassim",{"$f":"IF(Tabelle_Auswertung[[#This Row],[Platz]]=1,CONCATENATE(Tabelle_Auswertung[[#This Row],[Bildname]],\" von \",Tabelle_Auswertung[[#This Row],[Autor(in)]]),\"\")","v":""},{"$f":"IF(Tabelle_Auswertung[[#This Row],[Platz]]=2,CONCATENATE(Tabelle_Auswertung[[#This Row],[Bildname]],\" von \",Tabelle_Auswertung[[#This Row],[Autor(in)]]),\"\")","v":""},{"$f":"IF(Tabelle_Auswertung[[#This Row],[Platz]]=3,CONCATENATE(Tabelle_Auswertung[[#This Row],[Bildname]],\" von \",Tabelle_Auswertung[[#This Row],[Autor(in)]]),\"\")","v":""},{"$f":"IF(Tabelle_Auswertung[[#This Row],[Platz]]=4,CONCATENATE(Tabelle_Auswertung[[#This Row],[Bildname]],\" von \",Tabelle_Auswertung[[#This Row],[Autor(in)]]),\"\")","v":""},{"$f":"IF(Tabelle_Auswertung[[#This Row],[Platz]]=5,CONCATENATE(Tabelle_Auswertung[[#This Row],[Bildname]],\" von \",Tabelle_Auswertung[[#This Row],[Autor(in)]]),\"\")","v":""},{"$f":"IF(Tabelle_Auswertung[[#This Row],[Platz]]=6,CONCATENATE(Tabelle_Auswertung[[#This Row],[Bildname]],\" von \",Tabelle_Auswertung[[#This Row],[Autor(in)]]),\"\")","v":""},{"$f":"IF(Tabelle_Auswertung[[#This Row],[Platz]]=7,CONCATENATE(Tabelle_Auswertung[[#This Row],[Bildname]],\" von \",Tabelle_Auswertung[[#This Row],[Autor(in)]]),\"\")","v":""},{"$f":"IF(Tabelle_Auswertung[[#This Row],[Platz]]=8,CONCATENATE(Tabelle_Auswertung[[#This Row],[Bildname]],\" von \",Tabelle_Auswertung[[#This Row],[Autor(in)]]),\"\")","v":"Hunger.JPG von Nadja Cassim"},{"$f":"IF(Tabelle_Auswertung[[#This Row],[Platz]]=9,CONCATENATE(Tabelle_Auswertung[[#This Row],[Bildname]],\" von \",Tabelle_Auswertung[[#This Row],[Autor(in)]]),\"\")","v":""},{"$f":"IF(Tabelle_Auswertung[[#This Row],[Platz]]=10,CONCATENATE(Tabelle_Auswertung[[#This Row],[Bildname]],\" von \",Tabelle_Auswertung[[#This Row],[Autor(in)]]),\"\")","v":""}]
["Motorradartist.jpg",7,8,6,7,{"$nulls":16},{"$f":"IF(Tabelle_Auswertung[[#This Row],[Bildname]]<>\"\",SUM(Tabelle_Auswertung[[#This Row],[Juror 1]:[Juror 20]]),\" - \")","v":28},{"$f":"IF(Tabelle_Auswertung[[#This Row],[Bildname]]<>\"\",IF(Tabelle_Auswertung[[#This Row],[Punkte]]>0,AVERAGE(Tabelle_Auswertung[[#This Row],[Juror 1]:[Juror 20]]),\" - \"),\" - \")","v":{"v":7,"d":"7.00 "}},{"$f":"IF(Tabelle_Auswertung[[#This Row],[Bildname]]<>\"\",IF(Tabelle_Auswertung[[#This Row],[Punkte]]>0,RANK(Tabelle_Auswertung[[#This Row],[Punkte]],[Punkte],0),\" - \"),\" - \")","v":10},"Gert Häberlein",{"$f":"IF(Tabelle_Auswertung[[#This Row],[Platz]]=1,CONCATENATE(Tabelle_Auswertung[[#This Row],[Bildname]],\" von \",Tabelle_Auswertung[[#This Row],[Autor(in)]]),\"\")","v":""},{"$f":"IF(Tabelle_Auswertung[[#This Row],[Platz]]=2,CONCATENATE(Tabelle_Auswertung[[#This Row],[Bildname]],\" von \",Tabelle_Auswertung[[#This Row],[Autor(in)]]),\"\")","v":""},{"$f":"IF(Tabelle_Auswertung[[#This Row],[Platz]]=3,CONCATENATE(Tabelle_Auswertung[[#This Row],[Bildname]],\" von \",Tabelle_Auswertung[[#This Row],[Autor(in)]]),\"\")","v":""},{"$f":"IF(Tabelle_Auswertung[[#This Row],[Platz]]=4,CONCATENATE(Tabelle_Auswertung[[#This Row],[Bildname]],\" von \",Tabelle_Auswertung[[#This Row],[Autor(in)]]),\"\")","v":""},{"$f":"IF(Tabelle_Auswertung[[#This Row],[Platz]]=5,CONCATENATE(Tabelle_Auswertung[[#This Row],[Bildname]],\" von \",Tabelle_Auswertung[[#This Row],[Autor(in)]]),\"\")","v":""},{"$f":"IF(Tabelle_Auswertung[[#This Row],[Platz]]=6,CONCATENATE(Tabelle_Auswertung[[#This Row],[Bildname]],\" von \",Tabelle_Auswertung[[#This Row],[Autor(in)]]),\"\")","v":""},{"$f":"IF(Tabelle_Auswertung[[#This Row],[Platz]]=7,CONCATENATE(Tabelle_Auswertung[[#This Row],[Bildname]],\" von \",Tabelle_Auswertung[[#This Row],[Autor(in)]]),\"\")","v":""},{"$f":"IF(Tabelle_Auswertung[[#This Row],[Platz]]=8,CONCATENATE(Tabelle_Auswertung[[#This Row],[Bildname]],\" von \",Tabelle_Auswertung[[#This Row],[Autor(in)]]),\"\")","v":""},{"$f":"IF(Tabelle_Auswertung[[#This Row],[Platz]]=9,CONCATENATE(Tabelle_Auswertung[[#This Row],[Bildname]],\" von \",Tabelle_Auswertung[[#This Row],[Autor(in)]]),\"\")","v":""},{"$f":"IF(Tabelle_Auswertung[[#This Row],[Platz]]=10,CONCATENATE(Tabelle_Auswertung[[#This Row],[Bildname]],\" von \",Tabelle_Auswertung[[#This Row],[Autor(in)]]),\"\")","v":"Motorradartist.jpg von Gert Häberlein"}]
["Seifenblase.jpg",6,8,7,7,{"$nulls":16},{"$f":"IF(Tabelle_Auswertung[[#This Row],[Bildname]]<>\"\",SUM(Tabelle_Auswertung[[#This Row],[Juror 1]:[Juror 20]]),\" - \")","v":28},{"$f":"IF(Tabelle_Auswertung[[#This Row],[Bildname]]<>\"\",IF(Tabelle_Auswertung[[#This Row],[Punkte]]>0,AVERAGE(Tabelle_Auswertung[[#This Row],[Juror 1]:[Juror 20]]),\" - \"),\" - \")","v":{"v":7,"d":"7.00 "}},{"$f":"IF(Tabelle_Auswertung[[#This Row],[Bildname]]<>\"\",IF(Tabelle_Auswertung[[#This Row],[Punkte]]>0,RANK(Tabelle_Auswertung[[#This Row],[Punkte]],[Punkte],0),\" - \"),\" - \")","v":10},"Nadja Cassim",{"$f":"IF(Tabelle_Auswertung[[#This Row],[Platz]]=1,CONCATENATE(Tabelle_Auswertung[[#This Row],[Bildname]],\" von \",Tabelle_Auswertung[[#This Row],[Autor(in)]]),\"\")","v":""},{"$f":"IF(Tabelle_Auswertung[[#This Row],[Platz]]=2,CONCATENATE(Tabelle_Auswertung[[#This Row],[Bildname]],\" von \",Tabelle_Auswertung[[#This Row],[Autor(in)]]),\"\")","v":""},{"$f":"IF(Tabelle_Auswertung[[#This Row],[Platz]]=3,CONCATENATE(Tabelle_Auswertung[[#This Row],[Bildname]],\" von \",Tabelle_Auswertung[[#This Row],[Autor(in)]]),\"\")","v":""},{"$f":"IF(Tabelle_Auswertung[[#This Row],[Platz]]=4,CONCATENATE(Tabelle_Auswertung[[#This Row],[Bildname]],\" von \",Tabelle_Auswertung[[#This Row],[Autor(in)]]),\"\")","v":""},{"$f":"IF(Tabelle_Auswertung[[#This Row],[Platz]]=5,CONCATENATE(Tabelle_Auswertung[[#This Row],[Bildname]],\" von \",Tabelle_Auswertung[[#This Row],[Autor(in)]]),\"\")","v":""},{"$f":"IF(Tabelle_Auswertung[[#This Row],[Platz]]=6,CONCATENATE(Tabelle_Auswertung[[#This Row],[Bildname]],\" von \",Tabelle_Auswertung[[#This Row],[Autor(in)]]),\"\")","v":""},{"$f":"IF(Tabelle_Auswertung[[#This Row],[Platz]]=7,CONCATENATE(Tabelle_Auswertung[[#This Row],[Bildname]],\" von \",Tabelle_Auswertung[[#This Row],[Autor(in)]]),\"\")","v":""},{"$f":"IF(Tabelle_Auswertung[[#This Row],[Platz]]=8,CONCATENATE(Tabelle_Auswertung[[#This Row],[Bildname]],\" von \",Tabelle_Auswertung[[#This Row],[Autor(in)]]),\"\")","v":""},{"$f":"IF(Tabelle_Auswertung[[#This Row],[Platz]]=9,CONCATENATE(Tabelle_Auswertung[[#This Row],[Bildname]],\" von \",Tabelle_Auswertung[[#This Row],[Autor(in)]]),\"\")","v":""},{"$f":"IF(Tabelle_Auswertung[[#This Row],[Platz]]=10,CONCATENATE(Tabelle_Auswertung[[#This Row],[Bildname]],\" von \",Tabelle_Auswertung[[#This Row],[Autor(in)]]),\"\")","v":"Seifenblase.jpg von Nadja Cassim"}]
["Stefanie.jpg",7,8,6,7,{"$nulls":16},{"$f":"IF(Tabelle_Auswertung[[#This Row],[Bildname]]<>\"\",SUM(Tabelle_Auswertung[[#This Row],[Juror 1]:[Juror 20]]),\" - \")","v":28},{"$f":"IF(Tabelle_Auswertung[[#This Row],[Bildname]]<>\"\",IF(Tabelle_Auswertung[[#This Row],[Punkte]]>0,AVERAGE(Tabelle_Auswertung[[#This Row],[Juror 1]:[Juror 20]]),\" - \"),\" - \")","v":{"v":7,"d":"7.00 "}},{"$f":"IF(Tabelle_Auswertung[[#This Row],[Bildname]]<>\"\",IF(Tabelle_Auswertung[[#This Row],[Punkte]]>0,RANK(Tabelle_Auswertung[[#This Row],[Punkte]],[Punkte],0),\" - \"),\" - \")","v":10},"Gerhard Rieß",{"$f":"IF(Tabelle_Auswertung[[#This Row],[Platz]]=1,CONCATENATE(Tabelle_Auswertung[[#This Row],[Bildname]],\" von \",Tabelle_Auswertung[[#This Row],[Autor(in)]]),\"\")","v":""},{"$f":"IF(Tabelle_Auswertung[[#This Row],[Platz]]=2,CONCATENATE(Tabelle_Auswertung[[#This Row],[Bildname]],\" von \",Tabelle_Auswertung[[#This Row],[Autor(in)]]),\"\")","v":""},{"$f":"IF(Tabelle_Auswertung[[#This Row],[Platz]]=3,CONCATENATE(Tabelle_Auswertung[[#This Row],[Bildname]],\" von \",Tabelle_Auswertung[[#This Row],[Autor(in)]]),\"\")","v":""},{"$f":"IF(Tabelle_Auswertung[[#This Row],[Platz]]=4,CONCATENATE(Tabelle_Auswertung[[#This Row],[Bildname]],\" von \",Tabelle_Auswertung[[#This Row],[Autor(in)]]),\"\")","v":""},{"$f":"IF(Tabelle_Auswertung[[#This Row],[Platz]]=5,CONCATENATE(Tabelle_Auswertung[[#This Row],[Bildname]],\" von \",Tabelle_Auswertung[[#This Row],[Autor(in)]]),\"\")","v":""},{"$f":"IF(Tabelle_Auswertung[[#This Row],[Platz]]=6,CONCATENATE(Tabelle_Auswertung[[#This Row],[Bildname]],\" von \",Tabelle_Auswertung[[#This Row],[Autor(in)]]),\"\")","v":""},{"$f":"IF(Tabelle_Auswertung[[#This Row],[Platz]]=7,CONCATENATE(Tabelle_Auswertung[[#This Row],[Bildname]],\" von \",Tabelle_Auswertung[[#This Row],[Autor(in)]]),\"\")","v":""},{"$f":"IF(Tabelle_Auswertung[[#This Row],[Platz]]=8,CONCATENATE(Tabelle_Auswertung[[#This Row],[Bildname]],\" von \",Tabelle_Auswertung[[#This Row],[Autor(in)]]),\"\")","v":""},{"$f":"IF(Tabelle_Auswertung[[#This Row],[Platz]]=9,CONCATENATE(Tabelle_Auswertung[[#This Row],[Bildname]],\" von \",Tabelle_Auswertung[[#This Row],[Autor(in)]]),\"\")","v":""},{"$f":"IF(Tabelle_Auswertung[[#This Row],[Platz]]=10,CONCATENATE(Tabelle_Auswertung[[#This Row],[Bildname]],\" von \",Tabelle_Auswertung[[#This Row],[Autor(in)]]),\"\")","v":"Stefanie.jpg von Gerhard Rieß"}]
["Dancing House.jpg",7,7,6,7,{"$nulls":16},{"$f":"IF(Tabelle_Auswertung[[#This Row],[Bildname]]<>\"\",SUM(Tabelle_Auswertung[[#This Row],[Juror 1]:[Juror 20]]),\" - \")","v":27},{"$f":"IF(Tabelle_Auswertung[[#This Row],[Bildname]]<>\"\",IF(Tabelle_Auswertung[[#This Row],[Punkte]]>0,AVERAGE(Tabelle_Auswertung[[#This Row],[Juror 1]:[Juror 20]]),\" - \"),\" - \")","v":{"v":6.75,"d":"6.75 "}},{"$f":"IF(Tabelle_Auswertung[[#This Row],[Bildname]]<>\"\",IF(Tabelle_Auswertung[[#This Row],[Punkte]]>0,RANK(Tabelle_Auswertung[[#This Row],[Punkte]],[Punkte],0),\" - \"),\" - \")","v":13},"Andreas Toltz",{"$f":"IF(Tabelle_Auswertung[[#This Row],[Platz]]=1,CONCATENATE(Tabelle_Auswertung[[#This Row],[Bildname]],\" von \",Tabelle_Auswertung[[#This Row],[Autor(in)]]),\"\")","v":""},{"$f":"IF(Tabelle_Auswertung[[#This Row],[Platz]]=2,CONCATENATE(Tabelle_Auswertung[[#This Row],[Bildname]],\" von \",Tabelle_Auswertung[[#This Row],[Autor(in)]]),\"\")","v":""},{"$f":"IF(Tabelle_Auswertung[[#This Row],[Platz]]=3,CONCATENATE(Tabelle_Auswertung[[#This Row],[Bildname]],\" von \",Tabelle_Auswertung[[#This Row],[Autor(in)]]),\"\")","v":""},{"$f":"IF(Tabelle_Auswertung[[#This Row],[Platz]]=4,CONCATENATE(Tabelle_Auswertung[[#This Row],[Bildname]],\" von \",Tabelle_Auswertung[[#This Row],[Autor(in)]]),\"\")","v":""},{"$f":"IF(Tabelle_Auswertung[[#This Row],[Platz]]=5,CONCATENATE(Tabelle_Auswertung[[#This Row],[Bildname]],\" von \",Tabelle_Auswertung[[#This Row],[Autor(in)]]),\"\")","v":""},{"$f":"IF(Tabelle_Auswertung[[#This Row],[Platz]]=6,CONCATENATE(Tabelle_Auswertung[[#This Row],[Bildname]],\" von \",Tabelle_Auswertung[[#This Row],[Autor(in)]]),\"\")","v":""},{"$f":"IF(Tabelle_Auswertung[[#This Row],[Platz]]=7,CONCATENATE(Tabelle_Auswertung[[#This Row],[Bildname]],\" von \",Tabelle_Auswertung[[#This Row],[Autor(in)]]),\"\")","v":""},{"$f":"IF(Tabelle_Auswertung[[#This Row],[Platz]]=8,CONCATENATE(Tabelle_Auswertung[[#This Row],[Bildname]],\" von \",Tabelle_Auswertung[[#This Row],[Autor(in)]]),\"\")","v":""},{"$f":"IF(Tabelle_Auswertung[[#This Row],[Platz]]=9,CONCATENATE(Tabelle_Auswertung[[#This Row],[Bildname]],\" von \",Tabelle_Auswertung[[#This Row],[Autor(in)]]),\"\")","v":""},{"$f":"IF(Tabelle_Auswertung[[#This Row],[Platz]]=10,CONCATENATE(Tabelle_Auswertung[[#This Row],[Bildname]],\" von \",Tabelle_Auswertung[[#This Row],[Autor(in)]]),\"\")","v":""}]
["streetpainting.jpg",8,7,6,6,{"$nulls":16},{"$f":"IF(Tabelle_Auswertung[[#This Row],[Bildname]]<>\"\",SUM(Tabelle_Auswertung[[#This Row],[Juror 1]:[Juror 20]]),\" - \")","v":27},{"$f":"IF(Tabelle_Auswertung[[#This Row],[Bildname]]<>\"\",IF(Tabelle_Auswertung[[#This Row],[Punkte]]>0,AVERAGE(Tabelle_Auswertung[[#This Row],[Juror 1]:[Juror 20]]),\" - \"),\" - \")","v":{"v":6.75,"d":"6.75 "}},{"$f":"IF(Tabelle_Auswertung[[#This Row],[Bildname]]<>\"\",IF(Tabelle_Auswertung[[#This Row],[Punkte]]>0,RANK(Tabelle_Auswertung[[#This Row],[Punkte]],[Punkte],0),\" - \"),\" - \")","v":13},"Gerhard Rieß",{"$f":"IF(Tabelle_Auswertung[[#This Row],[Platz]]=1,CONCATENATE(Tabelle_Auswertung[[#This Row],[Bildname]],\" von \",Tabelle_Auswertung[[#This Row],[Autor(in)]]),\"\")","v":""},{"$f":"IF(Tabelle_Auswertung[[#This Row],[Platz]]=2,CONCATENATE(Tabelle_Auswertung[[#This Row],[Bildname]],\" von \",Tabelle_Auswertung[[#This Row],[Autor(in)]]),\"\")","v":""},{"$f":"IF(Tabelle_Auswertung[[#This Row],[Platz]]=3,CONCATENATE(Tabelle_Auswertung[[#This Row],[Bildname]],\" von \",Tabelle_Auswertung[[#This Row],[Autor(in)]]),\"\")","v":""},{"$f":"IF(Tabelle_Auswertung[[#This Row],[Platz]]=4,CONCATENATE(Tabelle_Auswertung[[#This Row],[Bildname]],\" von \",Tabelle_Auswertung[[#This Row],[Autor(in)]]),\"\")","v":""},{"$f":"IF(Tabelle_Auswertung[[#This Row],[Platz]]=5,CONCATENATE(Tabelle_Auswertung[[#This Row],[Bildname]],\" von \",Tabelle_Auswertung[[#This Row],[Autor(in)]]),\"\")","v":""},{"$f":"IF(Tabelle_Auswertung[[#This Row],[Platz]]=6,CONCATENATE(Tabelle_Auswertung[[#This Row],[Bildname]],\" von \",Tabelle_Auswertung[[#This Row],[Autor(in)]]),\"\")","v":""},{"$f":"IF(Tabelle_Auswertung[[#This Row],[Platz]]=7,CONCATENATE(Tabelle_Auswertung[[#This Row],[Bildname]],\" von \",Tabelle_Auswertung[[#This Row],[Autor(in)]]),\"\")","v":""},{"$f":"IF(Tabelle_Auswertung[[#This Row],[Platz]]=8,CONCATENATE(Tabelle_Auswertung[[#This Row],[Bildname]],\" von \",Tabelle_Auswertung[[#This Row],[Autor(in)]]),\"\")","v":""},{"$f":"IF(Tabelle_Auswertung[[#This Row],[Platz]]=9,CONCATENATE(Tabelle_Auswertung[[#This Row],[Bildname]],\" von \",Tabelle_Auswertung[[#This Row],[Autor(in)]]),\"\")","v":""},{"$f":"IF(Tabelle_Auswertung[[#This Row],[Platz]]=10,CONCATENATE(Tabelle_Auswertung[[#This Row],[Bildname]],\" von \",Tabelle_Auswertung[[#This Row],[Autor(in)]]),\"\")","v":""}]
["Birdie's Hideaway.jpg",6,9,5,6,{"$nulls":16},{"$f":"IF(Tabelle_Auswertung[[#This Row],[Bildname]]<>\"\",SUM(Tabelle_Auswertung[[#This Row],[Juror 1]:[Juror 20]]),\" - \")","v":26},{"$f":"IF(Tabelle_Auswertung[[#This Row],[Bildname]]<>\"\",IF(Tabelle_Auswertung[[#This Row],[Punkte]]>0,AVERAGE(Tabelle_Auswertung[[#This Row],[Juror 1]:[Juror 20]]),\" - \"),\" - \")","v":{"v":6.5,"d":"6.50 "}},{"$f":"IF(Tabelle_Auswertung[[#This Row],[Bildname]]<>\"\",IF(Tabelle_Auswertung[[#This Row],[Punkte]]>0,RANK(Tabelle_Auswertung[[#This Row],[Punkte]],[Punkte],0),\" - \"),\" - \")","v":15},"Jan Grünler",{"$f":"IF(Tabelle_Auswertung[[#This Row],[Platz]]=1,CONCATENATE(Tabelle_Auswertung[[#This Row],[Bildname]],\" von \",Tabelle_Auswertung[[#This Row],[Autor(in)]]),\"\")","v":""},{"$f":"IF(Tabelle_Auswertung[[#This Row],[Platz]]=2,CONCATENATE(Tabelle_Auswertung[[#This Row],[Bildname]],\" von \",Tabelle_Auswertung[[#This Row],[Autor(in)]]),\"\")","v":""},{"$f":"IF(Tabelle_Auswertung[[#This Row],[Platz]]=3,CONCATENATE(Tabelle_Auswertung[[#This Row],[Bildname]],\" von \",Tabelle_Auswertung[[#This Row],[Autor(in)]]),\"\")","v":""},{"$f":"IF(Tabelle_Auswertung[[#This Row],[Platz]]=4,CONCATENATE(Tabelle_Auswertung[[#This Row],[Bildname]],\" von \",Tabelle_Auswertung[[#This Row],[Autor(in)]]),\"\")","v":""},{"$f":"IF(Tabelle_Auswertung[[#This Row],[Platz]]=5,CONCATENATE(Tabelle_Auswertung[[#This Row],[Bildname]],\" von \",Tabelle_Auswertung[[#This Row],[Autor(in)]]),\"\")","v":""},{"$f":"IF(Tabelle_Auswertung[[#This Row],[Platz]]=6,CONCATENATE(Tabelle_Auswertung[[#This Row],[Bildname]],\" von \",Tabelle_Auswertung[[#This Row],[Autor(in)]]),\"\")","v":""},{"$f":"IF(Tabelle_Auswertung[[#This Row],[Platz]]=7,CONCATENATE(Tabelle_Auswertung[[#This Row],[Bildname]],\" von \",Tabelle_Auswertung[[#This Row],[Autor(in)]]),\"\")","v":""},{"$f":"IF(Tabelle_Auswertung[[#This Row],[Platz]]=8,CONCATENATE(Tabelle_Auswertung[[#This Row],[Bildname]],\" von \",Tabelle_Auswertung[[#This Row],[Autor(in)]]),\"\")","v":""},{"$f":"IF(Tabelle_Auswertung[[#This Row],[Platz]]=9,CONCATENATE(Tabelle_Auswertung[[#This Row],[Bildname]],\" von \",Tabelle_Auswertung[[#This Row],[Autor(in)]]),\"\")","v":""},{"$f":"IF(Tabelle_Auswertung[[#This Row],[Platz]]=10,CONCATENATE(Tabelle_Auswertung[[#This Row],[Bildname]],\" von \",Tabelle_Auswertung[[#This Row],[Autor(in)]]),\"\")","v":""}]
["Ina in love.jpg",7,7,6,6,{"$nulls":16},{"$f":"IF(Tabelle_Auswertung[[#This Row],[Bildname]]<>\"\",SUM(Tabelle_Auswertung[[#This Row],[Juror 1]:[Juror 20]]),\" - \")","v":26},{"$f":"IF(Tabelle_Auswertung[[#This Row],[Bildname]]<>\"\",IF(Tabelle_Auswertung[[#This Row],[Punkte]]>0,AVERAGE(Tabelle_Auswertung[[#This Row],[Juror 1]:[Juror 20]]),\" - \"),\" - \")","v":{"v":6.5,"d":"6.50 "}},{"$f":"IF(Tabelle_Auswertung[[#This Row],[Bildname]]<>\"\",IF(Tabelle_Auswertung[[#This Row],[Punkte]]>0,RANK(Tabelle_Auswertung[[#This Row],[Punkte]],[Punkte],0),\" - \"),\" - \")","v":15},"Gerhard Rieß",{"$f":"IF(Tabelle_Auswertung[[#This Row],[Platz]]=1,CONCATENATE(Tabelle_Auswertung[[#This Row],[Bildname]],\" von \",Tabelle_Auswertung[[#This Row],[Autor(in)]]),\"\")","v":""},{"$f":"IF(Tabelle_Auswertung[[#This Row],[Platz]]=2,CONCATENATE(Tabelle_Auswertung[[#This Row],[Bildname]],\" von \",Tabelle_Auswertung[[#This Row],[Autor(in)]]),\"\")","v":""},{"$f":"IF(Tabelle_Auswertung[[#This Row],[Platz]]=3,CONCATENATE(Tabelle_Auswertung[[#This Row],[Bildname]],\" von \",Tabelle_Auswertung[[#This Row],[Autor(in)]]),\"\")","v":""},{"$f":"IF(Tabelle_Auswertung[[#This Row],[Platz]]=4,CONCATENATE(Tabelle_Auswertung[[#This Row],[Bildname]],\" von \",Tabelle_Auswertung[[#This Row],[Autor(in)]]),\"\")","v":""},{"$f":"IF(Tabelle_Auswertung[[#This Row],[Platz]]=5,CONCATENATE(Tabelle_Auswertung[[#This Row],[Bildname]],\" von \",Tabelle_Auswertung[[#This Row],[Autor(in)]]),\"\")","v":""},{"$f":"IF(Tabelle_Auswertung[[#This Row],[Platz]]=6,CONCATENATE(Tabelle_Auswertung[[#This Row],[Bildname]],\" von \",Tabelle_Auswertung[[#This Row],[Autor(in)]]),\"\")","v":""},{"$f":"IF(Tabelle_Auswertung[[#This Row],[Platz]]=7,CONCATENATE(Tabelle_Auswertung[[#This Row],[Bildname]],\" von \",Tabelle_Auswertung[[#This Row],[Autor(in)]]),\"\")","v":""},{"$f":"IF(Tabelle_Auswertung[[#This Row],[Platz]]=8,CONCATENATE(Tabelle_Auswertung[[#This Row],[Bildname]],\" von \",Tabelle_Auswertung[[#This Row],[Autor(in)]]),\"\")","v":""},{"$f":"IF(Tabelle_Auswertung[[#This Row],[Platz]]=9,CONCATENATE(Tabelle_Auswertung[[#This Row],[Bildname]],\" von \",Tabelle_Auswertung[[#This Row],[Autor(in)]]),\"\")","v":""},{"$f":"IF(Tabelle_Auswertung[[#This Row],[Platz]]=10,CONCATENATE(Tabelle_Auswertung[[#This Row],[Bildname]],\" von \",Tabelle_Auswertung[[#This Row],[Autor(in)]]),\"\")","v":""}]
["unschuldig.JPG",6,8,5,7,{"$nulls":16},{"$f":"IF(Tabelle_Auswertung[[#This Row],[Bildname]]<>\"\",SUM(Tabelle_Auswertung[[#This Row],[Juror 1]:[Juror 20]]),\" - \")","v":26},{"$f":"IF(Tabelle_Auswertung[[#This Row],[Bildname]]<>\"\",IF(Tabelle_Auswertung[[#This Row],[Punkte]]>0,AVERAGE(Tabelle_Auswertung[[#This Row],[Juror 1]:[Juror 20]]),\" - \"),\" - \")","v":{"v":6.5,"d":"6.50 "}},{"$f":"IF(Tabelle_Auswertung[[#This Row],[Bildname]]<>\"\",IF(Tabelle_Auswertung[[#This Row],[Punkte]]>0,RANK(Tabelle_Auswertung[[#This Row],[Punkte]],[Punkte],0),\" - \"),\" - \")","v":15},"Susanne Deinhardt",{"$f":"IF(Tabelle_Auswertung[[#This Row],[Platz]]=1,CONCATENATE(Tabelle_Auswertung[[#This Row],[Bildname]],\" von \",Tabelle_Auswertung[[#This Row],[Autor(in)]]),\"\")","v":""},{"$f":"IF(Tabelle_Auswertung[[#This Row],[Platz]]=2,CONCATENATE(Tabelle_Auswertung[[#This Row],[Bildname]],\" von \",Tabelle_Auswertung[[#This Row],[Autor(in)]]),\"\")","v":""},{"$f":"IF(Tabelle_Auswertung[[#This Row],[Platz]]=3,CONCATENATE(Tabelle_Auswertung[[#This Row],[Bildname]],\" von \",Tabelle_Auswertung[[#This Row],[Autor(in)]]),\"\")","v":""},{"$f":"IF(Tabelle_Auswertung[[#This Row],[Platz]]=4,CONCATENATE(Tabelle_Auswertung[[#This Row],[Bildname]],\" von \",Tabelle_Auswertung[[#This Row],[Autor(in)]]),\"\")","v":""},{"$f":"IF(Tabelle_Auswertung[[#This Row],[Platz]]=5,CONCATENATE(Tabelle_Auswertung[[#This Row],[Bildname]],\" von \",Tabelle_Auswertung[[#This Row],[Autor(in)]]),\"\")","v":""},{"$f":"IF(Tabelle_Auswertung[[#This Row],[Platz]]=6,CONCATENATE(Tabelle_Auswertung[[#This Row],[Bildname]],\" von \",Tabelle_Auswertung[[#This Row],[Autor(in)]]),\"\")","v":""},{"$f":"IF(Tabelle_Auswertung[[#This Row],[Platz]]=7,CONCATENATE(Tabelle_Auswertung[[#This Row],[Bildname]],\" von \",Tabelle_Auswertung[[#This Row],[Autor(in)]]),\"\")","v":""},{"$f":"IF(Tabelle_Auswertung[[#This Row],[Platz]]=8,CONCATENATE(Tabelle_Auswertung[[#This Row],[Bildname]],\" von \",Tabelle_Auswertung[[#This Row],[Autor(in)]]),\"\")","v":""},{"$f":"IF(Tabelle_Auswertung[[#This Row],[Platz]]=9,CONCATENATE(Tabelle_Auswertung[[#This Row],[Bildname]],\" von \",Tabelle_Auswertung[[#This Row],[Autor(in)]]),\"\")","v":""},{"$f":"IF(Tabelle_Auswertung[[#This Row],[Platz]]=10,CONCATENATE(Tabelle_Auswertung[[#This Row],[Bildname]],\" von \",Tabelle_Auswertung[[#This Row],[Autor(in)]]),\"\")","v":""}]
["why.jpg",6,6,8,6,{"$nulls":16},{"$f":"IF(Tabelle_Auswertung[[#This Row],[Bildname]]<>\"\",SUM(Tabelle_Auswertung[[#This Row],[Juror 1]:[Juror 20]]),\" - \")","v":26},{"$f":"IF(Tabelle_Auswertung[[#This Row],[Bildname]]<>\"\",IF(Tabelle_Auswertung[[#This Row],[Punkte]]>0,AVERAGE(Tabelle_Auswertung[[#This Row],[Juror 1]:[Juror 20]]),\" - \"),\" - \")","v":6.5},{"$f":"IF(Tabelle_Auswertung[[#This Row],[Bildname]]<>\"\",IF(Tabelle_Auswertung[[#This Row],[Punkte]]>0,RANK(Tabelle_Auswertung[[#This Row],[Punkte]],[Punkte],0),\" - \"),\" - \")","v":15},"Andreas Toltz",{"$f":"IF(Tabelle_Auswertung[[#This Row],[Platz]]=1,CONCATENATE(Tabelle_Auswertung[[#This Row],[Bildname]],\" von \",Tabelle_Auswertung[[#This Row],[Autor(in)]]),\"\")","v":""},{"$f":"IF(Tabelle_Auswertung[[#This Row],[Platz]]=2,CONCATENATE(Tabelle_Auswertung[[#This Row],[Bildname]],\" von \",Tabelle_Auswertung[[#This Row],[Autor(in)]]),\"\")","v":""},{"$f":"IF(Tabelle_Auswertung[[#This Row],[Platz]]=3,CONCATENATE(Tabelle_Auswertung[[#This Row],[Bildname]],\" von \",Tabelle_Auswertung[[#This Row],[Autor(in)]]),\"\")","v":""},{"$f":"IF(Tabelle_Auswertung[[#This Row],[Platz]]=4,CONCATENATE(Tabelle_Auswertung[[#This Row],[Bildname]],\" von \",Tabelle_Auswertung[[#This Row],[Autor(in)]]),\"\")","v":""},{"$f":"IF(Tabelle_Auswertung[[#This Row],[Platz]]=5,CONCATENATE(Tabelle_Auswertung[[#This Row],[Bildname]],\" von \",Tabelle_Auswertung[[#This Row],[Autor(in)]]),\"\")","v":""},{"$f":"IF(Tabelle_Auswertung[[#This Row],[Platz]]=6,CONCATENATE(Tabelle_Auswertung[[#This Row],[Bildname]],\" von \",Tabelle_Auswertung[[#This Row],[Autor(in)]]),\"\")","v":""},{"$f":"IF(Tabelle_Auswertung[[#This Row],[Platz]]=7,CONCATENATE(Tabelle_Auswertung[[#This Row],[Bildname]],\" von \",Tabelle_Auswertung[[#This Row],[Autor(in)]]),\"\")","v":""},{"$f":"IF(Tabelle_Auswertung[[#This Row],[Platz]]=8,CONCATENATE(Tabelle_Auswertung[[#This Row],[Bildname]],\" von \",Tabelle_Auswertung[[#This Row],[Autor(in)]]),\"\")","v":""},{"$f":"IF(Tabelle_Auswertung[[#This Row],[Platz]]=9,CONCATENATE(Tabelle_Auswertung[[#This Row],[Bildname]],\" von \",Tabelle_Auswertung[[#This Row],[Autor(in)]]),\"\")","v":""},{"$f":"IF(Tabelle_Auswertung[[#This Row],[Platz]]=10,CONCATENATE(Tabelle_Auswertung[[#This Row],[Bildname]],\" von \",Tabelle_Auswertung[[#This Row],[Autor(in)]]),\"\")","v":""}]
["Doll Mummy.jpg",7,7,4,7,{"$nulls":16},{"$f":"IF(Tabelle_Auswertung[[#This Row],[Bildname]]<>\"\",SUM(Tabelle_Auswertung[[#This Row],[Juror 1]:[Juror 20]]),\" - \")","v":25},{"$f":"IF(Tabelle_Auswertung[[#This Row],[Bildname]]<>\"\",IF(Tabelle_Auswertung[[#This Row],[Punkte]]>0,AVERAGE(Tabelle_Auswertung[[#This Row],[Juror 1]:[Juror 20]]),\" - \"),\" - \")","v":{"v":6.25,"d":"6.25 "}},{"$f":"IF(Tabelle_Auswertung[[#This Row],[Bildname]]<>\"\",IF(Tabelle_Auswertung[[#This Row],[Punkte]]>0,RANK(Tabelle_Auswertung[[#This Row],[Punkte]],[Punkte],0),\" - \"),\" - \")","v":19},"Jan Grünler",{"$f":"IF(Tabelle_Auswertung[[#This Row],[Platz]]=1,CONCATENATE(Tabelle_Auswertung[[#This Row],[Bildname]],\" von \",Tabelle_Auswertung[[#This Row],[Autor(in)]]),\"\")","v":""},{"$f":"IF(Tabelle_Auswertung[[#This Row],[Platz]]=2,CONCATENATE(Tabelle_Auswertung[[#This Row],[Bildname]],\" von \",Tabelle_Auswertung[[#This Row],[Autor(in)]]),\"\")","v":""},{"$f":"IF(Tabelle_Auswertung[[#This Row],[Platz]]=3,CONCATENATE(Tabelle_Auswertung[[#This Row],[Bildname]],\" von \",Tabelle_Auswertung[[#This Row],[Autor(in)]]),\"\")","v":""},{"$f":"IF(Tabelle_Auswertung[[#This Row],[Platz]]=4,CONCATENATE(Tabelle_Auswertung[[#This Row],[Bildname]],\" von \",Tabelle_Auswertung[[#This Row],[Autor(in)]]),\"\")","v":""},{"$f":"IF(Tabelle_Auswertung[[#This Row],[Platz]]=5,CONCATENATE(Tabelle_Auswertung[[#This Row],[Bildname]],\" von \",Tabelle_Auswertung[[#This Row],[Autor(in)]]),\"\")","v":""},{"$f":"IF(Tabelle_Auswertung[[#This Row],[Platz]]=6,CONCATENATE(Tabelle_Auswertung[[#This Row],[Bildname]],\" von \",Tabelle_Auswertung[[#This Row],[Autor(in)]]),\"\")","v":""},{"$f":"IF(Tabelle_Auswertung[[#This Row],[Platz]]=7,CONCATENATE(Tabelle_Auswertung[[#This Row],[Bildname]],\" von \",Tabelle_Auswertung[[#This Row],[Autor(in)]]),\"\")","v":""},{"$f":"IF(Tabelle_Auswertung[[#This Row],[Platz]]=8,CONCATENATE(Tabelle_Auswertung[[#This Row],[Bildname]],\" von \",Tabelle_Auswertung[[#This Row],[Autor(in)]]),\"\")","v":""},{"$f":"IF(Tabelle_Auswertung[[#This Row],[Platz]]=9,CONCATENATE(Tabelle_Auswertung[[#This Row],[Bildname]],\" von \",Tabelle_Auswertung[[#This Row],[Autor(in)]]),\"\")","v":""},{"$f":"IF(Tabelle_Auswertung[[#This Row],[Platz]]=10,CONCATENATE(Tabelle_Auswertung[[#This Row],[Bildname]],\" von \",Tabelle_Auswertung[[#This Row],[Autor(in)]]),\"\")","v":""}]
["Geometrie.JPG",6,8,5,6,{"$nulls":16},{"$f":"IF(Tabelle_Auswertung[[#This Row],[Bildname]]<>\"\",SUM(Tabelle_Auswertung[[#This Row],[Juror 1]:[Juror 20]]),\" - \")","v":25},{"$f":"IF(Tabelle_Auswertung[[#This Row],[Bildname]]<>\"\",IF(Tabelle_Auswertung[[#This Row],[Punkte]]>0,AVERAGE(Tabelle_Auswertung[[#This Row],[Juror 1]:[Juror 20]]),\" - \"),\" - \")","v":{"v":6.25,"d":"6.25 "}},{"$f":"IF(Tabelle_Auswertung[[#This Row],[Bildname]]<>\"\",IF(Tabelle_Auswertung[[#This Row],[Punkte]]>0,RANK(Tabelle_Auswertung[[#This Row],[Punkte]],[Punkte],0),\" - \"),\" - \")","v":19},"Albrecht Flierl",{"$f":"IF(Tabelle_Auswertung[[#This Row],[Platz]]=1,CONCATENATE(Tabelle_Auswertung[[#This Row],[Bildname]],\" von \",Tabelle_Auswertung[[#This Row],[Autor(in)]]),\"\")","v":""},{"$f":"IF(Tabelle_Auswertung[[#This Row],[Platz]]=2,CONCATENATE(Tabelle_Auswertung[[#This Row],[Bildname]],\" von \",Tabelle_Auswertung[[#This Row],[Autor(in)]]),\"\")","v":""},{"$f":"IF(Tabelle_Auswertung[[#This Row],[Platz]]=3,CONCATENATE(Tabelle_Auswertung[[#This Row],[Bildname]],\" von \",Tabelle_Auswertung[[#This Row],[Autor(in)]]),\"\")","v":""},{"$f":"IF(Tabelle_Auswertung[[#This Row],[Platz]]=4,CONCATENATE(Tabelle_Auswertung[[#This Row],[Bildname]],\" von \",Tabelle_Auswertung[[#This Row],[Autor(in)]]),\"\")","v":""},{"$f":"IF(Tabelle_Auswertung[[#This Row],[Platz]]=5,CONCATENATE(Tabelle_Auswertung[[#This Row],[Bildname]],\" von \",Tabelle_Auswertung[[#This Row],[Autor(in)]]),\"\")","v":""},{"$f":"IF(Tabelle_Auswertung[[#This Row],[Platz]]=6,CONCATENATE(Tabelle_Auswertung[[#This Row],[Bildname]],\" von \",Tabelle_Auswertung[[#This Row],[Autor(in)]]),\"\")","v":""},{"$f":"IF(Tabelle_Auswertung[[#This Row],[Platz]]=7,CONCATENATE(Tabelle_Auswertung[[#This Row],[Bildname]],\" von \",Tabelle_Auswertung[[#This Row],[Autor(in)]]),\"\")","v":""},{"$f":"IF(Tabelle_Auswertung[[#This Row],[Platz]]=8,CONCATENATE(Tabelle_Auswertung[[#This Row],[Bildname]],\" von \",Tabelle_Auswertung[[#This Row],[Autor(in)]]),\"\")","v":""},{"$f":"IF(Tabelle_Auswertung[[#This Row],[Platz]]=9,CONCATENATE(Tabelle_Auswertung[[#This Row],[Bildname]],\" von \",Tabelle_Auswertung[[#This Row],[Autor(in)]]),\"\")","v":""},{"$f":"IF(Tabelle_Auswertung[[#This Row],[Platz]]=10,CONCATENATE(Tabelle_Auswertung[[#This Row],[Bildname]],\" von \",Tabelle_Auswertung[[#This Row],[Autor(in)]]),\"\")","v":""}]
["Glaskunst.JPG",6,7,6,6,{"$nulls":16},{"$f":"IF(Tabelle_Auswertung[[#This Row],[Bildname]]<>\"\",SUM(Tabelle_Auswertung[[#This Row],[Juror 1]:[Juror 20]]),\" - \")","v":25},{"$f":"IF(Tabelle_Auswertung[[#This Row],[Bildname]]<>\"\",IF(Tabelle_Auswertung[[#This Row],[Punkte]]>0,AVERAGE(Tabelle_Auswertung[[#This Row],[Juror 1]:[Juror 20]]),\" - \"),\" - \")","v":{"v":6.25,"d":"6.25 "}},{"$f":"IF(Tabelle_Auswertung[[#This Row],[Bildname]]<>\"\",IF(Tabelle_Auswertung[[#This Row],[Punkte]]>0,RANK(Tabelle_Auswertung[[#This Row],[Punkte]],[Punkte],0),\" - \"),\" - \")","v":19},"Claudia Dommel",{"$f":"IF(Tabelle_Auswertung[[#This Row],[Platz]]=1,CONCATENATE(Tabelle_Auswertung[[#This Row],[Bildname]],\" von \",Tabelle_Auswertung[[#This Row],[Autor(in)]]),\"\")","v":""},{"$f":"IF(Tabelle_Auswertung[[#This Row],[Platz]]=2,CONCATENATE(Tabelle_Auswertung[[#This Row],[Bildname]],\" von \",Tabelle_Auswertung[[#This Row],[Autor(in)]]),\"\")","v":""},{"$f":"IF(Tabelle_Auswertung[[#This Row],[Platz]]=3,CONCATENATE(Tabelle_Auswertung[[#This Row],[Bildname]],\" von \",Tabelle_Auswertung[[#This Row],[Autor(in)]]),\"\")","v":""},{"$f":"IF(Tabelle_Auswertung[[#This Row],[Platz]]=4,CONCATENATE(Tabelle_Auswertung[[#This Row],[Bildname]],\" von \",Tabelle_Auswertung[[#This Row],[Autor(in)]]),\"\")","v":""},{"$f":"IF(Tabelle_Auswertung[[#This Row],[Platz]]=5,CONCATENATE(Tabelle_Auswertung[[#This Row],[Bildname]],\" von \",Tabelle_Auswertung[[#This Row],[Autor(in)]]),\"\")","v":""},{"$f":"IF(Tabelle_Auswertung[[#This Row],[Platz]]=6,CONCATENATE(Tabelle_Auswertung[[#This Row],[Bildname]],\" von \",Tabelle_Auswertung[[#This Row],[Autor(in)]]),\"\")","v":""},{"$f":"IF(Tabelle_Auswertung[[#This Row],[Platz]]=7,CONCATENATE(Tabelle_Auswertung[[#This Row],[Bildname]],\" von \",Tabelle_Auswertung[[#This Row],[Autor(in)]]),\"\")","v":""},{"$f":"IF(Tabelle_Auswertung[[#This Row],[Platz]]=8,CONCATENATE(Tabelle_Auswertung[[#This Row],[Bildname]],\" von \",Tabelle_Auswertung[[#This Row],[Autor(in)]]),\"\")","v":""},{"$f":"IF(Tabelle_Auswertung[[#This Row],[Platz]]=9,CONCATENATE(Tabelle_Auswertung[[#This Row],[Bildname]],\" von \",Tabelle_Auswertung[[#This Row],[Autor(in)]]),\"\")","v":""},{"$f":"IF(Tabelle_Auswertung[[#This Row],[Platz]]=10,CONCATENATE(Tabelle_Auswertung[[#This Row],[Bildname]],\" von \",Tabelle_Auswertung[[#This Row],[Autor(in)]]),\"\")","v":""}]
["Liebherr.jpg",6,6,7,6,{"$nulls":16},{"$f":"IF(Tabelle_Auswertung[[#This Row],[Bildname]]<>\"\",SUM(Tabelle_Auswertung[[#This Row],[Juror 1]:[Juror 20]]),\" - \")","v":25},{"$f":"IF(Tabelle_Auswertung[[#This Row],[Bildname]]<>\"\",IF(Tabelle_Auswertung[[#This Row],[Punkte]]>0,AVERAGE(Tabelle_Auswertung[[#This Row],[Juror 1]:[Juror 20]]),\" - \"),\" - \")","v":{"v":6.25,"d":"6.25 "}},{"$f":"IF(Tabelle_Auswertung[[#This Row],[Bildname]]<>\"\",IF(Tabelle_Auswertung[[#This Row],[Punkte]]>0,RANK(Tabelle_Auswertung[[#This Row],[Punkte]],[Punkte],0),\" - \"),\" - \")","v":19},"Chris Finsterer",{"$f":"IF(Tabelle_Auswertung[[#This Row],[Platz]]=1,CONCATENATE(Tabelle_Auswertung[[#This Row],[Bildname]],\" von \",Tabelle_Auswertung[[#This Row],[Autor(in)]]),\"\")","v":""},{"$f":"IF(Tabelle_Auswertung[[#This Row],[Platz]]=2,CONCATENATE(Tabelle_Auswertung[[#This Row],[Bildname]],\" von \",Tabelle_Auswertung[[#This Row],[Autor(in)]]),\"\")","v":""},{"$f":"IF(Tabelle_Auswertung[[#This Row],[Platz]]=3,CONCATENATE(Tabelle_Auswertung[[#This Row],[Bildname]],\" von \",Tabelle_Auswertung[[#This Row],[Autor(in)]]),\"\")","v":""},{"$f":"IF(Tabelle_Auswertung[[#This Row],[Platz]]=4,CONCATENATE(Tabelle_Auswertung[[#This Row],[Bildname]],\" von \",Tabelle_Auswertung[[#This Row],[Autor(in)]]),\"\")","v":""},{"$f":"IF(Tabelle_Auswertung[[#This Row],[Platz]]=5,CONCATENATE(Tabelle_Auswertung[[#This Row],[Bildname]],\" von \",Tabelle_Auswertung[[#This Row],[Autor(in)]]),\"\")","v":""},{"$f":"IF(Tabelle_Auswertung[[#This Row],[Platz]]=6,CONCATENATE(Tabelle_Auswertung[[#This Row],[Bildname]],\" von \",Tabelle_Auswertung[[#This Row],[Autor(in)]]),\"\")","v":""},{"$f":"IF(Tabelle_Auswertung[[#This Row],[Platz]]=7,CONCATENATE(Tabelle_Auswertung[[#This Row],[Bildname]],\" von \",Tabelle_Auswertung[[#This Row],[Autor(in)]]),\"\")","v":""},{"$f":"IF(Tabelle_Auswertung[[#This Row],[Platz]]=8,CONCATENATE(Tabelle_Auswertung[[#This Row],[Bildname]],\" von \",Tabelle_Auswertung[[#This Row],[Autor(in)]]),\"\")","v":""},{"$f":"IF(Tabelle_Auswertung[[#This Row],[Platz]]=9,CONCATENATE(Tabelle_Auswertung[[#This Row],[Bildname]],\" von \",Tabelle_Auswertung[[#This Row],[Autor(in)]]),\"\")","v":""},{"$f":"IF(Tabelle_Auswertung[[#This Row],[Platz]]=10,CONCATENATE(Tabelle_Auswertung[[#This Row],[Bildname]],\" von \",Tabelle_Auswertung[[#This Row],[Autor(in)]]),\"\")","v":""}]
["redhead.jpg",7,7,4,7,{"$nulls":16},{"$f":"IF(Tabelle_Auswertung[[#This Row],[Bildname]]<>\"\",SUM(Tabelle_Auswertung[[#This Row],[Juror 1]:[Juror 20]]),\" - \")","v":25},{"$f":"IF(Tabelle_Auswertung[[#This Row],[Bildname]]<>\"\",IF(Tabelle_Auswertung[[#This Row],[Punkte]]>0,AVERAGE(Tabelle_Auswertung[[#This Row],[Juror 1]:[Juror 20]]),\" - \"),\" - \")","v":{"v":6.25,"d":"6.25 "}},{"$f":"IF(Tabelle_Auswertung[[#This Row],[Bildname]]<>\"\",IF(Tabelle_Auswertung[[#This Row],[Punkte]]>0,RANK(Tabelle_Auswertung[[#This Row],[Punkte]],[Punkte],0),\" - \"),\" - \")","v":19},"Gerhard Rieß",{"$f":"IF(Tabelle_Auswertung[[#This Row],[Platz]]=1,CONCATENATE(Tabelle_Auswertung[[#This Row],[Bildname]],\" von \",Tabelle_Auswertung[[#This Row],[Autor(in)]]),\"\")","v":""},{"$f":"IF(Tabelle_Auswertung[[#This Row],[Platz]]=2,CONCATENATE(Tabelle_Auswertung[[#This Row],[Bildname]],\" von \",Tabelle_Auswertung[[#This Row],[Autor(in)]]),\"\")","v":""},{"$f":"IF(Tabelle_Auswertung[[#This Row],[Platz]]=3,CONCATENATE(Tabelle_Auswertung[[#This Row],[Bildname]],\" von \",Tabelle_Auswertung[[#This Row],[Autor(in)]]),\"\")","v":""},{"$f":"IF(Tabelle_Auswertung[[#This Row],[Platz]]=4,CONCATENATE(Tabelle_Auswertung[[#This Row],[Bildname]],\" von \",Tabelle_Auswertung[[#This Row],[Autor(in)]]),\"\")","v":""},{"$f":"IF(Tabelle_Auswertung[[#This Row],[Platz]]=5,CONCATENATE(Tabelle_Auswertung[[#This Row],[Bildname]],\" von \",Tabelle_Auswertung[[#This Row],[Autor(in)]]),\"\")","v":""},{"$f":"IF(Tabelle_Auswertung[[#This Row],[Platz]]=6,CONCATENATE(Tabelle_Auswertung[[#This Row],[Bildname]],\" von \",Tabelle_Auswertung[[#This Row],[Autor(in)]]),\"\")","v":""},{"$f":"IF(Tabelle_Auswertung[[#This Row],[Platz]]=7,CONCATENATE(Tabelle_Auswertung[[#This Row],[Bildname]],\" von \",Tabelle_Auswertung[[#This Row],[Autor(in)]]),\"\")","v":""},{"$f":"IF(Tabelle_Auswertung[[#This Row],[Platz]]=8,CONCATENATE(Tabelle_Auswertung[[#This Row],[Bildname]],\" von \",Tabelle_Auswertung[[#This Row],[Autor(in)]]),\"\")","v":""},{"$f":"IF(Tabelle_Auswertung[[#This Row],[Platz]]=9,CONCATENATE(Tabelle_Auswertung[[#This Row],[Bildname]],\" von \",Tabelle_Auswertung[[#This Row],[Autor(in)]]),\"\")","v":""},{"$f":"IF(Tabelle_Auswertung[[#This Row],[Platz]]=10,CONCATENATE(Tabelle_Auswertung[[#This Row],[Bildname]],\" von \",Tabelle_Auswertung[[#This Row],[Autor(in)]]),\"\")","v":""}]
["Riesenrad.JPG",7,6,6,6,{"$nulls":16},{"$f":"IF(Tabelle_Auswertung[[#This Row],[Bildname]]<>\"\",SUM(Tabelle_Auswertung[[#This Row],[Juror 1]:[Juror 20]]),\" - \")","v":25},{"$f":"IF(Tabelle_Auswertung[[#This Row],[Bildname]]<>\"\",IF(Tabelle_Auswertung[[#This Row],[Punkte]]>0,AVERAGE(Tabelle_Auswertung[[#This Row],[Juror 1]:[Juror 20]]),\" - \"),\" - \")","v":{"v":6.25,"d":"6.25 "}},{"$f":"IF(Tabelle_Auswertung[[#This Row],[Bildname]]<>\"\",IF(Tabelle_Auswertung[[#This Row],[Punkte]]>0,RANK(Tabelle_Auswertung[[#This Row],[Punkte]],[Punkte],0),\" - \"),\" - \")","v":19},"Claudia Dommel",{"$f":"IF(Tabelle_Auswertung[[#This Row],[Platz]]=1,CONCATENATE(Tabelle_Auswertung[[#This Row],[Bildname]],\" von \",Tabelle_Auswertung[[#This Row],[Autor(in)]]),\"\")","v":""},{"$f":"IF(Tabelle_Auswertung[[#This Row],[Platz]]=2,CONCATENATE(Tabelle_Auswertung[[#This Row],[Bildname]],\" von \",Tabelle_Auswertung[[#This Row],[Autor(in)]]),\"\")","v":""},{"$f":"IF(Tabelle_Auswertung[[#This Row],[Platz]]=3,CONCATENATE(Tabelle_Auswertung[[#This Row],[Bildname]],\" von \",Tabelle_Auswertung[[#This Row],[Autor(in)]]),\"\")","v":""},{"$f":"IF(Tabelle_Auswertung[[#This Row],[Platz]]=4,CONCATENATE(Tabelle_Auswertung[[#This Row],[Bildname]],\" von \",Tabelle_Auswertung[[#This Row],[Autor(in)]]),\"\")","v":""},{"$f":"IF(Tabelle_Auswertung[[#This Row],[Platz]]=5,CONCATENATE(Tabelle_Auswertung[[#This Row],[Bildname]],\" von \",Tabelle_Auswertung[[#This Row],[Autor(in)]]),\"\")","v":""},{"$f":"IF(Tabelle_Auswertung[[#This Row],[Platz]]=6,CONCATENATE(Tabelle_Auswertung[[#This Row],[Bildname]],\" von \",Tabelle_Auswertung[[#This Row],[Autor(in)]]),\"\")","v":""},{"$f":"IF(Tabelle_Auswertung[[#This Row],[Platz]]=7,CONCATENATE(Tabelle_Auswertung[[#This Row],[Bildname]],\" von \",Tabelle_Auswertung[[#This Row],[Autor(in)]]),\"\")","v":""},{"$f":"IF(Tabelle_Auswertung[[#This Row],[Platz]]=8,CONCATENATE(Tabelle_Auswertung[[#This Row],[Bildname]],\" von \",Tabelle_Auswertung[[#This Row],[Autor(in)]]),\"\")","v":""},{"$f":"IF(Tabelle_Auswertung[[#This Row],[Platz]]=9,CONCATENATE(Tabelle_Auswertung[[#This Row],[Bildname]],\" von \",Tabelle_Auswertung[[#This Row],[Autor(in)]]),\"\")","v":""},{"$f":"IF(Tabelle_Auswertung[[#This Row],[Platz]]=10,CONCATENATE(Tabelle_Auswertung[[#This Row],[Bildname]],\" von \",Tabelle_Auswertung[[#This Row],[Autor(in)]]),\"\")","v":""}]
["Schlaf.jpg",8,6,6,5,{"$nulls":16},{"$f":"IF(Tabelle_Auswertung[[#This Row],[Bildname]]<>\"\",SUM(Tabelle_Auswertung[[#This Row],[Juror 1]:[Juror 20]]),\" - \")","v":25},{"$f":"IF(Tabelle_Auswertung[[#This Row],[Bildname]]<>\"\",IF(Tabelle_Auswertung[[#This Row],[Punkte]]>0,AVERAGE(Tabelle_Auswertung[[#This Row],[Juror 1]:[Juror 20]]),\" - \"),\" - \")","v":{"v":6.25,"d":"6.25 "}},{"$f":"IF(Tabelle_Auswertung[[#This Row],[Bildname]]<>\"\",IF(Tabelle_Auswertung[[#This Row],[Punkte]]>0,RANK(Tabelle_Auswertung[[#This Row],[Punkte]],[Punkte],0),\" - \"),\" - \")","v":19},"Chris Finsterer",{"$f":"IF(Tabelle_Auswertung[[#This Row],[Platz]]=1,CONCATENATE(Tabelle_Auswertung[[#This Row],[Bildname]],\" von \",Tabelle_Auswertung[[#This Row],[Autor(in)]]),\"\")","v":""},{"$f":"IF(Tabelle_Auswertung[[#This Row],[Platz]]=2,CONCATENATE(Tabelle_Auswertung[[#This Row],[Bildname]],\" von \",Tabelle_Auswertung[[#This Row],[Autor(in)]]),\"\")","v":""},{"$f":"IF(Tabelle_Auswertung[[#This Row],[Platz]]=3,CONCATENATE(Tabelle_Auswertung[[#This Row],[Bildname]],\" von \",Tabelle_Auswertung[[#This Row],[Autor(in)]]),\"\")","v":""},{"$f":"IF(Tabelle_Auswertung[[#This Row],[Platz]]=4,CONCATENATE(Tabelle_Auswertung[[#This Row],[Bildname]],\" von \",Tabelle_Auswertung[[#This Row],[Autor(in)]]),\"\")","v":""},{"$f":"IF(Tabelle_Auswertung[[#This Row],[Platz]]=5,CONCATENATE(Tabelle_Auswertung[[#This Row],[Bildname]],\" von \",Tabelle_Auswertung[[#This Row],[Autor(in)]]),\"\")","v":""},{"$f":"IF(Tabelle_Auswertung[[#This Row],[Platz]]=6,CONCATENATE(Tabelle_Auswertung[[#This Row],[Bildname]],\" von \",Tabelle_Auswertung[[#This Row],[Autor(in)]]),\"\")","v":""},{"$f":"IF(Tabelle_Auswertung[[#This Row],[Platz]]=7,CONCATENATE(Tabelle_Auswertung[[#This Row],[Bildname]],\" von \",Tabelle_Auswertung[[#This Row],[Autor(in)]]),\"\")","v":""},{"$f":"IF(Tabelle_Auswertung[[#This Row],[Platz]]=8,CONCATENATE(Tabelle_Auswertung[[#This Row],[Bildname]],\" von \",Tabelle_Auswertung[[#This Row],[Autor(in)]]),\"\")","v":""},{"$f":"IF(Tabelle_Auswertung[[#This Row],[Platz]]=9,CONCATENATE(Tabelle_Auswertung[[#This Row],[Bildname]],\" von \",Tabelle_Auswertung[[#This Row],[Autor(in)]]),\"\")","v":""},{"$f":"IF(Tabelle_Auswertung[[#This Row],[Platz]]=10,CONCATENATE(Tabelle_Auswertung[[#This Row],[Bildname]],\" von \",Tabelle_Auswertung[[#This Row],[Autor(in)]]),\"\")","v":""}]
["Spiegelbild.JPG",6,8,5,6,{"$nulls":16},{"$f":"IF(Tabelle_Auswertung[[#This Row],[Bildname]]<>\"\",SUM(Tabelle_Auswertung[[#This Row],[Juror 1]:[Juror 20]]),\" - \")","v":25},{"$f":"IF(Tabelle_Auswertung[[#This Row],[Bildname]]<>\"\",IF(Tabelle_Auswertung[[#This Row],[Punkte]]>0,AVERAGE(Tabelle_Auswertung[[#This Row],[Juror 1]:[Juror 20]]),\" - \"),\" - \")","v":{"v":6.25,"d":"6.25 "}},{"$f":"IF(Tabelle_Auswertung[[#This Row],[Bildname]]<>\"\",IF(Tabelle_Auswertung[[#This Row],[Punkte]]>0,RANK(Tabelle_Auswertung[[#This Row],[Punkte]],[Punkte],0),\" - \"),\" - \")","v":19},"Claudia Dommel",{"$f":"IF(Tabelle_Auswertung[[#This Row],[Platz]]=1,CONCATENATE(Tabelle_Auswertung[[#This Row],[Bildname]],\" von \",Tabelle_Auswertung[[#This Row],[Autor(in)]]),\"\")","v":""},{"$f":"IF(Tabelle_Auswertung[[#This Row],[Platz]]=2,CONCATENATE(Tabelle_Auswertung[[#This Row],[Bildname]],\" von \",Tabelle_Auswertung[[#This Row],[Autor(in)]]),\"\")","v":""},{"$f":"IF(Tabelle_Auswertung[[#This Row],[Platz]]=3,CONCATENATE(Tabelle_Auswertung[[#This Row],[Bildname]],\" von \",Tabelle_Auswertung[[#This Row],[Autor(in)]]),\"\")","v":""},{"$f":"IF(Tabelle_Auswertung[[#This Row],[Platz]]=4,CONCATENATE(Tabelle_Auswertung[[#This Row],[Bildname]],\" von \",Tabelle_Auswertung[[#This Row],[Autor(in)]]),\"\")","v":""},{"$f":"IF(Tabelle_Auswertung[[#This Row],[Platz]]=5,CONCATENATE(Tabelle_Auswertung[[#This Row],[Bildname]],\" von \",Tabelle_Auswertung[[#This Row],[Autor(in)]]),\"\")","v":""},{"$f":"IF(Tabelle_Auswertung[[#This Row],[Platz]]=6,CONCATENATE(Tabelle_Auswertung[[#This Row],[Bildname]],\" von \",Tabelle_Auswertung[[#This Row],[Autor(in)]]),\"\")","v":""},{"$f":"IF(Tabelle_Auswertung[[#This Row],[Platz]]=7,CONCATENATE(Tabelle_Auswertung[[#This Row],[Bildname]],\" von \",Tabelle_Auswertung[[#This Row],[Autor(in)]]),\"\")","v":""},{"$f":"IF(Tabelle_Auswertung[[#This Row],[Platz]]=8,CONCATENATE(Tabelle_Auswertung[[#This Row],[Bildname]],\" von \",Tabelle_Auswertung[[#This Row],[Autor(in)]]),\"\")","v":""},{"$f":"IF(Tabelle_Auswertung[[#This Row],[Platz]]=9,CONCATENATE(Tabelle_Auswertung[[#This Row],[Bildname]],\" von \",Tabelle_Auswertung[[#This Row],[Autor(in)]]),\"\")","v":""},{"$f":"IF(Tabelle_Auswertung[[#This Row],[Platz]]=10,CONCATENATE(Tabelle_Auswertung[[#This Row],[Bildname]],\" von \",Tabelle_Auswertung[[#This Row],[Autor(in)]]),\"\")","v":""}]
["unter_Strom.jpg",7,8,4,6,{"$nulls":16},{"$f":"IF(Tabelle_Auswertung[[#This Row],[Bildname]]<>\"\",SUM(Tabelle_Auswertung[[#This Row],[Juror 1]:[Juror 20]]),\" - \")","v":25},{"$f":"IF(Tabelle_Auswertung[[#This Row],[Bildname]]<>\"\",IF(Tabelle_Auswertung[[#This Row],[Punkte]]>0,AVERAGE(Tabelle_Auswertung[[#This Row],[Juror 1]:[Juror 20]]),\" - \"),\" - \")","v":{"v":6.25,"d":"6.25 "}},{"$f":"IF(Tabelle_Auswertung[[#This Row],[Bildname]]<>\"\",IF(Tabelle_Auswertung[[#This Row],[Punkte]]>0,RANK(Tabelle_Auswertung[[#This Row],[Punkte]],[Punkte],0),\" - \"),\" - \")","v":19},"Chris Finsterer",{"$f":"IF(Tabelle_Auswertung[[#This Row],[Platz]]=1,CONCATENATE(Tabelle_Auswertung[[#This Row],[Bildname]],\" von \",Tabelle_Auswertung[[#This Row],[Autor(in)]]),\"\")","v":""},{"$f":"IF(Tabelle_Auswertung[[#This Row],[Platz]]=2,CONCATENATE(Tabelle_Auswertung[[#This Row],[Bildname]],\" von \",Tabelle_Auswertung[[#This Row],[Autor(in)]]),\"\")","v":""},{"$f":"IF(Tabelle_Auswertung[[#This Row],[Platz]]=3,CONCATENATE(Tabelle_Auswertung[[#This Row],[Bildname]],\" von \",Tabelle_Auswertung[[#This Row],[Autor(in)]]),\"\")","v":""},{"$f":"IF(Tabelle_Auswertung[[#This Row],[Platz]]=4,CONCATENATE(Tabelle_Auswertung[[#This Row],[Bildname]],\" von \",Tabelle_Auswertung[[#This Row],[Autor(in)]]),\"\")","v":""},{"$f":"IF(Tabelle_Auswertung[[#This Row],[Platz]]=5,CONCATENATE(Tabelle_Auswertung[[#This Row],[Bildname]],\" von \",Tabelle_Auswertung[[#This Row],[Autor(in)]]),\"\")","v":""},{"$f":"IF(Tabelle_Auswertung[[#This Row],[Platz]]=6,CONCATENATE(Tabelle_Auswertung[[#This Row],[Bildname]],\" von \",Tabelle_Auswertung[[#This Row],[Autor(in)]]),\"\")","v":""},{"$f":"IF(Tabelle_Auswertung[[#This Row],[Platz]]=7,CONCATENATE(Tabelle_Auswertung[[#This Row],[Bildname]],\" von \",Tabelle_Auswertung[[#This Row],[Autor(in)]]),\"\")","v":""},{"$f":"IF(Tabelle_Auswertung[[#This Row],[Platz]]=8,CONCATENATE(Tabelle_Auswertung[[#This Row],[Bildname]],\" von \",Tabelle_Auswertung[[#This Row],[Autor(in)]]),\"\")","v":""},{"$f":"IF(Tabelle_Auswertung[[#This Row],[Platz]]=9,CONCATENATE(Tabelle_Auswertung[[#This Row],[Bildname]],\" von \",Tabelle_Auswertung[[#This Row],[Autor(in)]]),\"\")","v":""},{"$f":"IF(Tabelle_Auswertung[[#This Row],[Platz]]=10,CONCATENATE(Tabelle_Auswertung[[#This Row],[Bildname]],\" von \",Tabelle_Auswertung[[#This Row],[Autor(in)]]),\"\")","v":""}]
["Wasserweide.jpg",7,7,4,7,{"$nulls":16},{"$f":"IF(Tabelle_Auswertung[[#This Row],[Bildname]]<>\"\",SUM(Tabelle_Auswertung[[#This Row],[Juror 1]:[Juror 20]]),\" - \")","v":25},{"$f":"IF(Tabelle_Auswertung[[#This Row],[Bildname]]<>\"\",IF(Tabelle_Auswertung[[#This Row],[Punkte]]>0,AVERAGE(Tabelle_Auswertung[[#This Row],[Juror 1]:[Juror 20]]),\" - \"),\" - \")","v":6.25},{"$f":"IF(Tabelle_Auswertung[[#This Row],[Bildname]]<>\"\",IF(Tabelle_Auswertung[[#This Row],[Punkte]]>0,RANK(Tabelle_Auswertung[[#This Row],[Punkte]],[Punkte],0),\" - \"),\" - \")","v":19},"Chris Finsterer",{"$f":"IF(Tabelle_Auswertung[[#This Row],[Platz]]=1,CONCATENATE(Tabelle_Auswertung[[#This Row],[Bildname]],\" von \",Tabelle_Auswertung[[#This Row],[Autor(in)]]),\"\")","v":""},{"$f":"IF(Tabelle_Auswertung[[#This Row],[Platz]]=2,CONCATENATE(Tabelle_Auswertung[[#This Row],[Bildname]],\" von \",Tabelle_Auswertung[[#This Row],[Autor(in)]]),\"\")","v":""},{"$f":"IF(Tabelle_Auswertung[[#This Row],[Platz]]=3,CONCATENATE(Tabelle_Auswertung[[#This Row],[Bildname]],\" von \",Tabelle_Auswertung[[#This Row],[Autor(in)]]),\"\")","v":""},{"$f":"IF(Tabelle_Auswertung[[#This Row],[Platz]]=4,CONCATENATE(Tabelle_Auswertung[[#This Row],[Bildname]],\" von \",Tabelle_Auswertung[[#This Row],[Autor(in)]]),\"\")","v":""},{"$f":"IF(Tabelle_Auswertung[[#This Row],[Platz]]=5,CONCATENATE(Tabelle_Auswertung[[#This Row],[Bildname]],\" von \",Tabelle_Auswertung[[#This Row],[Autor(in)]]),\"\")","v":""},{"$f":"IF(Tabelle_Auswertung[[#This Row],[Platz]]=6,CONCATENATE(Tabelle_Auswertung[[#This Row],[Bildname]],\" von \",Tabelle_Auswertung[[#This Row],[Autor(in)]]),\"\")","v":""},{"$f":"IF(Tabelle_Auswertung[[#This Row],[Platz]]=7,CONCATENATE(Tabelle_Auswertung[[#This Row],[Bildname]],\" von \",Tabelle_Auswertung[[#This Row],[Autor(in)]]),\"\")","v":""},{"$f":"IF(Tabelle_Auswertung[[#This Row],[Platz]]=8,CONCATENATE(Tabelle_Auswertung[[#This Row],[Bildname]],\" von \",Tabelle_Auswertung[[#This Row],[Autor(in)]]),\"\")","v":""},{"$f":"IF(Tabelle_Auswertung[[#This Row],[Platz]]=9,CONCATENATE(Tabelle_Auswertung[[#This Row],[Bildname]],\" von \",Tabelle_Auswertung[[#This Row],[Autor(in)]]),\"\")","v":""},{"$f":"IF(Tabelle_Auswertung[[#This Row],[Platz]]=10,CONCATENATE(Tabelle_Auswertung[[#This Row],[Bildname]],\" von \",Tabelle_Auswertung[[#This Row],[Autor(in)]]),\"\")","v":""}]
["Big Ben 01.jpg",6,6,6,5,{"$nulls":16},{"$f":"IF(Tabelle_Auswertung[[#This Row],[Bildname]]<>\"\",SUM(Tabelle_Auswertung[[#This Row],[Juror 1]:[Juror 20]]),\" - \")","v":23},{"$f":"IF(Tabelle_Auswertung[[#This Row],[Bildname]]<>\"\",IF(Tabelle_Auswertung[[#This Row],[Punkte]]>0,AVERAGE(Tabelle_Auswertung[[#This Row],[Juror 1]:[Juror 20]]),\" - \"),\" - \")","v":{"v":5.75,"d":"5.75 "}},{"$f":"IF(Tabelle_Auswertung[[#This Row],[Bildname]]<>\"\",IF(Tabelle_Auswertung[[#This Row],[Punkte]]>0,RANK(Tabelle_Auswertung[[#This Row],[Punkte]],[Punkte],0),\" - \"),\" - \")","v":29},"Andreas Toltz",{"$f":"IF(Tabelle_Auswertung[[#This Row],[Platz]]=1,CONCATENATE(Tabelle_Auswertung[[#This Row],[Bildname]],\" von \",Tabelle_Auswertung[[#This Row],[Autor(in)]]),\"\")","v":""},{"$f":"IF(Tabelle_Auswertung[[#This Row],[Platz]]=2,CONCATENATE(Tabelle_Auswertung[[#This Row],[Bildname]],\" von \",Tabelle_Auswertung[[#This Row],[Autor(in)]]),\"\")","v":""},{"$f":"IF(Tabelle_Auswertung[[#This Row],[Platz]]=3,CONCATENATE(Tabelle_Auswertung[[#This Row],[Bildname]],\" von \",Tabelle_Auswertung[[#This Row],[Autor(in)]]),\"\")","v":""},{"$f":"IF(Tabelle_Auswertung[[#This Row],[Platz]]=4,CONCATENATE(Tabelle_Auswertung[[#This Row],[Bildname]],\" von \",Tabelle_Auswertung[[#This Row],[Autor(in)]]),\"\")","v":""},{"$f":"IF(Tabelle_Auswertung[[#This Row],[Platz]]=5,CONCATENATE(Tabelle_Auswertung[[#This Row],[Bildname]],\" von \",Tabelle_Auswertung[[#This Row],[Autor(in)]]),\"\")","v":""},{"$f":"IF(Tabelle_Auswertung[[#This Row],[Platz]]=6,CONCATENATE(Tabelle_Auswertung[[#This Row],[Bildname]],\" von \",Tabelle_Auswertung[[#This Row],[Autor(in)]]),\"\")","v":""},{"$f":"IF(Tabelle_Auswertung[[#This Row],[Platz]]=7,CONCATENATE(Tabelle_Auswertung[[#This Row],[Bildname]],\" von \",Tabelle_Auswertung[[#This Row],[Autor(in)]]),\"\")","v":""},{"$f":"IF(Tabelle_Auswertung[[#This Row],[Platz]]=8,CONCATENATE(Tabelle_Auswertung[[#This Row],[Bildname]],\" von \",Tabelle_Auswertung[[#This Row],[Autor(in)]]),\"\")","v":""},{"$f":"IF(Tabelle_Auswertung[[#This Row],[Platz]]=9,CONCATENATE(Tabelle_Auswertung[[#This Row],[Bildname]],\" von \",Tabelle_Auswertung[[#This Row],[Autor(in)]]),\"\")","v":""},{"$f":"IF(Tabelle_Auswertung[[#This Row],[Platz]]=10,CONCATENATE(Tabelle_Auswertung[[#This Row],[Bildname]],\" von \",Tabelle_Auswertung[[#This Row],[Autor(in)]]),\"\")","v":""}]
["magic forest.JPG",7,5,4,7,{"$nulls":16},{"$f":"IF(Tabelle_Auswertung[[#This Row],[Bildname]]<>\"\",SUM(Tabelle_Auswertung[[#This Row],[Juror 1]:[Juror 20]]),\" - \")","v":23},{"$f":"IF(Tabelle_Auswertung[[#This Row],[Bildname]]<>\"\",IF(Tabelle_Auswertung[[#This Row],[Punkte]]>0,AVERAGE(Tabelle_Auswertung[[#This Row],[Juror 1]:[Juror 20]]),\" - \"),\" - \")","v":{"v":5.75,"d":"5.75 "}},{"$f":"IF(Tabelle_Auswertung[[#This Row],[Bildname]]<>\"\",IF(Tabelle_Auswertung[[#This Row],[Punkte]]>0,RANK(Tabelle_Auswertung[[#This Row],[Punkte]],[Punkte],0),\" - \"),\" - \")","v":29},"Susanne Deinhardt",{"$f":"IF(Tabelle_Auswertung[[#This Row],[Platz]]=1,CONCATENATE(Tabelle_Auswertung[[#This Row],[Bildname]],\" von \",Tabelle_Auswertung[[#This Row],[Autor(in)]]),\"\")","v":""},{"$f":"IF(Tabelle_Auswertung[[#This Row],[Platz]]=2,CONCATENATE(Tabelle_Auswertung[[#This Row],[Bildname]],\" von \",Tabelle_Auswertung[[#This Row],[Autor(in)]]),\"\")","v":""},{"$f":"IF(Tabelle_Auswertung[[#This Row],[Platz]]=3,CONCATENATE(Tabelle_Auswertung[[#This Row],[Bildname]],\" von \",Tabelle_Auswertung[[#This Row],[Autor(in)]]),\"\")","v":""},{"$f":"IF(Tabelle_Auswertung[[#This Row],[Platz]]=4,CONCATENATE(Tabelle_Auswertung[[#This Row],[Bildname]],\" von \",Tabelle_Auswertung[[#This Row],[Autor(in)]]),\"\")","v":""},{"$f":"IF(Tabelle_Auswertung[[#This Row],[Platz]]=5,CONCATENATE(Tabelle_Auswertung[[#This Row],[Bildname]],\" von \",Tabelle_Auswertung[[#This Row],[Autor(in)]]),\"\")","v":""},{"$f":"IF(Tabelle_Auswertung[[#This Row],[Platz]]=6,CONCATENATE(Tabelle_Auswertung[[#This Row],[Bildname]],\" von \",Tabelle_Auswertung[[#This Row],[Autor(in)]]),\"\")","v":""},{"$f":"IF(Tabelle_Auswertung[[#This Row],[Platz]]=7,CONCATENATE(Tabelle_Auswertung[[#This Row],[Bildname]],\" von \",Tabelle_Auswertung[[#This Row],[Autor(in)]]),\"\")","v":""},{"$f":"IF(Tabelle_Auswertung[[#This Row],[Platz]]=8,CONCATENATE(Tabelle_Auswertung[[#This Row],[Bildname]],\" von \",Tabelle_Auswertung[[#This Row],[Autor(in)]]),\"\")","v":""},{"$f":"IF(Tabelle_Auswertung[[#This Row],[Platz]]=9,CONCATENATE(Tabelle_Auswertung[[#This Row],[Bildname]],\" von \",Tabelle_Auswertung[[#This Row],[Autor(in)]]),\"\")","v":""},{"$f":"IF(Tabelle_Auswertung[[#This Row],[Platz]]=10,CONCATENATE(Tabelle_Auswertung[[#This Row],[Bildname]],\" von \",Tabelle_Auswertung[[#This Row],[Autor(in)]]),\"\")","v":""}]
["Sunrise.jpg",5,8,5,5,{"$nulls":16},{"$f":"IF(Tabelle_Auswertung[[#This Row],[Bildname]]<>\"\",SUM(Tabelle_Auswertung[[#This Row],[Juror 1]:[Juror 20]]),\" - \")","v":23},{"$f":"IF(Tabelle_Auswertung[[#This Row],[Bildname]]<>\"\",IF(Tabelle_Auswertung[[#This Row],[Punkte]]>0,AVERAGE(Tabelle_Auswertung[[#This Row],[Juror 1]:[Juror 20]]),\" - \"),\" - \")","v":{"v":5.75,"d":"5.75 "}},{"$f":"IF(Tabelle_Auswertung[[#This Row],[Bildname]]<>\"\",IF(Tabelle_Auswertung[[#This Row],[Punkte]]>0,RANK(Tabelle_Auswertung[[#This Row],[Punkte]],[Punkte],0),\" - \"),\" - \")","v":29},"Jan Grünler",{"$f":"IF(Tabelle_Auswertung[[#This Row],[Platz]]=1,CONCATENATE(Tabelle_Auswertung[[#This Row],[Bildname]],\" von \",Tabelle_Auswertung[[#This Row],[Autor(in)]]),\"\")","v":""},{"$f":"IF(Tabelle_Auswertung[[#This Row],[Platz]]=2,CONCATENATE(Tabelle_Auswertung[[#This Row],[Bildname]],\" von \",Tabelle_Auswertung[[#This Row],[Autor(in)]]),\"\")","v":""},{"$f":"IF(Tabelle_Auswertung[[#This Row],[Platz]]=3,CONCATENATE(Tabelle_Auswertung[[#This Row],[Bildname]],\" von \",Tabelle_Auswertung[[#This Row],[Autor(in)]]),\"\")","v":""},{"$f":"IF(Tabelle_Auswertung[[#This Row],[Platz]]=4,CONCATENATE(Tabelle_Auswertung[[#This Row],[Bildname]],\" von \",Tabelle_Auswertung[[#This Row],[Autor(in)]]),\"\")","v":""},{"$f":"IF(Tabelle_Auswertung[[#This Row],[Platz]]=5,CONCATENATE(Tabelle_Auswertung[[#This Row],[Bildname]],\" von \",Tabelle_Auswertung[[#This Row],[Autor(in)]]),\"\")","v":""},{"$f":"IF(Tabelle_Auswertung[[#This Row],[Platz]]=6,CONCATENATE(Tabelle_Auswertung[[#This Row],[Bildname]],\" von \",Tabelle_Auswertung[[#This Row],[Autor(in)]]),\"\")","v":""},{"$f":"IF(Tabelle_Auswertung[[#This Row],[Platz]]=7,CONCATENATE(Tabelle_Auswertung[[#This Row],[Bildname]],\" von \",Tabelle_Auswertung[[#This Row],[Autor(in)]]),\"\")","v":""},{"$f":"IF(Tabelle_Auswertung[[#This Row],[Platz]]=8,CONCATENATE(Tabelle_Auswertung[[#This Row],[Bildname]],\" von \",Tabelle_Auswertung[[#This Row],[Autor(in)]]),\"\")","v":""},{"$f":"IF(Tabelle_Auswertung[[#This Row],[Platz]]=9,CONCATENATE(Tabelle_Auswertung[[#This Row],[Bildname]],\" von \",Tabelle_Auswertung[[#This Row],[Autor(in)]]),\"\")","v":""},{"$f":"IF(Tabelle_Auswertung[[#This Row],[Platz]]=10,CONCATENATE(Tabelle_Auswertung[[#This Row],[Bildname]],\" von \",Tabelle_Auswertung[[#This Row],[Autor(in)]]),\"\")","v":""}]
["Holzmänner.jpg",6,5,5,6,{"$nulls":16},{"$f":"IF(Tabelle_Auswertung[[#This Row],[Bildname]]<>\"\",SUM(Tabelle_Auswertung[[#This Row],[Juror 1]:[Juror 20]]),\" - \")","v":22},{"$f":"IF(Tabelle_Auswertung[[#This Row],[Bildname]]<>\"\",IF(Tabelle_Auswertung[[#This Row],[Punkte]]>0,AVERAGE(Tabelle_Auswertung[[#This Row],[Juror 1]:[Juror 20]]),\" - \"),\" - \")","v":{"v":5.5,"d":"5.50 "}},{"$f":"IF(Tabelle_Auswertung[[#This Row],[Bildname]]<>\"\",IF(Tabelle_Auswertung[[#This Row],[Punkte]]>0,RANK(Tabelle_Auswertung[[#This Row],[Punkte]],[Punkte],0),\" - \"),\" - \")","v":32},"Gert Häberlein",{"$f":"IF(Tabelle_Auswertung[[#This Row],[Platz]]=1,CONCATENATE(Tabelle_Auswertung[[#This Row],[Bildname]],\" von \",Tabelle_Auswertung[[#This Row],[Autor(in)]]),\"\")","v":""},{"$f":"IF(Tabelle_Auswertung[[#This Row],[Platz]]=2,CONCATENATE(Tabelle_Auswertung[[#This Row],[Bildname]],\" von \",Tabelle_Auswertung[[#This Row],[Autor(in)]]),\"\")","v":""},{"$f":"IF(Tabelle_Auswertung[[#This Row],[Platz]]=3,CONCATENATE(Tabelle_Auswertung[[#This Row],[Bildname]],\" von \",Tabelle_Auswertung[[#This Row],[Autor(in)]]),\"\")","v":""},{"$f":"IF(Tabelle_Auswertung[[#This Row],[Platz]]=4,CONCATENATE(Tabelle_Auswertung[[#This Row],[Bildname]],\" von \",Tabelle_Auswertung[[#This Row],[Autor(in)]]),\"\")","v":""},{"$f":"IF(Tabelle_Auswertung[[#This Row],[Platz]]=5,CONCATENATE(Tabelle_Auswertung[[#This Row],[Bildname]],\" von \",Tabelle_Auswertung[[#This Row],[Autor(in)]]),\"\")","v":""},{"$f":"IF(Tabelle_Auswertung[[#This Row],[Platz]]=6,CONCATENATE(Tabelle_Auswertung[[#This Row],[Bildname]],\" von \",Tabelle_Auswertung[[#This Row],[Autor(in)]]),\"\")","v":""},{"$f":"IF(Tabelle_Auswertung[[#This Row],[Platz]]=7,CONCATENATE(Tabelle_Auswertung[[#This Row],[Bildname]],\" von \",Tabelle_Auswertung[[#This Row],[Autor(in)]]),\"\")","v":""},{"$f":"IF(Tabelle_Auswertung[[#This Row],[Platz]]=8,CONCATENATE(Tabelle_Auswertung[[#This Row],[Bildname]],\" von \",Tabelle_Auswertung[[#This Row],[Autor(in)]]),\"\")","v":""},{"$f":"IF(Tabelle_Auswertung[[#This Row],[Platz]]=9,CONCATENATE(Tabelle_Auswertung[[#This Row],[Bildname]],\" von \",Tabelle_Auswertung[[#This Row],[Autor(in)]]),\"\")","v":""},{"$f":"IF(Tabelle_Auswertung[[#This Row],[Platz]]=10,CONCATENATE(Tabelle_Auswertung[[#This Row],[Bildname]],\" von \",Tabelle_Auswertung[[#This Row],[Autor(in)]]),\"\")","v":""}]
["Ziegelei.jpg",6,5,5,6,{"$nulls":16},{"$f":"IF(Tabelle_Auswertung[[#This Row],[Bildname]]<>\"\",SUM(Tabelle_Auswertung[[#This Row],[Juror 1]:[Juror 20]]),\" - \")","v":22},{"$f":"IF(Tabelle_Auswertung[[#This Row],[Bildname]]<>\"\",IF(Tabelle_Auswertung[[#This Row],[Punkte]]>0,AVERAGE(Tabelle_Auswertung[[#This Row],[Juror 1]:[Juror 20]]),\" - \"),\" - \")","v":5.5},{"$f":"IF(Tabelle_Auswertung[[#This Row],[Bildname]]<>\"\",IF(Tabelle_Auswertung[[#This Row],[Punkte]]>0,RANK(Tabelle_Auswertung[[#This Row],[Punkte]],[Punkte],0),\" - \"),\" - \")","v":32},"Gert Häberlein",{"$f":"IF(Tabelle_Auswertung[[#This Row],[Platz]]=1,CONCATENATE(Tabelle_Auswertung[[#This Row],[Bildname]],\" von \",Tabelle_Auswertung[[#This Row],[Autor(in)]]),\"\")","v":""},{"$f":"IF(Tabelle_Auswertung[[#This Row],[Platz]]=2,CONCATENATE(Tabelle_Auswertung[[#This Row],[Bildname]],\" von \",Tabelle_Auswertung[[#This Row],[Autor(in)]]),\"\")","v":""},{"$f":"IF(Tabelle_Auswertung[[#This Row],[Platz]]=3,CONCATENATE(Tabelle_Auswertung[[#This Row],[Bildname]],\" von \",Tabelle_Auswertung[[#This Row],[Autor(in)]]),\"\")","v":""},{"$f":"IF(Tabelle_Auswertung[[#This Row],[Platz]]=4,CONCATENATE(Tabelle_Auswertung[[#This Row],[Bildname]],\" von \",Tabelle_Auswertung[[#This Row],[Autor(in)]]),\"\")","v":""},{"$f":"IF(Tabelle_Auswertung[[#This Row],[Platz]]=5,CONCATENATE(Tabelle_Auswertung[[#This Row],[Bildname]],\" von \",Tabelle_Auswertung[[#This Row],[Autor(in)]]),\"\")","v":""},{"$f":"IF(Tabelle_Auswertung[[#This Row],[Platz]]=6,CONCATENATE(Tabelle_Auswertung[[#This Row],[Bildname]],\" von \",Tabelle_Auswertung[[#This Row],[Autor(in)]]),\"\")","v":""},{"$f":"IF(Tabelle_Auswertung[[#This Row],[Platz]]=7,CONCATENATE(Tabelle_Auswertung[[#This Row],[Bildname]],\" von \",Tabelle_Auswertung[[#This Row],[Autor(in)]]),\"\")","v":""},{"$f":"IF(Tabelle_Auswertung[[#This Row],[Platz]]=8,CONCATENATE(Tabelle_Auswertung[[#This Row],[Bildname]],\" von \",Tabelle_Auswertung[[#This Row],[Autor(in)]]),\"\")","v":""},{"$f":"IF(Tabelle_Auswertung[[#This Row],[Platz]]=9,CONCATENATE(Tabelle_Auswertung[[#This Row],[Bildname]],\" von \",Tabelle_Auswertung[[#This Row],[Autor(in)]]),\"\")","v":""},{"$f":"IF(Tabelle_Auswertung[[#This Row],[Platz]]=10,CONCATENATE(Tabelle_Auswertung[[#This Row],[Bildname]],\" von \",Tabelle_Auswertung[[#This Row],[Autor(in)]]),\"\")","v":""}]
["Schnaken.jpg",6,6,3,6,{"$nulls":16},{"$f":"IF(Tabelle_Auswertung[[#This Row],[Bildname]]<>\"\",SUM(Tabelle_Auswertung[[#This Row],[Juror 1]:[Juror 20]]),\" - \")","v":21},{"$f":"IF(Tabelle_Auswertung[[#This Row],[Bildname]]<>\"\",IF(Tabelle_Auswertung[[#This Row],[Punkte]]>0,AVERAGE(Tabelle_Auswertung[[#This Row],[Juror 1]:[Juror 20]]),\" - \"),\" - \")","v":{"v":5.25,"d":"5.25 "}},{"$f":"IF(Tabelle_Auswertung[[#This Row],[Bildname]]<>\"\",IF(Tabelle_Auswertung[[#This Row],[Punkte]]>0,RANK(Tabelle_Auswertung[[#This Row],[Punkte]],[Punkte],0),\" - \"),\" - \")","v":34},"Nadja Cassim",{"$f":"IF(Tabelle_Auswertung[[#This Row],[Platz]]=1,CONCATENATE(Tabelle_Auswertung[[#This Row],[Bildname]],\" von \",Tabelle_Auswertung[[#This Row],[Autor(in)]]),\"\")","v":""},{"$f":"IF(Tabelle_Auswertung[[#This Row],[Platz]]=2,CONCATENATE(Tabelle_Auswertung[[#This Row],[Bildname]],\" von \",Tabelle_Auswertung[[#This Row],[Autor(in)]]),\"\")","v":""},{"$f":"IF(Tabelle_Auswertung[[#This Row],[Platz]]=3,CONCATENATE(Tabelle_Auswertung[[#This Row],[Bildname]],\" von \",Tabelle_Auswertung[[#This Row],[Autor(in)]]),\"\")","v":""},{"$f":"IF(Tabelle_Auswertung[[#This Row],[Platz]]=4,CONCATENATE(Tabelle_Auswertung[[#This Row],[Bildname]],\" von \",Tabelle_Auswertung[[#This Row],[Autor(in)]]),\"\")","v":""},{"$f":"IF(Tabelle_Auswertung[[#This Row],[Platz]]=5,CONCATENATE(Tabelle_Auswertung[[#This Row],[Bildname]],\" von \",Tabelle_Auswertung[[#This Row],[Autor(in)]]),\"\")","v":""},{"$f":"IF(Tabelle_Auswertung[[#This Row],[Platz]]=6,CONCATENATE(Tabelle_Auswertung[[#This Row],[Bildname]],\" von \",Tabelle_Auswertung[[#This Row],[Autor(in)]]),\"\")","v":""},{"$f":"IF(Tabelle_Auswertung[[#This Row],[Platz]]=7,CONCATENATE(Tabelle_Auswertung[[#This Row],[Bildname]],\" von \",Tabelle_Auswertung[[#This Row],[Autor(in)]]),\"\")","v":""},{"$f":"IF(Tabelle_Auswertung[[#This Row],[Platz]]=8,CONCATENATE(Tabelle_Auswertung[[#This Row],[Bildname]],\" von \",Tabelle_Auswertung[[#This Row],[Autor(in)]]),\"\")","v":""},{"$f":"IF(Tabelle_Auswertung[[#This Row],[Platz]]=9,CONCATENATE(Tabelle_Auswertung[[#This Row],[Bildname]],\" von \",Tabelle_Auswertung[[#This Row],[Autor(in)]]),\"\")","v":""},{"$f":"IF(Tabelle_Auswertung[[#This Row],[Platz]]=10,CONCATENATE(Tabelle_Auswertung[[#This Row],[Bildname]],\" von \",Tabelle_Auswertung[[#This Row],[Autor(in)]]),\"\")","v":""}]
["Treppe nach nirgendwo.jpg",5,6,4,6,{"$nulls":16},{"$f":"IF(Tabelle_Auswertung[[#This Row],[Bildname]]<>\"\",SUM(Tabelle_Auswertung[[#This Row],[Juror 1]:[Juror 20]]),\" - \")","v":21},{"$f":"IF(Tabelle_Auswertung[[#This Row],[Bildname]]<>\"\",IF(Tabelle_Auswertung[[#This Row],[Punkte]]>0,AVERAGE(Tabelle_Auswertung[[#This Row],[Juror 1]:[Juror 20]]),\" - \"),\" - \")","v":{"v":5.25,"d":"5.25 "}},{"$f":"IF(Tabelle_Auswertung[[#This Row],[Bildname]]<>\"\",IF(Tabelle_Auswertung[[#This Row],[Punkte]]>0,RANK(Tabelle_Auswertung[[#This Row],[Punkte]],[Punkte],0),\" - \"),\" - \")","v":34},"Gert Häberlein",{"$f":"IF(Tabelle_Auswertung[[#This Row],[Platz]]=1,CONCATENATE(Tabelle_Auswertung[[#This Row],[Bildname]],\" von \",Tabelle_Auswertung[[#This Row],[Autor(in)]]),\"\")","v":""},{"$f":"IF(Tabelle_Auswertung[[#This Row],[Platz]]=2,CONCATENATE(Tabelle_Auswertung[[#This Row],[Bildname]],\" von \",Tabelle_Auswertung[[#This Row],[Autor(in)]]),\"\")","v":""},{"$f":"IF(Tabelle_Auswertung[[#This Row],[Platz]]=3,CONCATENATE(Tabelle_Auswertung[[#This Row],[Bildname]],\" von \",Tabelle_Auswertung[[#This Row],[Autor(in)]]),\"\")","v":""},{"$f":"IF(Tabelle_Auswertung[[#This Row],[Platz]]=4,CONCATENATE(Tabelle_Auswertung[[#This Row],[Bildname]],\" von \",Tabelle_Auswertung[[#This Row],[Autor(in)]]),\"\")","v":""},{"$f":"IF(Tabelle_Auswertung[[#This Row],[Platz]]=5,CONCATENATE(Tabelle_Auswertung[[#This Row],[Bildname]],\" von \",Tabelle_Auswertung[[#This Row],[Autor(in)]]),\"\")","v":""},{"$f":"IF(Tabelle_Auswertung[[#This Row],[Platz]]=6,CONCATENATE(Tabelle_Auswertung[[#This Row],[Bildname]],\" von \",Tabelle_Auswertung[[#This Row],[Autor(in)]]),\"\")","v":""},{"$f":"IF(Tabelle_Auswertung[[#This Row],[Platz]]=7,CONCATENATE(Tabelle_Auswertung[[#This Row],[Bildname]],\" von \",Tabelle_Auswertung[[#This Row],[Autor(in)]]),\"\")","v":""},{"$f":"IF(Tabelle_Auswertung[[#This Row],[Platz]]=8,CONCATENATE(Tabelle_Auswertung[[#This Row],[Bildname]],\" von \",Tabelle_Auswertung[[#This Row],[Autor(in)]]),\"\")","v":""},{"$f":"IF(Tabelle_Auswertung[[#This Row],[Platz]]=9,CONCATENATE(Tabelle_Auswertung[[#This Row],[Bildname]],\" von \",Tabelle_Auswertung[[#This Row],[Autor(in)]]),\"\")","v":""},{"$f":"IF(Tabelle_Auswertung[[#This Row],[Platz]]=10,CONCATENATE(Tabelle_Auswertung[[#This Row],[Bildname]],\" von \",Tabelle_Auswertung[[#This Row],[Autor(in)]]),\"\")","v":""}]
["Trikolore .jpg",5,5,6,5,{"$nulls":16},{"$f":"IF(Tabelle_Auswertung[[#This Row],[Bildname]]<>\"\",SUM(Tabelle_Auswertung[[#This Row],[Juror 1]:[Juror 20]]),\" - \")","v":21},{"$f":"IF(Tabelle_Auswertung[[#This Row],[Bildname]]<>\"\",IF(Tabelle_Auswertung[[#This Row],[Punkte]]>0,AVERAGE(Tabelle_Auswertung[[#This Row],[Juror 1]:[Juror 20]]),\" - \"),\" - \")","v":{"v":5.25,"d":"5.25 "}},{"$f":"IF(Tabelle_Auswertung[[#This Row],[Bildname]]<>\"\",IF(Tabelle_Auswertung[[#This Row],[Punkte]]>0,RANK(Tabelle_Auswertung[[#This Row],[Punkte]],[Punkte],0),\" - \"),\" - \")","v":34},"Jan Grünler",{"$f":"IF(Tabelle_Auswertung[[#This Row],[Platz]]=1,CONCATENATE(Tabelle_Auswertung[[#This Row],[Bildname]],\" von \",Tabelle_Auswertung[[#This Row],[Autor(in)]]),\"\")","v":""},{"$f":"IF(Tabelle_Auswertung[[#This Row],[Platz]]=2,CONCATENATE(Tabelle_Auswertung[[#This Row],[Bildname]],\" von \",Tabelle_Auswertung[[#This Row],[Autor(in)]]),\"\")","v":""},{"$f":"IF(Tabelle_Auswertung[[#This Row],[Platz]]=3,CONCATENATE(Tabelle_Auswertung[[#This Row],[Bildname]],\" von \",Tabelle_Auswertung[[#This Row],[Autor(in)]]),\"\")","v":""},{"$f":"IF(Tabelle_Auswertung[[#This Row],[Platz]]=4,CONCATENATE(Tabelle_Auswertung[[#This Row],[Bildname]],\" von \",Tabelle_Auswertung[[#This Row],[Autor(in)]]),\"\")","v":""},{"$f":"IF(Tabelle_Auswertung[[#This Row],[Platz]]=5,CONCATENATE(Tabelle_Auswertung[[#This Row],[Bildname]],\" von \",Tabelle_Auswertung[[#This Row],[Autor(in)]]),\"\")","v":""},{"$f":"IF(Tabelle_Auswertung[[#This Row],[Platz]]=6,CONCATENATE(Tabelle_Auswertung[[#This Row],[Bildname]],\" von \",Tabelle_Auswertung[[#This Row],[Autor(in)]]),\"\")","v":""},{"$f":"IF(Tabelle_Auswertung[[#This Row],[Platz]]=7,CONCATENATE(Tabelle_Auswertung[[#This Row],[Bildname]],\" von \",Tabelle_Auswertung[[#This Row],[Autor(in)]]),\"\")","v":""},{"$f":"IF(Tabelle_Auswertung[[#This Row],[Platz]]=8,CONCATENATE(Tabelle_Auswertung[[#This Row],[Bildname]],\" von \",Tabelle_Auswertung[[#This Row],[Autor(in)]]),\"\")","v":""},{"$f":"IF(Tabelle_Auswertung[[#This Row],[Platz]]=9,CONCATENATE(Tabelle_Auswertung[[#This Row],[Bildname]],\" von \",Tabelle_Auswertung[[#This Row],[Autor(in)]]),\"\")","v":""},{"$f":"IF(Tabelle_Auswertung[[#This Row],[Platz]]=10,CONCATENATE(Tabelle_Auswertung[[#This Row],[Bildname]],\" von \",Tabelle_Auswertung[[#This Row],[Autor(in)]]),\"\")","v":""}]
["Brunnerweiher.JPG",5,5,4,6,{"$nulls":16},{"$f":"IF(Tabelle_Auswertung[[#This Row],[Bildname]]<>\"\",SUM(Tabelle_Auswertung[[#This Row],[Juror 1]:[Juror 20]]),\" - \")","v":20},{"$f":"IF(Tabelle_Auswertung[[#This Row],[Bildname]]<>\"\",IF(Tabelle_Auswertung[[#This Row],[Punkte]]>0,AVERAGE(Tabelle_Auswertung[[#This Row],[Juror 1]:[Juror 20]]),\" - \"),\" - \")","v":{"v":5,"d":"5.00 "}},{"$f":"IF(Tabelle_Auswertung[[#This Row],[Bildname]]<>\"\",IF(Tabelle_Auswertung[[#This Row],[Punkte]]>0,RANK(Tabelle_Auswertung[[#This Row],[Punkte]],[Punkte],0),\" - \"),\" - \")","v":37},"Susanne Deinhardt",{"$f":"IF(Tabelle_Auswertung[[#This Row],[Platz]]=1,CONCATENATE(Tabelle_Auswertung[[#This Row],[Bildname]],\" von \",Tabelle_Auswertung[[#This Row],[Autor(in)]]),\"\")","v":""},{"$f":"IF(Tabelle_Auswertung[[#This Row],[Platz]]=2,CONCATENATE(Tabelle_Auswertung[[#This Row],[Bildname]],\" von \",Tabelle_Auswertung[[#This Row],[Autor(in)]]),\"\")","v":""},{"$f":"IF(Tabelle_Auswertung[[#This Row],[Platz]]=3,CONCATENATE(Tabelle_Auswertung[[#This Row],[Bildname]],\" von \",Tabelle_Auswertung[[#This Row],[Autor(in)]]),\"\")","v":""},{"$f":"IF(Tabelle_Auswertung[[#This Row],[Platz]]=4,CONCATENATE(Tabelle_Auswertung[[#This Row],[Bildname]],\" von \",Tabelle_Auswertung[[#This Row],[Autor(in)]]),\"\")","v":""},{"$f":"IF(Tabelle_Auswertung[[#This Row],[Platz]]=5,CONCATENATE(Tabelle_Auswertung[[#This Row],[Bildname]],\" von \",Tabelle_Auswertung[[#This Row],[Autor(in)]]),\"\")","v":""},{"$f":"IF(Tabelle_Auswertung[[#This Row],[Platz]]=6,CONCATENATE(Tabelle_Auswertung[[#This Row],[Bildname]],\" von \",Tabelle_Auswertung[[#This Row],[Autor(in)]]),\"\")","v":""},{"$f":"IF(Tabelle_Auswertung[[#This Row],[Platz]]=7,CONCATENATE(Tabelle_Auswertung[[#This Row],[Bildname]],\" von \",Tabelle_Auswertung[[#This Row],[Autor(in)]]),\"\")","v":""},{"$f":"IF(Tabelle_Auswertung[[#This Row],[Platz]]=8,CONCATENATE(Tabelle_Auswertung[[#This Row],[Bildname]],\" von \",Tabelle_Auswertung[[#This Row],[Autor(in)]]),\"\")","v":""},{"$f":"IF(Tabelle_Auswertung[[#This Row],[Platz]]=9,CONCATENATE(Tabelle_Auswertung[[#This Row],[Bildname]],\" von \",Tabelle_Auswertung[[#This Row],[Autor(in)]]),\"\")","v":""},{"$f":"IF(Tabelle_Auswertung[[#This Row],[Platz]]=10,CONCATENATE(Tabelle_Auswertung[[#This Row],[Bildname]],\" von \",Tabelle_Auswertung[[#This Row],[Autor(in)]]),\"\")","v":""}]
["early bird.JPG",5,5,5,5,{"$nulls":16},{"$f":"IF(Tabelle_Auswertung[[#This Row],[Bildname]]<>\"\",SUM(Tabelle_Auswertung[[#This Row],[Juror 1]:[Juror 20]]),\" - \")","v":20},{"$f":"IF(Tabelle_Auswertung[[#This Row],[Bildname]]<>\"\",IF(Tabelle_Auswertung[[#This Row],[Punkte]]>0,AVERAGE(Tabelle_Auswertung[[#This Row],[Juror 1]:[Juror 20]]),\" - \"),\" - \")","v":{"v":5,"d":"5.00 "}},{"$f":"IF(Tabelle_Auswertung[[#This Row],[Bildname]]<>\"\",IF(Tabelle_Auswertung[[#This Row],[Punkte]]>0,RANK(Tabelle_Auswertung[[#This Row],[Punkte]],[Punkte],0),\" - \"),\" - \")","v":37},"Susanne Deinhardt",{"$f":"IF(Tabelle_Auswertung[[#This Row],[Platz]]=1,CONCATENATE(Tabelle_Auswertung[[#This Row],[Bildname]],\" von \",Tabelle_Auswertung[[#This Row],[Autor(in)]]),\"\")","v":""},{"$f":"IF(Tabelle_Auswertung[[#This Row],[Platz]]=2,CONCATENATE(Tabelle_Auswertung[[#This Row],[Bildname]],\" von \",Tabelle_Auswertung[[#This Row],[Autor(in)]]),\"\")","v":""},{"$f":"IF(Tabelle_Auswertung[[#This Row],[Platz]]=3,CONCATENATE(Tabelle_Auswertung[[#This Row],[Bildname]],\" von \",Tabelle_Auswertung[[#This Row],[Autor(in)]]),\"\")","v":""},{"$f":"IF(Tabelle_Auswertung[[#This Row],[Platz]]=4,CONCATENATE(Tabelle_Auswertung[[#This Row],[Bildname]],\" von \",Tabelle_Auswertung[[#This Row],[Autor(in)]]),\"\")","v":""},{"$f":"IF(Tabelle_Auswertung[[#This Row],[Platz]]=5,CONCATENATE(Tabelle_Auswertung[[#This Row],[Bildname]],\" von \",Tabelle_Auswertung[[#This Row],[Autor(in)]]),\"\")","v":""},{"$f":"IF(Tabelle_Auswertung[[#This Row],[Platz]]=6,CONCATENATE(Tabelle_Auswertung[[#This Row],[Bildname]],\" von \",Tabelle_Auswertung[[#This Row],[Autor(in)]]),\"\")","v":""},{"$f":"IF(Tabelle_Auswertung[[#This Row],[Platz]]=7,CONCATENATE(Tabelle_Auswertung[[#This Row],[Bildname]],\" von \",Tabelle_Auswertung[[#This Row],[Autor(in)]]),\"\")","v":""},{"$f":"IF(Tabelle_Auswertung[[#This Row],[Platz]]=8,CONCATENATE(Tabelle_Auswertung[[#This Row],[Bildname]],\" von \",Tabelle_Auswertung[[#This Row],[Autor(in)]]),\"\")","v":""},{"$f":"IF(Tabelle_Auswertung[[#This Row],[Platz]]=9,CONCATENATE(Tabelle_Auswertung[[#This Row],[Bildname]],\" von \",Tabelle_Auswertung[[#This Row],[Autor(in)]]),\"\")","v":""},{"$f":"IF(Tabelle_Auswertung[[#This Row],[Platz]]=10,CONCATENATE(Tabelle_Auswertung[[#This Row],[Bildname]],\" von \",Tabelle_Auswertung[[#This Row],[Autor(in)]]),\"\")","v":""}]
["Frühling.JPG",5,5,5,5,{"$nulls":16},{"$f":"IF(Tabelle_Auswertung[[#This Row],[Bildname]]<>\"\",SUM(Tabelle_Auswertung[[#This Row],[Juror 1]:[Juror 20]]),\" - \")","v":20},{"$f":"IF(Tabelle_Auswertung[[#This Row],[Bildname]]<>\"\",IF(Tabelle_Auswertung[[#This Row],[Punkte]]>0,AVERAGE(Tabelle_Auswertung[[#This Row],[Juror 1]:[Juror 20]]),\" - \"),\" - \")","v":{"v":5,"d":"5.00 "}},{"$f":"IF(Tabelle_Auswertung[[#This Row],[Bildname]]<>\"\",IF(Tabelle_Auswertung[[#This Row],[Punkte]]>0,RANK(Tabelle_Auswertung[[#This Row],[Punkte]],[Punkte],0),\" - \"),\" - \")","v":37},"Claudia Dommel",{"$f":"IF(Tabelle_Auswertung[[#This Row],[Platz]]=1,CONCATENATE(Tabelle_Auswertung[[#This Row],[Bildname]],\" von \",Tabelle_Auswertung[[#This Row],[Autor(in)]]),\"\")","v":""},{"$f":"IF(Tabelle_Auswertung[[#This Row],[Platz]]=2,CONCATENATE(Tabelle_Auswertung[[#This Row],[Bildname]],\" von \",Tabelle_Auswertung[[#This Row],[Autor(in)]]),\"\")","v":""},{"$f":"IF(Tabelle_Auswertung[[#This Row],[Platz]]=3,CONCATENATE(Tabelle_Auswertung[[#This Row],[Bildname]],\" von \",Tabelle_Auswertung[[#This Row],[Autor(in)]]),\"\")","v":""},{"$f":"IF(Tabelle_Auswertung[[#This Row],[Platz]]=4,CONCATENATE(Tabelle_Auswertung[[#This Row],[Bildname]],\" von \",Tabelle_Auswertung[[#This Row],[Autor(in)]]),\"\")","v":""},{"$f":"IF(Tabelle_Auswertung[[#This Row],[Platz]]=5,CONCATENATE(Tabelle_Auswertung[[#This Row],[Bildname]],\" von \",Tabelle_Auswertung[[#This Row],[Autor(in)]]),\"\")","v":""},{"$f":"IF(Tabelle_Auswertung[[#This Row],[Platz]]=6,CONCATENATE(Tabelle_Auswertung[[#This Row],[Bildname]],\" von \",Tabelle_Auswertung[[#This Row],[Autor(in)]]),\"\")","v":""},{"$f":"IF(Tabelle_Auswertung[[#This Row],[Platz]]=7,CONCATENATE(Tabelle_Auswertung[[#This Row],[Bildname]],\" von \",Tabelle_Auswertung[[#This Row],[Autor(in)]]),\"\")","v":""},{"$f":"IF(Tabelle_Auswertung[[#This Row],[Platz]]=8,CONCATENATE(Tabelle_Auswertung[[#This Row],[Bildname]],\" von \",Tabelle_Auswertung[[#This Row],[Autor(in)]]),\"\")","v":""},{"$f":"IF(Tabelle_Auswertung[[#This Row],[Platz]]=9,CONCATENATE(Tabelle_Auswertung[[#This Row],[Bildname]],\" von \",Tabelle_Auswertung[[#This Row],[Autor(in)]]),\"\")","v":""},{"$f":"IF(Tabelle_Auswertung[[#This Row],[Platz]]=10,CONCATENATE(Tabelle_Auswertung[[#This Row],[Bildname]],\" von \",Tabelle_Auswertung[[#This Row],[Autor(in)]]),\"\")","v":""}]
["Hortus.jpg",6,4,4,6,{"$nulls":16},{"$f":"IF(Tabelle_Auswertung[[#This Row],[Bildname]]<>\"\",SUM(Tabelle_Auswertung[[#This Row],[Juror 1]:[Juror 20]]),\" - \")","v":20},{"$f":"IF(Tabelle_Auswertung[[#This Row],[Bildname]]<>\"\",IF(Tabelle_Auswertung[[#This Row],[Punkte]]>0,AVERAGE(Tabelle_Auswertung[[#This Row],[Juror 1]:[Juror 20]]),\" - \"),\" - \")","v":{"v":5,"d":"5.00 "}},{"$f":"IF(Tabelle_Auswertung[[#This Row],[Bildname]]<>\"\",IF(Tabelle_Auswertung[[#This Row],[Punkte]]>0,RANK(Tabelle_Auswertung[[#This Row],[Punkte]],[Punkte],0),\" - \"),\" - \")","v":37},"Gerhard Rieß",{"$f":"IF(Tabelle_Auswertung[[#This Row],[Platz]]=1,CONCATENATE(Tabelle_Auswertung[[#This Row],[Bildname]],\" von \",Tabelle_Auswertung[[#This Row],[Autor(in)]]),\"\")","v":""},{"$f":"IF(Tabelle_Auswertung[[#This Row],[Platz]]=2,CONCATENATE(Tabelle_Auswertung[[#This Row],[Bildname]],\" von \",Tabelle_Auswertung[[#This Row],[Autor(in)]]),\"\")","v":""},{"$f":"IF(Tabelle_Auswertung[[#This Row],[Platz]]=3,CONCATENATE(Tabelle_Auswertung[[#This Row],[Bildname]],\" von \",Tabelle_Auswertung[[#This Row],[Autor(in)]]),\"\")","v":""},{"$f":"IF(Tabelle_Auswertung[[#This Row],[Platz]]=4,CONCATENATE(Tabelle_Auswertung[[#This Row],[Bildname]],\" von \",Tabelle_Auswertung[[#This Row],[Autor(in)]]),\"\")","v":""},{"$f":"IF(Tabelle_Auswertung[[#This Row],[Platz]]=5,CONCATENATE(Tabelle_Auswertung[[#This Row],[Bildname]],\" von \",Tabelle_Auswertung[[#This Row],[Autor(in)]]),\"\")","v":""},{"$f":"IF(Tabelle_Auswertung[[#This Row],[Platz]]=6,CONCATENATE(Tabelle_Auswertung[[#This Row],[Bildname]],\" von \",Tabelle_Auswertung[[#This Row],[Autor(in)]]),\"\")","v":""},{"$f":"IF(Tabelle_Auswertung[[#This Row],[Platz]]=7,CONCATENATE(Tabelle_Auswertung[[#This Row],[Bildname]],\" von \",Tabelle_Auswertung[[#This Row],[Autor(in)]]),\"\")","v":""},{"$f":"IF(Tabelle_Auswertung[[#This Row],[Platz]]=8,CONCATENATE(Tabelle_Auswertung[[#This Row],[Bildname]],\" von \",Tabelle_Auswertung[[#This Row],[Autor(in)]]),\"\")","v":""},{"$f":"IF(Tabelle_Auswertung[[#This Row],[Platz]]=9,CONCATENATE(Tabelle_Auswertung[[#This Row],[Bildname]],\" von \",Tabelle_Auswertung[[#This Row],[Autor(in)]]),\"\")","v":""},{"$f":"IF(Tabelle_Auswertung[[#This Row],[Platz]]=10,CONCATENATE(Tabelle_Auswertung[[#This Row],[Bildname]],\" von \",Tabelle_Auswertung[[#This Row],[Autor(in)]]),\"\")","v":""}]
["Kerzenschein.JPG",5,4,6,5,{"$nulls":16},{"$f":"IF(Tabelle_Auswertung[[#This Row],[Bildname]]<>\"\",SUM(Tabelle_Auswertung[[#This Row],[Juror 1]:[Juror 20]]),\" - \")","v":20},{"$f":"IF(Tabelle_Auswertung[[#This Row],[Bildname]]<>\"\",IF(Tabelle_Auswertung[[#This Row],[Punkte]]>0,AVERAGE(Tabelle_Auswertung[[#This Row],[Juror 1]:[Juror 20]]),\" - \"),\" - \")","v":{"v":5,"d":"5.00 "}},{"$f":"IF(Tabelle_Auswertung[[#This Row],[Bildname]]<>\"\",IF(Tabelle_Auswertung[[#This Row],[Punkte]]>0,RANK(Tabelle_Auswertung[[#This Row],[Punkte]],[Punkte],0),\" - \"),\" - \")","v":37},"Claudia Dommel",{"$f":"IF(Tabelle_Auswertung[[#This Row],[Platz]]=1,CONCATENATE(Tabelle_Auswertung[[#This Row],[Bildname]],\" von \",Tabelle_Auswertung[[#This Row],[Autor(in)]]),\"\")","v":""},{"$f":"IF(Tabelle_Auswertung[[#This Row],[Platz]]=2,CONCATENATE(Tabelle_Auswertung[[#This Row],[Bildname]],\" von \",Tabelle_Auswertung[[#This Row],[Autor(in)]]),\"\")","v":""},{"$f":"IF(Tabelle_Auswertung[[#This Row],[Platz]]=3,CONCATENATE(Tabelle_Auswertung[[#This Row],[Bildname]],\" von \",Tabelle_Auswertung[[#This Row],[Autor(in)]]),\"\")","v":""},{"$f":"IF(Tabelle_Auswertung[[#This Row],[Platz]]=4,CONCATENATE(Tabelle_Auswertung[[#This Row],[Bildname]],\" von \",Tabelle_Auswertung[[#This Row],[Autor(in)]]),\"\")","v":""},{"$f":"IF(Tabelle_Auswertung[[#This Row],[Platz]]=5,CONCATENATE(Tabelle_Auswertung[[#This Row],[Bildname]],\" von \",Tabelle_Auswertung[[#This Row],[Autor(in)]]),\"\")","v":""},{"$f":"IF(Tabelle_Auswertung[[#This Row],[Platz]]=6,CONCATENATE(Tabelle_Auswertung[[#This Row],[Bildname]],\" von \",Tabelle_Auswertung[[#This Row],[Autor(in)]]),\"\")","v":""},{"$f":"IF(Tabelle_Auswertung[[#This Row],[Platz]]=7,CONCATENATE(Tabelle_Auswertung[[#This Row],[Bildname]],\" von \",Tabelle_Auswertung[[#This Row],[Autor(in)]]),\"\")","v":""},{"$f":"IF(Tabelle_Auswertung[[#This Row],[Platz]]=8,CONCATENATE(Tabelle_Auswertung[[#This Row],[Bildname]],\" von \",Tabelle_Auswertung[[#This Row],[Autor(in)]]),\"\")","v":""},{"$f":"IF(Tabelle_Auswertung[[#This Row],[Platz]]=9,CONCATENATE(Tabelle_Auswertung[[#This Row],[Bildname]],\" von \",Tabelle_Auswertung[[#This Row],[Autor(in)]]),\"\")","v":""},{"$f":"IF(Tabelle_Auswertung[[#This Row],[Platz]]=10,CONCATENATE(Tabelle_Auswertung[[#This Row],[Bildname]],\" von \",Tabelle_Auswertung[[#This Row],[Autor(in)]]),\"\")","v":""}]
["Mondscheinwanderung.JPG",6,5,3,6,{"$nulls":16},{"$f":"IF(Tabelle_Auswertung[[#This Row],[Bildname]]<>\"\",SUM(Tabelle_Auswertung[[#This Row],[Juror 1]:[Juror 20]]),\" - \")","v":20},{"$f":"IF(Tabelle_Auswertung[[#This Row],[Bildname]]<>\"\",IF(Tabelle_Auswertung[[#This Row],[Punkte]]>0,AVERAGE(Tabelle_Auswertung[[#This Row],[Juror 1]:[Juror 20]]),\" - \"),\" - \")","v":{"v":5,"d":"5.00 "}},{"$f":"IF(Tabelle_Auswertung[[#This Row],[Bildname]]<>\"\",IF(Tabelle_Auswertung[[#This Row],[Punkte]]>0,RANK(Tabelle_Auswertung[[#This Row],[Punkte]],[Punkte],0),\" - \"),\" - \")","v":37},"Albrecht Flierl",{"$f":"IF(Tabelle_Auswertung[[#This Row],[Platz]]=1,CONCATENATE(Tabelle_Auswertung[[#This Row],[Bildname]],\" von \",Tabelle_Auswertung[[#This Row],[Autor(in)]]),\"\")","v":""},{"$f":"IF(Tabelle_Auswertung[[#This Row],[Platz]]=2,CONCATENATE(Tabelle_Auswertung[[#This Row],[Bildname]],\" von \",Tabelle_Auswertung[[#This Row],[Autor(in)]]),\"\")","v":""},{"$f":"IF(Tabelle_Auswertung[[#This Row],[Platz]]=3,CONCATENATE(Tabelle_Auswertung[[#This Row],[Bildname]],\" von \",Tabelle_Auswertung[[#This Row],[Autor(in)]]),\"\")","v":""},{"$f":"IF(Tabelle_Auswertung[[#This Row],[Platz]]=4,CONCATENATE(Tabelle_Auswertung[[#This Row],[Bildname]],\" von \",Tabelle_Auswertung[[#This Row],[Autor(in)]]),\"\")","v":""},{"$f":"IF(Tabelle_Auswertung[[#This Row],[Platz]]=5,CONCATENATE(Tabelle_Auswertung[[#This Row],[Bildname]],\" von \",Tabelle_Auswertung[[#This Row],[Autor(in)]]),\"\")","v":""},{"$f":"IF(Tabelle_Auswertung[[#This Row],[Platz]]=6,CONCATENATE(Tabelle_Auswertung[[#This Row],[Bildname]],\" von \",Tabelle_Auswertung[[#This Row],[Autor(in)]]),\"\")","v":""},{"$f":"IF(Tabelle_Auswertung[[#This Row],[Platz]]=7,CONCATENATE(Tabelle_Auswertung[[#This Row],[Bildname]],\" von \",Tabelle_Auswertung[[#This Row],[Autor(in)]]),\"\")","v":""},{"$f":"IF(Tabelle_Auswertung[[#This Row],[Platz]]=8,CONCATENATE(Tabelle_Auswertung[[#This Row],[Bildname]],\" von \",Tabelle_Auswertung[[#This Row],[Autor(in)]]),\"\")","v":""},{"$f":"IF(Tabelle_Auswertung[[#This Row],[Platz]]=9,CONCATENATE(Tabelle_Auswertung[[#This Row],[Bildname]],\" von \",Tabelle_Auswertung[[#This Row],[Autor(in)]]),\"\")","v":""},{"$f":"IF(Tabelle_Auswertung[[#This Row],[Platz]]=10,CONCATENATE(Tabelle_Auswertung[[#This Row],[Bildname]],\" von \",Tabelle_Auswertung[[#This Row],[Autor(in)]]),\"\")","v":""}]
["Wien.jpg",5,4,6,5,{"$nulls":16},{"$f":"IF(Tabelle_Auswertung[[#This Row],[Bildname]]<>\"\",SUM(Tabelle_Auswertung[[#This Row],[Juror 1]:[Juror 20]]),\" - \")","v":20},{"$f":"IF(Tabelle_Auswertung[[#This Row],[Bildname]]<>\"\",IF(Tabelle_Auswertung[[#This Row],[Punkte]]>0,AVERAGE(Tabelle_Auswertung[[#This Row],[Juror 1]:[Juror 20]]),\" - \"),\" - \")","v":5},{"$f":"IF(Tabelle_Auswertung[[#This Row],[Bildname]]<>\"\",IF(Tabelle_Auswertung[[#This Row],[Punkte]]>0,RANK(Tabelle_Auswertung[[#This Row],[Punkte]],[Punkte],0),\" - \"),\" - \")","v":37},"Chris Finsterer",{"$f":"IF(Tabelle_Auswertung[[#This Row],[Platz]]=1,CONCATENATE(Tabelle_Auswertung[[#This Row],[Bildname]],\" von \",Tabelle_Auswertung[[#This Row],[Autor(in)]]),\"\")","v":""},{"$f":"IF(Tabelle_Auswertung[[#This Row],[Platz]]=2,CONCATENATE(Tabelle_Auswertung[[#This Row],[Bildname]],\" von \",Tabelle_Auswertung[[#This Row],[Autor(in)]]),\"\")","v":""},{"$f":"IF(Tabelle_Auswertung[[#This Row],[Platz]]=3,CONCATENATE(Tabelle_Auswertung[[#This Row],[Bildname]],\" von \",Tabelle_Auswertung[[#This Row],[Autor(in)]]),\"\")","v":""},{"$f":"IF(Tabelle_Auswertung[[#This Row],[Platz]]=4,CONCATENATE(Tabelle_Auswertung[[#This Row],[Bildname]],\" von \",Tabelle_Auswertung[[#This Row],[Autor(in)]]),\"\")","v":""},{"$f":"IF(Tabelle_Auswertung[[#This Row],[Platz]]=5,CONCATENATE(Tabelle_Auswertung[[#This Row],[Bildname]],\" von \",Tabelle_Auswertung[[#This Row],[Autor(in)]]),\"\")","v":""},{"$f":"IF(Tabelle_Auswertung[[#This Row],[Platz]]=6,CONCATENATE(Tabelle_Auswertung[[#This Row],[Bildname]],\" von \",Tabelle_Auswertung[[#This Row],[Autor(in)]]),\"\")","v":""},{"$f":"IF(Tabelle_Auswertung[[#This Row],[Platz]]=7,CONCATENATE(Tabelle_Auswertung[[#This Row],[Bildname]],\" von \",Tabelle_Auswertung[[#This Row],[Autor(in)]]),\"\")","v":""},{"$f":"IF(Tabelle_Auswertung[[#This Row],[Platz]]=8,CONCATENATE(Tabelle_Auswertung[[#This Row],[Bildname]],\" von \",Tabelle_Auswertung[[#This Row],[Autor(in)]]),\"\")","v":""},{"$f":"IF(Tabelle_Auswertung[[#This Row],[Platz]]=9,CONCATENATE(Tabelle_Auswertung[[#This Row],[Bildname]],\" von \",Tabelle_Auswertung[[#This Row],[Autor(in)]]),\"\")","v":""},{"$f":"IF(Tabelle_Auswertung[[#This Row],[Platz]]=10,CONCATENATE(Tabelle_Auswertung[[#This Row],[Bildname]],\" von \",Tabelle_Auswertung[[#This Row],[Autor(in)]]),\"\")","v":""}]
["Dickkopf.JPG",5,5,4,5,{"$nulls":16},{"$f":"IF(Tabelle_Auswertung[[#This Row],[Bildname]]<>\"\",SUM(Tabelle_Auswertung[[#This Row],[Juror 1]:[Juror 20]]),\" - \")","v":19},{"$f":"IF(Tabelle_Auswertung[[#This Row],[Bildname]]<>\"\",IF(Tabelle_Auswertung[[#This Row],[Punkte]]>0,AVERAGE(Tabelle_Auswertung[[#This Row],[Juror 1]:[Juror 20]]),\" - \"),\" - \")","v":{"v":4.75,"d":"4.75 "}},{"$f":"IF(Tabelle_Auswertung[[#This Row],[Bildname]]<>\"\",IF(Tabelle_Auswertung[[#This Row],[Punkte]]>0,RANK(Tabelle_Auswertung[[#This Row],[Punkte]],[Punkte],0),\" - \"),\" - \")","v":44},"Susanne Deinhardt",{"$f":"IF(Tabelle_Auswertung[[#This Row],[Platz]]=1,CONCATENATE(Tabelle_Auswertung[[#This Row],[Bildname]],\" von \",Tabelle_Auswertung[[#This Row],[Autor(in)]]),\"\")","v":""},{"$f":"IF(Tabelle_Auswertung[[#This Row],[Platz]]=2,CONCATENATE(Tabelle_Auswertung[[#This Row],[Bildname]],\" von \",Tabelle_Auswertung[[#This Row],[Autor(in)]]),\"\")","v":""},{"$f":"IF(Tabelle_Auswertung[[#This Row],[Platz]]=3,CONCATENATE(Tabelle_Auswertung[[#This Row],[Bildname]],\" von \",Tabelle_Auswertung[[#This Row],[Autor(in)]]),\"\")","v":""},{"$f":"IF(Tabelle_Auswertung[[#This Row],[Platz]]=4,CONCATENATE(Tabelle_Auswertung[[#This Row],[Bildname]],\" von \",Tabelle_Auswertung[[#This Row],[Autor(in)]]),\"\")","v":""},{"$f":"IF(Tabelle_Auswertung[[#This Row],[Platz]]=5,CONCATENATE(Tabelle_Auswertung[[#This Row],[Bildname]],\" von \",Tabelle_Auswertung[[#This Row],[Autor(in)]]),\"\")","v":""},{"$f":"IF(Tabelle_Auswertung[[#This Row],[Platz]]=6,CONCATENATE(Tabelle_Auswertung[[#This Row],[Bildname]],\" von \",Tabelle_Auswertung[[#This Row],[Autor(in)]]),\"\")","v":""},{"$f":"IF(Tabelle_Auswertung[[#This Row],[Platz]]=7,CONCATENATE(Tabelle_Auswertung[[#This Row],[Bildname]],\" von \",Tabelle_Auswertung[[#This Row],[Autor(in)]]),\"\")","v":""},{"$f":"IF(Tabelle_Auswertung[[#This Row],[Platz]]=8,CONCATENATE(Tabelle_Auswertung[[#This Row],[Bildname]],\" von \",Tabelle_Auswertung[[#This Row],[Autor(in)]]),\"\")","v":""},{"$f":"IF(Tabelle_Auswertung[[#This Row],[Platz]]=9,CONCATENATE(Tabelle_Auswertung[[#This Row],[Bildname]],\" von \",Tabelle_Auswertung[[#This Row],[Autor(in)]]),\"\")","v":""},{"$f":"IF(Tabelle_Auswertung[[#This Row],[Platz]]=10,CONCATENATE(Tabelle_Auswertung[[#This Row],[Bildname]],\" von \",Tabelle_Auswertung[[#This Row],[Autor(in)]]),\"\")","v":""}]
["modern architecture.jpg",6,4,3,6,{"$nulls":16},{"$f":"IF(Tabelle_Auswertung[[#This Row],[Bildname]]<>\"\",SUM(Tabelle_Auswertung[[#This Row],[Juror 1]:[Juror 20]]),\" - \")","v":19},{"$f":"IF(Tabelle_Auswertung[[#This Row],[Bildname]]<>\"\",IF(Tabelle_Auswertung[[#This Row],[Punkte]]>0,AVERAGE(Tabelle_Auswertung[[#This Row],[Juror 1]:[Juror 20]]),\" - \"),\" - \")","v":{"v":4.75,"d":"4.75 "}},{"$f":"IF(Tabelle_Auswertung[[#This Row],[Bildname]]<>\"\",IF(Tabelle_Auswertung[[#This Row],[Punkte]]>0,RANK(Tabelle_Auswertung[[#This Row],[Punkte]],[Punkte],0),\" - \"),\" - \")","v":44},"Gerhard Rieß",{"$f":"IF(Tabelle_Auswertung[[#This Row],[Platz]]=1,CONCATENATE(Tabelle_Auswertung[[#This Row],[Bildname]],\" von \",Tabelle_Auswertung[[#This Row],[Autor(in)]]),\"\")","v":""},{"$f":"IF(Tabelle_Auswertung[[#This Row],[Platz]]=2,CONCATENATE(Tabelle_Auswertung[[#This Row],[Bildname]],\" von \",Tabelle_Auswertung[[#This Row],[Autor(in)]]),\"\")","v":""},{"$f":"IF(Tabelle_Auswertung[[#This Row],[Platz]]=3,CONCATENATE(Tabelle_Auswertung[[#This Row],[Bildname]],\" von \",Tabelle_Auswertung[[#This Row],[Autor(in)]]),\"\")","v":""},{"$f":"IF(Tabelle_Auswertung[[#This Row],[Platz]]=4,CONCATENATE(Tabelle_Auswertung[[#This Row],[Bildname]],\" von \",Tabelle_Auswertung[[#This Row],[Autor(in)]]),\"\")","v":""},{"$f":"IF(Tabelle_Auswertung[[#This Row],[Platz]]=5,CONCATENATE(Tabelle_Auswertung[[#This Row],[Bildname]],\" von \",Tabelle_Auswertung[[#This Row],[Autor(in)]]),\"\")","v":""},{"$f":"IF(Tabelle_Auswertung[[#This Row],[Platz]]=6,CONCATENATE(Tabelle_Auswertung[[#This Row],[Bildname]],\" von \",Tabelle_Auswertung[[#This Row],[Autor(in)]]),\"\")","v":""},{"$f":"IF(Tabelle_Auswertung[[#This Row],[Platz]]=7,CONCATENATE(Tabelle_Auswertung[[#This Row],[Bildname]],\" von \",Tabelle_Auswertung[[#This Row],[Autor(in)]]),\"\")","v":""},{"$f":"IF(Tabelle_Auswertung[[#This Row],[Platz]]=8,CONCATENATE(Tabelle_Auswertung[[#This Row],[Bildname]],\" von \",Tabelle_Auswertung[[#This Row],[Autor(in)]]),\"\")","v":""},{"$f":"IF(Tabelle_Auswertung[[#This Row],[Platz]]=9,CONCATENATE(Tabelle_Auswertung[[#This Row],[Bildname]],\" von \",Tabelle_Auswertung[[#This Row],[Autor(in)]]),\"\")","v":""},{"$f":"IF(Tabelle_Auswertung[[#This Row],[Platz]]=10,CONCATENATE(Tabelle_Auswertung[[#This Row],[Bildname]],\" von \",Tabelle_Auswertung[[#This Row],[Autor(in)]]),\"\")","v":""}]
["Zebrastreifen.jpg",5,5,4,5,{"$nulls":16},{"$f":"IF(Tabelle_Auswertung[[#This Row],[Bildname]]<>\"\",SUM(Tabelle_Auswertung[[#This Row],[Juror 1]:[Juror 20]]),\" - \")","v":19},{"$f":"IF(Tabelle_Auswertung[[#This Row],[Bildname]]<>\"\",IF(Tabelle_Auswertung[[#This Row],[Punkte]]>0,AVERAGE(Tabelle_Auswertung[[#This Row],[Juror 1]:[Juror 20]]),\" - \"),\" - \")","v":4.75},{"$f":"IF(Tabelle_Auswertung[[#This Row],[Bildname]]<>\"\",IF(Tabelle_Auswertung[[#This Row],[Punkte]]>0,RANK(Tabelle_Auswertung[[#This Row],[Punkte]],[Punkte],0),\" - \"),\" - \")","v":44},"Jan Grünler",{"$f":"IF(Tabelle_Auswertung[[#This Row],[Platz]]=1,CONCATENATE(Tabelle_Auswertung[[#This Row],[Bildname]],\" von \",Tabelle_Auswertung[[#This Row],[Autor(in)]]),\"\")","v":""},{"$f":"IF(Tabelle_Auswertung[[#This Row],[Platz]]=2,CONCATENATE(Tabelle_Auswertung[[#This Row],[Bildname]],\" von \",Tabelle_Auswertung[[#This Row],[Autor(in)]]),\"\")","v":""},{"$f":"IF(Tabelle_Auswertung[[#This Row],[Platz]]=3,CONCATENATE(Tabelle_Auswertung[[#This Row],[Bildname]],\" von \",Tabelle_Auswertung[[#This Row],[Autor(in)]]),\"\")","v":""},{"$f":"IF(Tabelle_Auswertung[[#This Row],[Platz]]=4,CONCATENATE(Tabelle_Auswertung[[#This Row],[Bildname]],\" von \",Tabelle_Auswertung[[#This Row],[Autor(in)]]),\"\")","v":""},{"$f":"IF(Tabelle_Auswertung[[#This Row],[Platz]]=5,CONCATENATE(Tabelle_Auswertung[[#This Row],[Bildname]],\" von \",Tabelle_Auswertung[[#This Row],[Autor(in)]]),\"\")","v":""},{"$f":"IF(Tabelle_Auswertung[[#This Row],[Platz]]=6,CONCATENATE(Tabelle_Auswertung[[#This Row],[Bildname]],\" von \",Tabelle_Auswertung[[#This Row],[Autor(in)]]),\"\")","v":""},{"$f":"IF(Tabelle_Auswertung[[#This Row],[Platz]]=7,CONCATENATE(Tabelle_Auswertung[[#This Row],[Bildname]],\" von \",Tabelle_Auswertung[[#This Row],[Autor(in)]]),\"\")","v":""},{"$f":"IF(Tabelle_Auswertung[[#This Row],[Platz]]=8,CONCATENATE(Tabelle_Auswertung[[#This Row],[Bildname]],\" von \",Tabelle_Auswertung[[#This Row],[Autor(in)]]),\"\")","v":""},{"$f":"IF(Tabelle_Auswertung[[#This Row],[Platz]]=9,CONCATENATE(Tabelle_Auswertung[[#This Row],[Bildname]],\" von \",Tabelle_Auswertung[[#This Row],[Autor(in)]]),\"\")","v":""},{"$f":"IF(Tabelle_Auswertung[[#This Row],[Platz]]=10,CONCATENATE(Tabelle_Auswertung[[#This Row],[Bildname]],\" von \",Tabelle_Auswertung[[#This Row],[Autor(in)]]),\"\")","v":""}]
["Altmuehltal.JPG",5,4,4,5,{"$nulls":16},{"$f":"IF(Tabelle_Auswertung[[#This Row],[Bildname]]<>\"\",SUM(Tabelle_Auswertung[[#This Row],[Juror 1]:[Juror 20]]),\" - \")","v":18},{"$f":"IF(Tabelle_Auswertung[[#This Row],[Bildname]]<>\"\",IF(Tabelle_Auswertung[[#This Row],[Punkte]]>0,AVERAGE(Tabelle_Auswertung[[#This Row],[Juror 1]:[Juror 20]]),\" - \"),\" - \")","v":{"v":4.5,"d":"4.50 "}},{"$f":"IF(Tabelle_Auswertung[[#This Row],[Bildname]]<>\"\",IF(Tabelle_Auswertung[[#This Row],[Punkte]]>0,RANK(Tabelle_Auswertung[[#This Row],[Punkte]],[Punkte],0),\" - \"),\" - \")","v":47},"Albrecht Flierl",{"$f":"IF(Tabelle_Auswertung[[#This Row],[Platz]]=1,CONCATENATE(Tabelle_Auswertung[[#This Row],[Bildname]],\" von \",Tabelle_Auswertung[[#This Row],[Autor(in)]]),\"\")","v":""},{"$f":"IF(Tabelle_Auswertung[[#This Row],[Platz]]=2,CONCATENATE(Tabelle_Auswertung[[#This Row],[Bildname]],\" von \",Tabelle_Auswertung[[#This Row],[Autor(in)]]),\"\")","v":""},{"$f":"IF(Tabelle_Auswertung[[#This Row],[Platz]]=3,CONCATENATE(Tabelle_Auswertung[[#This Row],[Bildname]],\" von \",Tabelle_Auswertung[[#This Row],[Autor(in)]]),\"\")","v":""},{"$f":"IF(Tabelle_Auswertung[[#This Row],[Platz]]=4,CONCATENATE(Tabelle_Auswertung[[#This Row],[Bildname]],\" von \",Tabelle_Auswertung[[#This Row],[Autor(in)]]),\"\")","v":""},{"$f":"IF(Tabelle_Auswertung[[#This Row],[Platz]]=5,CONCATENATE(Tabelle_Auswertung[[#This Row],[Bildname]],\" von \",Tabelle_Auswertung[[#This Row],[Autor(in)]]),\"\")","v":""},{"$f":"IF(Tabelle_Auswertung[[#This Row],[Platz]]=6,CONCATENATE(Tabelle_Auswertung[[#This Row],[Bildname]],\" von \",Tabelle_Auswertung[[#This Row],[Autor(in)]]),\"\")","v":""},{"$f":"IF(Tabelle_Auswertung[[#This Row],[Platz]]=7,CONCATENATE(Tabelle_Auswertung[[#This Row],[Bildname]],\" von \",Tabelle_Auswertung[[#This Row],[Autor(in)]]),\"\")","v":""},{"$f":"IF(Tabelle_Auswertung[[#This Row],[Platz]]=8,CONCATENATE(Tabelle_Auswertung[[#This Row],[Bildname]],\" von \",Tabelle_Auswertung[[#This Row],[Autor(in)]]),\"\")","v":""},{"$f":"IF(Tabelle_Auswertung[[#This Row],[Platz]]=9,CONCATENATE(Tabelle_Auswertung[[#This Row],[Bildname]],\" von \",Tabelle_Auswertung[[#This Row],[Autor(in)]]),\"\")","v":""},{"$f":"IF(Tabelle_Auswertung[[#This Row],[Platz]]=10,CONCATENATE(Tabelle_Auswertung[[#This Row],[Bildname]],\" von \",Tabelle_Auswertung[[#This Row],[Autor(in)]]),\"\")","v":""}]
["Gemalte Raritäten.JPG",5,4,4,5,{"$nulls":16},{"$f":"IF(Tabelle_Auswertung[[#This Row],[Bildname]]<>\"\",SUM(Tabelle_Auswertung[[#This Row],[Juror 1]:[Juror 20]]),\" - \")","v":18},{"$f":"IF(Tabelle_Auswertung[[#This Row],[Bildname]]<>\"\",IF(Tabelle_Auswertung[[#This Row],[Punkte]]>0,AVERAGE(Tabelle_Auswertung[[#This Row],[Juror 1]:[Juror 20]]),\" - \"),\" - \")","v":{"v":4.5,"d":"4.50 "}},{"$f":"IF(Tabelle_Auswertung[[#This Row],[Bildname]]<>\"\",IF(Tabelle_Auswertung[[#This Row],[Punkte]]>0,RANK(Tabelle_Auswertung[[#This Row],[Punkte]],[Punkte],0),\" - \"),\" - \")","v":47},"Claudia Dommel",{"$f":"IF(Tabelle_Auswertung[[#This Row],[Platz]]=1,CONCATENATE(Tabelle_Auswertung[[#This Row],[Bildname]],\" von \",Tabelle_Auswertung[[#This Row],[Autor(in)]]),\"\")","v":""},{"$f":"IF(Tabelle_Auswertung[[#This Row],[Platz]]=2,CONCATENATE(Tabelle_Auswertung[[#This Row],[Bildname]],\" von \",Tabelle_Auswertung[[#This Row],[Autor(in)]]),\"\")","v":""},{"$f":"IF(Tabelle_Auswertung[[#This Row],[Platz]]=3,CONCATENATE(Tabelle_Auswertung[[#This Row],[Bildname]],\" von \",Tabelle_Auswertung[[#This Row],[Autor(in)]]),\"\")","v":""},{"$f":"IF(Tabelle_Auswertung[[#This Row],[Platz]]=4,CONCATENATE(Tabelle_Auswertung[[#This Row],[Bildname]],\" von \",Tabelle_Auswertung[[#This Row],[Autor(in)]]),\"\")","v":""},{"$f":"IF(Tabelle_Auswertung[[#This Row],[Platz]]=5,CONCATENATE(Tabelle_Auswertung[[#This Row],[Bildname]],\" von \",Tabelle_Auswertung[[#This Row],[Autor(in)]]),\"\")","v":""},{"$f":"IF(Tabelle_Auswertung[[#This Row],[Platz]]=6,CONCATENATE(Tabelle_Auswertung[[#This Row],[Bildname]],\" von \",Tabelle_Auswertung[[#This Row],[Autor(in)]]),\"\")","v":""},{"$f":"IF(Tabelle_Auswertung[[#This Row],[Platz]]=7,CONCATENATE(Tabelle_Auswertung[[#This Row],[Bildname]],\" von \",Tabelle_Auswertung[[#This Row],[Autor(in)]]),\"\")","v":""},{"$f":"IF(Tabelle_Auswertung[[#This Row],[Platz]]=8,CONCATENATE(Tabelle_Auswertung[[#This Row],[Bildname]],\" von \",Tabelle_Auswertung[[#This Row],[Autor(in)]]),\"\")","v":""},{"$f":"IF(Tabelle_Auswertung[[#This Row],[Platz]]=9,CONCATENATE(Tabelle_Auswertung[[#This Row],[Bildname]],\" von \",Tabelle_Auswertung[[#This Row],[Autor(in)]]),\"\")","v":""},{"$f":"IF(Tabelle_Auswertung[[#This Row],[Platz]]=10,CONCATENATE(Tabelle_Auswertung[[#This Row],[Bildname]],\" von \",Tabelle_Auswertung[[#This Row],[Autor(in)]]),\"\")","v":""}]
["Gipfelsturm.JPG",5,4,3,5,{"$nulls":16},{"$f":"IF(Tabelle_Auswertung[[#This Row],[Bildname]]<>\"\",SUM(Tabelle_Auswertung[[#This Row],[Juror 1]:[Juror 20]]),\" - \")","v":17},{"$f":"IF(Tabelle_Auswertung[[#This Row],[Bildname]]<>\"\",IF(Tabelle_Auswertung[[#This Row],[Punkte]]>0,AVERAGE(Tabelle_Auswertung[[#This Row],[Juror 1]:[Juror 20]]),\" - \"),\" - \")","v":{"v":4.25,"d":"4.25 "}},{"$f":"IF(Tabelle_Auswertung[[#This Row],[Bildname]]<>\"\",IF(Tabelle_Auswertung[[#This Row],[Punkte]]>0,RANK(Tabelle_Auswertung[[#This Row],[Punkte]],[Punkte],0),\" - \"),\" - \")","v":49},"Albrecht Flierl",{"$f":"IF(Tabelle_Auswertung[[#This Row],[Platz]]=1,CONCATENATE(Tabelle_Auswertung[[#This Row],[Bildname]],\" von \",Tabelle_Auswertung[[#This Row],[Autor(in)]]),\"\")","v":""},{"$f":"IF(Tabelle_Auswertung[[#This Row],[Platz]]=2,CONCATENATE(Tabelle_Auswertung[[#This Row],[Bildname]],\" von \",Tabelle_Auswertung[[#This Row],[Autor(in)]]),\"\")","v":""},{"$f":"IF(Tabelle_Auswertung[[#This Row],[Platz]]=3,CONCATENATE(Tabelle_Auswertung[[#This Row],[Bildname]],\" von \",Tabelle_Auswertung[[#This Row],[Autor(in)]]),\"\")","v":""},{"$f":"IF(Tabelle_Auswertung[[#This Row],[Platz]]=4,CONCATENATE(Tabelle_Auswertung[[#This Row],[Bildname]],\" von \",Tabelle_Auswertung[[#This Row],[Autor(in)]]),\"\")","v":""},{"$f":"IF(Tabelle_Auswertung[[#This Row],[Platz]]=5,CONCATENATE(Tabelle_Auswertung[[#This Row],[Bildname]],\" von \",Tabelle_Auswertung[[#This Row],[Autor(in)]]),\"\")","v":""},{"$f":"IF(Tabelle_Auswertung[[#This Row],[Platz]]=6,CONCATENATE(Tabelle_Auswertung[[#This Row],[Bildname]],\" von \",Tabelle_Auswertung[[#This Row],[Autor(in)]]),\"\")","v":""},{"$f":"IF(Tabelle_Auswertung[[#This Row],[Platz]]=7,CONCATENATE(Tabelle_Auswertung[[#This Row],[Bildname]],\" von \",Tabelle_Auswertung[[#This Row],[Autor(in)]]),\"\")","v":""},{"$f":"IF(Tabelle_Auswertung[[#This Row],[Platz]]=8,CONCATENATE(Tabelle_Auswertung[[#This Row],[Bildname]],\" von \",Tabelle_Auswertung[[#This Row],[Autor(in)]]),\"\")","v":""},{"$f":"IF(Tabelle_Auswertung[[#This Row],[Platz]]=9,CONCATENATE(Tabelle_Auswertung[[#This Row],[Bildname]],\" von \",Tabelle_Auswertung[[#This Row],[Autor(in)]]),\"\")","v":""},{"$f":"IF(Tabelle_Auswertung[[#This Row],[Platz]]=10,CONCATENATE(Tabelle_Auswertung[[#This Row],[Bildname]],\" von \",Tabelle_Auswertung[[#This Row],[Autor(in)]]),\"\")","v":""}]
["Himmelswurzeln.jpg",4,4,3,6,{"$nulls":16},{"$f":"IF(Tabelle_Auswertung[[#This Row],[Bildname]]<>\"\",SUM(Tabelle_Auswertung[[#This Row],[Juror 1]:[Juror 20]]),\" - \")","v":17},{"$f":"IF(Tabelle_Auswertung[[#This Row],[Bildname]]<>\"\",IF(Tabelle_Auswertung[[#This Row],[Punkte]]>0,AVERAGE(Tabelle_Auswertung[[#This Row],[Juror 1]:[Juror 20]]),\" - \"),\" - \")","v":{"v":4.25,"d":"4.25 "}},{"$f":"IF(Tabelle_Auswertung[[#This Row],[Bildname]]<>\"\",IF(Tabelle_Auswertung[[#This Row],[Punkte]]>0,RANK(Tabelle_Auswertung[[#This Row],[Punkte]],[Punkte],0),\" - \"),\" - \")","v":49},"Gert Häberlein",{"$f":"IF(Tabelle_Auswertung[[#This Row],[Platz]]=1,CONCATENATE(Tabelle_Auswertung[[#This Row],[Bildname]],\" von \",Tabelle_Auswertung[[#This Row],[Autor(in)]]),\"\")","v":""},{"$f":"IF(Tabelle_Auswertung[[#This Row],[Platz]]=2,CONCATENATE(Tabelle_Auswertung[[#This Row],[Bildname]],\" von \",Tabelle_Auswertung[[#This Row],[Autor(in)]]),\"\")","v":""},{"$f":"IF(Tabelle_Auswertung[[#This Row],[Platz]]=3,CONCATENATE(Tabelle_Auswertung[[#This Row],[Bildname]],\" von \",Tabelle_Auswertung[[#This Row],[Autor(in)]]),\"\")","v":""},{"$f":"IF(Tabelle_Auswertung[[#This Row],[Platz]]=4,CONCATENATE(Tabelle_Auswertung[[#This Row],[Bildname]],\" von \",Tabelle_Auswertung[[#This Row],[Autor(in)]]),\"\")","v":""},{"$f":"IF(Tabelle_Auswertung[[#This Row],[Platz]]=5,CONCATENATE(Tabelle_Auswertung[[#This Row],[Bildname]],\" von \",Tabelle_Auswertung[[#This Row],[Autor(in)]]),\"\")","v":""},{"$f":"IF(Tabelle_Auswertung[[#This Row],[Platz]]=6,CONCATENATE(Tabelle_Auswertung[[#This Row],[Bildname]],\" von \",Tabelle_Auswertung[[#This Row],[Autor(in)]]),\"\")","v":""},{"$f":"IF(Tabelle_Auswertung[[#This Row],[Platz]]=7,CONCATENATE(Tabelle_Auswertung[[#This Row],[Bildname]],\" von \",Tabelle_Auswertung[[#This Row],[Autor(in)]]),\"\")","v":""},{"$f":"IF(Tabelle_Auswertung[[#This Row],[Platz]]=8,CONCATENATE(Tabelle_Auswertung[[#This Row],[Bildname]],\" von \",Tabelle_Auswertung[[#This Row],[Autor(in)]]),\"\")","v":""},{"$f":"IF(Tabelle_Auswertung[[#This Row],[Platz]]=9,CONCATENATE(Tabelle_Auswertung[[#This Row],[Bildname]],\" von \",Tabelle_Auswertung[[#This Row],[Autor(in)]]),\"\")","v":""},{"$f":"IF(Tabelle_Auswertung[[#This Row],[Platz]]=10,CONCATENATE(Tabelle_Auswertung[[#This Row],[Bildname]],\" von \",Tabelle_Auswertung[[#This Row],[Autor(in)]]),\"\")","v":""}]
["Schneeglöckchen.JPG",4,4,5,4,{"$nulls":16},{"$f":"IF(Tabelle_Auswertung[[#This Row],[Bildname]]<>\"\",SUM(Tabelle_Auswertung[[#This Row],[Juror 1]:[Juror 20]]),\" - \")","v":17},{"$f":"IF(Tabelle_Auswertung[[#This Row],[Bildname]]<>\"\",IF(Tabelle_Auswertung[[#This Row],[Punkte]]>0,AVERAGE(Tabelle_Auswertung[[#This Row],[Juror 1]:[Juror 20]]),\" - \"),\" - \")","v":{"v":4.25,"d":"4.25 "}},{"$f":"IF(Tabelle_Auswertung[[#This Row],[Bildname]]<>\"\",IF(Tabelle_Auswertung[[#This Row],[Punkte]]>0,RANK(Tabelle_Auswertung[[#This Row],[Punkte]],[Punkte],0),\" - \"),\" - \")","v":49},"Susanne Deinhardt",{"$f":"IF(Tabelle_Auswertung[[#This Row],[Platz]]=1,CONCATENATE(Tabelle_Auswertung[[#This Row],[Bildname]],\" von \",Tabelle_Auswertung[[#This Row],[Autor(in)]]),\"\")","v":""},{"$f":"IF(Tabelle_Auswertung[[#This Row],[Platz]]=2,CONCATENATE(Tabelle_Auswertung[[#This Row],[Bildname]],\" von \",Tabelle_Auswertung[[#This Row],[Autor(in)]]),\"\")","v":""},{"$f":"IF(Tabelle_Auswertung[[#This Row],[Platz]]=3,CONCATENATE(Tabelle_Auswertung[[#This Row],[Bildname]],\" von \",Tabelle_Auswertung[[#This Row],[Autor(in)]]),\"\")","v":""},{"$f":"IF(Tabelle_Auswertung[[#This Row],[Platz]]=4,CONCATENATE(Tabelle_Auswertung[[#This Row],[Bildname]],\" von \",Tabelle_Auswertung[[#This Row],[Autor(in)]]),\"\")","v":""},{"$f":"IF(Tabelle_Auswertung[[#This Row],[Platz]]=5,CONCATENATE(Tabelle_Auswertung[[#This Row],[Bildname]],\" von \",Tabelle_Auswertung[[#This Row],[Autor(in)]]),\"\")","v":""},{"$f":"IF(Tabelle_Auswertung[[#This Row],[Platz]]=6,CONCATENATE(Tabelle_Auswertung[[#This Row],[Bildname]],\" von \",Tabelle_Auswertung[[#This Row],[Autor(in)]]),\"\")","v":""},{"$f":"IF(Tabelle_Auswertung[[#This Row],[Platz]]=7,CONCATENATE(Tabelle_Auswertung[[#This Row],[Bildname]],\" von \",Tabelle_Auswertung[[#This Row],[Autor(in)]]),\"\")","v":""},{"$f":"IF(Tabelle_Auswertung[[#This Row],[Platz]]=8,CONCATENATE(Tabelle_Auswertung[[#This Row],[Bildname]],\" von \",Tabelle_Auswertung[[#This Row],[Autor(in)]]),\"\")","v":""},{"$f":"IF(Tabelle_Auswertung[[#This Row],[Platz]]=9,CONCATENATE(Tabelle_Auswertung[[#This Row],[Bildname]],\" von \",Tabelle_Auswertung[[#This Row],[Autor(in)]]),\"\")","v":""},{"$f":"IF(Tabelle_Auswertung[[#This Row],[Platz]]=10,CONCATENATE(Tabelle_Auswertung[[#This Row],[Bildname]],\" von \",Tabelle_Auswertung[[#This Row],[Autor(in)]]),\"\")","v":""}]
["Vitaminstoss.JPG",4,4,4,5,{"$nulls":16},{"$f":"IF(Tabelle_Auswertung[[#This Row],[Bildname]]<>\"\",SUM(Tabelle_Auswertung[[#This Row],[Juror 1]:[Juror 20]]),\" - \")","v":17},{"$f":"IF(Tabelle_Auswertung[[#This Row],[Bildname]]<>\"\",IF(Tabelle_Auswertung[[#This Row],[Punkte]]>0,AVERAGE(Tabelle_Auswertung[[#This Row],[Juror 1]:[Juror 20]]),\" - \"),\" - \")","v":{"v":4.25,"d":"4.25 "}},{"$f":"IF(Tabelle_Auswertung[[#This Row],[Bildname]]<>\"\",IF(Tabelle_Auswertung[[#This Row],[Punkte]]>0,RANK(Tabelle_Auswertung[[#This Row],[Punkte]],[Punkte],0),\" - \"),\" - \")","v":49},"Albrecht Flierl",{"$f":"IF(Tabelle_Auswertung[[#This Row],[Platz]]=1,CONCATENATE(Tabelle_Auswertung[[#This Row],[Bildname]],\" von \",Tabelle_Auswertung[[#This Row],[Autor(in)]]),\"\")","v":""},{"$f":"IF(Tabelle_Auswertung[[#This Row],[Platz]]=2,CONCATENATE(Tabelle_Auswertung[[#This Row],[Bildname]],\" von \",Tabelle_Auswertung[[#This Row],[Autor(in)]]),\"\")","v":""},{"$f":"IF(Tabelle_Auswertung[[#This Row],[Platz]]=3,CONCATENATE(Tabelle_Auswertung[[#This Row],[Bildname]],\" von \",Tabelle_Auswertung[[#This Row],[Autor(in)]]),\"\")","v":""},{"$f":"IF(Tabelle_Auswertung[[#This Row],[Platz]]=4,CONCATENATE(Tabelle_Auswertung[[#This Row],[Bildname]],\" von \",Tabelle_Auswertung[[#This Row],[Autor(in)]]),\"\")","v":""},{"$f":"IF(Tabelle_Auswertung[[#This Row],[Platz]]=5,CONCATENATE(Tabelle_Auswertung[[#This Row],[Bildname]],\" von \",Tabelle_Auswertung[[#This Row],[Autor(in)]]),\"\")","v":""},{"$f":"IF(Tabelle_Auswertung[[#This Row],[Platz]]=6,CONCATENATE(Tabelle_Auswertung[[#This Row],[Bildname]],\" von \",Tabelle_Auswertung[[#This Row],[Autor(in)]]),\"\")","v":""},{"$f":"IF(Tabelle_Auswertung[[#This Row],[Platz]]=7,CONCATENATE(Tabelle_Auswertung[[#This Row],[Bildname]],\" von \",Tabelle_Auswertung[[#This Row],[Autor(in)]]),\"\")","v":""},{"$f":"IF(Tabelle_Auswertung[[#This Row],[Platz]]=8,CONCATENATE(Tabelle_Auswertung[[#This Row],[Bildname]],\" von \",Tabelle_Auswertung[[#This Row],[Autor(in)]]),\"\")","v":""},{"$f":"IF(Tabelle_Auswertung[[#This Row],[Platz]]=9,CONCATENATE(Tabelle_Auswertung[[#This Row],[Bildname]],\" von \",Tabelle_Auswertung[[#This Row],[Autor(in)]]),\"\")","v":""},{"$f":"IF(Tabelle_Auswertung[[#This Row],[Platz]]=10,CONCATENATE(Tabelle_Auswertung[[#This Row],[Bildname]],\" von \",Tabelle_Auswertung[[#This Row],[Autor(in)]]),\"\")","v":""}]
["Dreamscape.jpg",4,4,4,4,{"$nulls":16},{"$f":"IF(Tabelle_Auswertung[[#This Row],[Bildname]]<>\"\",SUM(Tabelle_Auswertung[[#This Row],[Juror 1]:[Juror 20]]),\" - \")","v":16},{"$f":"IF(Tabelle_Auswertung[[#This Row],[Bildname]]<>\"\",IF(Tabelle_Auswertung[[#This Row],[Punkte]]>0,AVERAGE(Tabelle_Auswertung[[#This Row],[Juror 1]:[Juror 20]]),\" - \"),\" - \")","v":{"v":4,"d":"4.00 "}},{"$f":"IF(Tabelle_Auswertung[[#This Row],[Bildname]]<>\"\",IF(Tabelle_Auswertung[[#This Row],[Punkte]]>0,RANK(Tabelle_Auswertung[[#This Row],[Punkte]],[Punkte],0),\" - \"),\" - \")","v":53},"Chris Finsterer",{"$f":"IF(Tabelle_Auswertung[[#This Row],[Platz]]=1,CONCATENATE(Tabelle_Auswertung[[#This Row],[Bildname]],\" von \",Tabelle_Auswertung[[#This Row],[Autor(in)]]),\"\")","v":""},{"$f":"IF(Tabelle_Auswertung[[#This Row],[Platz]]=2,CONCATENATE(Tabelle_Auswertung[[#This Row],[Bildname]],\" von \",Tabelle_Auswertung[[#This Row],[Autor(in)]]),\"\")","v":""},{"$f":"IF(Tabelle_Auswertung[[#This Row],[Platz]]=3,CONCATENATE(Tabelle_Auswertung[[#This Row],[Bildname]],\" von \",Tabelle_Auswertung[[#This Row],[Autor(in)]]),\"\")","v":""},{"$f":"IF(Tabelle_Auswertung[[#This Row],[Platz]]=4,CONCATENATE(Tabelle_Auswertung[[#This Row],[Bildname]],\" von \",Tabelle_Auswertung[[#This Row],[Autor(in)]]),\"\")","v":""},{"$f":"IF(Tabelle_Auswertung[[#This Row],[Platz]]=5,CONCATENATE(Tabelle_Auswertung[[#This Row],[Bildname]],\" von \",Tabelle_Auswertung[[#This Row],[Autor(in)]]),\"\")","v":""},{"$f":"IF(Tabelle_Auswertung[[#This Row],[Platz]]=6,CONCATENATE(Tabelle_Auswertung[[#This Row],[Bildname]],\" von \",Tabelle_Auswertung[[#This Row],[Autor(in)]]),\"\")","v":""},{"$f":"IF(Tabelle_Auswertung[[#This Row],[Platz]]=7,CONCATENATE(Tabelle_Auswertung[[#This Row],[Bildname]],\" von \",Tabelle_Auswertung[[#This Row],[Autor(in)]]),\"\")","v":""},{"$f":"IF(Tabelle_Auswertung[[#This Row],[Platz]]=8,CONCATENATE(Tabelle_Auswertung[[#This Row],[Bildname]],\" von \",Tabelle_Auswertung[[#This Row],[Autor(in)]]),\"\")","v":""},{"$f":"IF(Tabelle_Auswertung[[#This Row],[Platz]]=9,CONCATENATE(Tabelle_Auswertung[[#This Row],[Bildname]],\" von \",Tabelle_Auswertung[[#This Row],[Autor(in)]]),\"\")","v":""},{"$f":"IF(Tabelle_Auswertung[[#This Row],[Platz]]=10,CONCATENATE(Tabelle_Auswertung[[#This Row],[Bildname]],\" von \",Tabelle_Auswertung[[#This Row],[Autor(in)]]),\"\")","v":""}]
["Winterbaum.JPG",4,4,4,4,{"$nulls":16},{"$f":"IF(Tabelle_Auswertung[[#This Row],[Bildname]]<>\"\",SUM(Tabelle_Auswertung[[#This Row],[Juror 1]:[Juror 20]]),\" - \")","v":16},{"$f":"IF(Tabelle_Auswertung[[#This Row],[Bildname]]<>\"\",IF(Tabelle_Auswertung[[#This Row],[Punkte]]>0,AVERAGE(Tabelle_Auswertung[[#This Row],[Juror 1]:[Juror 20]]),\" - \"),\" - \")","v":4},{"$f":"IF(Tabelle_Auswertung[[#This Row],[Bildname]]<>\"\",IF(Tabelle_Auswertung[[#This Row],[Punkte]]>0,RANK(Tabelle_Auswertung[[#This Row],[Punkte]],[Punkte],0),\" - \"),\" - \")","v":53},"Albrecht Flierl",{"$f":"IF(Tabelle_Auswertung[[#This Row],[Platz]]=1,CONCATENATE(Tabelle_Auswertung[[#This Row],[Bildname]],\" von \",Tabelle_Auswertung[[#This Row],[Autor(in)]]),\"\")","v":""},{"$f":"IF(Tabelle_Auswertung[[#This Row],[Platz]]=2,CONCATENATE(Tabelle_Auswertung[[#This Row],[Bildname]],\" von \",Tabelle_Auswertung[[#This Row],[Autor(in)]]),\"\")","v":""},{"$f":"IF(Tabelle_Auswertung[[#This Row],[Platz]]=3,CONCATENATE(Tabelle_Auswertung[[#This Row],[Bildname]],\" von \",Tabelle_Auswertung[[#This Row],[Autor(in)]]),\"\")","v":""},{"$f":"IF(Tabelle_Auswertung[[#This Row],[Platz]]=4,CONCATENATE(Tabelle_Auswertung[[#This Row],[Bildname]],\" von \",Tabelle_Auswertung[[#This Row],[Autor(in)]]),\"\")","v":""},{"$f":"IF(Tabelle_Auswertung[[#This Row],[Platz]]=5,CONCATENATE(Tabelle_Auswertung[[#This Row],[Bildname]],\" von \",Tabelle_Auswertung[[#This Row],[Autor(in)]]),\"\")","v":""},{"$f":"IF(Tabelle_Auswertung[[#This Row],[Platz]]=6,CONCATENATE(Tabelle_Auswertung[[#This Row],[Bildname]],\" von \",Tabelle_Auswertung[[#This Row],[Autor(in)]]),\"\")","v":""},{"$f":"IF(Tabelle_Auswertung[[#This Row],[Platz]]=7,CONCATENATE(Tabelle_Auswertung[[#This Row],[Bildname]],\" von \",Tabelle_Auswertung[[#This Row],[Autor(in)]]),\"\")","v":""},{"$f":"IF(Tabelle_Auswertung[[#This Row],[Platz]]=8,CONCATENATE(Tabelle_Auswertung[[#This Row],[Bildname]],\" von \",Tabelle_Auswertung[[#This Row],[Autor(in)]]),\"\")","v":""},{"$f":"IF(Tabelle_Auswertung[[#This Row],[Platz]]=9,CONCATENATE(Tabelle_Auswertung[[#This Row],[Bildname]],\" von \",Tabelle_Auswertung[[#This Row],[Autor(in)]]),\"\")","v":""},{"$f":"IF(Tabelle_Auswertung[[#This Row],[Platz]]=10,CONCATENATE(Tabelle_Auswertung[[#This Row],[Bildname]],\" von \",Tabelle_Auswertung[[#This Row],[Autor(in)]]),\"\")","v":""}]
[{"$nulls":21},{"$f":"IF(Tabelle_Auswertung[[#This Row],[Bildname]]<>\"\",SUM(Tabelle_Auswertung[[#This Row],[Juror 1]:[Juror 20]]),\" - \")","v":" - "},{"$f":"IF(Tabelle_Auswertung[[#This Row],[Bildname]]<>\"\",IF(Tabelle_Auswertung[[#This Row],[Punkte]]>0,AVERAGE(Tabelle_Auswertung[[#This Row],[Juror 1]:[Juror 20]]),\" - \"),\" - \")","v":" - "},{"$f":"IF(Tabelle_Auswertung[[#This Row],[Bildname]]<>\"\",IF(Tabelle_Auswertung[[#This Row],[Punkte]]>0,RANK(Tabelle_Auswertung[[#This Row],[Punkte]],[Punkte],0),\" - \"),\" - \")","v":" - "}," - - -",{"$f":"IF(Tabelle_Auswertung[[#This Row],[Platz]]=1,CONCATENATE(Tabelle_Auswertung[[#This Row],[Bildname]],\" von \",Tabelle_Auswertung[[#This Row],[Autor(in)]]),\"\")","v":""},{"$f":"IF(Tabelle_Auswertung[[#This Row],[Platz]]=2,CONCATENATE(Tabelle_Auswertung[[#This Row],[Bildname]],\" von \",Tabelle_Auswertung[[#This Row],[Autor(in)]]),\"\")","v":""},{"$f":"IF(Tabelle_Auswertung[[#This Row],[Platz]]=3,CONCATENATE(Tabelle_Auswertung[[#This Row],[Bildname]],\" von \",Tabelle_Auswertung[[#This Row],[Autor(in)]]),\"\")","v":""},{"$f":"IF(Tabelle_Auswertung[[#This Row],[Platz]]=4,CONCATENATE(Tabelle_Auswertung[[#This Row],[Bildname]],\" von \",Tabelle_Auswertung[[#This Row],[Autor(in)]]),\"\")","v":""},{"$f":"IF(Tabelle_Auswertung[[#This Row],[Platz]]=5,CONCATENATE(Tabelle_Auswertung[[#This Row],[Bildname]],\" von \",Tabelle_Auswertung[[#This Row],[Autor(in)]]),\"\")","v":""},{"$f":"IF(Tabelle_Auswertung[[#This Row],[Platz]]=6,CONCATENATE(Tabelle_Auswertung[[#This Row],[Bildname]],\" von \",Tabelle_Auswertung[[#This Row],[Autor(in)]]),\"\")","v":""},{"$f":"IF(Tabelle_Auswertung[[#This Row],[Platz]]=7,CONCATENATE(Tabelle_Auswertung[[#This Row],[Bildname]],\" von \",Tabelle_Auswertung[[#This Row],[Autor(in)]]),\"\")","v":""},{"$f":"IF(Tabelle_Auswertung[[#This Row],[Platz]]=8,CONCATENATE(Tabelle_Auswertung[[#This Row],[Bildname]],\" von \",Tabelle_Auswertung[[#This Row],[Autor(in)]]),\"\")","v":""},{"$f":"IF(Tabelle_Auswertung[[#This Row],[Platz]]=9,CONCATENATE(Tabelle_Auswertung[[#This Row],[Bildname]],\" von \",Tabelle_Auswertung[[#This Row],[Autor(in)]]),\"\")","v":""},{"$f":"IF(Tabelle_Auswertung[[#This Row],[Platz]]=10,CONCATENATE(Tabelle_Auswertung[[#This Row],[Bildname]],\" von \",Tabelle_Auswertung[[#This Row],[Autor(in)]]),\"\")","v":""}]
[{"$nulls":21},{"$f":"IF(Tabelle_Auswertung[[#This Row],[Bildname]]<>\"\",SUM(Tabelle_Auswertung[[#This Row],[Juror 1]:[Juror 20]]),\" - \")","v":" - "},{"$f":"IF(Tabelle_Auswertung[[#This Row],[Bildname]]<>\"\",IF(Tabelle_Auswertung[[#This Row],[Punkte]]>0,AVERAGE(Tabelle_Auswertung[[#This Row],[Juror 1]:[Juror 20]]),\" - \"),\" - \")","v":" - "},{"$f":"IF(Tabelle_Auswertung[[#This Row],[Bildname]]<>\"\",IF(Tabelle_Auswertung[[#This Row],[Punkte]]>0,RANK(Tabelle_Auswertung[[#This Row],[Punkte]],[Punkte],0),\" - \"),\" - \")","v":" - "}," - - -",{"$f":"IF(Tabelle_Auswertung[[#This Row],[Platz]]=1,CONCATENATE(Tabelle_Auswertung[[#This Row],[Bildname]],\" von \",Tabelle_Auswertung[[#This Row],[Autor(in)]]),\"\")","v":""},{"$f":"IF(Tabelle_Auswertung[[#This Row],[Platz]]=2,CONCATENATE(Tabelle_Auswertung[[#This Row],[Bildname]],\" von \",Tabelle_Auswertung[[#This Row],[Autor(in)]]),\"\")","v":""},{"$f":"IF(Tabelle_Auswertung[[#This Row],[Platz]]=3,CONCATENATE(Tabelle_Auswertung[[#This Row],[Bildname]],\" von \",Tabelle_Auswertung[[#This Row],[Autor(in)]]),\"\")","v":""},{"$f":"IF(Tabelle_Auswertung[[#This Row],[Platz]]=4,CONCATENATE(Tabelle_Auswertung[[#This Row],[Bildname]],\" von \",Tabelle_Auswertung[[#This Row],[Autor(in)]]),\"\")","v":""},{"$f":"IF(Tabelle_Auswertung[[#This Row],[Platz]]=5,CONCATENATE(Tabelle_Auswertung[[#This Row],[Bildname]],\" von \",Tabelle_Auswertung[[#This Row],[Autor(in)]]),\"\")","v":""},{"$f":"IF(Tabelle_Auswertung[[#This Row],[Platz]]=6,CONCATENATE(Tabelle_Auswertung[[#This Row],[Bildname]],\" von \",Tabelle_Auswertung[[#This Row],[Autor(in)]]),\"\")","v":""},{"$f":"IF(Tabelle_Auswertung[[#This Row],[Platz]]=7,CONCATENATE(Tabelle_Auswertung[[#This Row],[Bildname]],\" von \",Tabelle_Auswertung[[#This Row],[Autor(in)]]),\"\")","v":""},{"$f":"IF(Tabelle_Auswertung[[#This Row],[Platz]]=8,CONCATENATE(Tabelle_Auswertung[[#This Row],[Bildname]],\" von \",Tabelle_Auswertung[[#This Row],[Autor(in)]]),\"\")","v":""},{"$f":"IF(Tabelle_Auswertung[[#This Row],[Platz]]=9,CONCATENATE(Tabelle_Auswertung[[#This Row],[Bildname]],\" von \",Tabelle_Auswertung[[#This Row],[Autor(in)]]),\"\")","v":""},{"$f":"IF(Tabelle_Auswertung[[#This Row],[Platz]]=10,CONCATENATE(Tabelle_Auswertung[[#This Row],[Bildname]],\" von \",Tabelle_Auswertung[[#This Row],[Autor(in)]]),\"\")","v":""}]
[{"$nulls":21},{"$f":"IF(Tabelle_Auswertung[[#This Row],[Bildname]]<>\"\",SUM(Tabelle_Auswertung[[#This Row],[Juror 1]:[Juror 20]]),\" - \")","v":" - "},{"$f":"IF(Tabelle_Auswertung[[#This Row],[Bildname]]<>\"\",IF(Tabelle_Auswertung[[#This Row],[Punkte]]>0,AVERAGE(Tabelle_Auswertung[[#This Row],[Juror 1]:[Juror 20]]),\" - \"),\" - \")","v":" - "},{"$f":"IF(Tabelle_Auswertung[[#This Row],[Bildname]]<>\"\",IF(Tabelle_Auswertung[[#This Row],[Punkte]]>0,RANK(Tabelle_Auswertung[[#This Row],[Punkte]],[Punkte],0),\" - \"),\" - \")","v":" - "}," - - -",{"$f":"IF(Tabelle_Auswertung[[#This Row],[Platz]]=1,CONCATENATE(Tabelle_Auswertung[[#This Row],[Bildname]],\" von \",Tabelle_Auswertung[[#This Row],[Autor(in)]]),\"\")","v":""},{"$f":"IF(Tabelle_Auswertung[[#This Row],[Platz]]=2,CONCATENATE(Tabelle_Auswertung[[#This Row],[Bildname]],\" von \",Tabelle_Auswertung[[#This Row],[Autor(in)]]),\"\")","v":""},{"$f":"IF(Tabelle_Auswertung[[#This Row],[Platz]]=3,CONCATENATE(Tabelle_Auswertung[[#This Row],[Bildname]],\" von \",Tabelle_Auswertung[[#This Row],[Autor(in)]]),\"\")","v":""},{"$f":"IF(Tabelle_Auswertung[[#This Row],[Platz]]=4,CONCATENATE(Tabelle_Auswertung[[#This Row],[Bildname]],\" von \",Tabelle_Auswertung[[#This Row],[Autor(in)]]),\"\")","v":""},{"$f":"IF(Tabelle_Auswertung[[#This Row],[Platz]]=5,CONCATENATE(Tabelle_Auswertung[[#This Row],[Bildname]],\" von \",Tabelle_Auswertung[[#This Row],[Autor(in)]]),\"\")","v":""},{"$f":"IF(Tabelle_Auswertung[[#This Row],[Platz]]=6,CONCATENATE(Tabelle_Auswertung[[#This Row],[Bildname]],\" von \",Tabelle_Auswertung[[#This Row],[Autor(in)]]),\"\")","v":""},{"$f":"IF(Tabelle_Auswertung[[#This Row],[Platz]]=7,CONCATENATE(Tabelle_Auswertung[[#This Row],[Bildname]],\" von \",Tabelle_Auswertung[[#This Row],[Autor(in)]]),\"\")","v":""},{"$f":"IF(Tabelle_Auswertung[[#This Row],[Platz]]=8,CONCATENATE(Tabelle_Auswertung[[#This Row],[Bildname]],\" von \",Tabelle_Auswertung[[#This Row],[Autor(in)]]),\"\")","v":""},{"$f":"IF(Tabelle_Auswertung[[#This Row],[Platz]]=9,CONCATENATE(Tabelle_Auswertung[[#This Row],[Bildname]],\" von \",Tabelle_Auswertung[[#This Row],[Autor(in)]]),\"\")","v":""},{"$f":"IF(Tabelle_Auswertung[[#This Row],[Platz]]=10,CONCATENATE(Tabelle_Auswertung[[#This Row],[Bildname]],\" von \",Tabelle_Auswertung[[#This Row],[Autor(in)]]),\"\")","v":""}]
[{"$nulls":21},{"$f":"IF(Tabelle_Auswertung[[#This Row],[Bildname]]<>\"\",SUM(Tabelle_Auswertung[[#This Row],[Juror 1]:[Juror 20]]),\" - \")","v":" - "},{"$f":"IF(Tabelle_Auswertung[[#This Row],[Bildname]]<>\"\",IF(Tabelle_Auswertung[[#This Row],[Punkte]]>0,AVERAGE(Tabelle_Auswertung[[#This Row],[Juror 1]:[Juror 20]]),\" - \"),\" - \")","v":" - "},{"$f":"IF(Tabelle_Auswertung[[#This Row],[Bildname]]<>\"\",IF(Tabelle_Auswertung[[#This Row],[Punkte]]>0,RANK(Tabelle_Auswertung[[#This Row],[Punkte]],[Punkte],0),\" - \"),\" - \")","v":" - "}," - - -",{"$f":"IF(Tabelle_Auswertung[[#This Row],[Platz]]=1,CONCATENATE(Tabelle_Auswertung[[#This Row],[Bildname]],\" von \",Tabelle_Auswertung[[#This Row],[Autor(in)]]),\"\")","v":""},{"$f":"IF(Tabelle_Auswertung[[#This Row],[Platz]]=2,CONCATENATE(Tabelle_Auswertung[[#This Row],[Bildname]],\" von \",Tabelle_Auswertung[[#This Row],[Autor(in)]]),\"\")","v":""},{"$f":"IF(Tabelle_Auswertung[[#This Row],[Platz]]=3,CONCATENATE(Tabelle_Auswertung[[#This Row],[Bildname]],\" von \",Tabelle_Auswertung[[#This Row],[Autor(in)]]),\"\")","v":""},{"$f":"IF(Tabelle_Auswertung[[#This Row],[Platz]]=4,CONCATENATE(Tabelle_Auswertung[[#This Row],[Bildname]],\" von \",Tabelle_Auswertung[[#This Row],[Autor(in)]]),\"\")","v":""},{"$f":"IF(Tabelle_Auswertung[[#This Row],[Platz]]=5,CONCATENATE(Tabelle_Auswertung[[#This Row],[Bildname]],\" von \",Tabelle_Auswertung[[#This Row],[Autor(in)]]),\"\")","v":""},{"$f":"IF(Tabelle_Auswertung[[#This Row],[Platz]]=6,CONCATENATE(Tabelle_Auswertung[[#This Row],[Bildname]],\" von \",Tabelle_Auswertung[[#This Row],[Autor(in)]]),\"\")","v":""},{"$f":"IF(Tabelle_Auswertung[[#This Row],[Platz]]=7,CONCATENATE(Tabelle_Auswertung[[#This Row],[Bildname]],\" von \",Tabelle_Auswertung[[#This Row],[Autor(in)]]),\"\")","v":""},{"$f":"IF(Tabelle_Auswertung[[#This Row],[Platz]]=8,CONCATENATE(Tabelle_Auswertung[[#This Row],[Bildname]],\" von \",Tabelle_Auswertung[[#This Row],[Autor(in)]]),\"\")","v":""},{"$f":"IF(Tabelle_Auswertung[[#This Row],[Platz]]=9,CONCATENATE(Tabelle_Auswertung[[#This Row],[Bildname]],\" von \",Tabelle_Auswertung[[#This Row],[Autor(in)]]),\"\")","v":""},{"$f":"IF(Tabelle_Auswertung[[#This Row],[Platz]]=10,CONCATENATE(Tabelle_Auswertung[[#This Row],[Bildname]],\" von \",Tabelle_Auswertung[[#This Row],[Autor(in)]]),\"\")","v":""}]
[{"$nulls":21},{"$f":"IF(Tabelle_Auswertung[[#This Row],[Bildname]]<>\"\",SUM(Tabelle_Auswertung[[#This Row],[Juror 1]:[Juror 20]]),\" - \")","v":" - "},{"$f":"IF(Tabelle_Auswertung[[#This Row],[Bildname]]<>\"\",IF(Tabelle_Auswertung[[#This Row],[Punkte]]>0,AVERAGE(Tabelle_Auswertung[[#This Row],[Juror 1]:[Juror 20]]),\" - \"),\" - \")","v":" - "},{"$f":"IF(Tabelle_Auswertung[[#This Row],[Bildname]]<>\"\",IF(Tabelle_Auswertung[[#This Row],[Punkte]]>0,RANK(Tabelle_Auswertung[[#This Row],[Punkte]],[Punkte],0),\" - \"),\" - \")","v":" - "}," - - -",{"$f":"IF(Tabelle_Auswertung[[#This Row],[Platz]]=1,CONCATENATE(Tabelle_Auswertung[[#This Row],[Bildname]],\" von \",Tabelle_Auswertung[[#This Row],[Autor(in)]]),\"\")","v":""},{"$f":"IF(Tabelle_Auswertung[[#This Row],[Platz]]=2,CONCATENATE(Tabelle_Auswertung[[#This Row],[Bildname]],\" von \",Tabelle_Auswertung[[#This Row],[Autor(in)]]),\"\")","v":""},{"$f":"IF(Tabelle_Auswertung[[#This Row],[Platz]]=3,CONCATENATE(Tabelle_Auswertung[[#This Row],[Bildname]],\" von \",Tabelle_Auswertung[[#This Row],[Autor(in)]]),\"\")","v":""},{"$f":"IF(Tabelle_Auswertung[[#This Row],[Platz]]=4,CONCATENATE(Tabelle_Auswertung[[#This Row],[Bildname]],\" von \",Tabelle_Auswertung[[#This Row],[Autor(in)]]),\"\")","v":""},{"$f":"IF(Tabelle_Auswertung[[#This Row],[Platz]]=5,CONCATENATE(Tabelle_Auswertung[[#This Row],[Bildname]],\" von \",Tabelle_Auswertung[[#This Row],[Autor(in)]]),\"\")","v":""},{"$f":"IF(Tabelle_Auswertung[[#This Row],[Platz]]=6,CONCATENATE(Tabelle_Auswertung[[#This Row],[Bildname]],\" von \",Tabelle_Auswertung[[#This Row],[Autor(in)]]),\"\")","v":""},{"$f":"IF(Tabelle_Auswertung[[#This Row],[Platz]]=7,CONCATENATE(Tabelle_Auswertung[[#This Row],[Bildname]],\" von \",Tabelle_Auswertung[[#This Row],[Autor(in)]]),\"\")","v":""},{"$f":"IF(Tabelle_Auswertung[[#This Row],[Platz]]=8,CONCATENATE(Tabelle_Auswertung[[#This Row],[Bildname]],\" von \",Tabelle_Auswertung[[#This Row],[Autor(in)]]),\"\")","v":""},{"$f":"IF(Tabelle_Auswertung[[#This Row],[Platz]]=9,CONCATENATE(Tabelle_Auswertung[[#This Row],[Bildname]],\" von \",Tabelle_Auswertung[[#This Row],[Autor(in)]]),\"\")","v":""},{"$f":"IF(Tabelle_Auswertung[[#This Row],[Platz]]=10,CONCATENATE(Tabelle_Auswertung[[#This Row],[Bildname]],\" von \",Tabelle_Auswertung[[#This Row],[Autor(in)]]),\"\")","v":""}]
[{"$nulls":21},{"$f":"IF(Tabelle_Auswertung[[#This Row],[Bildname]]<>\"\",SUM(Tabelle_Auswertung[[#This Row],[Juror 1]:[Juror 20]]),\" - \")","v":" - "},{"$f":"IF(Tabelle_Auswertung[[#This Row],[Bildname]]<>\"\",IF(Tabelle_Auswertung[[#This Row],[Punkte]]>0,AVERAGE(Tabelle_Auswertung[[#This Row],[Juror 1]:[Juror 20]]),\" - \"),\" - \")","v":" - "},{"$f":"IF(Tabelle_Auswertung[[#This Row],[Bildname]]<>\"\",IF(Tabelle_Auswertung[[#This Row],[Punkte]]>0,RANK(Tabelle_Auswertung[[#This Row],[Punkte]],[Punkte],0),\" - \"),\" - \")","v":" - "}," - - -",{"$f":"IF(Tabelle_Auswertung[[#This Row],[Platz]]=1,CONCATENATE(Tabelle_Auswertung[[#This Row],[Bildname]],\" von \",Tabelle_Auswertung[[#This Row],[Autor(in)]]),\"\")","v":""},{"$f":"IF(Tabelle_Auswertung[[#This Row],[Platz]]=2,CONCATENATE(Tabelle_Auswertung[[#This Row],[Bildname]],\" von \",Tabelle_Auswertung[[#This Row],[Autor(in)]]),\"\")","v":""},{"$f":"IF(Tabelle_Auswertung[[#This Row],[Platz]]=3,CONCATENATE(Tabelle_Auswertung[[#This Row],[Bildname]],\" von \",Tabelle_Auswertung[[#This Row],[Autor(in)]]),\"\")","v":""},{"$f":"IF(Tabelle_Auswertung[[#This Row],[Platz]]=4,CONCATENATE(Tabelle_Auswertung[[#This Row],[Bildname]],\" von \",Tabelle_Auswertung[[#This Row],[Autor(in)]]),\"\")","v":""},{"$f":"IF(Tabelle_Auswertung[[#This Row],[Platz]]=5,CONCATENATE(Tabelle_Auswertung[[#This Row],[Bildname]],\" von \",Tabelle_Auswertung[[#This Row],[Autor(in)]]),\"\")","v":""},{"$f":"IF(Tabelle_Auswertung[[#This Row],[Platz]]=6,CONCATENATE(Tabelle_Auswertung[[#This Row],[Bildname]],\" von \",Tabelle_Auswertung[[#This Row],[Autor(in)]]),\"\")","v":""},{"$f":"IF(Tabelle_Auswertung[[#This Row],[Platz]]=7,CONCATENATE(Tabelle_Auswertung[[#This Row],[Bildname]],\" von \",Tabelle_Auswertung[[#This Row],[Autor(in)]]),\"\")","v":""},{"$f":"IF(Tabelle_Auswertung[[#This Row],[Platz]]=8,CONCATENATE(Tabelle_Auswertung[[#This Row],[Bildname]],\" von \",Tabelle_Auswertung[[#This Row],[Autor(in)]]),\"\")","v":""},{"$f":"IF(Tabelle_Auswertung[[#This Row],[Platz]]=9,CONCATENATE(Tabelle_Auswertung[[#This Row],[Bildname]],\" von \",Tabelle_Auswertung[[#This Row],[Autor(in)]]),\"\")","v":""},{"$f":"IF(Tabelle_Auswertung[[#This Row],[Platz]]=10,CONCATENATE(Tabelle_Auswertung[[#This Row],[Bildname]],\" von \",Tabelle_Auswertung[[#This Row],[Autor(in)]]),\"\")","v":""}]
[{"$nulls":21},{"$f":"IF(Tabelle_Auswertung[[#This Row],[Bildname]]<>\"\",SUM(Tabelle_Auswertung[[#This Row],[Juror 1]:[Juror 20]]),\" - \")","v":" - "},{"$f":"IF(Tabelle_Auswertung[[#This Row],[Bildname]]<>\"\",IF(Tabelle_Auswertung[[#This Row],[Punkte]]>0,AVERAGE(Tabelle_Auswertung[[#This Row],[Juror 1]:[Juror 20]]),\" - \"),\" - \")","v":" - "},{"$f":"IF(Tabelle_Auswertung[[#This Row],[Bildname]]<>\"\",IF(Tabelle_Auswertung[[#This Row],[Punkte]]>0,RANK(Tabelle_Auswertung[[#This Row],[Punkte]],[Punkte],0),\" - \"),\" - \")","v":" - "}," - - -",{"$f":"IF(Tabelle_Auswertung[[#This Row],[Platz]]=1,CONCATENATE(Tabelle_Auswertung[[#This Row],[Bildname]],\" von \",Tabelle_Auswertung[[#This Row],[Autor(in)]]),\"\")","v":""},{"$f":"IF(Tabelle_Auswertung[[#This Row],[Platz]]=2,CONCATENATE(Tabelle_Auswertung[[#This Row],[Bildname]],\" von \",Tabelle_Auswertung[[#This Row],[Autor(in)]]),\"\")","v":""},{"$f":"IF(Tabelle_Auswertung[[#This Row],[Platz]]=3,CONCATENATE(Tabelle_Auswertung[[#This Row],[Bildname]],\" von \",Tabelle_Auswertung[[#This Row],[Autor(in)]]),\"\")","v":""},{"$f":"IF(Tabelle_Auswertung[[#This Row],[Platz]]=4,CONCATENATE(Tabelle_Auswertung[[#This Row],[Bildname]],\" von \",Tabelle_Auswertung[[#This Row],[Autor(in)]]),\"\")","v":""},{"$f":"IF(Tabelle_Auswertung[[#This Row],[Platz]]=5,CONCATENATE(Tabelle_Auswertung[[#This Row],[Bildname]],\" von \",Tabelle_Auswertung[[#This Row],[Autor(in)]]),\"\")","v":""},{"$f":"IF(Tabelle_Auswertung[[#This Row],[Platz]]=6,CONCATENATE(Tabelle_Auswertung[[#This Row],[Bildname]],\" von \",Tabelle_Auswertung[[#This Row],[Autor(in)]]),\"\")","v":""},{"$f":"IF(Tabelle_Auswertung[[#This Row],[Platz]]=7,CONCATENATE(Tabelle_Auswertung[[#This Row],[Bildname]],\" von \",Tabelle_Auswertung[[#This Row],[Autor(in)]]),\"\")","v":""},{"$f":"IF(Tabelle_Auswertung[[#This Row],[Platz]]=8,CONCATENATE(Tabelle_Auswertung[[#This Row],[Bildname]],\" von \",Tabelle_Auswertung[[#This Row],[Autor(in)]]),\"\")","v":""},{"$f":"IF(Tabelle_Auswertung[[#This Row],[Platz]]=9,CONCATENATE(Tabelle_Auswertung[[#This Row],[Bildname]],\" von \",Tabelle_Auswertung[[#This Row],[Autor(in)]]),\"\")","v":""},{"$f":"IF(Tabelle_Auswertung[[#This Row],[Platz]]=10,CONCATENATE(Tabelle_Auswertung[[#This Row],[Bildname]],\" von \",Tabelle_Auswertung[[#This Row],[Autor(in)]]),\"\")","v":""}]
[{"$nulls":21},{"$f":"IF(Tabelle_Auswertung[[#This Row],[Bildname]]<>\"\",SUM(Tabelle_Auswertung[[#This Row],[Juror 1]:[Juror 20]]),\" - \")","v":" - "},{"$f":"IF(Tabelle_Auswertung[[#This Row],[Bildname]]<>\"\",IF(Tabelle_Auswertung[[#This Row],[Punkte]]>0,AVERAGE(Tabelle_Auswertung[[#This Row],[Juror 1]:[Juror 20]]),\" - \"),\" - \")","v":" - "},{"$f":"IF(Tabelle_Auswertung[[#This Row],[Bildname]]<>\"\",IF(Tabelle_Auswertung[[#This Row],[Punkte]]>0,RANK(Tabelle_Auswertung[[#This Row],[Punkte]],[Punkte],0),\" - \"),\" - \")","v":" - "}," - - -",{"$f":"IF(Tabelle_Auswertung[[#This Row],[Platz]]=1,CONCATENATE(Tabelle_Auswertung[[#This Row],[Bildname]],\" von \",Tabelle_Auswertung[[#This Row],[Autor(in)]]),\"\")","v":""},{"$f":"IF(Tabelle_Auswertung[[#This Row],[Platz]]=2,CONCATENATE(Tabelle_Auswertung[[#This Row],[Bildname]],\" von \",Tabelle_Auswertung[[#This Row],[Autor(in)]]),\"\")","v":""},{"$f":"IF(Tabelle_Auswertung[[#This Row],[Platz]]=3,CONCATENATE(Tabelle_Auswertung[[#This Row],[Bildname]],\" von \",Tabelle_Auswertung[[#This Row],[Autor(in)]]),\"\")","v":""},{"$f":"IF(Tabelle_Auswertung[[#This Row],[Platz]]=4,CONCATENATE(Tabelle_Auswertung[[#This Row],[Bildname]],\" von \",Tabelle_Auswertung[[#This Row],[Autor(in)]]),\"\")","v":""},{"$f":"IF(Tabelle_Auswertung[[#This Row],[Platz]]=5,CONCATENATE(Tabelle_Auswertung[[#This Row],[Bildname]],\" von \",Tabelle_Auswertung[[#This Row],[Autor(in)]]),\"\")","v":""},{"$f":"IF(Tabelle_Auswertung[[#This Row],[Platz]]=6,CONCATENATE(Tabelle_Auswertung[[#This Row],[Bildname]],\" von \",Tabelle_Auswertung[[#This Row],[Autor(in)]]),\"\")","v":""},{"$f":"IF(Tabelle_Auswertung[[#This Row],[Platz]]=7,CONCATENATE(Tabelle_Auswertung[[#This Row],[Bildname]],\" von \",Tabelle_Auswertung[[#This Row],[Autor(in)]]),\"\")","v":""},{"$f":"IF(Tabelle_Auswertung[[#This Row],[Platz]]=8,CONCATENATE(Tabelle_Auswertung[[#This Row],[Bildname]],\" von \",Tabelle_Auswertung[[#This Row],[Autor(in)]]),\"\")","v":""},{"$f":"IF(Tabelle_Auswertung[[#This Row],[Platz]]=9,CONCATENATE(Tabelle_Auswertung[[#This Row],[Bildname]],\" von \",Tabelle_Auswertung[[#This Row],[Autor(in)]]),\"\")","v":""},{"$f":"IF(Tabelle_Auswertung[[#This Row],[Platz]]=10,CONCATENATE(Tabelle_Auswertung[[#This Row],[Bildname]],\" von \",Tabelle_Auswertung[[#This Row],[Autor(in)]]),\"\")","v":""}]
[{"$nulls":21},{"$f":"IF(Tabelle_Auswertung[[#This Row],[Bildname]]<>\"\",SUM(Tabelle_Auswertung[[#This Row],[Juror 1]:[Juror 20]]),\" - \")","v":" - "},{"$f":"IF(Tabelle_Auswertung[[#This Row],[Bildname]]<>\"\",IF(Tabelle_Auswertung[[#This Row],[Punkte]]>0,AVERAGE(Tabelle_Auswertung[[#This Row],[Juror 1]:[Juror 20]]),\" - \"),\" - \")","v":" - "},{"$f":"IF(Tabelle_Auswertung[[#This Row],[Bildname]]<>\"\",IF(Tabelle_Auswertung[[#This Row],[Punkte]]>0,RANK(Tabelle_Auswertung[[#This Row],[Punkte]],[Punkte],0),\" - \"),\" - \")","v":" - "}," - - -",{"$f":"IF(Tabelle_Auswertung[[#This Row],[Platz]]=1,CONCATENATE(Tabelle_Auswertung[[#This Row],[Bildname]],\" von \",Tabelle_Auswertung[[#This Row],[Autor(in)]]),\"\")","v":""},{"$f":"IF(Tabelle_Auswertung[[#This Row],[Platz]]=2,CONCATENATE(Tabelle_Auswertung[[#This Row],[Bildname]],\" von \",Tabelle_Auswertung[[#This Row],[Autor(in)]]),\"\")","v":""},{"$f":"IF(Tabelle_Auswertung[[#This Row],[Platz]]=3,CONCATENATE(Tabelle_Auswertung[[#This Row],[Bildname]],\" von \",Tabelle_Auswertung[[#This Row],[Autor(in)]]),\"\")","v":""},{"$f":"IF(Tabelle_Auswertung[[#This Row],[Platz]]=4,CONCATENATE(Tabelle_Auswertung[[#This Row],[Bildname]],\" von \",Tabelle_Auswertung[[#This Row],[Autor(in)]]),\"\")","v":""},{"$f":"IF(Tabelle_Auswertung[[#This Row],[Platz]]=5,CONCATENATE(Tabelle_Auswertung[[#This Row],[Bildname]],\" von \",Tabelle_Auswertung[[#This Row],[Autor(in)]]),\"\")","v":""},{"$f":"IF(Tabelle_Auswertung[[#This Row],[Platz]]=6,CONCATENATE(Tabelle_Auswertung[[#This Row],[Bildname]],\" von \",Tabelle_Auswertung[[#This Row],[Autor(in)]]),\"\")","v":""},{"$f":"IF(Tabelle_Auswertung[[#This Row],[Platz]]=7,CONCATENATE(Tabelle_Auswertung[[#This Row],[Bildname]],\" von \",Tabelle_Auswertung[[#This Row],[Autor(in)]]),\"\")","v":""},{"$f":"IF(Tabelle_Auswertung[[#This Row],[Platz]]=8,CONCATENATE(Tabelle_Auswertung[[#This Row],[Bildname]],\" von \",Tabelle_Auswertung[[#This Row],[Autor(in)]]),\"\")","v":""},{"$f":"IF(Tabelle_Auswertung[[#This Row],[Platz]]=9,CONCATENATE(Tabelle_Auswertung[[#This Row],[Bildname]],\" von \",Tabelle_Auswertung[[#This Row],[Autor(in)]]),\"\")","v":""},{"$f":"IF(Tabelle_Auswertung[[#This Row],[Platz]]=10,CONCATENATE(Tabelle_Auswertung[[#This Row],[Bildname]],\" von \",Tabelle_Auswertung[[#This Row],[Autor(in)]]),\"\")","v":""}]
[{"$nulls":21},{"$f":"IF(Tabelle_Auswertung[[#This Row],[Bildname]]<>\"\",SUM(Tabelle_Auswertung[[#This Row],[Juror 1]:[Juror 20]]),\" - \")","v":" - "},{"$f":"IF(Tabelle_Auswertung[[#This Row],[Bildname]]<>\"\",IF(Tabelle_Auswertung[[#This Row],[Punkte]]>0,AVERAGE(Tabelle_Auswertung[[#This Row],[Juror 1]:[Juror 20]]),\" - \"),\" - \")","v":" - "},{"$f":"IF(Tabelle_Auswertung[[#This Row],[Bildname]]<>\"\",IF(Tabelle_Auswertung[[#This Row],[Punkte]]>0,RANK(Tabelle_Auswertung[[#This Row],[Punkte]],[Punkte],0),\" - \"),\" - \")","v":" - "}," - - -",{"$f":"IF(Tabelle_Auswertung[[#This Row],[Platz]]=1,CONCATENATE(Tabelle_Auswertung[[#This Row],[Bildname]],\" von \",Tabelle_Auswertung[[#This Row],[Autor(in)]]),\"\")","v":""},{"$f":"IF(Tabelle_Auswertung[[#This Row],[Platz]]=2,CONCATENATE(Tabelle_Auswertung[[#This Row],[Bildname]],\" von \",Tabelle_Auswertung[[#This Row],[Autor(in)]]),\"\")","v":""},{"$f":"IF(Tabelle_Auswertung[[#This Row],[Platz]]=3,CONCATENATE(Tabelle_Auswertung[[#This Row],[Bildname]],\" von \",Tabelle_Auswertung[[#This Row],[Autor(in)]]),\"\")","v":""},{"$f":"IF(Tabelle_Auswertung[[#This Row],[Platz]]=4,CONCATENATE(Tabelle_Auswertung[[#This Row],[Bildname]],\" von \",Tabelle_Auswertung[[#This Row],[Autor(in)]]),\"\")","v":""},{"$f":"IF(Tabelle_Auswertung[[#This Row],[Platz]]=5,CONCATENATE(Tabelle_Auswertung[[#This Row],[Bildname]],\" von \",Tabelle_Auswertung[[#This Row],[Autor(in)]]),\"\")","v":""},{"$f":"IF(Tabelle_Auswertung[[#This Row],[Platz]]=6,CONCATENATE(Tabelle_Auswertung[[#This Row],[Bildname]],\" von \",Tabelle_Auswertung[[#This Row],[Autor(in)]]),\"\")","v":""},{"$f":"IF(Tabelle_Auswertung[[#This Row],[Platz]]=7,CONCATENATE(Tabelle_Auswertung[[#This Row],[Bildname]],\" von \",Tabelle_Auswertung[[#This Row],[Autor(in)]]),\"\")","v":""},{"$f":"IF(Tabelle_Auswertung[[#This Row],[Platz]]=8,CONCATENATE(Tabelle_Auswertung[[#This Row],[Bildname]],\" von \",Tabelle_Auswertung[[#This Row],[Autor(in)]]),\"\")","v":""},{"$f":"IF(Tabelle_Auswertung[[#This Row],[Platz]]=9,CONCATENATE(Tabelle_Auswertung[[#This Row],[Bildname]],\" von \",Tabelle_Auswertung[[#This Row],[Autor(in)]]),\"\")","v":""},{"$f":"IF(Tabelle_Auswertung[[#This Row],[Platz]]=10,CONCATENATE(Tabelle_Auswertung[[#This Row],[Bildname]],\" von \",Tabelle_Auswertung[[#This Row],[Autor(in)]]),\"\")","v":""}]
[{"$nulls":21},{"$f":"IF(Tabelle_Auswertung[[#This Row],[Bildname]]<>\"\",SUM(Tabelle_Auswertung[[#This Row],[Juror 1]:[Juror 20]]),\" - \")","v":" - "},{"$f":"IF(Tabelle_Auswertung[[#This Row],[Bildname]]<>\"\",IF(Tabelle_Auswertung[[#This Row],[Punkte]]>0,AVERAGE(Tabelle_Auswertung[[#This Row],[Juror 1]:[Juror 20]]),\" - \"),\" - \")","v":" - "},{"$f":"IF(Tabelle_Auswertung[[#This Row],[Bildname]]<>\"\",IF(Tabelle_Auswertung[[#This Row],[Punkte]]>0,RANK(Tabelle_Auswertung[[#This Row],[Punkte]],[Punkte],0),\" - \"),\" - \")","v":" - "}," - - -",{"$f":"IF(Tabelle_Auswertung[[#This Row],[Platz]]=1,CONCATENATE(Tabelle_Auswertung[[#This Row],[Bildname]],\" von \",Tabelle_Auswertung[[#This Row],[Autor(in)]]),\"\")","v":""},{"$f":"IF(Tabelle_Auswertung[[#This Row],[Platz]]=2,CONCATENATE(Tabelle_Auswertung[[#This Row],[Bildname]],\" von \",Tabelle_Auswertung[[#This Row],[Autor(in)]]),\"\")","v":""},{"$f":"IF(Tabelle_Auswertung[[#This Row],[Platz]]=3,CONCATENATE(Tabelle_Auswertung[[#This Row],[Bildname]],\" von \",Tabelle_Auswertung[[#This Row],[Autor(in)]]),\"\")","v":""},{"$f":"IF(Tabelle_Auswertung[[#This Row],[Platz]]=4,CONCATENATE(Tabelle_Auswertung[[#This Row],[Bildname]],\" von \",Tabelle_Auswertung[[#This Row],[Autor(in)]]),\"\")","v":""},{"$f":"IF(Tabelle_Auswertung[[#This Row],[Platz]]=5,CONCATENATE(Tabelle_Auswertung[[#This Row],[Bildname]],\" von \",Tabelle_Auswertung[[#This Row],[Autor(in)]]),\"\")","v":""},{"$f":"IF(Tabelle_Auswertung[[#This Row],[Platz]]=6,CONCATENATE(Tabelle_Auswertung[[#This Row],[Bildname]],\" von \",Tabelle_Auswertung[[#This Row],[Autor(in)]]),\"\")","v":""},{"$f":"IF(Tabelle_Auswertung[[#This Row],[Platz]]=7,CONCATENATE(Tabelle_Auswertung[[#This Row],[Bildname]],\" von \",Tabelle_Auswertung[[#This Row],[Autor(in)]]),\"\")","v":""},{"$f":"IF(Tabelle_Auswertung[[#This Row],[Platz]]=8,CONCATENATE(Tabelle_Auswertung[[#This Row],[Bildname]],\" von \",Tabelle_Auswertung[[#This Row],[Autor(in)]]),\"\")","v":""},{"$f":"IF(Tabelle_Auswertung[[#This Row],[Platz]]=9,CONCATENATE(Tabelle_Auswertung[[#This Row],[Bildname]],\" von \",Tabelle_Auswertung[[#This Row],[Autor(in)]]),\"\")","v":""},{"$f":"IF(Tabelle_Auswertung[[#This Row],[Platz]]=10,CONCATENATE(Tabelle_Auswertung[[#This Row],[Bildname]],\" von \",Tabelle_Auswertung[[#This Row],[Autor(in)]]),\"\")","v":""}]
[{"$nulls":21},{"$f":"IF(Tabelle_Auswertung[[#This Row],[Bildname]]<>\"\",SUM(Tabelle_Auswertung[[#This Row],[Juror 1]:[Juror 20]]),\" - \")","v":" - "},{"$f":"IF(Tabelle_Auswertung[[#This Row],[Bildname]]<>\"\",IF(Tabelle_Auswertung[[#This Row],[Punkte]]>0,AVERAGE(Tabelle_Auswertung[[#This Row],[Juror 1]:[Juror 20]]),\" - \"),\" - \")","v":" - "},{"$f":"IF(Tabelle_Auswertung[[#This Row],[Bildname]]<>\"\",IF(Tabelle_Auswertung[[#This Row],[Punkte]]>0,RANK(Tabelle_Auswertung[[#This Row],[Punkte]],[Punkte],0),\" - \"),\" - \")","v":" - "}," - - -",{"$f":"IF(Tabelle_Auswertung[[#This Row],[Platz]]=1,CONCATENATE(Tabelle_Auswertung[[#This Row],[Bildname]],\" von \",Tabelle_Auswertung[[#This Row],[Autor(in)]]),\"\")","v":""},{"$f":"IF(Tabelle_Auswertung[[#This Row],[Platz]]=2,CONCATENATE(Tabelle_Auswertung[[#This Row],[Bildname]],\" von \",Tabelle_Auswertung[[#This Row],[Autor(in)]]),\"\")","v":""},{"$f":"IF(Tabelle_Auswertung[[#This Row],[Platz]]=3,CONCATENATE(Tabelle_Auswertung[[#This Row],[Bildname]],\" von \",Tabelle_Auswertung[[#This Row],[Autor(in)]]),\"\")","v":""},{"$f":"IF(Tabelle_Auswertung[[#This Row],[Platz]]=4,CONCATENATE(Tabelle_Auswertung[[#This Row],[Bildname]],\" von \",Tabelle_Auswertung[[#This Row],[Autor(in)]]),\"\")","v":""},{"$f":"IF(Tabelle_Auswertung[[#This Row],[Platz]]=5,CONCATENATE(Tabelle_Auswertung[[#This Row],[Bildname]],\" von \",Tabelle_Auswertung[[#This Row],[Autor(in)]]),\"\")","v":""},{"$f":"IF(Tabelle_Auswertung[[#This Row],[Platz]]=6,CONCATENATE(Tabelle_Auswertung[[#This Row],[Bildname]],\" von \",Tabelle_Auswertung[[#This Row],[Autor(in)]]),\"\")","v":""},{"$f":"IF(Tabelle_Auswertung[[#This Row],[Platz]]=7,CONCATENATE(Tabelle_Auswertung[[#This Row],[Bildname]],\" von \",Tabelle_Auswertung[[#This Row],[Autor(in)]]),\"\")","v":""},{"$f":"IF(Tabelle_Auswertung[[#This Row],[Platz]]=8,CONCATENATE(Tabelle_Auswertung[[#This Row],[Bildname]],\" von \",Tabelle_Auswertung[[#This Row],[Autor(in)]]),\"\")","v":""},{"$f":"IF(Tabelle_Auswertung[[#This Row],[Platz]]=9,CONCATENATE(Tabelle_Auswertung[[#This Row],[Bildname]],\" von \",Tabelle_Auswertung[[#This Row],[Autor(in)]]),\"\")","v":""},{"$f":"IF(Tabelle_Auswertung[[#This Row],[Platz]]=10,CONCATENATE(Tabelle_Auswertung[[#This Row],[Bildname]],\" von \",Tabelle_Auswertung[[#This Row],[Autor(in)]]),\"\")","v":""}]
[{"$nulls":21},{"$f":"IF(Tabelle_Auswertung[[#This Row],[Bildname]]<>\"\",SUM(Tabelle_Auswertung[[#This Row],[Juror 1]:[Juror 20]]),\" - \")","v":" - "},{"$f":"IF(Tabelle_Auswertung[[#This Row],[Bildname]]<>\"\",IF(Tabelle_Auswertung[[#This Row],[Punkte]]>0,AVERAGE(Tabelle_Auswertung[[#This Row],[Juror 1]:[Juror 20]]),\" - \"),\" - \")","v":" - "},{"$f":"IF(Tabelle_Auswertung[[#This Row],[Bildname]]<>\"\",IF(Tabelle_Auswertung[[#This Row],[Punkte]]>0,RANK(Tabelle_Auswertung[[#This Row],[Punkte]],[Punkte],0),\" - \"),\" - \")","v":" - "}," - - -",{"$f":"IF(Tabelle_Auswertung[[#This Row],[Platz]]=1,CONCATENATE(Tabelle_Auswertung[[#This Row],[Bildname]],\" von \",Tabelle_Auswertung[[#This Row],[Autor(in)]]),\"\")","v":""},{"$f":"IF(Tabelle_Auswertung[[#This Row],[Platz]]=2,CONCATENATE(Tabelle_Auswertung[[#This Row],[Bildname]],\" von \",Tabelle_Auswertung[[#This Row],[Autor(in)]]),\"\")","v":""},{"$f":"IF(Tabelle_Auswertung[[#This Row],[Platz]]=3,CONCATENATE(Tabelle_Auswertung[[#This Row],[Bildname]],\" von \",Tabelle_Auswertung[[#This Row],[Autor(in)]]),\"\")","v":""},{"$f":"IF(Tabelle_Auswertung[[#This Row],[Platz]]=4,CONCATENATE(Tabelle_Auswertung[[#This Row],[Bildname]],\" von \",Tabelle_Auswertung[[#This Row],[Autor(in)]]),\"\")","v":""},{"$f":"IF(Tabelle_Auswertung[[#This Row],[Platz]]=5,CONCATENATE(Tabelle_Auswertung[[#This Row],[Bildname]],\" von \",Tabelle_Auswertung[[#This Row],[Autor(in)]]),\"\")","v":""},{"$f":"IF(Tabelle_Auswertung[[#This Row],[Platz]]=6,CONCATENATE(Tabelle_Auswertung[[#This Row],[Bildname]],\" von \",Tabelle_Auswertung[[#This Row],[Autor(in)]]),\"\")","v":""},{"$f":"IF(Tabelle_Auswertung[[#This Row],[Platz]]=7,CONCATENATE(Tabelle_Auswertung[[#This Row],[Bildname]],\" von \",Tabelle_Auswertung[[#This Row],[Autor(in)]]),\"\")","v":""},{"$f":"IF(Tabelle_Auswertung[[#This Row],[Platz]]=8,CONCATENATE(Tabelle_Auswertung[[#This Row],[Bildname]],\" von \",Tabelle_Auswertung[[#This Row],[Autor(in)]]),\"\")","v":""},{"$f":"IF(Tabelle_Auswertung[[#This Row],[Platz]]=9,CONCATENATE(Tabelle_Auswertung[[#This Row],[Bildname]],\" von \",Tabelle_Auswertung[[#This Row],[Autor(in)]]),\"\")","v":""},{"$f":"IF(Tabelle_Auswertung[[#This Row],[Platz]]=10,CONCATENATE(Tabelle_Auswertung[[#This Row],[Bildname]],\" von \",Tabelle_Auswertung[[#This Row],[Autor(in)]]),\"\")","v":""}]
[{"$nulls":21},{"$f":"IF(Tabelle_Auswertung[[#This Row],[Bildname]]<>\"\",SUM(Tabelle_Auswertung[[#This Row],[Juror 1]:[Juror 20]]),\" - \")","v":" - "},{"$f":"IF(Tabelle_Auswertung[[#This Row],[Bildname]]<>\"\",IF(Tabelle_Auswertung[[#This Row],[Punkte]]>0,AVERAGE(Tabelle_Auswertung[[#This Row],[Juror 1]:[Juror 20]]),\" - \"),\" - \")","v":" - "},{"$f":"IF(Tabelle_Auswertung[[#This Row],[Bildname]]<>\"\",IF(Tabelle_Auswertung[[#This Row],[Punkte]]>0,RANK(Tabelle_Auswertung[[#This Row],[Punkte]],[Punkte],0),\" - \"),\" - \")","v":" - "}," - - -",{"$f":"IF(Tabelle_Auswertung[[#This Row],[Platz]]=1,CONCATENATE(Tabelle_Auswertung[[#This Row],[Bildname]],\" von \",Tabelle_Auswertung[[#This Row],[Autor(in)]]),\"\")","v":""},{"$f":"IF(Tabelle_Auswertung[[#This Row],[Platz]]=2,CONCATENATE(Tabelle_Auswertung[[#This Row],[Bildname]],\" von \",Tabelle_Auswertung[[#This Row],[Autor(in)]]),\"\")","v":""},{"$f":"IF(Tabelle_Auswertung[[#This Row],[Platz]]=3,CONCATENATE(Tabelle_Auswertung[[#This Row],[Bildname]],\" von \",Tabelle_Auswertung[[#This Row],[Autor(in)]]),\"\")","v":""},{"$f":"IF(Tabelle_Auswertung[[#This Row],[Platz]]=4,CONCATENATE(Tabelle_Auswertung[[#This Row],[Bildname]],\" von \",Tabelle_Auswertung[[#This Row],[Autor(in)]]),\"\")","v":""},{"$f":"IF(Tabelle_Auswertung[[#This Row],[Platz]]=5,CONCATENATE(Tabelle_Auswertung[[#This Row],[Bildname]],\" von \",Tabelle_Auswertung[[#This Row],[Autor(in)]]),\"\")","v":""},{"$f":"IF(Tabelle_Auswertung[[#This Row],[Platz]]=6,CONCATENATE(Tabelle_Auswertung[[#This Row],[Bildname]],\" von \",Tabelle_Auswertung[[#This Row],[Autor(in)]]),\"\")","v":""},{"$f":"IF(Tabelle_Auswertung[[#This Row],[Platz]]=7,CONCATENATE(Tabelle_Auswertung[[#This Row],[Bildname]],\" von \",Tabelle_Auswertung[[#This Row],[Autor(in)]]),\"\")","v":""},{"$f":"IF(Tabelle_Auswertung[[#This Row],[Platz]]=8,CONCATENATE(Tabelle_Auswertung[[#This Row],[Bildname]],\" von \",Tabelle_Auswertung[[#This Row],[Autor(in)]]),\"\")","v":""},{"$f":"IF(Tabelle_Auswertung[[#This Row],[Platz]]=9,CONCATENATE(Tabelle_Auswertung[[#This Row],[Bildname]],\" von \",Tabelle_Auswertung[[#This Row],[Autor(in)]]),\"\")","v":""},{"$f":"IF(Tabelle_Auswertung[[#This Row],[Platz]]=10,CONCATENATE(Tabelle_Auswertung[[#This Row],[Bildname]],\" von \",Tabelle_Auswertung[[#This Row],[Autor(in)]]),\"\")","v":""}]
[{"$nulls":21},{"$f":"IF(Tabelle_Auswertung[[#This Row],[Bildname]]<>\"\",SUM(Tabelle_Auswertung[[#This Row],[Juror 1]:[Juror 20]]),\" - \")","v":" - "},{"$f":"IF(Tabelle_Auswertung[[#This Row],[Bildname]]<>\"\",IF(Tabelle_Auswertung[[#This Row],[Punkte]]>0,AVERAGE(Tabelle_Auswertung[[#This Row],[Juror 1]:[Juror 20]]),\" - \"),\" - \")","v":" - "},{"$f":"IF(Tabelle_Auswertung[[#This Row],[Bildname]]<>\"\",IF(Tabelle_Auswertung[[#This Row],[Punkte]]>0,RANK(Tabelle_Auswertung[[#This Row],[Punkte]],[Punkte],0),\" - \"),\" - \")","v":" - "}," - - -",{"$f":"IF(Tabelle_Auswertung[[#This Row],[Platz]]=1,CONCATENATE(Tabelle_Auswertung[[#This Row],[Bildname]],\" von \",Tabelle_Auswertung[[#This Row],[Autor(in)]]),\"\")","v":""},{"$f":"IF(Tabelle_Auswertung[[#This Row],[Platz]]=2,CONCATENATE(Tabelle_Auswertung[[#This Row],[Bildname]],\" von \",Tabelle_Auswertung[[#This Row],[Autor(in)]]),\"\")","v":""},{"$f":"IF(Tabelle_Auswertung[[#This Row],[Platz]]=3,CONCATENATE(Tabelle_Auswertung[[#This Row],[Bildname]],\" von \",Tabelle_Auswertung[[#This Row],[Autor(in)]]),\"\")","v":""},{"$f":"IF(Tabelle_Auswertung[[#This Row],[Platz]]=4,CONCATENATE(Tabelle_Auswertung[[#This Row],[Bildname]],\" von \",Tabelle_Auswertung[[#This Row],[Autor(in)]]),\"\")","v":""},{"$f":"IF(Tabelle_Auswertung[[#This Row],[Platz]]=5,CONCATENATE(Tabelle_Auswertung[[#This Row],[Bildname]],\" von \",Tabelle_Auswertung[[#This Row],[Autor(in)]]),\"\")","v":""},{"$f":"IF(Tabelle_Auswertung[[#This Row],[Platz]]=6,CONCATENATE(Tabelle_Auswertung[[#This Row],[Bildname]],\" von \",Tabelle_Auswertung[[#This Row],[Autor(in)]]),\"\")","v":""},{"$f":"IF(Tabelle_Auswertung[[#This Row],[Platz]]=7,CONCATENATE(Tabelle_Auswertung[[#This Row],[Bildname]],\" von \",Tabelle_Auswertung[[#This Row],[Autor(in)]]),\"\")","v":""},{"$f":"IF(Tabelle_Auswertung[[#This Row],[Platz]]=8,CONCATENATE(Tabelle_Auswertung[[#This Row],[Bildname]],\" von \",Tabelle_Auswertung[[#This Row],[Autor(in)]]),\"\")","v":""},{"$f":"IF(Tabelle_Auswertung[[#This Row],[Platz]]=9,CONCATENATE(Tabelle_Auswertung[[#This Row],[Bildname]],\" von \",Tabelle_Auswertung[[#This Row],[Autor(in)]]),\"\")","v":""},{"$f":"IF(Tabelle_Auswertung[[#This Row],[Platz]]=10,CONCATENATE(Tabelle_Auswertung[[#This Row],[Bildname]],\" von \",Tabelle_Auswertung[[#This Row],[Autor(in)]]),\"\")","v":""}]
[{"$nulls":21},{"$f":"IF(Tabelle_Auswertung[[#This Row],[Bildname]]<>\"\",SUM(Tabelle_Auswertung[[#This Row],[Juror 1]:[Juror 20]]),\" - \")","v":" - "},{"$f":"IF(Tabelle_Auswertung[[#This Row],[Bildname]]<>\"\",IF(Tabelle_Auswertung[[#This Row],[Punkte]]>0,AVERAGE(Tabelle_Auswertung[[#This Row],[Juror 1]:[Juror 20]]),\" - \"),\" - \")","v":" - "},{"$f":"IF(Tabelle_Auswertung[[#This Row],[Bildname]]<>\"\",IF(Tabelle_Auswertung[[#This Row],[Punkte]]>0,RANK(Tabelle_Auswertung[[#This Row],[Punkte]],[Punkte],0),\" - \"),\" - \")","v":" - "}," - - -",{"$f":"IF(Tabelle_Auswertung[[#This Row],[Platz]]=1,CONCATENATE(Tabelle_Auswertung[[#This Row],[Bildname]],\" von \",Tabelle_Auswertung[[#This Row],[Autor(in)]]),\"\")","v":""},{"$f":"IF(Tabelle_Auswertung[[#This Row],[Platz]]=2,CONCATENATE(Tabelle_Auswertung[[#This Row],[Bildname]],\" von \",Tabelle_Auswertung[[#This Row],[Autor(in)]]),\"\")","v":""},{"$f":"IF(Tabelle_Auswertung[[#This Row],[Platz]]=3,CONCATENATE(Tabelle_Auswertung[[#This Row],[Bildname]],\" von \",Tabelle_Auswertung[[#This Row],[Autor(in)]]),\"\")","v":""},{"$f":"IF(Tabelle_Auswertung[[#This Row],[Platz]]=4,CONCATENATE(Tabelle_Auswertung[[#This Row],[Bildname]],\" von \",Tabelle_Auswertung[[#This Row],[Autor(in)]]),\"\")","v":""},{"$f":"IF(Tabelle_Auswertung[[#This Row],[Platz]]=5,CONCATENATE(Tabelle_Auswertung[[#This Row],[Bildname]],\" von \",Tabelle_Auswertung[[#This Row],[Autor(in)]]),\"\")","v":""},{"$f":"IF(Tabelle_Auswertung[[#This Row],[Platz]]=6,CONCATENATE(Tabelle_Auswertung[[#This Row],[Bildname]],\" von \",Tabelle_Auswertung[[#This Row],[Autor(in)]]),\"\")","v":""},{"$f":"IF(Tabelle_Auswertung[[#This Row],[Platz]]=7,CONCATENATE(Tabelle_Auswertung[[#This Row],[Bildname]],\" von \",Tabelle_Auswertung[[#This Row],[Autor(in)]]),\"\")","v":""},{"$f":"IF(Tabelle_Auswertung[[#This Row],[Platz]]=8,CONCATENATE(Tabelle_Auswertung[[#This Row],[Bildname]],\" von \",Tabelle_Auswertung[[#This Row],[Autor(in)]]),\"\")","v":""},{"$f":"IF(Tabelle_Auswertung[[#This Row],[Platz]]=9,CONCATENATE(Tabelle_Auswertung[[#This Row],[Bildname]],\" von \",Tabelle_Auswertung[[#This Row],[Autor(in)]]),\"\")","v":""},{"$f":"IF(Tabelle_Auswertung[[#This Row],[Platz]]=10,CONCATENATE(Tabelle_Auswertung[[#This Row],[Bildname]],\" von \",Tabelle_Auswertung[[#This Row],[Autor(in)]]),\"\")","v":""}]
[{"$nulls":21},{"$f":"IF(Tabelle_Auswertung[[#This Row],[Bildname]]<>\"\",SUM(Tabelle_Auswertung[[#This Row],[Juror 1]:[Juror 20]]),\" - \")","v":" - "},{"$f":"IF(Tabelle_Auswertung[[#This Row],[Bildname]]<>\"\",IF(Tabelle_Auswertung[[#This Row],[Punkte]]>0,AVERAGE(Tabelle_Auswertung[[#This Row],[Juror 1]:[Juror 20]]),\" - \"),\" - \")","v":" - "},{"$f":"IF(Tabelle_Auswertung[[#This Row],[Bildname]]<>\"\",IF(Tabelle_Auswertung[[#This Row],[Punkte]]>0,RANK(Tabelle_Auswertung[[#This Row],[Punkte]],[Punkte],0),\" - \"),\" - \")","v":" - "}," - - -",{"$f":"IF(Tabelle_Auswertung[[#This Row],[Platz]]=1,CONCATENATE(Tabelle_Auswertung[[#This Row],[Bildname]],\" von \",Tabelle_Auswertung[[#This Row],[Autor(in)]]),\"\")","v":""},{"$f":"IF(Tabelle_Auswertung[[#This Row],[Platz]]=2,CONCATENATE(Tabelle_Auswertung[[#This Row],[Bildname]],\" von \",Tabelle_Auswertung[[#This Row],[Autor(in)]]),\"\")","v":""},{"$f":"IF(Tabelle_Auswertung[[#This Row],[Platz]]=3,CONCATENATE(Tabelle_Auswertung[[#This Row],[Bildname]],\" von \",Tabelle_Auswertung[[#This Row],[Autor(in)]]),\"\")","v":""},{"$f":"IF(Tabelle_Auswertung[[#This Row],[Platz]]=4,CONCATENATE(Tabelle_Auswertung[[#This Row],[Bildname]],\" von \",Tabelle_Auswertung[[#This Row],[Autor(in)]]),\"\")","v":""},{"$f":"IF(Tabelle_Auswertung[[#This Row],[Platz]]=5,CONCATENATE(Tabelle_Auswertung[[#This Row],[Bildname]],\" von \",Tabelle_Auswertung[[#This Row],[Autor(in)]]),\"\")","v":""},{"$f":"IF(Tabelle_Auswertung[[#This Row],[Platz]]=6,CONCATENATE(Tabelle_Auswertung[[#This Row],[Bildname]],\" von \",Tabelle_Auswertung[[#This Row],[Autor(in)]]),\"\")","v":""},{"$f":"IF(Tabelle_Auswertung[[#This Row],[Platz]]=7,CONCATENATE(Tabelle_Auswertung[[#This Row],[Bildname]],\" von \",Tabelle_Auswertung[[#This Row],[Autor(in)]]),\"\")","v":""},{"$f":"IF(Tabelle_Auswertung[[#This Row],[Platz]]=8,CONCATENATE(Tabelle_Auswertung[[#This Row],[Bildname]],\" von \",Tabelle_Auswertung[[#This Row],[Autor(in)]]),\"\")","v":""},{"$f":"IF(Tabelle_Auswertung[[#This Row],[Platz]]=9,CONCATENATE(Tabelle_Auswertung[[#This Row],[Bildname]],\" von \",Tabelle_Auswertung[[#This Row],[Autor(in)]]),\"\")","v":""},{"$f":"IF(Tabelle_Auswertung[[#This Row],[Platz]]=10,CONCATENATE(Tabelle_Auswertung[[#This Row],[Bildname]],\" von \",Tabelle_Auswertung[[#This Row],[Autor(in)]]),\"\")","v":""}]
[{"$nulls":21},{"$f":"IF(Tabelle_Auswertung[[#This Row],[Bildname]]<>\"\",SUM(Tabelle_Auswertung[[#This Row],[Juror 1]:[Juror 20]]),\" - \")","v":" - "},{"$f":"IF(Tabelle_Auswertung[[#This Row],[Bildname]]<>\"\",IF(Tabelle_Auswertung[[#This Row],[Punkte]]>0,AVERAGE(Tabelle_Auswertung[[#This Row],[Juror 1]:[Juror 20]]),\" - \"),\" - \")","v":" - "},{"$f":"IF(Tabelle_Auswertung[[#This Row],[Bildname]]<>\"\",IF(Tabelle_Auswertung[[#This Row],[Punkte]]>0,RANK(Tabelle_Auswertung[[#This Row],[Punkte]],[Punkte],0),\" - \"),\" - \")","v":" - "}," - - -",{"$f":"IF(Tabelle_Auswertung[[#This Row],[Platz]]=1,CONCATENATE(Tabelle_Auswertung[[#This Row],[Bildname]],\" von \",Tabelle_Auswertung[[#This Row],[Autor(in)]]),\"\")","v":""},{"$f":"IF(Tabelle_Auswertung[[#This Row],[Platz]]=2,CONCATENATE(Tabelle_Auswertung[[#This Row],[Bildname]],\" von \",Tabelle_Auswertung[[#This Row],[Autor(in)]]),\"\")","v":""},{"$f":"IF(Tabelle_Auswertung[[#This Row],[Platz]]=3,CONCATENATE(Tabelle_Auswertung[[#This Row],[Bildname]],\" von \",Tabelle_Auswertung[[#This Row],[Autor(in)]]),\"\")","v":""},{"$f":"IF(Tabelle_Auswertung[[#This Row],[Platz]]=4,CONCATENATE(Tabelle_Auswertung[[#This Row],[Bildname]],\" von \",Tabelle_Auswertung[[#This Row],[Autor(in)]]),\"\")","v":""},{"$f":"IF(Tabelle_Auswertung[[#This Row],[Platz]]=5,CONCATENATE(Tabelle_Auswertung[[#This Row],[Bildname]],\" von \",Tabelle_Auswertung[[#This Row],[Autor(in)]]),\"\")","v":""},{"$f":"IF(Tabelle_Auswertung[[#This Row],[Platz]]=6,CONCATENATE(Tabelle_Auswertung[[#This Row],[Bildname]],\" von \",Tabelle_Auswertung[[#This Row],[Autor(in)]]),\"\")","v":""},{"$f":"IF(Tabelle_Auswertung[[#This Row],[Platz]]=7,CONCATENATE(Tabelle_Auswertung[[#This Row],[Bildname]],\" von \",Tabelle_Auswertung[[#This Row],[Autor(in)]]),\"\")","v":""},{"$f":"IF(Tabelle_Auswertung[[#This Row],[Platz]]=8,CONCATENATE(Tabelle_Auswertung[[#This Row],[Bildname]],\" von \",Tabelle_Auswertung[[#This Row],[Autor(in)]]),\"\")","v":""},{"$f":"IF(Tabelle_Auswertung[[#This Row],[Platz]]=9,CONCATENATE(Tabelle_Auswertung[[#This Row],[Bildname]],\" von \",Tabelle_Auswertung[[#This Row],[Autor(in)]]),\"\")","v":""},{"$f":"IF(Tabelle_Auswertung[[#This Row],[Platz]]=10,CONCATENATE(Tabelle_Auswertung[[#This Row],[Bildname]],\" von \",Tabelle_Auswertung[[#This Row],[Autor(in)]]),\"\")","v":""}]
[{"$nulls":21},{"$f":"IF(Tabelle_Auswertung[[#This Row],[Bildname]]<>\"\",SUM(Tabelle_Auswertung[[#This Row],[Juror 1]:[Juror 20]]),\" - \")","v":" - "},{"$f":"IF(Tabelle_Auswertung[[#This Row],[Bildname]]<>\"\",IF(Tabelle_Auswertung[[#This Row],[Punkte]]>0,AVERAGE(Tabelle_Auswertung[[#This Row],[Juror 1]:[Juror 20]]),\" - \"),\" - \")","v":" - "},{"$f":"IF(Tabelle_Auswertung[[#This Row],[Bildname]]<>\"\",IF(Tabelle_Auswertung[[#This Row],[Punkte]]>0,RANK(Tabelle_Auswertung[[#This Row],[Punkte]],[Punkte],0),\" - \"),\" - \")","v":" - "}," - - -",{"$f":"IF(Tabelle_Auswertung[[#This Row],[Platz]]=1,CONCATENATE(Tabelle_Auswertung[[#This Row],[Bildname]],\" von \",Tabelle_Auswertung[[#This Row],[Autor(in)]]),\"\")","v":""},{"$f":"IF(Tabelle_Auswertung[[#This Row],[Platz]]=2,CONCATENATE(Tabelle_Auswertung[[#This Row],[Bildname]],\" von \",Tabelle_Auswertung[[#This Row],[Autor(in)]]),\"\")","v":""},{"$f":"IF(Tabelle_Auswertung[[#This Row],[Platz]]=3,CONCATENATE(Tabelle_Auswertung[[#This Row],[Bildname]],\" von \",Tabelle_Auswertung[[#This Row],[Autor(in)]]),\"\")","v":""},{"$f":"IF(Tabelle_Auswertung[[#This Row],[Platz]]=4,CONCATENATE(Tabelle_Auswertung[[#This Row],[Bildname]],\" von \",Tabelle_Auswertung[[#This Row],[Autor(in)]]),\"\")","v":""},{"$f":"IF(Tabelle_Auswertung[[#This Row],[Platz]]=5,CONCATENATE(Tabelle_Auswertung[[#This Row],[Bildname]],\" von \",Tabelle_Auswertung[[#This Row],[Autor(in)]]),\"\")","v":""},{"$f":"IF(Tabelle_Auswertung[[#This Row],[Platz]]=6,CONCATENATE(Tabelle_Auswertung[[#This Row],[Bildname]],\" von \",Tabelle_Auswertung[[#This Row],[Autor(in)]]),\"\")","v":""},{"$f":"IF(Tabelle_Auswertung[[#This Row],[Platz]]=7,CONCATENATE(Tabelle_Auswertung[[#This Row],[Bildname]],\" von \",Tabelle_Auswertung[[#This Row],[Autor(in)]]),\"\")","v":""},{"$f":"IF(Tabelle_Auswertung[[#This Row],[Platz]]=8,CONCATENATE(Tabelle_Auswertung[[#This Row],[Bildname]],\" von \",Tabelle_Auswertung[[#This Row],[Autor(in)]]),\"\")","v":""},{"$f":"IF(Tabelle_Auswertung[[#This Row],[Platz]]=9,CONCATENATE(Tabelle_Auswertung[[#This Row],[Bildname]],\" von \",Tabelle_Auswertung[[#This Row],[Autor(in)]]),\"\")","v":""},{"$f":"IF(Tabelle_Auswertung[[#This Row],[Platz]]=10,CONCATENATE(Tabelle_Auswertung[[#This Row],[Bildname]],\" von \",Tabelle_Auswertung[[#This Row],[Autor(in)]]),\"\")","v":""}]
[{"$nulls":21},{"$f":"IF(Tabelle_Auswertung[[#This Row],[Bildname]]<>\"\",SUM(Tabelle_Auswertung[[#This Row],[Juror 1]:[Juror 20]]),\" - \")","v":" - "},{"$f":"IF(Tabelle_Auswertung[[#This Row],[Bildname]]<>\"\",IF(Tabelle_Auswertung[[#This Row],[Punkte]]>0,AVERAGE(Tabelle_Auswertung[[#This Row],[Juror 1]:[Juror 20]]),\" - \"),\" - \")","v":" - "},{"$f":"IF(Tabelle_Auswertung[[#This Row],[Bildname]]<>\"\",IF(Tabelle_Auswertung[[#This Row],[Punkte]]>0,RANK(Tabelle_Auswertung[[#This Row],[Punkte]],[Punkte],0),\" - \"),\" - \")","v":" - "}," - - -",{"$f":"IF(Tabelle_Auswertung[[#This Row],[Platz]]=1,CONCATENATE(Tabelle_Auswertung[[#This Row],[Bildname]],\" von \",Tabelle_Auswertung[[#This Row],[Autor(in)]]),\"\")","v":""},{"$f":"IF(Tabelle_Auswertung[[#This Row],[Platz]]=2,CONCATENATE(Tabelle_Auswertung[[#This Row],[Bildname]],\" von \",Tabelle_Auswertung[[#This Row],[Autor(in)]]),\"\")","v":""},{"$f":"IF(Tabelle_Auswertung[[#This Row],[Platz]]=3,CONCATENATE(Tabelle_Auswertung[[#This Row],[Bildname]],\" von \",Tabelle_Auswertung[[#This Row],[Autor(in)]]),\"\")","v":""},{"$f":"IF(Tabelle_Auswertung[[#This Row],[Platz]]=4,CONCATENATE(Tabelle_Auswertung[[#This Row],[Bildname]],\" von \",Tabelle_Auswertung[[#This Row],[Autor(in)]]),\"\")","v":""},{"$f":"IF(Tabelle_Auswertung[[#This Row],[Platz]]=5,CONCATENATE(Tabelle_Auswertung[[#This Row],[Bildname]],\" von \",Tabelle_Auswertung[[#This Row],[Autor(in)]]),\"\")","v":""},{"$f":"IF(Tabelle_Auswertung[[#This Row],[Platz]]=6,CONCATENATE(Tabelle_Auswertung[[#This Row],[Bildname]],\" von \",Tabelle_Auswertung[[#This Row],[Autor(in)]]),\"\")","v":""},{"$f":"IF(Tabelle_Auswertung[[#This Row],[Platz]]=7,CONCATENATE(Tabelle_Auswertung[[#This Row],[Bildname]],\" von \",Tabelle_Auswertung[[#This Row],[Autor(in)]]),\"\")","v":""},{"$f":"IF(Tabelle_Auswertung[[#This Row],[Platz]]=8,CONCATENATE(Tabelle_Auswertung[[#This Row],[Bildname]],\" von \",Tabelle_Auswertung[[#This Row],[Autor(in)]]),\"\")","v":""},{"$f":"IF(Tabelle_Auswertung[[#This Row],[Platz]]=9,CONCATENATE(Tabelle_Auswertung[[#This Row],[Bildname]],\" von \",Tabelle_Auswertung[[#This Row],[Autor(in)]]),\"\")","v":""},{"$f":"IF(Tabelle_Auswertung[[#This Row],[Platz]]=10,CONCATENATE(Tabelle_Auswertung[[#This Row],[Bildname]],\" von \",Tabelle_Auswertung[[#This Row],[Autor(in)]]),\"\")","v":""}]
[{"$nulls":21},{"$f":"IF(Tabelle_Auswertung[[#This Row],[Bildname]]<>\"\",SUM(Tabelle_Auswertung[[#This Row],[Juror 1]:[Juror 20]]),\" - \")","v":" - "},{"$f":"IF(Tabelle_Auswertung[[#This Row],[Bildname]]<>\"\",IF(Tabelle_Auswertung[[#This Row],[Punkte]]>0,AVERAGE(Tabelle_Auswertung[[#This Row],[Juror 1]:[Juror 20]]),\" - \"),\" - \")","v":" - "},{"$f":"IF(Tabelle_Auswertung[[#This Row],[Bildname]]<>\"\",IF(Tabelle_Auswertung[[#This Row],[Punkte]]>0,RANK(Tabelle_Auswertung[[#This Row],[Punkte]],[Punkte],0),\" - \"),\" - \")","v":" - "}," - - -",{"$f":"IF(Tabelle_Auswertung[[#This Row],[Platz]]=1,CONCATENATE(Tabelle_Auswertung[[#This Row],[Bildname]],\" von \",Tabelle_Auswertung[[#This Row],[Autor(in)]]),\"\")","v":""},{"$f":"IF(Tabelle_Auswertung[[#This Row],[Platz]]=2,CONCATENATE(Tabelle_Auswertung[[#This Row],[Bildname]],\" von \",Tabelle_Auswertung[[#This Row],[Autor(in)]]),\"\")","v":""},{"$f":"IF(Tabelle_Auswertung[[#This Row],[Platz]]=3,CONCATENATE(Tabelle_Auswertung[[#This Row],[Bildname]],\" von \",Tabelle_Auswertung[[#This Row],[Autor(in)]]),\"\")","v":""},{"$f":"IF(Tabelle_Auswertung[[#This Row],[Platz]]=4,CONCATENATE(Tabelle_Auswertung[[#This Row],[Bildname]],\" von \",Tabelle_Auswertung[[#This Row],[Autor(in)]]),\"\")","v":""},{"$f":"IF(Tabelle_Auswertung[[#This Row],[Platz]]=5,CONCATENATE(Tabelle_Auswertung[[#This Row],[Bildname]],\" von \",Tabelle_Auswertung[[#This Row],[Autor(in)]]),\"\")","v":""},{"$f":"IF(Tabelle_Auswertung[[#This Row],[Platz]]=6,CONCATENATE(Tabelle_Auswertung[[#This Row],[Bildname]],\" von \",Tabelle_Auswertung[[#This Row],[Autor(in)]]),\"\")","v":""},{"$f":"IF(Tabelle_Auswertung[[#This Row],[Platz]]=7,CONCATENATE(Tabelle_Auswertung[[#This Row],[Bildname]],\" von \",Tabelle_Auswertung[[#This Row],[Autor(in)]]),\"\")","v":""},{"$f":"IF(Tabelle_Auswertung[[#This Row],[Platz]]=8,CONCATENATE(Tabelle_Auswertung[[#This Row],[Bildname]],\" von \",Tabelle_Auswertung[[#This Row],[Autor(in)]]),\"\")","v":""},{"$f":"IF(Tabelle_Auswertung[[#This Row],[Platz]]=9,CONCATENATE(Tabelle_Auswertung[[#This Row],[Bildname]],\" von \",Tabelle_Auswertung[[#This Row],[Autor(in)]]),\"\")","v":""},{"$f":"IF(Tabelle_Auswertung[[#This Row],[Platz]]=10,CONCATENATE(Tabelle_Auswertung[[#This Row],[Bildname]],\" von \",Tabelle_Auswertung[[#This Row],[Autor(in)]]),\"\")","v":""}]
[{"$nulls":21},{"$f":"IF(Tabelle_Auswertung[[#This Row],[Bildname]]<>\"\",SUM(Tabelle_Auswertung[[#This Row],[Juror 1]:[Juror 20]]),\" - \")","v":" - "},{"$f":"IF(Tabelle_Auswertung[[#This Row],[Bildname]]<>\"\",IF(Tabelle_Auswertung[[#This Row],[Punkte]]>0,AVERAGE(Tabelle_Auswertung[[#This Row],[Juror 1]:[Juror 20]]),\" - \"),\" - \")","v":" - "},{"$f":"IF(Tabelle_Auswertung[[#This Row],[Bildname]]<>\"\",IF(Tabelle_Auswertung[[#This Row],[Punkte]]>0,RANK(Tabelle_Auswertung[[#This Row],[Punkte]],[Punkte],0),\" - \"),\" - \")","v":" - "}," - - -",{"$f":"IF(Tabelle_Auswertung[[#This Row],[Platz]]=1,CONCATENATE(Tabelle_Auswertung[[#This Row],[Bildname]],\" von \",Tabelle_Auswertung[[#This Row],[Autor(in)]]),\"\")","v":""},{"$f":"IF(Tabelle_Auswertung[[#This Row],[Platz]]=2,CONCATENATE(Tabelle_Auswertung[[#This Row],[Bildname]],\" von \",Tabelle_Auswertung[[#This Row],[Autor(in)]]),\"\")","v":""},{"$f":"IF(Tabelle_Auswertung[[#This Row],[Platz]]=3,CONCATENATE(Tabelle_Auswertung[[#This Row],[Bildname]],\" von \",Tabelle_Auswertung[[#This Row],[Autor(in)]]),\"\")","v":""},{"$f":"IF(Tabelle_Auswertung[[#This Row],[Platz]]=4,CONCATENATE(Tabelle_Auswertung[[#This Row],[Bildname]],\" von \",Tabelle_Auswertung[[#This Row],[Autor(in)]]),\"\")","v":""},{"$f":"IF(Tabelle_Auswertung[[#This Row],[Platz]]=5,CONCATENATE(Tabelle_Auswertung[[#This Row],[Bildname]],\" von \",Tabelle_Auswertung[[#This Row],[Autor(in)]]),\"\")","v":""},{"$f":"IF(Tabelle_Auswertung[[#This Row],[Platz]]=6,CONCATENATE(Tabelle_Auswertung[[#This Row],[Bildname]],\" von \",Tabelle_Auswertung[[#This Row],[Autor(in)]]),\"\")","v":""},{"$f":"IF(Tabelle_Auswertung[[#This Row],[Platz]]=7,CONCATENATE(Tabelle_Auswertung[[#This Row],[Bildname]],\" von \",Tabelle_Auswertung[[#This Row],[Autor(in)]]),\"\")","v":""},{"$f":"IF(Tabelle_Auswertung[[#This Row],[Platz]]=8,CONCATENATE(Tabelle_Auswertung[[#This Row],[Bildname]],\" von \",Tabelle_Auswertung[[#This Row],[Autor(in)]]),\"\")","v":""},{"$f":"IF(Tabelle_Auswertung[[#This Row],[Platz]]=9,CONCATENATE(Tabelle_Auswertung[[#This Row],[Bildname]],\" von \",Tabelle_Auswertung[[#This Row],[Autor(in)]]),\"\")","v":""},{"$f":"IF(Tabelle_Auswertung[[#This Row],[Platz]]=10,CONCATENATE(Tabelle_Auswertung[[#This Row],[Bildname]],\" von \",Tabelle_Auswertung[[#This Row],[Autor(in)]]),\"\")","v":""}]
[{"$nulls":21},{"$f":"IF(Tabelle_Auswertung[[#This Row],[Bildname]]<>\"\",SUM(Tabelle_Auswertung[[#This Row],[Juror 1]:[Juror 20]]),\" - \")","v":" - "},{"$f":"IF(Tabelle_Auswertung[[#This Row],[Bildname]]<>\"\",IF(Tabelle_Auswertung[[#This Row],[Punkte]]>0,AVERAGE(Tabelle_Auswertung[[#This Row],[Juror 1]:[Juror 20]]),\" - \"),\" - \")","v":" - "},{"$f":"IF(Tabelle_Auswertung[[#This Row],[Bildname]]<>\"\",IF(Tabelle_Auswertung[[#This Row],[Punkte]]>0,RANK(Tabelle_Auswertung[[#This Row],[Punkte]],[Punkte],0),\" - \"),\" - \")","v":" - "}," - - -",{"$f":"IF(Tabelle_Auswertung[[#This Row],[Platz]]=1,CONCATENATE(Tabelle_Auswertung[[#This Row],[Bildname]],\" von \",Tabelle_Auswertung[[#This Row],[Autor(in)]]),\"\")","v":""},{"$f":"IF(Tabelle_Auswertung[[#This Row],[Platz]]=2,CONCATENATE(Tabelle_Auswertung[[#This Row],[Bildname]],\" von \",Tabelle_Auswertung[[#This Row],[Autor(in)]]),\"\")","v":""},{"$f":"IF(Tabelle_Auswertung[[#This Row],[Platz]]=3,CONCATENATE(Tabelle_Auswertung[[#This Row],[Bildname]],\" von \",Tabelle_Auswertung[[#This Row],[Autor(in)]]),\"\")","v":""},{"$f":"IF(Tabelle_Auswertung[[#This Row],[Platz]]=4,CONCATENATE(Tabelle_Auswertung[[#This Row],[Bildname]],\" von \",Tabelle_Auswertung[[#This Row],[Autor(in)]]),\"\")","v":""},{"$f":"IF(Tabelle_Auswertung[[#This Row],[Platz]]=5,CONCATENATE(Tabelle_Auswertung[[#This Row],[Bildname]],\" von \",Tabelle_Auswertung[[#This Row],[Autor(in)]]),\"\")","v":""},{"$f":"IF(Tabelle_Auswertung[[#This Row],[Platz]]=6,CONCATENATE(Tabelle_Auswertung[[#This Row],[Bildname]],\" von \",Tabelle_Auswertung[[#This Row],[Autor(in)]]),\"\")","v":""},{"$f":"IF(Tabelle_Auswertung[[#This Row],[Platz]]=7,CONCATENATE(Tabelle_Auswertung[[#This Row],[Bildname]],\" von \",Tabelle_Auswertung[[#This Row],[Autor(in)]]),\"\")","v":""},{"$f":"IF(Tabelle_Auswertung[[#This Row],[Platz]]=8,CONCATENATE(Tabelle_Auswertung[[#This Row],[Bildname]],\" von \",Tabelle_Auswertung[[#This Row],[Autor(in)]]),\"\")","v":""},{"$f":"IF(Tabelle_Auswertung[[#This Row],[Platz]]=9,CONCATENATE(Tabelle_Auswertung[[#This Row],[Bildname]],\" von \",Tabelle_Auswertung[[#This Row],[Autor(in)]]),\"\")","v":""},{"$f":"IF(Tabelle_Auswertung[[#This Row],[Platz]]=10,CONCATENATE(Tabelle_Auswertung[[#This Row],[Bildname]],\" von \",Tabelle_Auswertung[[#This Row],[Autor(in)]]),\"\")","v":""}]
[{"$nulls":21},{"$f":"IF(Tabelle_Auswertung[[#This Row],[Bildname]]<>\"\",SUM(Tabelle_Auswertung[[#This Row],[Juror 1]:[Juror 20]]),\" - \")","v":" - "},{"$f":"IF(Tabelle_Auswertung[[#This Row],[Bildname]]<>\"\",IF(Tabelle_Auswertung[[#This Row],[Punkte]]>0,AVERAGE(Tabelle_Auswertung[[#This Row],[Juror 1]:[Juror 20]]),\" - \"),\" - \")","v":" - "},{"$f":"IF(Tabelle_Auswertung[[#This Row],[Bildname]]<>\"\",IF(Tabelle_Auswertung[[#This Row],[Punkte]]>0,RANK(Tabelle_Auswertung[[#This Row],[Punkte]],[Punkte],0),\" - \"),\" - \")","v":" - "}," - - -",{"$f":"IF(Tabelle_Auswertung[[#This Row],[Platz]]=1,CONCATENATE(Tabelle_Auswertung[[#This Row],[Bildname]],\" von \",Tabelle_Auswertung[[#This Row],[Autor(in)]]),\"\")","v":""},{"$f":"IF(Tabelle_Auswertung[[#This Row],[Platz]]=2,CONCATENATE(Tabelle_Auswertung[[#This Row],[Bildname]],\" von \",Tabelle_Auswertung[[#This Row],[Autor(in)]]),\"\")","v":""},{"$f":"IF(Tabelle_Auswertung[[#This Row],[Platz]]=3,CONCATENATE(Tabelle_Auswertung[[#This Row],[Bildname]],\" von \",Tabelle_Auswertung[[#This Row],[Autor(in)]]),\"\")","v":""},{"$f":"IF(Tabelle_Auswertung[[#This Row],[Platz]]=4,CONCATENATE(Tabelle_Auswertung[[#This Row],[Bildname]],\" von \",Tabelle_Auswertung[[#This Row],[Autor(in)]]),\"\")","v":""},{"$f":"IF(Tabelle_Auswertung[[#This Row],[Platz]]=5,CONCATENATE(Tabelle_Auswertung[[#This Row],[Bildname]],\" von \",Tabelle_Auswertung[[#This Row],[Autor(in)]]),\"\")","v":""},{"$f":"IF(Tabelle_Auswertung[[#This Row],[Platz]]=6,CONCATENATE(Tabelle_Auswertung[[#This Row],[Bildname]],\" von \",Tabelle_Auswertung[[#This Row],[Autor(in)]]),\"\")","v":""},{"$f":"IF(Tabelle_Auswertung[[#This Row],[Platz]]=7,CONCATENATE(Tabelle_Auswertung[[#This Row],[Bildname]],\" von \",Tabelle_Auswertung[[#This Row],[Autor(in)]]),\"\")","v":""},{"$f":"IF(Tabelle_Auswertung[[#This Row],[Platz]]=8,CONCATENATE(Tabelle_Auswertung[[#This Row],[Bildname]],\" von \",Tabelle_Auswertung[[#This Row],[Autor(in)]]),\"\")","v":""},{"$f":"IF(Tabelle_Auswertung[[#This Row],[Platz]]=9,CONCATENATE(Tabelle_Auswertung[[#This Row],[Bildname]],\" von \",Tabelle_Auswertung[[#This Row],[Autor(in)]]),\"\")","v":""},{"$f":"IF(Tabelle_Auswertung[[#This Row],[Platz]]=10,CONCATENATE(Tabelle_Auswertung[[#This Row],[Bildname]],\" von \",Tabelle_Auswertung[[#This Row],[Autor(in)]]),\"\")","v":""}]
[{"$nulls":21},{"$f":"IF(Tabelle_Auswertung[[#This Row],[Bildname]]<>\"\",SUM(Tabelle_Auswertung[[#This Row],[Juror 1]:[Juror 20]]),\" - \")","v":" - "},{"$f":"IF(Tabelle_Auswertung[[#This Row],[Bildname]]<>\"\",IF(Tabelle_Auswertung[[#This Row],[Punkte]]>0,AVERAGE(Tabelle_Auswertung[[#This Row],[Juror 1]:[Juror 20]]),\" - \"),\" - \")","v":" - "},{"$f":"IF(Tabelle_Auswertung[[#This Row],[Bildname]]<>\"\",IF(Tabelle_Auswertung[[#This Row],[Punkte]]>0,RANK(Tabelle_Auswertung[[#This Row],[Punkte]],[Punkte],0),\" - \"),\" - \")","v":" - "}," - - -",{"$f":"IF(Tabelle_Auswertung[[#This Row],[Platz]]=1,CONCATENATE(Tabelle_Auswertung[[#This Row],[Bildname]],\" von \",Tabelle_Auswertung[[#This Row],[Autor(in)]]),\"\")","v":""},{"$f":"IF(Tabelle_Auswertung[[#This Row],[Platz]]=2,CONCATENATE(Tabelle_Auswertung[[#This Row],[Bildname]],\" von \",Tabelle_Auswertung[[#This Row],[Autor(in)]]),\"\")","v":""},{"$f":"IF(Tabelle_Auswertung[[#This Row],[Platz]]=3,CONCATENATE(Tabelle_Auswertung[[#This Row],[Bildname]],\" von \",Tabelle_Auswertung[[#This Row],[Autor(in)]]),\"\")","v":""},{"$f":"IF(Tabelle_Auswertung[[#This Row],[Platz]]=4,CONCATENATE(Tabelle_Auswertung[[#This Row],[Bildname]],\" von \",Tabelle_Auswertung[[#This Row],[Autor(in)]]),\"\")","v":""},{"$f":"IF(Tabelle_Auswertung[[#This Row],[Platz]]=5,CONCATENATE(Tabelle_Auswertung[[#This Row],[Bildname]],\" von \",Tabelle_Auswertung[[#This Row],[Autor(in)]]),\"\")","v":""},{"$f":"IF(Tabelle_Auswertung[[#This Row],[Platz]]=6,CONCATENATE(Tabelle_Auswertung[[#This Row],[Bildname]],\" von \",Tabelle_Auswertung[[#This Row],[Autor(in)]]),\"\")","v":""},{"$f":"IF(Tabelle_Auswertung[[#This Row],[Platz]]=7,CONCATENATE(Tabelle_Auswertung[[#This Row],[Bildname]],\" von \",Tabelle_Auswertung[[#This Row],[Autor(in)]]),\"\")","v":""},{"$f":"IF(Tabelle_Auswertung[[#This Row],[Platz]]=8,CONCATENATE(Tabelle_Auswertung[[#This Row],[Bildname]],\" von \",Tabelle_Auswertung[[#This Row],[Autor(in)]]),\"\")","v":""},{"$f":"IF(Tabelle_Auswertung[[#This Row],[Platz]]=9,CONCATENATE(Tabelle_Auswertung[[#This Row],[Bildname]],\" von \",Tabelle_Auswertung[[#This Row],[Autor(in)]]),\"\")","v":""},{"$f":"IF(Tabelle_Auswertung[[#This Row],[Platz]]=10,CONCATENATE(Tabelle_Auswertung[[#This Row],[Bildname]],\" von \",Tabelle_Auswertung[[#This Row],[Autor(in)]]),\"\")","v":""}]
[{"$nulls":21},{"$f":"IF(Tabelle_Auswertung[[#This Row],[Bildname]]<>\"\",SUM(Tabelle_Auswertung[[#This Row],[Juror 1]:[Juror 20]]),\" - \")","v":" - "},{"$f":"IF(Tabelle_Auswertung[[#This Row],[Bildname]]<>\"\",IF(Tabelle_Auswertung[[#This Row],[Punkte]]>0,AVERAGE(Tabelle_Auswertung[[#This Row],[Juror 1]:[Juror 20]]),\" - \"),\" - \")","v":" - "},{"$f":"IF(Tabelle_Auswertung[[#This Row],[Bildname]]<>\"\",IF(Tabelle_Auswertung[[#This Row],[Punkte]]>0,RANK(Tabelle_Auswertung[[#This Row],[Punkte]],[Punkte],0),\" - \"),\" - \")","v":" - "}," - - -",{"$f":"IF(Tabelle_Auswertung[[#This Row],[Platz]]=1,CONCATENATE(Tabelle_Auswertung[[#This Row],[Bildname]],\" von \",Tabelle_Auswertung[[#This Row],[Autor(in)]]),\"\")","v":""},{"$f":"IF(Tabelle_Auswertung[[#This Row],[Platz]]=2,CONCATENATE(Tabelle_Auswertung[[#This Row],[Bildname]],\" von \",Tabelle_Auswertung[[#This Row],[Autor(in)]]),\"\")","v":""},{"$f":"IF(Tabelle_Auswertung[[#This Row],[Platz]]=3,CONCATENATE(Tabelle_Auswertung[[#This Row],[Bildname]],\" von \",Tabelle_Auswertung[[#This Row],[Autor(in)]]),\"\")","v":""},{"$f":"IF(Tabelle_Auswertung[[#This Row],[Platz]]=4,CONCATENATE(Tabelle_Auswertung[[#This Row],[Bildname]],\" von \",Tabelle_Auswertung[[#This Row],[Autor(in)]]),\"\")","v":""},{"$f":"IF(Tabelle_Auswertung[[#This Row],[Platz]]=5,CONCATENATE(Tabelle_Auswertung[[#This Row],[Bildname]],\" von \",Tabelle_Auswertung[[#This Row],[Autor(in)]]),\"\")","v":""},{"$f":"IF(Tabelle_Auswertung[[#This Row],[Platz]]=6,CONCATENATE(Tabelle_Auswertung[[#This Row],[Bildname]],\" von \",Tabelle_Auswertung[[#This Row],[Autor(in)]]),\"\")","v":""},{"$f":"IF(Tabelle_Auswertung[[#This Row],[Platz]]=7,CONCATENATE(Tabelle_Auswertung[[#This Row],[Bildname]],\" von \",Tabelle_Auswertung[[#This Row],[Autor(in)]]),\"\")","v":""},{"$f":"IF(Tabelle_Auswertung[[#This Row],[Platz]]=8,CONCATENATE(Tabelle_Auswertung[[#This Row],[Bildname]],\" von \",Tabelle_Auswertung[[#This Row],[Autor(in)]]),\"\")","v":""},{"$f":"IF(Tabelle_Auswertung[[#This Row],[Platz]]=9,CONCATENATE(Tabelle_Auswertung[[#This Row],[Bildname]],\" von \",Tabelle_Auswertung[[#This Row],[Autor(in)]]),\"\")","v":""},{"$f":"IF(Tabelle_Auswertung[[#This Row],[Platz]]=10,CONCATENATE(Tabelle_Auswertung[[#This Row],[Bildname]],\" von \",Tabelle_Auswertung[[#This Row],[Autor(in)]]),\"\")","v":""}]
[{"$nulls":21},{"$f":"IF(Tabelle_Auswertung[[#This Row],[Bildname]]<>\"\",SUM(Tabelle_Auswertung[[#This Row],[Juror 1]:[Juror 20]]),\" - \")","v":" - "},{"$f":"IF(Tabelle_Auswertung[[#This Row],[Bildname]]<>\"\",IF(Tabelle_Auswertung[[#This Row],[Punkte]]>0,AVERAGE(Tabelle_Auswertung[[#This Row],[Juror 1]:[Juror 20]]),\" - \"),\" - \")","v":" - "},{"$f":"IF(Tabelle_Auswertung[[#This Row],[Bildname]]<>\"\",IF(Tabelle_Auswertung[[#This Row],[Punkte]]>0,RANK(Tabelle_Auswertung[[#This Row],[Punkte]],[Punkte],0),\" - \"),\" - \")","v":" - "}," - - -",{"$f":"IF(Tabelle_Auswertung[[#This Row],[Platz]]=1,CONCATENATE(Tabelle_Auswertung[[#This Row],[Bildname]],\" von \",Tabelle_Auswertung[[#This Row],[Autor(in)]]),\"\")","v":""},{"$f":"IF(Tabelle_Auswertung[[#This Row],[Platz]]=2,CONCATENATE(Tabelle_Auswertung[[#This Row],[Bildname]],\" von \",Tabelle_Auswertung[[#This Row],[Autor(in)]]),\"\")","v":""},{"$f":"IF(Tabelle_Auswertung[[#This Row],[Platz]]=3,CONCATENATE(Tabelle_Auswertung[[#This Row],[Bildname]],\" von \",Tabelle_Auswertung[[#This Row],[Autor(in)]]),\"\")","v":""},{"$f":"IF(Tabelle_Auswertung[[#This Row],[Platz]]=4,CONCATENATE(Tabelle_Auswertung[[#This Row],[Bildname]],\" von \",Tabelle_Auswertung[[#This Row],[Autor(in)]]),\"\")","v":""},{"$f":"IF(Tabelle_Auswertung[[#This Row],[Platz]]=5,CONCATENATE(Tabelle_Auswertung[[#This Row],[Bildname]],\" von \",Tabelle_Auswertung[[#This Row],[Autor(in)]]),\"\")","v":""},{"$f":"IF(Tabelle_Auswertung[[#This Row],[Platz]]=6,CONCATENATE(Tabelle_Auswertung[[#This Row],[Bildname]],\" von \",Tabelle_Auswertung[[#This Row],[Autor(in)]]),\"\")","v":""},{"$f":"IF(Tabelle_Auswertung[[#This Row],[Platz]]=7,CONCATENATE(Tabelle_Auswertung[[#This Row],[Bildname]],\" von \",Tabelle_Auswertung[[#This Row],[Autor(in)]]),\"\")","v":""},{"$f":"IF(Tabelle_Auswertung[[#This Row],[Platz]]=8,CONCATENATE(Tabelle_Auswertung[[#This Row],[Bildname]],\" von \",Tabelle_Auswertung[[#This Row],[Autor(in)]]),\"\")","v":""},{"$f":"IF(Tabelle_Auswertung[[#This Row],[Platz]]=9,CONCATENATE(Tabelle_Auswertung[[#This Row],[Bildname]],\" von \",Tabelle_Auswertung[[#This Row],[Autor(in)]]),\"\")","v":""},{"$f":"IF(Tabelle_Auswertung[[#This Row],[Platz]]=10,CONCATENATE(Tabelle_Auswertung[[#This Row],[Bildname]],\" von \",Tabelle_Auswertung[[#This Row],[Autor(in)]]),\"\")","v":""}]
[{"$nulls":21},{"$f":"IF(Tabelle_Auswertung[[#This Row],[Bildname]]<>\"\",SUM(Tabelle_Auswertung[[#This Row],[Juror 1]:[Juror 20]]),\" - \")","v":" - "},{"$f":"IF(Tabelle_Auswertung[[#This Row],[Bildname]]<>\"\",IF(Tabelle_Auswertung[[#This Row],[Punkte]]>0,AVERAGE(Tabelle_Auswertung[[#This Row],[Juror 1]:[Juror 20]]),\" - \"),\" - \")","v":" - "},{"$f":"IF(Tabelle_Auswertung[[#This Row],[Bildname]]<>\"\",IF(Tabelle_Auswertung[[#This Row],[Punkte]]>0,RANK(Tabelle_Auswertung[[#This Row],[Punkte]],[Punkte],0),\" - \"),\" - \")","v":" - "}," - - -",{"$f":"IF(Tabelle_Auswertung[[#This Row],[Platz]]=1,CONCATENATE(Tabelle_Auswertung[[#This Row],[Bildname]],\" von \",Tabelle_Auswertung[[#This Row],[Autor(in)]]),\"\")","v":""},{"$f":"IF(Tabelle_Auswertung[[#This Row],[Platz]]=2,CONCATENATE(Tabelle_Auswertung[[#This Row],[Bildname]],\" von \",Tabelle_Auswertung[[#This Row],[Autor(in)]]),\"\")","v":""},{"$f":"IF(Tabelle_Auswertung[[#This Row],[Platz]]=3,CONCATENATE(Tabelle_Auswertung[[#This Row],[Bildname]],\" von \",Tabelle_Auswertung[[#This Row],[Autor(in)]]),\"\")","v":""},{"$f":"IF(Tabelle_Auswertung[[#This Row],[Platz]]=4,CONCATENATE(Tabelle_Auswertung[[#This Row],[Bildname]],\" von \",Tabelle_Auswertung[[#This Row],[Autor(in)]]),\"\")","v":""},{"$f":"IF(Tabelle_Auswertung[[#This Row],[Platz]]=5,CONCATENATE(Tabelle_Auswertung[[#This Row],[Bildname]],\" von \",Tabelle_Auswertung[[#This Row],[Autor(in)]]),\"\")","v":""},{"$f":"IF(Tabelle_Auswertung[[#This Row],[Platz]]=6,CONCATENATE(Tabelle_Auswertung[[#This Row],[Bildname]],\" von \",Tabelle_Auswertung[[#This Row],[Autor(in)]]),\"\")","v":""},{"$f":"IF(Tabelle_Auswertung[[#This Row],[Platz]]=7,CONCATENATE(Tabelle_Auswertung[[#This Row],[Bildname]],\" von \",Tabelle_Auswertung[[#This Row],[Autor(in)]]),\"\")","v":""},{"$f":"IF(Tabelle_Auswertung[[#This Row],[Platz]]=8,CONCATENATE(Tabelle_Auswertung[[#This Row],[Bildname]],\" von \",Tabelle_Auswertung[[#This Row],[Autor(in)]]),\"\")","v":""},{"$f":"IF(Tabelle_Auswertung[[#This Row],[Platz]]=9,CONCATENATE(Tabelle_Auswertung[[#This Row],[Bildname]],\" von \",Tabelle_Auswertung[[#This Row],[Autor(in)]]),\"\")","v":""},{"$f":"IF(Tabelle_Auswertung[[#This Row],[Platz]]=10,CONCATENATE(Tabelle_Auswertung[[#This Row],[Bildname]],\" von \",Tabelle_Auswertung[[#This Row],[Autor(in)]]),\"\")","v":""}]
[{"$nulls":21},{"$f":"IF(Tabelle_Auswertung[[#This Row],[Bildname]]<>\"\",SUM(Tabelle_Auswertung[[#This Row],[Juror 1]:[Juror 20]]),\" - \")","v":" - "},{"$f":"IF(Tabelle_Auswertung[[#This Row],[Bildname]]<>\"\",IF(Tabelle_Auswertung[[#This Row],[Punkte]]>0,AVERAGE(Tabelle_Auswertung[[#This Row],[Juror 1]:[Juror 20]]),\" - \"),\" - \")","v":" - "},{"$f":"IF(Tabelle_Auswertung[[#This Row],[Bildname]]<>\"\",IF(Tabelle_Auswertung[[#This Row],[Punkte]]>0,RANK(Tabelle_Auswertung[[#This Row],[Punkte]],[Punkte],0),\" - \"),\" - \")","v":" - "}," - - -",{"$f":"IF(Tabelle_Auswertung[[#This Row],[Platz]]=1,CONCATENATE(Tabelle_Auswertung[[#This Row],[Bildname]],\" von \",Tabelle_Auswertung[[#This Row],[Autor(in)]]),\"\")","v":""},{"$f":"IF(Tabelle_Auswertung[[#This Row],[Platz]]=2,CONCATENATE(Tabelle_Auswertung[[#This Row],[Bildname]],\" von \",Tabelle_Auswertung[[#This Row],[Autor(in)]]),\"\")","v":""},{"$f":"IF(Tabelle_Auswertung[[#This Row],[Platz]]=3,CONCATENATE(Tabelle_Auswertung[[#This Row],[Bildname]],\" von \",Tabelle_Auswertung[[#This Row],[Autor(in)]]),\"\")","v":""},{"$f":"IF(Tabelle_Auswertung[[#This Row],[Platz]]=4,CONCATENATE(Tabelle_Auswertung[[#This Row],[Bildname]],\" von \",Tabelle_Auswertung[[#This Row],[Autor(in)]]),\"\")","v":""},{"$f":"IF(Tabelle_Auswertung[[#This Row],[Platz]]=5,CONCATENATE(Tabelle_Auswertung[[#This Row],[Bildname]],\" von \",Tabelle_Auswertung[[#This Row],[Autor(in)]]),\"\")","v":""},{"$f":"IF(Tabelle_Auswertung[[#This Row],[Platz]]=6,CONCATENATE(Tabelle_Auswertung[[#This Row],[Bildname]],\" von \",Tabelle_Auswertung[[#This Row],[Autor(in)]]),\"\")","v":""},{"$f":"IF(Tabelle_Auswertung[[#This Row],[Platz]]=7,CONCATENATE(Tabelle_Auswertung[[#This Row],[Bildname]],\" von \",Tabelle_Auswertung[[#This Row],[Autor(in)]]),\"\")","v":""},{"$f":"IF(Tabelle_Auswertung[[#This Row],[Platz]]=8,CONCATENATE(Tabelle_Auswertung[[#This Row],[Bildname]],\" von \",Tabelle_Auswertung[[#This Row],[Autor(in)]]),\"\")","v":""},{"$f":"IF(Tabelle_Auswertung[[#This Row],[Platz]]=9,CONCATENATE(Tabelle_Auswertung[[#This Row],[Bildname]],\" von \",Tabelle_Auswertung[[#This Row],[Autor(in)]]),\"\")","v":""},{"$f":"IF(Tabelle_Auswertung[[#This Row],[Platz]]=10,CONCATENATE(Tabelle_Auswertung[[#This Row],[Bildname]],\" von \",Tabelle_Auswertung[[#This Row],[Autor(in)]]),\"\")","v":""}]
[{"$nulls":21},{"$f":"IF(Tabelle_Auswertung[[#This Row],[Bildname]]<>\"\",SUM(Tabelle_Auswertung[[#This Row],[Juror 1]:[Juror 20]]),\" - \")","v":" - "},{"$f":"IF(Tabelle_Auswertung[[#This Row],[Bildname]]<>\"\",IF(Tabelle_Auswertung[[#This Row],[Punkte]]>0,AVERAGE(Tabelle_Auswertung[[#This Row],[Juror 1]:[Juror 20]]),\" - \"),\" - \")","v":" - "},{"$f":"IF(Tabelle_Auswertung[[#This Row],[Bildname]]<>\"\",IF(Tabelle_Auswertung[[#This Row],[Punkte]]>0,RANK(Tabelle_Auswertung[[#This Row],[Punkte]],[Punkte],0),\" - \"),\" - \")","v":" - "}," - - -",{"$f":"IF(Tabelle_Auswertung[[#This Row],[Platz]]=1,CONCATENATE(Tabelle_Auswertung[[#This Row],[Bildname]],\" von \",Tabelle_Auswertung[[#This Row],[Autor(in)]]),\"\")","v":""},{"$f":"IF(Tabelle_Auswertung[[#This Row],[Platz]]=2,CONCATENATE(Tabelle_Auswertung[[#This Row],[Bildname]],\" von \",Tabelle_Auswertung[[#This Row],[Autor(in)]]),\"\")","v":""},{"$f":"IF(Tabelle_Auswertung[[#This Row],[Platz]]=3,CONCATENATE(Tabelle_Auswertung[[#This Row],[Bildname]],\" von \",Tabelle_Auswertung[[#This Row],[Autor(in)]]),\"\")","v":""},{"$f":"IF(Tabelle_Auswertung[[#This Row],[Platz]]=4,CONCATENATE(Tabelle_Auswertung[[#This Row],[Bildname]],\" von \",Tabelle_Auswertung[[#This Row],[Autor(in)]]),\"\")","v":""},{"$f":"IF(Tabelle_Auswertung[[#This Row],[Platz]]=5,CONCATENATE(Tabelle_Auswertung[[#This Row],[Bildname]],\" von \",Tabelle_Auswertung[[#This Row],[Autor(in)]]),\"\")","v":""},{"$f":"IF(Tabelle_Auswertung[[#This Row],[Platz]]=6,CONCATENATE(Tabelle_Auswertung[[#This Row],[Bildname]],\" von \",Tabelle_Auswertung[[#This Row],[Autor(in)]]),\"\")","v":""},{"$f":"IF(Tabelle_Auswertung[[#This Row],[Platz]]=7,CONCATENATE(Tabelle_Auswertung[[#This Row],[Bildname]],\" von \",Tabelle_Auswertung[[#This Row],[Autor(in)]]),\"\")","v":""},{"$f":"IF(Tabelle_Auswertung[[#This Row],[Platz]]=8,CONCATENATE(Tabelle_Auswertung[[#This Row],[Bildname]],\" von \",Tabelle_Auswertung[[#This Row],[Autor(in)]]),\"\")","v":""},{"$f":"IF(Tabelle_Auswertung[[#This Row],[Platz]]=9,CONCATENATE(Tabelle_Auswertung[[#This Row],[Bildname]],\" von \",Tabelle_Auswertung[[#This Row],[Autor(in)]]),\"\")","v":""},{"$f":"IF(Tabelle_Auswertung[[#This Row],[Platz]]=10,CONCATENATE(Tabelle_Auswertung[[#This Row],[Bildname]],\" von \",Tabelle_Auswertung[[#This Row],[Autor(in)]]),\"\")","v":""}]
[{"$nulls":21},{"$f":"IF(Tabelle_Auswertung[[#This Row],[Bildname]]<>\"\",SUM(Tabelle_Auswertung[[#This Row],[Juror 1]:[Juror 20]]),\" - \")","v":" - "},{"$f":"IF(Tabelle_Auswertung[[#This Row],[Bildname]]<>\"\",IF(Tabelle_Auswertung[[#This Row],[Punkte]]>0,AVERAGE(Tabelle_Auswertung[[#This Row],[Juror 1]:[Juror 20]]),\" - \"),\" - \")","v":" - "},{"$f":"IF(Tabelle_Auswertung[[#This Row],[Bildname]]<>\"\",IF(Tabelle_Auswertung[[#This Row],[Punkte]]>0,RANK(Tabelle_Auswertung[[#This Row],[Punkte]],[Punkte],0),\" - \"),\" - \")","v":" - "}," - - -",{"$f":"IF(Tabelle_Auswertung[[#This Row],[Platz]]=1,CONCATENATE(Tabelle_Auswertung[[#This Row],[Bildname]],\" von \",Tabelle_Auswertung[[#This Row],[Autor(in)]]),\"\")","v":""},{"$f":"IF(Tabelle_Auswertung[[#This Row],[Platz]]=2,CONCATENATE(Tabelle_Auswertung[[#This Row],[Bildname]],\" von \",Tabelle_Auswertung[[#This Row],[Autor(in)]]),\"\")","v":""},{"$f":"IF(Tabelle_Auswertung[[#This Row],[Platz]]=3,CONCATENATE(Tabelle_Auswertung[[#This Row],[Bildname]],\" von \",Tabelle_Auswertung[[#This Row],[Autor(in)]]),\"\")","v":""},{"$f":"IF(Tabelle_Auswertung[[#This Row],[Platz]]=4,CONCATENATE(Tabelle_Auswertung[[#This Row],[Bildname]],\" von \",Tabelle_Auswertung[[#This Row],[Autor(in)]]),\"\")","v":""},{"$f":"IF(Tabelle_Auswertung[[#This Row],[Platz]]=5,CONCATENATE(Tabelle_Auswertung[[#This Row],[Bildname]],\" von \",Tabelle_Auswertung[[#This Row],[Autor(in)]]),\"\")","v":""},{"$f":"IF(Tabelle_Auswertung[[#This Row],[Platz]]=6,CONCATENATE(Tabelle_Auswertung[[#This Row],[Bildname]],\" von \",Tabelle_Auswertung[[#This Row],[Autor(in)]]),\"\")","v":""},{"$f":"IF(Tabelle_Auswertung[[#This Row],[Platz]]=7,CONCATENATE(Tabelle_Auswertung[[#This Row],[Bildname]],\" von \",Tabelle_Auswertung[[#This Row],[Autor(in)]]),\"\")","v":""},{"$f":"IF(Tabelle_Auswertung[[#This Row],[Platz]]=8,CONCATENATE(Tabelle_Auswertung[[#This Row],[Bildname]],\" von \",Tabelle_Auswertung[[#This Row],[Autor(in)]]),\"\")","v":""},{"$f":"IF(Tabelle_Auswertung[[#This Row],[Platz]]=9,CONCATENATE(Tabelle_Auswertung[[#This Row],[Bildname]],\" von \",Tabelle_Auswertung[[#This Row],[Autor(in)]]),\"\")","v":""},{"$f":"IF(Tabelle_Auswertung[[#This Row],[Platz]]=10,CONCATENATE(Tabelle_Auswertung[[#This Row],[Bildname]],\" von \",Tabelle_Auswertung[[#This Row],[Autor(in)]]),\"\")","v":""}]
[{"$nulls":21},{"$f":"IF(Tabelle_Auswertung[[#This Row],[Bildname]]<>\"\",SUM(Tabelle_Auswertung[[#This Row],[Juror 1]:[Juror 20]]),\" - \")","v":" - "},{"$f":"IF(Tabelle_Auswertung[[#This Row],[Bildname]]<>\"\",IF(Tabelle_Auswertung[[#This Row],[Punkte]]>0,AVERAGE(Tabelle_Auswertung[[#This Row],[Juror 1]:[Juror 20]]),\" - \"),\" - \")","v":" - "},{"$f":"IF(Tabelle_Auswertung[[#This Row],[Bildname]]<>\"\",IF(Tabelle_Auswertung[[#This Row],[Punkte]]>0,RANK(Tabelle_Auswertung[[#This Row],[Punkte]],[Punkte],0),\" - \"),\" - \")","v":" - "}," - - -",{"$f":"IF(Tabelle_Auswertung[[#This Row],[Platz]]=1,CONCATENATE(Tabelle_Auswertung[[#This Row],[Bildname]],\" von \",Tabelle_Auswertung[[#This Row],[Autor(in)]]),\"\")","v":""},{"$f":"IF(Tabelle_Auswertung[[#This Row],[Platz]]=2,CONCATENATE(Tabelle_Auswertung[[#This Row],[Bildname]],\" von \",Tabelle_Auswertung[[#This Row],[Autor(in)]]),\"\")","v":""},{"$f":"IF(Tabelle_Auswertung[[#This Row],[Platz]]=3,CONCATENATE(Tabelle_Auswertung[[#This Row],[Bildname]],\" von \",Tabelle_Auswertung[[#This Row],[Autor(in)]]),\"\")","v":""},{"$f":"IF(Tabelle_Auswertung[[#This Row],[Platz]]=4,CONCATENATE(Tabelle_Auswertung[[#This Row],[Bildname]],\" von \",Tabelle_Auswertung[[#This Row],[Autor(in)]]),\"\")","v":""},{"$f":"IF(Tabelle_Auswertung[[#This Row],[Platz]]=5,CONCATENATE(Tabelle_Auswertung[[#This Row],[Bildname]],\" von \",Tabelle_Auswertung[[#This Row],[Autor(in)]]),\"\")","v":""},{"$f":"IF(Tabelle_Auswertung[[#This Row],[Platz]]=6,CONCATENATE(Tabelle_Auswertung[[#This Row],[Bildname]],\" von \",Tabelle_Auswertung[[#This Row],[Autor(in)]]),\"\")","v":""},{"$f":"IF(Tabelle_Auswertung[[#This Row],[Platz]]=7,CONCATENATE(Tabelle_Auswertung[[#This Row],[Bildname]],\" von \",Tabelle_Auswertung[[#This Row],[Autor(in)]]),\"\")","v":""},{"$f":"IF(Tabelle_Auswertung[[#This Row],[Platz]]=8,CONCATENATE(Tabelle_Auswertung[[#This Row],[Bildname]],\" von \",Tabelle_Auswertung[[#This Row],[Autor(in)]]),\"\")","v":""},{"$f":"IF(Tabelle_Auswertung[[#This Row],[Platz]]=9,CONCATENATE(Tabelle_Auswertung[[#This Row],[Bildname]],\" von \",Tabelle_Auswertung[[#This Row],[Autor(in)]]),\"\")","v":""},{"$f":"IF(Tabelle_Auswertung[[#This Row],[Platz]]=10,CONCATENATE(Tabelle_Auswertung[[#This Row],[Bildname]],\" von \",Tabelle_Auswertung[[#This Row],[Autor(in)]]),\"\")","v":""}]
[{"$nulls":21},{"$f":"IF(Tabelle_Auswertung[[#This Row],[Bildname]]<>\"\",SUM(Tabelle_Auswertung[[#This Row],[Juror 1]:[Juror 20]]),\" - \")","v":" - "},{"$f":"IF(Tabelle_Auswertung[[#This Row],[Bildname]]<>\"\",IF(Tabelle_Auswertung[[#This Row],[Punkte]]>0,AVERAGE(Tabelle_Auswertung[[#This Row],[Juror 1]:[Juror 20]]),\" - \"),\" - \")","v":" - "},{"$f":"IF(Tabelle_Auswertung[[#This Row],[Bildname]]<>\"\",IF(Tabelle_Auswertung[[#This Row],[Punkte]]>0,RANK(Tabelle_Auswertung[[#This Row],[Punkte]],[Punkte],0),\" - \"),\" - \")","v":" - "}," - - -",{"$f":"IF(Tabelle_Auswertung[[#This Row],[Platz]]=1,CONCATENATE(Tabelle_Auswertung[[#This Row],[Bildname]],\" von \",Tabelle_Auswertung[[#This Row],[Autor(in)]]),\"\")","v":""},{"$f":"IF(Tabelle_Auswertung[[#This Row],[Platz]]=2,CONCATENATE(Tabelle_Auswertung[[#This Row],[Bildname]],\" von \",Tabelle_Auswertung[[#This Row],[Autor(in)]]),\"\")","v":""},{"$f":"IF(Tabelle_Auswertung[[#This Row],[Platz]]=3,CONCATENATE(Tabelle_Auswertung[[#This Row],[Bildname]],\" von \",Tabelle_Auswertung[[#This Row],[Autor(in)]]),\"\")","v":""},{"$f":"IF(Tabelle_Auswertung[[#This Row],[Platz]]=4,CONCATENATE(Tabelle_Auswertung[[#This Row],[Bildname]],\" von \",Tabelle_Auswertung[[#This Row],[Autor(in)]]),\"\")","v":""},{"$f":"IF(Tabelle_Auswertung[[#This Row],[Platz]]=5,CONCATENATE(Tabelle_Auswertung[[#This Row],[Bildname]],\" von \",Tabelle_Auswertung[[#This Row],[Autor(in)]]),\"\")","v":""},{"$f":"IF(Tabelle_Auswertung[[#This Row],[Platz]]=6,CONCATENATE(Tabelle_Auswertung[[#This Row],[Bildname]],\" von \",Tabelle_Auswertung[[#This Row],[Autor(in)]]),\"\")","v":""},{"$f":"IF(Tabelle_Auswertung[[#This Row],[Platz]]=7,CONCATENATE(Tabelle_Auswertung[[#This Row],[Bildname]],\" von \",Tabelle_Auswertung[[#This Row],[Autor(in)]]),\"\")","v":""},{"$f":"IF(Tabelle_Auswertung[[#This Row],[Platz]]=8,CONCATENATE(Tabelle_Auswertung[[#This Row],[Bildname]],\" von \",Tabelle_Auswertung[[#This Row],[Autor(in)]]),\"\")","v":""},{"$f":"IF(Tabelle_Auswertung[[#This Row],[Platz]]=9,CONCATENATE(Tabelle_Auswertung[[#This Row],[Bildname]],\" von \",Tabelle_Auswertung[[#This Row],[Autor(in)]]),\"\")","v":""},{"$f":"IF(Tabelle_Auswertung[[#This Row],[Platz]]=10,CONCATENATE(Tabelle_Auswertung[[#This Row],[Bildname]],\" von \",Tabelle_Auswertung[[#This Row],[Autor(in)]]),\"\")","v":""}]
[{"$nulls":21},{"$f":"IF(Tabelle_Auswertung[[#This Row],[Bildname]]<>\"\",SUM(Tabelle_Auswertung[[#This Row],[Juror 1]:[Juror 20]]),\" - \")","v":" - "},{"$f":"IF(Tabelle_Auswertung[[#This Row],[Bildname]]<>\"\",IF(Tabelle_Auswertung[[#This Row],[Punkte]]>0,AVERAGE(Tabelle_Auswertung[[#This Row],[Juror 1]:[Juror 20]]),\" - \"),\" - \")","v":" - "},{"$f":"IF(Tabelle_Auswertung[[#This Row],[Bildname]]<>\"\",IF(Tabelle_Auswertung[[#This Row],[Punkte]]>0,RANK(Tabelle_Auswertung[[#This Row],[Punkte]],[Punkte],0),\" - \"),\" - \")","v":" - "}," - - -",{"$f":"IF(Tabelle_Auswertung[[#This Row],[Platz]]=1,CONCATENATE(Tabelle_Auswertung[[#This Row],[Bildname]],\" von \",Tabelle_Auswertung[[#This Row],[Autor(in)]]),\"\")","v":""},{"$f":"IF(Tabelle_Auswertung[[#This Row],[Platz]]=2,CONCATENATE(Tabelle_Auswertung[[#This Row],[Bildname]],\" von \",Tabelle_Auswertung[[#This Row],[Autor(in)]]),\"\")","v":""},{"$f":"IF(Tabelle_Auswertung[[#This Row],[Platz]]=3,CONCATENATE(Tabelle_Auswertung[[#This Row],[Bildname]],\" von \",Tabelle_Auswertung[[#This Row],[Autor(in)]]),\"\")","v":""},{"$f":"IF(Tabelle_Auswertung[[#This Row],[Platz]]=4,CONCATENATE(Tabelle_Auswertung[[#This Row],[Bildname]],\" von \",Tabelle_Auswertung[[#This Row],[Autor(in)]]),\"\")","v":""},{"$f":"IF(Tabelle_Auswertung[[#This Row],[Platz]]=5,CONCATENATE(Tabelle_Auswertung[[#This Row],[Bildname]],\" von \",Tabelle_Auswertung[[#This Row],[Autor(in)]]),\"\")","v":""},{"$f":"IF(Tabelle_Auswertung[[#This Row],[Platz]]=6,CONCATENATE(Tabelle_Auswertung[[#This Row],[Bildname]],\" von \",Tabelle_Auswertung[[#This Row],[Autor(in)]]),\"\")","v":""},{"$f":"IF(Tabelle_Auswertung[[#This Row],[Platz]]=7,CONCATENATE(Tabelle_Auswertung[[#This Row],[Bildname]],\" von \",Tabelle_Auswertung[[#This Row],[Autor(in)]]),\"\")","v":""},{"$f":"IF(Tabelle_Auswertung[[#This Row],[Platz]]=8,CONCATENATE(Tabelle_Auswertung[[#This Row],[Bildname]],\" von \",Tabelle_Auswertung[[#This Row],[Autor(in)]]),\"\")","v":""},{"$f":"IF(Tabelle_Auswertung[[#This Row],[Platz]]=9,CONCATENATE(Tabelle_Auswertung[[#This Row],[Bildname]],\" von \",Tabelle_Auswertung[[#This Row],[Autor(in)]]),\"\")","v":""},{"$f":"IF(Tabelle_Auswertung[[#This Row],[Platz]]=10,CONCATENATE(Tabelle_Auswertung[[#This Row],[Bildname]],\" von \",Tabelle_Auswertung[[#This Row],[Autor(in)]]),\"\")","v":""}]
[{"$nulls":21},{"$f":"IF(Tabelle_Auswertung[[#This Row],[Bildname]]<>\"\",SUM(Tabelle_Auswertung[[#This Row],[Juror 1]:[Juror 20]]),\" - \")","v":" - "},{"$f":"IF(Tabelle_Auswertung[[#This Row],[Bildname]]<>\"\",IF(Tabelle_Auswertung[[#This Row],[Punkte]]>0,AVERAGE(Tabelle_Auswertung[[#This Row],[Juror 1]:[Juror 20]]),\" - \"),\" - \")","v":" - "},{"$f":"IF(Tabelle_Auswertung[[#This Row],[Bildname]]<>\"\",IF(Tabelle_Auswertung[[#This Row],[Punkte]]>0,RANK(Tabelle_Auswertung[[#This Row],[Punkte]],[Punkte],0),\" - \"),\" - \")","v":" - "}," - - -",{"$f":"IF(Tabelle_Auswertung[[#This Row],[Platz]]=1,CONCATENATE(Tabelle_Auswertung[[#This Row],[Bildname]],\" von \",Tabelle_Auswertung[[#This Row],[Autor(in)]]),\"\")","v":""},{"$f":"IF(Tabelle_Auswertung[[#This Row],[Platz]]=2,CONCATENATE(Tabelle_Auswertung[[#This Row],[Bildname]],\" von \",Tabelle_Auswertung[[#This Row],[Autor(in)]]),\"\")","v":""},{"$f":"IF(Tabelle_Auswertung[[#This Row],[Platz]]=3,CONCATENATE(Tabelle_Auswertung[[#This Row],[Bildname]],\" von \",Tabelle_Auswertung[[#This Row],[Autor(in)]]),\"\")","v":""},{"$f":"IF(Tabelle_Auswertung[[#This Row],[Platz]]=4,CONCATENATE(Tabelle_Auswertung[[#This Row],[Bildname]],\" von \",Tabelle_Auswertung[[#This Row],[Autor(in)]]),\"\")","v":""},{"$f":"IF(Tabelle_Auswertung[[#This Row],[Platz]]=5,CONCATENATE(Tabelle_Auswertung[[#This Row],[Bildname]],\" von \",Tabelle_Auswertung[[#This Row],[Autor(in)]]),\"\")","v":""},{"$f":"IF(Tabelle_Auswertung[[#This Row],[Platz]]=6,CONCATENATE(Tabelle_Auswertung[[#This Row],[Bildname]],\" von \",Tabelle_Auswertung[[#This Row],[Autor(in)]]),\"\")","v":""},{"$f":"IF(Tabelle_Auswertung[[#This Row],[Platz]]=7,CONCATENATE(Tabelle_Auswertung[[#This Row],[Bildname]],\" von \",Tabelle_Auswertung[[#This Row],[Autor(in)]]),\"\")","v":""},{"$f":"IF(Tabelle_Auswertung[[#This Row],[Platz]]=8,CONCATENATE(Tabelle_Auswertung[[#This Row],[Bildname]],\" von \",Tabelle_Auswertung[[#This Row],[Autor(in)]]),\"\")","v":""},{"$f":"IF(Tabelle_Auswertung[[#This Row],[Platz]]=9,CONCATENATE(Tabelle_Auswertung[[#This Row],[Bildname]],\" von \",Tabelle_Auswertung[[#This Row],[Autor(in)]]),\"\")","v":""},{"$f":"IF(Tabelle_Auswertung[[#This Row],[Platz]]=10,CONCATENATE(Tabelle_Auswertung[[#This Row],[Bildname]],\" von \",Tabelle_Auswertung[[#This Row],[Autor(in)]]),\"\")","v":""}]
[{"$nulls":21},{"$f":"IF(Tabelle_Auswertung[[#This Row],[Bildname]]<>\"\",SUM(Tabelle_Auswertung[[#This Row],[Juror 1]:[Juror 20]]),\" - \")","v":" - "},{"$f":"IF(Tabelle_Auswertung[[#This Row],[Bildname]]<>\"\",IF(Tabelle_Auswertung[[#This Row],[Punkte]]>0,AVERAGE(Tabelle_Auswertung[[#This Row],[Juror 1]:[Juror 20]]),\" - \"),\" - \")","v":" - "},{"$f":"IF(Tabelle_Auswertung[[#This Row],[Bildname]]<>\"\",IF(Tabelle_Auswertung[[#This Row],[Punkte]]>0,RANK(Tabelle_Auswertung[[#This Row],[Punkte]],[Punkte],0),\" - \"),\" - \")","v":" - "}," - - -",{"$f":"IF(Tabelle_Auswertung[[#This Row],[Platz]]=1,CONCATENATE(Tabelle_Auswertung[[#This Row],[Bildname]],\" von \",Tabelle_Auswertung[[#This Row],[Autor(in)]]),\"\")","v":""},{"$f":"IF(Tabelle_Auswertung[[#This Row],[Platz]]=2,CONCATENATE(Tabelle_Auswertung[[#This Row],[Bildname]],\" von \",Tabelle_Auswertung[[#This Row],[Autor(in)]]),\"\")","v":""},{"$f":"IF(Tabelle_Auswertung[[#This Row],[Platz]]=3,CONCATENATE(Tabelle_Auswertung[[#This Row],[Bildname]],\" von \",Tabelle_Auswertung[[#This Row],[Autor(in)]]),\"\")","v":""},{"$f":"IF(Tabelle_Auswertung[[#This Row],[Platz]]=4,CONCATENATE(Tabelle_Auswertung[[#This Row],[Bildname]],\" von \",Tabelle_Auswertung[[#This Row],[Autor(in)]]),\"\")","v":""},{"$f":"IF(Tabelle_Auswertung[[#This Row],[Platz]]=5,CONCATENATE(Tabelle_Auswertung[[#This Row],[Bildname]],\" von \",Tabelle_Auswertung[[#This Row],[Autor(in)]]),\"\")","v":""},{"$f":"IF(Tabelle_Auswertung[[#This Row],[Platz]]=6,CONCATENATE(Tabelle_Auswertung[[#This Row],[Bildname]],\" von \",Tabelle_Auswertung[[#This Row],[Autor(in)]]),\"\")","v":""},{"$f":"IF(Tabelle_Auswertung[[#This Row],[Platz]]=7,CONCATENATE(Tabelle_Auswertung[[#This Row],[Bildname]],\" von \",Tabelle_Auswertung[[#This Row],[Autor(in)]]),\"\")","v":""},{"$f":"IF(Tabelle_Auswertung[[#This Row],[Platz]]=8,CONCATENATE(Tabelle_Auswertung[[#This Row],[Bildname]],\" von \",Tabelle_Auswertung[[#This Row],[Autor(in)]]),\"\")","v":""},{"$f":"IF(Tabelle_Auswertung[[#This Row],[Platz]]=9,CONCATENATE(Tabelle_Auswertung[[#This Row],[Bildname]],\" von \",Tabelle_Auswertung[[#This Row],[Autor(in)]]),\"\")","v":""},{"$f":"IF(Tabelle_Auswertung[[#This Row],[Platz]]=10,CONCATENATE(Tabelle_Auswertung[[#This Row],[Bildname]],\" von \",Tabelle_Auswertung[[#This Row],[Autor(in)]]),\"\")","v":""}]
[{"$nulls":21},{"$f":"IF(Tabelle_Auswertung[[#This Row],[Bildname]]<>\"\",SUM(Tabelle_Auswertung[[#This Row],[Juror 1]:[Juror 20]]),\" - \")","v":" - "},{"$f":"IF(Tabelle_Auswertung[[#This Row],[Bildname]]<>\"\",IF(Tabelle_Auswertung[[#This Row],[Punkte]]>0,AVERAGE(Tabelle_Auswertung[[#This Row],[Juror 1]:[Juror 20]]),\" - \"),\" - \")","v":" - "},{"$f":"IF(Tabelle_Auswertung[[#This Row],[Bildname]]<>\"\",IF(Tabelle_Auswertung[[#This Row],[Punkte]]>0,RANK(Tabelle_Auswertung[[#This Row],[Punkte]],[Punkte],0),\" - \"),\" - \")","v":" - "}," - - -",{"$f":"IF(Tabelle_Auswertung[[#This Row],[Platz]]=1,CONCATENATE(Tabelle_Auswertung[[#This Row],[Bildname]],\" von \",Tabelle_Auswertung[[#This Row],[Autor(in)]]),\"\")","v":""},{"$f":"IF(Tabelle_Auswertung[[#This Row],[Platz]]=2,CONCATENATE(Tabelle_Auswertung[[#This Row],[Bildname]],\" von \",Tabelle_Auswertung[[#This Row],[Autor(in)]]),\"\")","v":""},{"$f":"IF(Tabelle_Auswertung[[#This Row],[Platz]]=3,CONCATENATE(Tabelle_Auswertung[[#This Row],[Bildname]],\" von \",Tabelle_Auswertung[[#This Row],[Autor(in)]]),\"\")","v":""},{"$f":"IF(Tabelle_Auswertung[[#This Row],[Platz]]=4,CONCATENATE(Tabelle_Auswertung[[#This Row],[Bildname]],\" von \",Tabelle_Auswertung[[#This Row],[Autor(in)]]),\"\")","v":""},{"$f":"IF(Tabelle_Auswertung[[#This Row],[Platz]]=5,CONCATENATE(Tabelle_Auswertung[[#This Row],[Bildname]],\" von \",Tabelle_Auswertung[[#This Row],[Autor(in)]]),\"\")","v":""},{"$f":"IF(Tabelle_Auswertung[[#This Row],[Platz]]=6,CONCATENATE(Tabelle_Auswertung[[#This Row],[Bildname]],\" von \",Tabelle_Auswertung[[#This Row],[Autor(in)]]),\"\")","v":""},{"$f":"IF(Tabelle_Auswertung[[#This Row],[Platz]]=7,CONCATENATE(Tabelle_Auswertung[[#This Row],[Bildname]],\" von \",Tabelle_Auswertung[[#This Row],[Autor(in)]]),\"\")","v":""},{"$f":"IF(Tabelle_Auswertung[[#This Row],[Platz]]=8,CONCATENATE(Tabelle_Auswertung[[#This Row],[Bildname]],\" von \",Tabelle_Auswertung[[#This Row],[Autor(in)]]),\"\")","v":""},{"$f":"IF(Tabelle_Auswertung[[#This Row],[Platz]]=9,CONCATENATE(Tabelle_Auswertung[[#This Row],[Bildname]],\" von \",Tabelle_Auswertung[[#This Row],[Autor(in)]]),\"\")","v":""},{"$f":"IF(Tabelle_Auswertung[[#This Row],[Platz]]=10,CONCATENATE(Tabelle_Auswertung[[#This Row],[Bildname]],\" von \",Tabelle_Auswertung[[#This Row],[Autor(in)]]),\"\")","v":""}]
[{"$nulls":21},{"$f":"IF(Tabelle_Auswertung[[#This Row],[Bildname]]<>\"\",SUM(Tabelle_Auswertung[[#This Row],[Juror 1]:[Juror 20]]),\" - \")","v":" - "},{"$f":"IF(Tabelle_Auswertung[[#This Row],[Bildname]]<>\"\",IF(Tabelle_Auswertung[[#This Row],[Punkte]]>0,AVERAGE(Tabelle_Auswertung[[#This Row],[Juror 1]:[Juror 20]]),\" - \"),\" - \")","v":" - "},{"$f":"IF(Tabelle_Auswertung[[#This Row],[Bildname]]<>\"\",IF(Tabelle_Auswertung[[#This Row],[Punkte]]>0,RANK(Tabelle_Auswertung[[#This Row],[Punkte]],[Punkte],0),\" - \"),\" - \")","v":" - "}," - - -",{"$f":"IF(Tabelle_Auswertung[[#This Row],[Platz]]=1,CONCATENATE(Tabelle_Auswertung[[#This Row],[Bildname]],\" von \",Tabelle_Auswertung[[#This Row],[Autor(in)]]),\"\")","v":""},{"$f":"IF(Tabelle_Auswertung[[#This Row],[Platz]]=2,CONCATENATE(Tabelle_Auswertung[[#This Row],[Bildname]],\" von \",Tabelle_Auswertung[[#This Row],[Autor(in)]]),\"\")","v":""},{"$f":"IF(Tabelle_Auswertung[[#This Row],[Platz]]=3,CONCATENATE(Tabelle_Auswertung[[#This Row],[Bildname]],\" von \",Tabelle_Auswertung[[#This Row],[Autor(in)]]),\"\")","v":""},{"$f":"IF(Tabelle_Auswertung[[#This Row],[Platz]]=4,CONCATENATE(Tabelle_Auswertung[[#This Row],[Bildname]],\" von \",Tabelle_Auswertung[[#This Row],[Autor(in)]]),\"\")","v":""},{"$f":"IF(Tabelle_Auswertung[[#This Row],[Platz]]=5,CONCATENATE(Tabelle_Auswertung[[#This Row],[Bildname]],\" von \",Tabelle_Auswertung[[#This Row],[Autor(in)]]),\"\")","v":""},{"$f":"IF(Tabelle_Auswertung[[#This Row],[Platz]]=6,CONCATENATE(Tabelle_Auswertung[[#This Row],[Bildname]],\" von \",Tabelle_Auswertung[[#This Row],[Autor(in)]]),\"\")","v":""},{"$f":"IF(Tabelle_Auswertung[[#This Row],[Platz]]=7,CONCATENATE(Tabelle_Auswertung[[#This Row],[Bildname]],\" von \",Tabelle_Auswertung[[#This Row],[Autor(in)]]),\"\")","v":""},{"$f":"IF(Tabelle_Auswertung[[#This Row],[Platz]]=8,CONCATENATE(Tabelle_Auswertung[[#This Row],[Bildname]],\" von \",Tabelle_Auswertung[[#This Row],[Autor(in)]]),\"\")","v":""},{"$f":"IF(Tabelle_Auswertung[[#This Row],[Platz]]=9,CONCATENATE(Tabelle_Auswertung[[#This Row],[Bildname]],\" von \",Tabelle_Auswertung[[#This Row],[Autor(in)]]),\"\")","v":""},{"$f":"IF(Tabelle_Auswertung[[#This Row],[Platz]]=10,CONCATENATE(Tabelle_Auswertung[[#This Row],[Bildname]],\" von \",Tabelle_Auswertung[[#This Row],[Autor(in)]]),\"\")","v":""}]
[{"$nulls":21},{"$f":"IF(Tabelle_Auswertung[[#This Row],[Bildname]]<>\"\",SUM(Tabelle_Auswertung[[#This Row],[Juror 1]:[Juror 20]]),\" - \")","v":" - "},{"$f":"IF(Tabelle_Auswertung[[#This Row],[Bildname]]<>\"\",IF(Tabelle_Auswertung[[#This Row],[Punkte]]>0,AVERAGE(Tabelle_Auswertung[[#This Row],[Juror 1]:[Juror 20]]),\" - \"),\" - \")","v":" - "},{"$f":"IF(Tabelle_Auswertung[[#This Row],[Bildname]]<>\"\",IF(Tabelle_Auswertung[[#This Row],[Punkte]]>0,RANK(Tabelle_Auswertung[[#This Row],[Punkte]],[Punkte],0),\" - \"),\" - \")","v":" - "}," - - -",{"$f":"IF(Tabelle_Auswertung[[#This Row],[Platz]]=1,CONCATENATE(Tabelle_Auswertung[[#This Row],[Bildname]],\" von \",Tabelle_Auswertung[[#This Row],[Autor(in)]]),\"\")","v":""},{"$f":"IF(Tabelle_Auswertung[[#This Row],[Platz]]=2,CONCATENATE(Tabelle_Auswertung[[#This Row],[Bildname]],\" von \",Tabelle_Auswertung[[#This Row],[Autor(in)]]),\"\")","v":""},{"$f":"IF(Tabelle_Auswertung[[#This Row],[Platz]]=3,CONCATENATE(Tabelle_Auswertung[[#This Row],[Bildname]],\" von \",Tabelle_Auswertung[[#This Row],[Autor(in)]]),\"\")","v":""},{"$f":"IF(Tabelle_Auswertung[[#This Row],[Platz]]=4,CONCATENATE(Tabelle_Auswertung[[#This Row],[Bildname]],\" von \",Tabelle_Auswertung[[#This Row],[Autor(in)]]),\"\")","v":""},{"$f":"IF(Tabelle_Auswertung[[#This Row],[Platz]]=5,CONCATENATE(Tabelle_Auswertung[[#This Row],[Bildname]],\" von \",Tabelle_Auswertung[[#This Row],[Autor(in)]]),\"\")","v":""},{"$f":"IF(Tabelle_Auswertung[[#This Row],[Platz]]=6,CONCATENATE(Tabelle_Auswertung[[#This Row],[Bildname]],\" von \",Tabelle_Auswertung[[#This Row],[Autor(in)]]),\"\")","v":""},{"$f":"IF(Tabelle_Auswertung[[#This Row],[Platz]]=7,CONCATENATE(Tabelle_Auswertung[[#This Row],[Bildname]],\" von \",Tabelle_Auswertung[[#This Row],[Autor(in)]]),\"\")","v":""},{"$f":"IF(Tabelle_Auswertung[[#This Row],[Platz]]=8,CONCATENATE(Tabelle_Auswertung[[#This Row],[Bildname]],\" von \",Tabelle_Auswertung[[#This Row],[Autor(in)]]),\"\")","v":""},{"$f":"IF(Tabelle_Auswertung[[#This Row],[Platz]]=9,CONCATENATE(Tabelle_Auswertung[[#This Row],[Bildname]],\" von \",Tabelle_Auswertung[[#This Row],[Autor(in)]]),\"\")","v":""},{"$f":"IF(Tabelle_Auswertung[[#This Row],[Platz]]=10,CONCATENATE(Tabelle_Auswertung[[#This Row],[Bildname]],\" von \",Tabelle_Auswertung[[#This Row],[Autor(in)]]),\"\")","v":""}]
[{"$nulls":21},{"$f":"IF(Tabelle_Auswertung[[#This Row],[Bildname]]<>\"\",SUM(Tabelle_Auswertung[[#This Row],[Juror 1]:[Juror 20]]),\" - \")","v":" - "},{"$f":"IF(Tabelle_Auswertung[[#This Row],[Bildname]]<>\"\",IF(Tabelle_Auswertung[[#This Row],[Punkte]]>0,AVERAGE(Tabelle_Auswertung[[#This Row],[Juror 1]:[Juror 20]]),\" - \"),\" - \")","v":" - "},{"$f":"IF(Tabelle_Auswertung[[#This Row],[Bildname]]<>\"\",IF(Tabelle_Auswertung[[#This Row],[Punkte]]>0,RANK(Tabelle_Auswertung[[#This Row],[Punkte]],[Punkte],0),\" - \"),\" - \")","v":" - "}," - - -",{"$f":"IF(Tabelle_Auswertung[[#This Row],[Platz]]=1,CONCATENATE(Tabelle_Auswertung[[#This Row],[Bildname]],\" von \",Tabelle_Auswertung[[#This Row],[Autor(in)]]),\"\")","v":""},{"$f":"IF(Tabelle_Auswertung[[#This Row],[Platz]]=2,CONCATENATE(Tabelle_Auswertung[[#This Row],[Bildname]],\" von \",Tabelle_Auswertung[[#This Row],[Autor(in)]]),\"\")","v":""},{"$f":"IF(Tabelle_Auswertung[[#This Row],[Platz]]=3,CONCATENATE(Tabelle_Auswertung[[#This Row],[Bildname]],\" von \",Tabelle_Auswertung[[#This Row],[Autor(in)]]),\"\")","v":""},{"$f":"IF(Tabelle_Auswertung[[#This Row],[Platz]]=4,CONCATENATE(Tabelle_Auswertung[[#This Row],[Bildname]],\" von \",Tabelle_Auswertung[[#This Row],[Autor(in)]]),\"\")","v":""},{"$f":"IF(Tabelle_Auswertung[[#This Row],[Platz]]=5,CONCATENATE(Tabelle_Auswertung[[#This Row],[Bildname]],\" von \",Tabelle_Auswertung[[#This Row],[Autor(in)]]),\"\")","v":""},{"$f":"IF(Tabelle_Auswertung[[#This Row],[Platz]]=6,CONCATENATE(Tabelle_Auswertung[[#This Row],[Bildname]],\" von \",Tabelle_Auswertung[[#This Row],[Autor(in)]]),\"\")","v":""},{"$f":"IF(Tabelle_Auswertung[[#This Row],[Platz]]=7,CONCATENATE(Tabelle_Auswertung[[#This Row],[Bildname]],\" von \",Tabelle_Auswertung[[#This Row],[Autor(in)]]),\"\")","v":""},{"$f":"IF(Tabelle_Auswertung[[#This Row],[Platz]]=8,CONCATENATE(Tabelle_Auswertung[[#This Row],[Bildname]],\" von \",Tabelle_Auswertung[[#This Row],[Autor(in)]]),\"\")","v":""},{"$f":"IF(Tabelle_Auswertung[[#This Row],[Platz]]=9,CONCATENATE(Tabelle_Auswertung[[#This Row],[Bildname]],\" von \",Tabelle_Auswertung[[#This Row],[Autor(in)]]),\"\")","v":""},{"$f":"IF(Tabelle_Auswertung[[#This Row],[Platz]]=10,CONCATENATE(Tabelle_Auswertung[[#This Row],[Bildname]],\" von \",Tabelle_Auswertung[[#This Row],[Autor(in)]]),\"\")","v":""}]
[{"$nulls":21},{"$f":"IF(Tabelle_Auswertung[[#This Row],[Bildname]]<>\"\",SUM(Tabelle_Auswertung[[#This Row],[Juror 1]:[Juror 20]]),\" - \")","v":" - "},{"$f":"IF(Tabelle_Auswertung[[#This Row],[Bildname]]<>\"\",IF(Tabelle_Auswertung[[#This Row],[Punkte]]>0,AVERAGE(Tabelle_Auswertung[[#This Row],[Juror 1]:[Juror 20]]),\" - \"),\" - \")","v":" - "},{"$f":"IF(Tabelle_Auswertung[[#This Row],[Bildname]]<>\"\",IF(Tabelle_Auswertung[[#This Row],[Punkte]]>0,RANK(Tabelle_Auswertung[[#This Row],[Punkte]],[Punkte],0),\" - \"),\" - \")","v":" - "}," - - -",{"$f":"IF(Tabelle_Auswertung[[#This Row],[Platz]]=1,CONCATENATE(Tabelle_Auswertung[[#This Row],[Bildname]],\" von \",Tabelle_Auswertung[[#This Row],[Autor(in)]]),\"\")","v":""},{"$f":"IF(Tabelle_Auswertung[[#This Row],[Platz]]=2,CONCATENATE(Tabelle_Auswertung[[#This Row],[Bildname]],\" von \",Tabelle_Auswertung[[#This Row],[Autor(in)]]),\"\")","v":""},{"$f":"IF(Tabelle_Auswertung[[#This Row],[Platz]]=3,CONCATENATE(Tabelle_Auswertung[[#This Row],[Bildname]],\" von \",Tabelle_Auswertung[[#This Row],[Autor(in)]]),\"\")","v":""},{"$f":"IF(Tabelle_Auswertung[[#This Row],[Platz]]=4,CONCATENATE(Tabelle_Auswertung[[#This Row],[Bildname]],\" von \",Tabelle_Auswertung[[#This Row],[Autor(in)]]),\"\")","v":""},{"$f":"IF(Tabelle_Auswertung[[#This Row],[Platz]]=5,CONCATENATE(Tabelle_Auswertung[[#This Row],[Bildname]],\" von \",Tabelle_Auswertung[[#This Row],[Autor(in)]]),\"\")","v":""},{"$f":"IF(Tabelle_Auswertung[[#This Row],[Platz]]=6,CONCATENATE(Tabelle_Auswertung[[#This Row],[Bildname]],\" von \",Tabelle_Auswertung[[#This Row],[Autor(in)]]),\"\")","v":""},{"$f":"IF(Tabelle_Auswertung[[#This Row],[Platz]]=7,CONCATENATE(Tabelle_Auswertung[[#This Row],[Bildname]],\" von \",Tabelle_Auswertung[[#This Row],[Autor(in)]]),\"\")","v":""},{"$f":"IF(Tabelle_Auswertung[[#This Row],[Platz]]=8,CONCATENATE(Tabelle_Auswertung[[#This Row],[Bildname]],\" von \",Tabelle_Auswertung[[#This Row],[Autor(in)]]),\"\")","v":""},{"$f":"IF(Tabelle_Auswertung[[#This Row],[Platz]]=9,CONCATENATE(Tabelle_Auswertung[[#This Row],[Bildname]],\" von \",Tabelle_Auswertung[[#This Row],[Autor(in)]]),\"\")","v":""},{"$f":"IF(Tabelle_Auswertung[[#This Row],[Platz]]=10,CONCATENATE(Tabelle_Auswertung[[#This Row],[Bildname]],\" von \",Tabelle_Auswertung[[#This Row],[Autor(in)]]),\"\")","v":""}]
[{"$nulls":21},{"$f":"IF(Tabelle_Auswertung[[#This Row],[Bildname]]<>\"\",SUM(Tabelle_Auswertung[[#This Row],[Juror 1]:[Juror 20]]),\" - \")","v":" - "},{"$f":"IF(Tabelle_Auswertung[[#This Row],[Bildname]]<>\"\",IF(Tabelle_Auswertung[[#This Row],[Punkte]]>0,AVERAGE(Tabelle_Auswertung[[#This Row],[Juror 1]:[Juror 20]]),\" - \"),\" - \")","v":" - "},{"$f":"IF(Tabelle_Auswertung[[#This Row],[Bildname]]<>\"\",IF(Tabelle_Auswertung[[#This Row],[Punkte]]>0,RANK(Tabelle_Auswertung[[#This Row],[Punkte]],[Punkte],0),\" - \"),\" - \")","v":" - "}," - - -",{"$f":"IF(Tabelle_Auswertung[[#This Row],[Platz]]=1,CONCATENATE(Tabelle_Auswertung[[#This Row],[Bildname]],\" von \",Tabelle_Auswertung[[#This Row],[Autor(in)]]),\"\")","v":""},{"$f":"IF(Tabelle_Auswertung[[#This Row],[Platz]]=2,CONCATENATE(Tabelle_Auswertung[[#This Row],[Bildname]],\" von \",Tabelle_Auswertung[[#This Row],[Autor(in)]]),\"\")","v":""},{"$f":"IF(Tabelle_Auswertung[[#This Row],[Platz]]=3,CONCATENATE(Tabelle_Auswertung[[#This Row],[Bildname]],\" von \",Tabelle_Auswertung[[#This Row],[Autor(in)]]),\"\")","v":""},{"$f":"IF(Tabelle_Auswertung[[#This Row],[Platz]]=4,CONCATENATE(Tabelle_Auswertung[[#This Row],[Bildname]],\" von \",Tabelle_Auswertung[[#This Row],[Autor(in)]]),\"\")","v":""},{"$f":"IF(Tabelle_Auswertung[[#This Row],[Platz]]=5,CONCATENATE(Tabelle_Auswertung[[#This Row],[Bildname]],\" von \",Tabelle_Auswertung[[#This Row],[Autor(in)]]),\"\")","v":""},{"$f":"IF(Tabelle_Auswertung[[#This Row],[Platz]]=6,CONCATENATE(Tabelle_Auswertung[[#This Row],[Bildname]],\" von \",Tabelle_Auswertung[[#This Row],[Autor(in)]]),\"\")","v":""},{"$f":"IF(Tabelle_Auswertung[[#This Row],[Platz]]=7,CONCATENATE(Tabelle_Auswertung[[#This Row],[Bildname]],\" von \",Tabelle_Auswertung[[#This Row],[Autor(in)]]),\"\")","v":""},{"$f":"IF(Tabelle_Auswertung[[#This Row],[Platz]]=8,CONCATENATE(Tabelle_Auswertung[[#This Row],[Bildname]],\" von \",Tabelle_Auswertung[[#This Row],[Autor(in)]]),\"\")","v":""},{"$f":"IF(Tabelle_Auswertung[[#This Row],[Platz]]=9,CONCATENATE(Tabelle_Auswertung[[#This Row],[Bildname]],\" von \",Tabelle_Auswertung[[#This Row],[Autor(in)]]),\"\")","v":""},{"$f":"IF(Tabelle_Auswertung[[#This Row],[Platz]]=10,CONCATENATE(Tabelle_Auswertung[[#This Row],[Bildname]],\" von \",Tabelle_Auswertung[[#This Row],[Autor(in)]]),\"\")","v":""}]
[{"$nulls":21},{"$f":"IF(Tabelle_Auswertung[[#This Row],[Bildname]]<>\"\",SUM(Tabelle_Auswertung[[#This Row],[Juror 1]:[Juror 20]]),\" - \")","v":" - "},{"$f":"IF(Tabelle_Auswertung[[#This Row],[Bildname]]<>\"\",IF(Tabelle_Auswertung[[#This Row],[Punkte]]>0,AVERAGE(Tabelle_Auswertung[[#This Row],[Juror 1]:[Juror 20]]),\" - \"),\" - \")","v":" - "},{"$f":"IF(Tabelle_Auswertung[[#This Row],[Bildname]]<>\"\",IF(Tabelle_Auswertung[[#This Row],[Punkte]]>0,RANK(Tabelle_Auswertung[[#This Row],[Punkte]],[Punkte],0),\" - \"),\" - \")","v":" - "}," - - -",{"$f":"IF(Tabelle_Auswertung[[#This Row],[Platz]]=1,CONCATENATE(Tabelle_Auswertung[[#This Row],[Bildname]],\" von \",Tabelle_Auswertung[[#This Row],[Autor(in)]]),\"\")","v":""},{"$f":"IF(Tabelle_Auswertung[[#This Row],[Platz]]=2,CONCATENATE(Tabelle_Auswertung[[#This Row],[Bildname]],\" von \",Tabelle_Auswertung[[#This Row],[Autor(in)]]),\"\")","v":""},{"$f":"IF(Tabelle_Auswertung[[#This Row],[Platz]]=3,CONCATENATE(Tabelle_Auswertung[[#This Row],[Bildname]],\" von \",Tabelle_Auswertung[[#This Row],[Autor(in)]]),\"\")","v":""},{"$f":"IF(Tabelle_Auswertung[[#This Row],[Platz]]=4,CONCATENATE(Tabelle_Auswertung[[#This Row],[Bildname]],\" von \",Tabelle_Auswertung[[#This Row],[Autor(in)]]),\"\")","v":""},{"$f":"IF(Tabelle_Auswertung[[#This Row],[Platz]]=5,CONCATENATE(Tabelle_Auswertung[[#This Row],[Bildname]],\" von \",Tabelle_Auswertung[[#This Row],[Autor(in)]]),\"\")","v":""},{"$f":"IF(Tabelle_Auswertung[[#This Row],[Platz]]=6,CONCATENATE(Tabelle_Auswertung[[#This Row],[Bildname]],\" von \",Tabelle_Auswertung[[#This Row],[Autor(in)]]),\"\")","v":""},{"$f":"IF(Tabelle_Auswertung[[#This Row],[Platz]]=7,CONCATENATE(Tabelle_Auswertung[[#This Row],[Bildname]],\" von \",Tabelle_Auswertung[[#This Row],[Autor(in)]]),\"\")","v":""},{"$f":"IF(Tabelle_Auswertung[[#This Row],[Platz]]=8,CONCATENATE(Tabelle_Auswertung[[#This Row],[Bildname]],\" von \",Tabelle_Auswertung[[#This Row],[Autor(in)]]),\"\")","v":""},{"$f":"IF(Tabelle_Auswertung[[#This Row],[Platz]]=9,CONCATENATE(Tabelle_Auswertung[[#This Row],[Bildname]],\" von \",Tabelle_Auswertung[[#This Row],[Autor(in)]]),\"\")","v":""},{"$f":"IF(Tabelle_Auswertung[[#This Row],[Platz]]=10,CONCATENATE(Tabelle_Auswertung[[#This Row],[Bildname]],\" von \",Tabelle_Auswertung[[#This Row],[Autor(in)]]),\"\")","v":""}]
[{"$nulls":21},{"$f":"IF(Tabelle_Auswertung[[#This Row],[Bildname]]<>\"\",SUM(Tabelle_Auswertung[[#This Row],[Juror 1]:[Juror 20]]),\" - \")","v":" - "},{"$f":"IF(Tabelle_Auswertung[[#This Row],[Bildname]]<>\"\",IF(Tabelle_Auswertung[[#This Row],[Punkte]]>0,AVERAGE(Tabelle_Auswertung[[#This Row],[Juror 1]:[Juror 20]]),\" - \"),\" - \")","v":" - "},{"$f":"IF(Tabelle_Auswertung[[#This Row],[Bildname]]<>\"\",IF(Tabelle_Auswertung[[#This Row],[Punkte]]>0,RANK(Tabelle_Auswertung[[#This Row],[Punkte]],[Punkte],0),\" - \"),\" - \")","v":" - "}," - - -",{"$f":"IF(Tabelle_Auswertung[[#This Row],[Platz]]=1,CONCATENATE(Tabelle_Auswertung[[#This Row],[Bildname]],\" von \",Tabelle_Auswertung[[#This Row],[Autor(in)]]),\"\")","v":""},{"$f":"IF(Tabelle_Auswertung[[#This Row],[Platz]]=2,CONCATENATE(Tabelle_Auswertung[[#This Row],[Bildname]],\" von \",Tabelle_Auswertung[[#This Row],[Autor(in)]]),\"\")","v":""},{"$f":"IF(Tabelle_Auswertung[[#This Row],[Platz]]=3,CONCATENATE(Tabelle_Auswertung[[#This Row],[Bildname]],\" von \",Tabelle_Auswertung[[#This Row],[Autor(in)]]),\"\")","v":""},{"$f":"IF(Tabelle_Auswertung[[#This Row],[Platz]]=4,CONCATENATE(Tabelle_Auswertung[[#This Row],[Bildname]],\" von \",Tabelle_Auswertung[[#This Row],[Autor(in)]]),\"\")","v":""},{"$f":"IF(Tabelle_Auswertung[[#This Row],[Platz]]=5,CONCATENATE(Tabelle_Auswertung[[#This Row],[Bildname]],\" von \",Tabelle_Auswertung[[#This Row],[Autor(in)]]),\"\")","v":""},{"$f":"IF(Tabelle_Auswertung[[#This Row],[Platz]]=6,CONCATENATE(Tabelle_Auswertung[[#This Row],[Bildname]],\" von \",Tabelle_Auswertung[[#This Row],[Autor(in)]]),\"\")","v":""},{"$f":"IF(Tabelle_Auswertung[[#This Row],[Platz]]=7,CONCATENATE(Tabelle_Auswertung[[#This Row],[Bildname]],\" von \",Tabelle_Auswertung[[#This Row],[Autor(in)]]),\"\")","v":""},{"$f":"IF(Tabelle_Auswertung[[#This Row],[Platz]]=8,CONCATENATE(Tabelle_Auswertung[[#This Row],[Bildname]],\" von \",Tabelle_Auswertung[[#This Row],[Autor(in)]]),\"\")","v":""},{"$f":"IF(Tabelle_Auswertung[[#This Row],[Platz]]=9,CONCATENATE(Tabelle_Auswertung[[#This Row],[Bildname]],\" von \",Tabelle_Auswertung[[#This Row],[Autor(in)]]),\"\")","v":""},{"$f":"IF(Tabelle_Auswertung[[#This Row],[Platz]]=10,CONCATENATE(Tabelle_Auswertung[[#This Row],[Bildname]],\" von \",Tabelle_Auswertung[[#This Row],[Autor(in)]]),\"\")","v":""}]
[{"$nulls":21},{"$f":"IF(Tabelle_Auswertung[[#This Row],[Bildname]]<>\"\",SUM(Tabelle_Auswertung[[#This Row],[Juror 1]:[Juror 20]]),\" - \")","v":" - "},{"$f":"IF(Tabelle_Auswertung[[#This Row],[Bildname]]<>\"\",IF(Tabelle_Auswertung[[#This Row],[Punkte]]>0,AVERAGE(Tabelle_Auswertung[[#This Row],[Juror 1]:[Juror 20]]),\" - \"),\" - \")","v":" - "},{"$f":"IF(Tabelle_Auswertung[[#This Row],[Bildname]]<>\"\",IF(Tabelle_Auswertung[[#This Row],[Punkte]]>0,RANK(Tabelle_Auswertung[[#This Row],[Punkte]],[Punkte],0),\" - \"),\" - \")","v":" - "}," - - -",{"$f":"IF(Tabelle_Auswertung[[#This Row],[Platz]]=1,CONCATENATE(Tabelle_Auswertung[[#This Row],[Bildname]],\" von \",Tabelle_Auswertung[[#This Row],[Autor(in)]]),\"\")","v":""},{"$f":"IF(Tabelle_Auswertung[[#This Row],[Platz]]=2,CONCATENATE(Tabelle_Auswertung[[#This Row],[Bildname]],\" von \",Tabelle_Auswertung[[#This Row],[Autor(in)]]),\"\")","v":""},{"$f":"IF(Tabelle_Auswertung[[#This Row],[Platz]]=3,CONCATENATE(Tabelle_Auswertung[[#This Row],[Bildname]],\" von \",Tabelle_Auswertung[[#This Row],[Autor(in)]]),\"\")","v":""},{"$f":"IF(Tabelle_Auswertung[[#This Row],[Platz]]=4,CONCATENATE(Tabelle_Auswertung[[#This Row],[Bildname]],\" von \",Tabelle_Auswertung[[#This Row],[Autor(in)]]),\"\")","v":""},{"$f":"IF(Tabelle_Auswertung[[#This Row],[Platz]]=5,CONCATENATE(Tabelle_Auswertung[[#This Row],[Bildname]],\" von \",Tabelle_Auswertung[[#This Row],[Autor(in)]]),\"\")","v":""},{"$f":"IF(Tabelle_Auswertung[[#This Row],[Platz]]=6,CONCATENATE(Tabelle_Auswertung[[#This Row],[Bildname]],\" von \",Tabelle_Auswertung[[#This Row],[Autor(in)]]),\"\")","v":""},{"$f":"IF(Tabelle_Auswertung[[#This Row],[Platz]]=7,CONCATENATE(Tabelle_Auswertung[[#This Row],[Bildname]],\" von \",Tabelle_Auswertung[[#This Row],[Autor(in)]]),\"\")","v":""},{"$f":"IF(Tabelle_Auswertung[[#This Row],[Platz]]=8,CONCATENATE(Tabelle_Auswertung[[#This Row],[Bildname]],\" von \",Tabelle_Auswertung[[#This Row],[Autor(in)]]),\"\")","v":""},{"$f":"IF(Tabelle_Auswertung[[#This Row],[Platz]]=9,CONCATENATE(Tabelle_Auswertung[[#This Row],[Bildname]],\" von \",Tabelle_Auswertung[[#This Row],[Autor(in)]]),\"\")","v":""},{"$f":"IF(Tabelle_Auswertung[[#This Row],[Platz]]=10,CONCATENATE(Tabelle_Auswertung[[#This Row],[Bildname]],\" von \",Tabelle_Auswertung[[#This Row],[Autor(in)]]),\"\")","v":""}]
[{"$nulls":21},{"$f":"IF(Tabelle_Auswertung[[#This Row],[Bildname]]<>\"\",SUM(Tabelle_Auswertung[[#This Row],[Juror 1]:[Juror 20]]),\" - \")","v":" - "},{"$f":"IF(Tabelle_Auswertung[[#This Row],[Bildname]]<>\"\",IF(Tabelle_Auswertung[[#This Row],[Punkte]]>0,AVERAGE(Tabelle_Auswertung[[#This Row],[Juror 1]:[Juror 20]]),\" - \"),\" - \")","v":" - "},{"$f":"IF(Tabelle_Auswertung[[#This Row],[Bildname]]<>\"\",IF(Tabelle_Auswertung[[#This Row],[Punkte]]>0,RANK(Tabelle_Auswertung[[#This Row],[Punkte]],[Punkte],0),\" - \"),\" - \")","v":" - "}," - - -",{"$f":"IF(Tabelle_Auswertung[[#This Row],[Platz]]=1,CONCATENATE(Tabelle_Auswertung[[#This Row],[Bildname]],\" von \",Tabelle_Auswertung[[#This Row],[Autor(in)]]),\"\")","v":""},{"$f":"IF(Tabelle_Auswertung[[#This Row],[Platz]]=2,CONCATENATE(Tabelle_Auswertung[[#This Row],[Bildname]],\" von \",Tabelle_Auswertung[[#This Row],[Autor(in)]]),\"\")","v":""},{"$f":"IF(Tabelle_Auswertung[[#This Row],[Platz]]=3,CONCATENATE(Tabelle_Auswertung[[#This Row],[Bildname]],\" von \",Tabelle_Auswertung[[#This Row],[Autor(in)]]),\"\")","v":""},{"$f":"IF(Tabelle_Auswertung[[#This Row],[Platz]]=4,CONCATENATE(Tabelle_Auswertung[[#This Row],[Bildname]],\" von \",Tabelle_Auswertung[[#This Row],[Autor(in)]]),\"\")","v":""},{"$f":"IF(Tabelle_Auswertung[[#This Row],[Platz]]=5,CONCATENATE(Tabelle_Auswertung[[#This Row],[Bildname]],\" von \",Tabelle_Auswertung[[#This Row],[Autor(in)]]),\"\")","v":""},{"$f":"IF(Tabelle_Auswertung[[#This Row],[Platz]]=6,CONCATENATE(Tabelle_Auswertung[[#This Row],[Bildname]],\" von \",Tabelle_Auswertung[[#This Row],[Autor(in)]]),\"\")","v":""},{"$f":"IF(Tabelle_Auswertung[[#This Row],[Platz]]=7,CONCATENATE(Tabelle_Auswertung[[#This Row],[Bildname]],\" von \",Tabelle_Auswertung[[#This Row],[Autor(in)]]),\"\")","v":""},{"$f":"IF(Tabelle_Auswertung[[#This Row],[Platz]]=8,CONCATENATE(Tabelle_Auswertung[[#This Row],[Bildname]],\" von \",Tabelle_Auswertung[[#This Row],[Autor(in)]]),\"\")","v":""},{"$f":"IF(Tabelle_Auswertung[[#This Row],[Platz]]=9,CONCATENATE(Tabelle_Auswertung[[#This Row],[Bildname]],\" von \",Tabelle_Auswertung[[#This Row],[Autor(in)]]),\"\")","v":""},{"$f":"IF(Tabelle_Auswertung[[#This Row],[Platz]]=10,CONCATENATE(Tabelle_Auswertung[[#This Row],[Bildname]],\" von \",Tabelle_Auswertung[[#This Row],[Autor(in)]]),\"\")","v":""}]
[{"$nulls":21},{"$f":"IF(Tabelle_Auswertung[[#This Row],[Bildname]]<>\"\",SUM(Tabelle_Auswertung[[#This Row],[Juror 1]:[Juror 20]]),\" - \")","v":" - "},{"$f":"IF(Tabelle_Auswertung[[#This Row],[Bildname]]<>\"\",IF(Tabelle_Auswertung[[#This Row],[Punkte]]>0,AVERAGE(Tabelle_Auswertung[[#This Row],[Juror 1]:[Juror 20]]),\" - \"),\" - \")","v":" - "},{"$f":"IF(Tabelle_Auswertung[[#This Row],[Bildname]]<>\"\",IF(Tabelle_Auswertung[[#This Row],[Punkte]]>0,RANK(Tabelle_Auswertung[[#This Row],[Punkte]],[Punkte],0),\" - \"),\" - \")","v":" - "}," - - -",{"$f":"IF(Tabelle_Auswertung[[#This Row],[Platz]]=1,CONCATENATE(Tabelle_Auswertung[[#This Row],[Bildname]],\" von \",Tabelle_Auswertung[[#This Row],[Autor(in)]]),\"\")","v":""},{"$f":"IF(Tabelle_Auswertung[[#This Row],[Platz]]=2,CONCATENATE(Tabelle_Auswertung[[#This Row],[Bildname]],\" von \",Tabelle_Auswertung[[#This Row],[Autor(in)]]),\"\")","v":""},{"$f":"IF(Tabelle_Auswertung[[#This Row],[Platz]]=3,CONCATENATE(Tabelle_Auswertung[[#This Row],[Bildname]],\" von \",Tabelle_Auswertung[[#This Row],[Autor(in)]]),\"\")","v":""},{"$f":"IF(Tabelle_Auswertung[[#This Row],[Platz]]=4,CONCATENATE(Tabelle_Auswertung[[#This Row],[Bildname]],\" von \",Tabelle_Auswertung[[#This Row],[Autor(in)]]),\"\")","v":""},{"$f":"IF(Tabelle_Auswertung[[#This Row],[Platz]]=5,CONCATENATE(Tabelle_Auswertung[[#This Row],[Bildname]],\" von \",Tabelle_Auswertung[[#This Row],[Autor(in)]]),\"\")","v":""},{"$f":"IF(Tabelle_Auswertung[[#This Row],[Platz]]=6,CONCATENATE(Tabelle_Auswertung[[#This Row],[Bildname]],\" von \",Tabelle_Auswertung[[#This Row],[Autor(in)]]),\"\")","v":""},{"$f":"IF(Tabelle_Auswertung[[#This Row],[Platz]]=7,CONCATENATE(Tabelle_Auswertung[[#This Row],[Bildname]],\" von \",Tabelle_Auswertung[[#This Row],[Autor(in)]]),\"\")","v":""},{"$f":"IF(Tabelle_Auswertung[[#This Row],[Platz]]=8,CONCATENATE(Tabelle_Auswertung[[#This Row],[Bildname]],\" von \",Tabelle_Auswertung[[#This Row],[Autor(in)]]),\"\")","v":""},{"$f":"IF(Tabelle_Auswertung[[#This Row],[Platz]]=9,CONCATENATE(Tabelle_Auswertung[[#This Row],[Bildname]],\" von \",Tabelle_Auswertung[[#This Row],[Autor(in)]]),\"\")","v":""},{"$f":"IF(Tabelle_Auswertung[[#This Row],[Platz]]=10,CONCATENATE(Tabelle_Auswertung[[#This Row],[Bildname]],\" von \",Tabelle_Auswertung[[#This Row],[Autor(in)]]),\"\")","v":""}]
[{"$nulls":21},{"$f":"IF(Tabelle_Auswertung[[#This Row],[Bildname]]<>\"\",SUM(Tabelle_Auswertung[[#This Row],[Juror 1]:[Juror 20]]),\" - \")","v":" - "},{"$f":"IF(Tabelle_Auswertung[[#This Row],[Bildname]]<>\"\",IF(Tabelle_Auswertung[[#This Row],[Punkte]]>0,AVERAGE(Tabelle_Auswertung[[#This Row],[Juror 1]:[Juror 20]]),\" - \"),\" - \")","v":" - "},{"$f":"IF(Tabelle_Auswertung[[#This Row],[Bildname]]<>\"\",IF(Tabelle_Auswertung[[#This Row],[Punkte]]>0,RANK(Tabelle_Auswertung[[#This Row],[Punkte]],[Punkte],0),\" - \"),\" - \")","v":" - "}," - - -",{"$f":"IF(Tabelle_Auswertung[[#This Row],[Platz]]=1,CONCATENATE(Tabelle_Auswertung[[#This Row],[Bildname]],\" von \",Tabelle_Auswertung[[#This Row],[Autor(in)]]),\"\")","v":""},{"$f":"IF(Tabelle_Auswertung[[#This Row],[Platz]]=2,CONCATENATE(Tabelle_Auswertung[[#This Row],[Bildname]],\" von \",Tabelle_Auswertung[[#This Row],[Autor(in)]]),\"\")","v":""},{"$f":"IF(Tabelle_Auswertung[[#This Row],[Platz]]=3,CONCATENATE(Tabelle_Auswertung[[#This Row],[Bildname]],\" von \",Tabelle_Auswertung[[#This Row],[Autor(in)]]),\"\")","v":""},{"$f":"IF(Tabelle_Auswertung[[#This Row],[Platz]]=4,CONCATENATE(Tabelle_Auswertung[[#This Row],[Bildname]],\" von \",Tabelle_Auswertung[[#This Row],[Autor(in)]]),\"\")","v":""},{"$f":"IF(Tabelle_Auswertung[[#This Row],[Platz]]=5,CONCATENATE(Tabelle_Auswertung[[#This Row],[Bildname]],\" von \",Tabelle_Auswertung[[#This Row],[Autor(in)]]),\"\")","v":""},{"$f":"IF(Tabelle_Auswertung[[#This Row],[Platz]]=6,CONCATENATE(Tabelle_Auswertung[[#This Row],[Bildname]],\" von \",Tabelle_Auswertung[[#This Row],[Autor(in)]]),\"\")","v":""},{"$f":"IF(Tabelle_Auswertung[[#This Row],[Platz]]=7,CONCATENATE(Tabelle_Auswertung[[#This Row],[Bildname]],\" von \",Tabelle_Auswertung[[#This Row],[Autor(in)]]),\"\")","v":""},{"$f":"IF(Tabelle_Auswertung[[#This Row],[Platz]]=8,CONCATENATE(Tabelle_Auswertung[[#This Row],[Bildname]],\" von \",Tabelle_Auswertung[[#This Row],[Autor(in)]]),\"\")","v":""},{"$f":"IF(Tabelle_Auswertung[[#This Row],[Platz]]=9,CONCATENATE(Tabelle_Auswertung[[#This Row],[Bildname]],\" von \",Tabelle_Auswertung[[#This Row],[Autor(in)]]),\"\")","v":""},{"$f":"IF(Tabelle_Auswertung[[#This Row],[Platz]]=10,CONCATENATE(Tabelle_Auswertung[[#This Row],[Bildname]],\" von \",Tabelle_Auswertung[[#This Row],[Autor(in)]]),\"\")","v":""}]
[{"$nulls":21},{"$f":"IF(Tabelle_Auswertung[[#This Row],[Bildname]]<>\"\",SUM(Tabelle_Auswertung[[#This Row],[Juror 1]:[Juror 20]]),\" - \")","v":" - "},{"$f":"IF(Tabelle_Auswertung[[#This Row],[Bildname]]<>\"\",IF(Tabelle_Auswertung[[#This Row],[Punkte]]>0,AVERAGE(Tabelle_Auswertung[[#This Row],[Juror 1]:[Juror 20]]),\" - \"),\" - \")","v":" - "},{"$f":"IF(Tabelle_Auswertung[[#This Row],[Bildname]]<>\"\",IF(Tabelle_Auswertung[[#This Row],[Punkte]]>0,RANK(Tabelle_Auswertung[[#This Row],[Punkte]],[Punkte],0),\" - \"),\" - \")","v":" - "}," - - -",{"$f":"IF(Tabelle_Auswertung[[#This Row],[Platz]]=1,CONCATENATE(Tabelle_Auswertung[[#This Row],[Bildname]],\" von \",Tabelle_Auswertung[[#This Row],[Autor(in)]]),\"\")","v":""},{"$f":"IF(Tabelle_Auswertung[[#This Row],[Platz]]=2,CONCATENATE(Tabelle_Auswertung[[#This Row],[Bildname]],\" von \",Tabelle_Auswertung[[#This Row],[Autor(in)]]),\"\")","v":""},{"$f":"IF(Tabelle_Auswertung[[#This Row],[Platz]]=3,CONCATENATE(Tabelle_Auswertung[[#This Row],[Bildname]],\" von \",Tabelle_Auswertung[[#This Row],[Autor(in)]]),\"\")","v":""},{"$f":"IF(Tabelle_Auswertung[[#This Row],[Platz]]=4,CONCATENATE(Tabelle_Auswertung[[#This Row],[Bildname]],\" von \",Tabelle_Auswertung[[#This Row],[Autor(in)]]),\"\")","v":""},{"$f":"IF(Tabelle_Auswertung[[#This Row],[Platz]]=5,CONCATENATE(Tabelle_Auswertung[[#This Row],[Bildname]],\" von \",Tabelle_Auswertung[[#This Row],[Autor(in)]]),\"\")","v":""},{"$f":"IF(Tabelle_Auswertung[[#This Row],[Platz]]=6,CONCATENATE(Tabelle_Auswertung[[#This Row],[Bildname]],\" von \",Tabelle_Auswertung[[#This Row],[Autor(in)]]),\"\")","v":""},{"$f":"IF(Tabelle_Auswertung[[#This Row],[Platz]]=7,CONCATENATE(Tabelle_Auswertung[[#This Row],[Bildname]],\" von \",Tabelle_Auswertung[[#This Row],[Autor(in)]]),\"\")","v":""},{"$f":"IF(Tabelle_Auswertung[[#This Row],[Platz]]=8,CONCATENATE(Tabelle_Auswertung[[#This Row],[Bildname]],\" von \",Tabelle_Auswertung[[#This Row],[Autor(in)]]),\"\")","v":""},{"$f":"IF(Tabelle_Auswertung[[#This Row],[Platz]]=9,CONCATENATE(Tabelle_Auswertung[[#This Row],[Bildname]],\" von \",Tabelle_Auswertung[[#This Row],[Autor(in)]]),\"\")","v":""},{"$f":"IF(Tabelle_Auswertung[[#This Row],[Platz]]=10,CONCATENATE(Tabelle_Auswertung[[#This Row],[Bildname]],\" von \",Tabelle_Auswertung[[#This Row],[Autor(in)]]),\"\")","v":""}]
[{"$nulls":21},{"$f":"IF(Tabelle_Auswertung[[#This Row],[Bildname]]<>\"\",SUM(Tabelle_Auswertung[[#This Row],[Juror 1]:[Juror 20]]),\" - \")","v":" - "},{"$f":"IF(Tabelle_Auswertung[[#This Row],[Bildname]]<>\"\",IF(Tabelle_Auswertung[[#This Row],[Punkte]]>0,AVERAGE(Tabelle_Auswertung[[#This Row],[Juror 1]:[Juror 20]]),\" - \"),\" - \")","v":" - "},{"$f":"IF(Tabelle_Auswertung[[#This Row],[Bildname]]<>\"\",IF(Tabelle_Auswertung[[#This Row],[Punkte]]>0,RANK(Tabelle_Auswertung[[#This Row],[Punkte]],[Punkte],0),\" - \"),\" - \")","v":" - "}," - - -",{"$f":"IF(Tabelle_Auswertung[[#This Row],[Platz]]=1,CONCATENATE(Tabelle_Auswertung[[#This Row],[Bildname]],\" von \",Tabelle_Auswertung[[#This Row],[Autor(in)]]),\"\")","v":""},{"$f":"IF(Tabelle_Auswertung[[#This Row],[Platz]]=2,CONCATENATE(Tabelle_Auswertung[[#This Row],[Bildname]],\" von \",Tabelle_Auswertung[[#This Row],[Autor(in)]]),\"\")","v":""},{"$f":"IF(Tabelle_Auswertung[[#This Row],[Platz]]=3,CONCATENATE(Tabelle_Auswertung[[#This Row],[Bildname]],\" von \",Tabelle_Auswertung[[#This Row],[Autor(in)]]),\"\")","v":""},{"$f":"IF(Tabelle_Auswertung[[#This Row],[Platz]]=4,CONCATENATE(Tabelle_Auswertung[[#This Row],[Bildname]],\" von \",Tabelle_Auswertung[[#This Row],[Autor(in)]]),\"\")","v":""},{"$f":"IF(Tabelle_Auswertung[[#This Row],[Platz]]=5,CONCATENATE(Tabelle_Auswertung[[#This Row],[Bildname]],\" von \",Tabelle_Auswertung[[#This Row],[Autor(in)]]),\"\")","v":""},{"$f":"IF(Tabelle_Auswertung[[#This Row],[Platz]]=6,CONCATENATE(Tabelle_Auswertung[[#This Row],[Bildname]],\" von \",Tabelle_Auswertung[[#This Row],[Autor(in)]]),\"\")","v":""},{"$f":"IF(Tabelle_Auswertung[[#This Row],[Platz]]=7,CONCATENATE(Tabelle_Auswertung[[#This Row],[Bildname]],\" von \",Tabelle_Auswertung[[#This Row],[Autor(in)]]),\"\")","v":""},{"$f":"IF(Tabelle_Auswertung[[#This Row],[Platz]]=8,CONCATENATE(Tabelle_Auswertung[[#This Row],[Bildname]],\" von \",Tabelle_Auswertung[[#This Row],[Autor(in)]]),\"\")","v":""},{"$f":"IF(Tabelle_Auswertung[[#This Row],[Platz]]=9,CONCATENATE(Tabelle_Auswertung[[#This Row],[Bildname]],\" von \",Tabelle_Auswertung[[#This Row],[Autor(in)]]),\"\")","v":""},{"$f":"IF(Tabelle_Auswertung[[#This Row],[Platz]]=10,CONCATENATE(Tabelle_Auswertung[[#This Row],[Bildname]],\" von \",Tabelle_Auswertung[[#This Row],[Autor(in)]]),\"\")","v":""}]
[{"$nulls":21},{"$f":"IF(Tabelle_Auswertung[[#This Row],[Bildname]]<>\"\",SUM(Tabelle_Auswertung[[#This Row],[Juror 1]:[Juror 20]]),\" - \")","v":" - "},{"$f":"IF(Tabelle_Auswertung[[#This Row],[Bildname]]<>\"\",IF(Tabelle_Auswertung[[#This Row],[Punkte]]>0,AVERAGE(Tabelle_Auswertung[[#This Row],[Juror 1]:[Juror 20]]),\" - \"),\" - \")","v":" - "},{"$f":"IF(Tabelle_Auswertung[[#This Row],[Bildname]]<>\"\",IF(Tabelle_Auswertung[[#This Row],[Punkte]]>0,RANK(Tabelle_Auswertung[[#This Row],[Punkte]],[Punkte],0),\" - \"),\" - \")","v":" - "}," - - -",{"$f":"IF(Tabelle_Auswertung[[#This Row],[Platz]]=1,CONCATENATE(Tabelle_Auswertung[[#This Row],[Bildname]],\" von \",Tabelle_Auswertung[[#This Row],[Autor(in)]]),\"\")","v":""},{"$f":"IF(Tabelle_Auswertung[[#This Row],[Platz]]=2,CONCATENATE(Tabelle_Auswertung[[#This Row],[Bildname]],\" von \",Tabelle_Auswertung[[#This Row],[Autor(in)]]),\"\")","v":""},{"$f":"IF(Tabelle_Auswertung[[#This Row],[Platz]]=3,CONCATENATE(Tabelle_Auswertung[[#This Row],[Bildname]],\" von \",Tabelle_Auswertung[[#This Row],[Autor(in)]]),\"\")","v":""},{"$f":"IF(Tabelle_Auswertung[[#This Row],[Platz]]=4,CONCATENATE(Tabelle_Auswertung[[#This Row],[Bildname]],\" von \",Tabelle_Auswertung[[#This Row],[Autor(in)]]),\"\")","v":""},{"$f":"IF(Tabelle_Auswertung[[#This Row],[Platz]]=5,CONCATENATE(Tabelle_Auswertung[[#This Row],[Bildname]],\" von \",Tabelle_Auswertung[[#This Row],[Autor(in)]]),\"\")","v":""},{"$f":"IF(Tabelle_Auswertung[[#This Row],[Platz]]=6,CONCATENATE(Tabelle_Auswertung[[#This Row],[Bildname]],\" von \",Tabelle_Auswertung[[#This Row],[Autor(in)]]),\"\")","v":""},{"$f":"IF(Tabelle_Auswertung[[#This Row],[Platz]]=7,CONCATENATE(Tabelle_Auswertung[[#This Row],[Bildname]],\" von \",Tabelle_Auswertung[[#This Row],[Autor(in)]]),\"\")","v":""},{"$f":"IF(Tabelle_Auswertung[[#This Row],[Platz]]=8,CONCATENATE(Tabelle_Auswertung[[#This Row],[Bildname]],\" von \",Tabelle_Auswertung[[#This Row],[Autor(in)]]),\"\")","v":""},{"$f":"IF(Tabelle_Auswertung[[#This Row],[Platz]]=9,CONCATENATE(Tabelle_Auswertung[[#This Row],[Bildname]],\" von \",Tabelle_Auswertung[[#This Row],[Autor(in)]]),\"\")","v":""},{"$f":"IF(Tabelle_Auswertung[[#This Row],[Platz]]=10,CONCATENATE(Tabelle_Auswertung[[#This Row],[Bildname]],\" von \",Tabelle_Auswertung[[#This Row],[Autor(in)]]),\"\")","v":""}]
[{"$nulls":21},{"$f":"IF(Tabelle_Auswertung[[#This Row],[Bildname]]<>\"\",SUM(Tabelle_Auswertung[[#This Row],[Juror 1]:[Juror 20]]),\" - \")","v":" - "},{"$f":"IF(Tabelle_Auswertung[[#This Row],[Bildname]]<>\"\",IF(Tabelle_Auswertung[[#This Row],[Punkte]]>0,AVERAGE(Tabelle_Auswertung[[#This Row],[Juror 1]:[Juror 20]]),\" - \"),\" - \")","v":" - "},{"$f":"IF(Tabelle_Auswertung[[#This Row],[Bildname]]<>\"\",IF(Tabelle_Auswertung[[#This Row],[Punkte]]>0,RANK(Tabelle_Auswertung[[#This Row],[Punkte]],[Punkte],0),\" - \"),\" - \")","v":" - "}," - - -",{"$f":"IF(Tabelle_Auswertung[[#This Row],[Platz]]=1,CONCATENATE(Tabelle_Auswertung[[#This Row],[Bildname]],\" von \",Tabelle_Auswertung[[#This Row],[Autor(in)]]),\"\")","v":""},{"$f":"IF(Tabelle_Auswertung[[#This Row],[Platz]]=2,CONCATENATE(Tabelle_Auswertung[[#This Row],[Bildname]],\" von \",Tabelle_Auswertung[[#This Row],[Autor(in)]]),\"\")","v":""},{"$f":"IF(Tabelle_Auswertung[[#This Row],[Platz]]=3,CONCATENATE(Tabelle_Auswertung[[#This Row],[Bildname]],\" von \",Tabelle_Auswertung[[#This Row],[Autor(in)]]),\"\")","v":""},{"$f":"IF(Tabelle_Auswertung[[#This Row],[Platz]]=4,CONCATENATE(Tabelle_Auswertung[[#This Row],[Bildname]],\" von \",Tabelle_Auswertung[[#This Row],[Autor(in)]]),\"\")","v":""},{"$f":"IF(Tabelle_Auswertung[[#This Row],[Platz]]=5,CONCATENATE(Tabelle_Auswertung[[#This Row],[Bildname]],\" von \",Tabelle_Auswertung[[#This Row],[Autor(in)]]),\"\")","v":""},{"$f":"IF(Tabelle_Auswertung[[#This Row],[Platz]]=6,CONCATENATE(Tabelle_Auswertung[[#This Row],[Bildname]],\" von \",Tabelle_Auswertung[[#This Row],[Autor(in)]]),\"\")","v":""},{"$f":"IF(Tabelle_Auswertung[[#This Row],[Platz]]=7,CONCATENATE(Tabelle_Auswertung[[#This Row],[Bildname]],\" von \",Tabelle_Auswertung[[#This Row],[Autor(in)]]),\"\")","v":""},{"$f":"IF(Tabelle_Auswertung[[#This Row],[Platz]]=8,CONCATENATE(Tabelle_Auswertung[[#This Row],[Bildname]],\" von \",Tabelle_Auswertung[[#This Row],[Autor(in)]]),\"\")","v":""},{"$f":"IF(Tabelle_Auswertung[[#This Row],[Platz]]=9,CONCATENATE(Tabelle_Auswertung[[#This Row],[Bildname]],\" von \",Tabelle_Auswertung[[#This Row],[Autor(in)]]),\"\")","v":""},{"$f":"IF(Tabelle_Auswertung[[#This Row],[Platz]]=10,CONCATENATE(Tabelle_Auswertung[[#This Row],[Bildname]],\" von \",Tabelle_Auswertung[[#This Row],[Autor(in)]]),\"\")","v":""}]
[{"$nulls":21},{"$f":"IF(Tabelle_Auswertung[[#This Row],[Bildname]]<>\"\",SUM(Tabelle_Auswertung[[#This Row],[Juror 1]:[Juror 20]]),\" - \")","v":" - "},{"$f":"IF(Tabelle_Auswertung[[#This Row],[Bildname]]<>\"\",IF(Tabelle_Auswertung[[#This Row],[Punkte]]>0,AVERAGE(Tabelle_Auswertung[[#This Row],[Juror 1]:[Juror 20]]),\" - \"),\" - \")","v":" - "},{"$f":"IF(Tabelle_Auswertung[[#This Row],[Bildname]]<>\"\",IF(Tabelle_Auswertung[[#This Row],[Punkte]]>0,RANK(Tabelle_Auswertung[[#This Row],[Punkte]],[Punkte],0),\" - \"),\" - \")","v":" - "}," - - -",{"$f":"IF(Tabelle_Auswertung[[#This Row],[Platz]]=1,CONCATENATE(Tabelle_Auswertung[[#This Row],[Bildname]],\" von \",Tabelle_Auswertung[[#This Row],[Autor(in)]]),\"\")","v":""},{"$f":"IF(Tabelle_Auswertung[[#This Row],[Platz]]=2,CONCATENATE(Tabelle_Auswertung[[#This Row],[Bildname]],\" von \",Tabelle_Auswertung[[#This Row],[Autor(in)]]),\"\")","v":""},{"$f":"IF(Tabelle_Auswertung[[#This Row],[Platz]]=3,CONCATENATE(Tabelle_Auswertung[[#This Row],[Bildname]],\" von \",Tabelle_Auswertung[[#This Row],[Autor(in)]]),\"\")","v":""},{"$f":"IF(Tabelle_Auswertung[[#This Row],[Platz]]=4,CONCATENATE(Tabelle_Auswertung[[#This Row],[Bildname]],\" von \",Tabelle_Auswertung[[#This Row],[Autor(in)]]),\"\")","v":""},{"$f":"IF(Tabelle_Auswertung[[#This Row],[Platz]]=5,CONCATENATE(Tabelle_Auswertung[[#This Row],[Bildname]],\" von \",Tabelle_Auswertung[[#This Row],[Autor(in)]]),\"\")","v":""},{"$f":"IF(Tabelle_Auswertung[[#This Row],[Platz]]=6,CONCATENATE(Tabelle_Auswertung[[#This Row],[Bildname]],\" von \",Tabelle_Auswertung[[#This Row],[Autor(in)]]),\"\")","v":""},{"$f":"IF(Tabelle_Auswertung[[#This Row],[Platz]]=7,CONCATENATE(Tabelle_Auswertung[[#This Row],[Bildname]],\" von \",Tabelle_Auswertung[[#This Row],[Autor(in)]]),\"\")","v":""},{"$f":"IF(Tabelle_Auswertung[[#This Row],[Platz]]=8,CONCATENATE(Tabelle_Auswertung[[#This Row],[Bildname]],\" von \",Tabelle_Auswertung[[#This Row],[Autor(in)]]),\"\")","v":""},{"$f":"IF(Tabelle_Auswertung[[#This Row],[Platz]]=9,CONCATENATE(Tabelle_Auswertung[[#This Row],[Bildname]],\" von \",Tabelle_Auswertung[[#This Row],[Autor(in)]]),\"\")","v":""},{"$f":"IF(Tabelle_Auswertung[[#This Row],[Platz]]=10,CONCATENATE(Tabelle_Auswertung[[#This Row],[Bildname]],\" von \",Tabelle_Auswertung[[#This Row],[Autor(in)]]),\"\")","v":""}]
[{"$nulls":21},{"$f":"IF(Tabelle_Auswertung[[#This Row],[Bildname]]<>\"\",SUM(Tabelle_Auswertung[[#This Row],[Juror 1]:[Juror 20]]),\" - \")","v":" - "},{"$f":"IF(Tabelle_Auswertung[[#This Row],[Bildname]]<>\"\",IF(Tabelle_Auswertung[[#This Row],[Punkte]]>0,AVERAGE(Tabelle_Auswertung[[#This Row],[Juror 1]:[Juror 20]]),\" - \"),\" - \")","v":" - "},{"$f":"IF(Tabelle_Auswertung[[#This Row],[Bildname]]<>\"\",IF(Tabelle_Auswertung[[#This Row],[Punkte]]>0,RANK(Tabelle_Auswertung[[#This Row],[Punkte]],[Punkte],0),\" - \"),\" - \")","v":" - "}," - - -",{"$f":"IF(Tabelle_Auswertung[[#This Row],[Platz]]=1,CONCATENATE(Tabelle_Auswertung[[#This Row],[Bildname]],\" von \",Tabelle_Auswertung[[#This Row],[Autor(in)]]),\"\")","v":""},{"$f":"IF(Tabelle_Auswertung[[#This Row],[Platz]]=2,CONCATENATE(Tabelle_Auswertung[[#This Row],[Bildname]],\" von \",Tabelle_Auswertung[[#This Row],[Autor(in)]]),\"\")","v":""},{"$f":"IF(Tabelle_Auswertung[[#This Row],[Platz]]=3,CONCATENATE(Tabelle_Auswertung[[#This Row],[Bildname]],\" von \",Tabelle_Auswertung[[#This Row],[Autor(in)]]),\"\")","v":""},{"$f":"IF(Tabelle_Auswertung[[#This Row],[Platz]]=4,CONCATENATE(Tabelle_Auswertung[[#This Row],[Bildname]],\" von \",Tabelle_Auswertung[[#This Row],[Autor(in)]]),\"\")","v":""},{"$f":"IF(Tabelle_Auswertung[[#This Row],[Platz]]=5,CONCATENATE(Tabelle_Auswertung[[#This Row],[Bildname]],\" von \",Tabelle_Auswertung[[#This Row],[Autor(in)]]),\"\")","v":""},{"$f":"IF(Tabelle_Auswertung[[#This Row],[Platz]]=6,CONCATENATE(Tabelle_Auswertung[[#This Row],[Bildname]],\" von \",Tabelle_Auswertung[[#This Row],[Autor(in)]]),\"\")","v":""},{"$f":"IF(Tabelle_Auswertung[[#This Row],[Platz]]=7,CONCATENATE(Tabelle_Auswertung[[#This Row],[Bildname]],\" von \",Tabelle_Auswertung[[#This Row],[Autor(in)]]),\"\")","v":""},{"$f":"IF(Tabelle_Auswertung[[#This Row],[Platz]]=8,CONCATENATE(Tabelle_Auswertung[[#This Row],[Bildname]],\" von \",Tabelle_Auswertung[[#This Row],[Autor(in)]]),\"\")","v":""},{"$f":"IF(Tabelle_Auswertung[[#This Row],[Platz]]=9,CONCATENATE(Tabelle_Auswertung[[#This Row],[Bildname]],\" von \",Tabelle_Auswertung[[#This Row],[Autor(in)]]),\"\")","v":""},{"$f":"IF(Tabelle_Auswertung[[#This Row],[Platz]]=10,CONCATENATE(Tabelle_Auswertung[[#This Row],[Bildname]],\" von \",Tabelle_Auswertung[[#This Row],[Autor(in)]]),\"\")","v":""}]
[{"$nulls":21},{"$f":"IF(Tabelle_Auswertung[[#This Row],[Bildname]]<>\"\",SUM(Tabelle_Auswertung[[#This Row],[Juror 1]:[Juror 20]]),\" - \")","v":" - "},{"$f":"IF(Tabelle_Auswertung[[#This Row],[Bildname]]<>\"\",IF(Tabelle_Auswertung[[#This Row],[Punkte]]>0,AVERAGE(Tabelle_Auswertung[[#This Row],[Juror 1]:[Juror 20]]),\" - \"),\" - \")","v":" - "},{"$f":"IF(Tabelle_Auswertung[[#This Row],[Bildname]]<>\"\",IF(Tabelle_Auswertung[[#This Row],[Punkte]]>0,RANK(Tabelle_Auswertung[[#This Row],[Punkte]],[Punkte],0),\" - \"),\" - \")","v":" - "}," - - -",{"$f":"IF(Tabelle_Auswertung[[#This Row],[Platz]]=1,CONCATENATE(Tabelle_Auswertung[[#This Row],[Bildname]],\" von \",Tabelle_Auswertung[[#This Row],[Autor(in)]]),\"\")","v":""},{"$f":"IF(Tabelle_Auswertung[[#This Row],[Platz]]=2,CONCATENATE(Tabelle_Auswertung[[#This Row],[Bildname]],\" von \",Tabelle_Auswertung[[#This Row],[Autor(in)]]),\"\")","v":""},{"$f":"IF(Tabelle_Auswertung[[#This Row],[Platz]]=3,CONCATENATE(Tabelle_Auswertung[[#This Row],[Bildname]],\" von \",Tabelle_Auswertung[[#This Row],[Autor(in)]]),\"\")","v":""},{"$f":"IF(Tabelle_Auswertung[[#This Row],[Platz]]=4,CONCATENATE(Tabelle_Auswertung[[#This Row],[Bildname]],\" von \",Tabelle_Auswertung[[#This Row],[Autor(in)]]),\"\")","v":""},{"$f":"IF(Tabelle_Auswertung[[#This Row],[Platz]]=5,CONCATENATE(Tabelle_Auswertung[[#This Row],[Bildname]],\" von \",Tabelle_Auswertung[[#This Row],[Autor(in)]]),\"\")","v":""},{"$f":"IF(Tabelle_Auswertung[[#This Row],[Platz]]=6,CONCATENATE(Tabelle_Auswertung[[#This Row],[Bildname]],\" von \",Tabelle_Auswertung[[#This Row],[Autor(in)]]),\"\")","v":""},{"$f":"IF(Tabelle_Auswertung[[#This Row],[Platz]]=7,CONCATENATE(Tabelle_Auswertung[[#This Row],[Bildname]],\" von \",Tabelle_Auswertung[[#This Row],[Autor(in)]]),\"\")","v":""},{"$f":"IF(Tabelle_Auswertung[[#This Row],[Platz]]=8,CONCATENATE(Tabelle_Auswertung[[#This Row],[Bildname]],\" von \",Tabelle_Auswertung[[#This Row],[Autor(in)]]),\"\")","v":""},{"$f":"IF(Tabelle_Auswertung[[#This Row],[Platz]]=9,CONCATENATE(Tabelle_Auswertung[[#This Row],[Bildname]],\" von \",Tabelle_Auswertung[[#This Row],[Autor(in)]]),\"\")","v":""},{"$f":"IF(Tabelle_Auswertung[[#This Row],[Platz]]=10,CONCATENATE(Tabelle_Auswertung[[#This Row],[Bildname]],\" von \",Tabelle_Auswertung[[#This Row],[Autor(in)]]),\"\")","v":""}]
[{"$nulls":21},{"$f":"IF(Tabelle_Auswertung[[#This Row],[Bildname]]<>\"\",SUM(Tabelle_Auswertung[[#This Row],[Juror 1]:[Juror 20]]),\" - \")","v":" - "},{"$f":"IF(Tabelle_Auswertung[[#This Row],[Bildname]]<>\"\",IF(Tabelle_Auswertung[[#This Row],[Punkte]]>0,AVERAGE(Tabelle_Auswertung[[#This Row],[Juror 1]:[Juror 20]]),\" - \"),\" - \")","v":" - "},{"$f":"IF(Tabelle_Auswertung[[#This Row],[Bildname]]<>\"\",IF(Tabelle_Auswertung[[#This Row],[Punkte]]>0,RANK(Tabelle_Auswertung[[#This Row],[Punkte]],[Punkte],0),\" - \"),\" - \")","v":" - "}," - - -",{"$f":"IF(Tabelle_Auswertung[[#This Row],[Platz]]=1,CONCATENATE(Tabelle_Auswertung[[#This Row],[Bildname]],\" von \",Tabelle_Auswertung[[#This Row],[Autor(in)]]),\"\")","v":""},{"$f":"IF(Tabelle_Auswertung[[#This Row],[Platz]]=2,CONCATENATE(Tabelle_Auswertung[[#This Row],[Bildname]],\" von \",Tabelle_Auswertung[[#This Row],[Autor(in)]]),\"\")","v":""},{"$f":"IF(Tabelle_Auswertung[[#This Row],[Platz]]=3,CONCATENATE(Tabelle_Auswertung[[#This Row],[Bildname]],\" von \",Tabelle_Auswertung[[#This Row],[Autor(in)]]),\"\")","v":""},{"$f":"IF(Tabelle_Auswertung[[#This Row],[Platz]]=4,CONCATENATE(Tabelle_Auswertung[[#This Row],[Bildname]],\" von \",Tabelle_Auswertung[[#This Row],[Autor(in)]]),\"\")","v":""},{"$f":"IF(Tabelle_Auswertung[[#This Row],[Platz]]=5,CONCATENATE(Tabelle_Auswertung[[#This Row],[Bildname]],\" von \",Tabelle_Auswertung[[#This Row],[Autor(in)]]),\"\")","v":""},{"$f":"IF(Tabelle_Auswertung[[#This Row],[Platz]]=6,CONCATENATE(Tabelle_Auswertung[[#This Row],[Bildname]],\" von \",Tabelle_Auswertung[[#This Row],[Autor(in)]]),\"\")","v":""},{"$f":"IF(Tabelle_Auswertung[[#This Row],[Platz]]=7,CONCATENATE(Tabelle_Auswertung[[#This Row],[Bildname]],\" von \",Tabelle_Auswertung[[#This Row],[Autor(in)]]),\"\")","v":""},{"$f":"IF(Tabelle_Auswertung[[#This Row],[Platz]]=8,CONCATENATE(Tabelle_Auswertung[[#This Row],[Bildname]],\" von \",Tabelle_Auswertung[[#This Row],[Autor(in)]]),\"\")","v":""},{"$f":"IF(Tabelle_Auswertung[[#This Row],[Platz]]=9,CONCATENATE(Tabelle_Auswertung[[#This Row],[Bildname]],\" von \",Tabelle_Auswertung[[#This Row],[Autor(in)]]),\"\")","v":""},{"$f":"IF(Tabelle_Auswertung[[#This Row],[Platz]]=10,CONCATENATE(Tabelle_Auswertung[[#This Row],[Bildname]],\" von \",Tabelle_Auswertung[[#This Row],[Autor(in)]]),\"\")","v":""}]
[{"$nulls":21},{"$f":"IF(Tabelle_Auswertung[[#This Row],[Bildname]]<>\"\",SUM(Tabelle_Auswertung[[#This Row],[Juror 1]:[Juror 20]]),\" - \")","v":" - "},{"$f":"IF(Tabelle_Auswertung[[#This Row],[Bildname]]<>\"\",IF(Tabelle_Auswertung[[#This Row],[Punkte]]>0,AVERAGE(Tabelle_Auswertung[[#This Row],[Juror 1]:[Juror 20]]),\" - \"),\" - \")","v":" - "},{"$f":"IF(Tabelle_Auswertung[[#This Row],[Bildname]]<>\"\",IF(Tabelle_Auswertung[[#This Row],[Punkte]]>0,RANK(Tabelle_Auswertung[[#This Row],[Punkte]],[Punkte],0),\" - \"),\" - \")","v":" - "}," - - -",{"$f":"IF(Tabelle_Auswertung[[#This Row],[Platz]]=1,CONCATENATE(Tabelle_Auswertung[[#This Row],[Bildname]],\" von \",Tabelle_Auswertung[[#This Row],[Autor(in)]]),\"\")","v":""},{"$f":"IF(Tabelle_Auswertung[[#This Row],[Platz]]=2,CONCATENATE(Tabelle_Auswertung[[#This Row],[Bildname]],\" von \",Tabelle_Auswertung[[#This Row],[Autor(in)]]),\"\")","v":""},{"$f":"IF(Tabelle_Auswertung[[#This Row],[Platz]]=3,CONCATENATE(Tabelle_Auswertung[[#This Row],[Bildname]],\" von \",Tabelle_Auswertung[[#This Row],[Autor(in)]]),\"\")","v":""},{"$f":"IF(Tabelle_Auswertung[[#This Row],[Platz]]=4,CONCATENATE(Tabelle_Auswertung[[#This Row],[Bildname]],\" von \",Tabelle_Auswertung[[#This Row],[Autor(in)]]),\"\")","v":""},{"$f":"IF(Tabelle_Auswertung[[#This Row],[Platz]]=5,CONCATENATE(Tabelle_Auswertung[[#This Row],[Bildname]],\" von \",Tabelle_Auswertung[[#This Row],[Autor(in)]]),\"\")","v":""},{"$f":"IF(Tabelle_Auswertung[[#This Row],[Platz]]=6,CONCATENATE(Tabelle_Auswertung[[#This Row],[Bildname]],\" von \",Tabelle_Auswertung[[#This Row],[Autor(in)]]),\"\")","v":""},{"$f":"IF(Tabelle_Auswertung[[#This Row],[Platz]]=7,CONCATENATE(Tabelle_Auswertung[[#This Row],[Bildname]],\" von \",Tabelle_Auswertung[[#This Row],[Autor(in)]]),\"\")","v":""},{"$f":"IF(Tabelle_Auswertung[[#This Row],[Platz]]=8,CONCATENATE(Tabelle_Auswertung[[#This Row],[Bildname]],\" von \",Tabelle_Auswertung[[#This Row],[Autor(in)]]),\"\")","v":""},{"$f":"IF(Tabelle_Auswertung[[#This Row],[Platz]]=9,CONCATENATE(Tabelle_Auswertung[[#This Row],[Bildname]],\" von \",Tabelle_Auswertung[[#This Row],[Autor(in)]]),\"\")","v":""},{"$f":"IF(Tabelle_Auswertung[[#This Row],[Platz]]=10,CONCATENATE(Tabelle_Auswertung[[#This Row],[Bildname]],\" von \",Tabelle_Auswertung[[#This Row],[Autor(in)]]),\"\")","v":""}]
[{"$nulls":21},{"$f":"IF(Tabelle_Auswertung[[#This Row],[Bildname]]<>\"\",SUM(Tabelle_Auswertung[[#This Row],[Juror 1]:[Juror 20]]),\" - \")","v":" - "},{"$f":"IF(Tabelle_Auswertung[[#This Row],[Bildname]]<>\"\",IF(Tabelle_Auswertung[[#This Row],[Punkte]]>0,AVERAGE(Tabelle_Auswertung[[#This Row],[Juror 1]:[Juror 20]]),\" - \"),\" - \")","v":" - "},{"$f":"IF(Tabelle_Auswertung[[#This Row],[Bildname]]<>\"\",IF(Tabelle_Auswertung[[#This Row],[Punkte]]>0,RANK(Tabelle_Auswertung[[#This Row],[Punkte]],[Punkte],0),\" - \"),\" - \")","v":" - "}," - - -",{"$f":"IF(Tabelle_Auswertung[[#This Row],[Platz]]=1,CONCATENATE(Tabelle_Auswertung[[#This Row],[Bildname]],\" von \",Tabelle_Auswertung[[#This Row],[Autor(in)]]),\"\")","v":""},{"$f":"IF(Tabelle_Auswertung[[#This Row],[Platz]]=2,CONCATENATE(Tabelle_Auswertung[[#This Row],[Bildname]],\" von \",Tabelle_Auswertung[[#This Row],[Autor(in)]]),\"\")","v":""},{"$f":"IF(Tabelle_Auswertung[[#This Row],[Platz]]=3,CONCATENATE(Tabelle_Auswertung[[#This Row],[Bildname]],\" von \",Tabelle_Auswertung[[#This Row],[Autor(in)]]),\"\")","v":""},{"$f":"IF(Tabelle_Auswertung[[#This Row],[Platz]]=4,CONCATENATE(Tabelle_Auswertung[[#This Row],[Bildname]],\" von \",Tabelle_Auswertung[[#This Row],[Autor(in)]]),\"\")","v":""},{"$f":"IF(Tabelle_Auswertung[[#This Row],[Platz]]=5,CONCATENATE(Tabelle_Auswertung[[#This Row],[Bildname]],\" von \",Tabelle_Auswertung[[#This Row],[Autor(in)]]),\"\")","v":""},{"$f":"IF(Tabelle_Auswertung[[#This Row],[Platz]]=6,CONCATENATE(Tabelle_Auswertung[[#This Row],[Bildname]],\" von \",Tabelle_Auswertung[[#This Row],[Autor(in)]]),\"\")","v":""},{"$f":"IF(Tabelle_Auswertung[[#This Row],[Platz]]=7,CONCATENATE(Tabelle_Auswertung[[#This Row],[Bildname]],\" von \",Tabelle_Auswertung[[#This Row],[Autor(in)]]),\"\")","v":""},{"$f":"IF(Tabelle_Auswertung[[#This Row],[Platz]]=8,CONCATENATE(Tabelle_Auswertung[[#This Row],[Bildname]],\" von \",Tabelle_Auswertung[[#This Row],[Autor(in)]]),\"\")","v":""},{"$f":"IF(Tabelle_Auswertung[[#This Row],[Platz]]=9,CONCATENATE(Tabelle_Auswertung[[#This Row],[Bildname]],\" von \",Tabelle_Auswertung[[#This Row],[Autor(in)]]),\"\")","v":""},{"$f":"IF(Tabelle_Auswertung[[#This Row],[Platz]]=10,CONCATENATE(Tabelle_Auswertung[[#This Row],[Bildname]],\" von \",Tabelle_Auswertung[[#This Row],[Autor(in)]]),\"\")","v":""}]
[{"$nulls":21},{"$f":"IF(Tabelle_Auswertung[[#This Row],[Bildname]]<>\"\",SUM(Tabelle_Auswertung[[#This Row],[Juror 1]:[Juror 20]]),\" - \")","v":" - "},{"$f":"IF(Tabelle_Auswertung[[#This Row],[Bildname]]<>\"\",IF(Tabelle_Auswertung[[#This Row],[Punkte]]>0,AVERAGE(Tabelle_Auswertung[[#This Row],[Juror 1]:[Juror 20]]),\" - \"),\" - \")","v":" - "},{"$f":"IF(Tabelle_Auswertung[[#This Row],[Bildname]]<>\"\",IF(Tabelle_Auswertung[[#This Row],[Punkte]]>0,RANK(Tabelle_Auswertung[[#This Row],[Punkte]],[Punkte],0),\" - \"),\" - \")","v":" - "}," - - -",{"$f":"IF(Tabelle_Auswertung[[#This Row],[Platz]]=1,CONCATENATE(Tabelle_Auswertung[[#This Row],[Bildname]],\" von \",Tabelle_Auswertung[[#This Row],[Autor(in)]]),\"\")","v":""},{"$f":"IF(Tabelle_Auswertung[[#This Row],[Platz]]=2,CONCATENATE(Tabelle_Auswertung[[#This Row],[Bildname]],\" von \",Tabelle_Auswertung[[#This Row],[Autor(in)]]),\"\")","v":""},{"$f":"IF(Tabelle_Auswertung[[#This Row],[Platz]]=3,CONCATENATE(Tabelle_Auswertung[[#This Row],[Bildname]],\" von \",Tabelle_Auswertung[[#This Row],[Autor(in)]]),\"\")","v":""},{"$f":"IF(Tabelle_Auswertung[[#This Row],[Platz]]=4,CONCATENATE(Tabelle_Auswertung[[#This Row],[Bildname]],\" von \",Tabelle_Auswertung[[#This Row],[Autor(in)]]),\"\")","v":""},{"$f":"IF(Tabelle_Auswertung[[#This Row],[Platz]]=5,CONCATENATE(Tabelle_Auswertung[[#This Row],[Bildname]],\" von \",Tabelle_Auswertung[[#This Row],[Autor(in)]]),\"\")","v":""},{"$f":"IF(Tabelle_Auswertung[[#This Row],[Platz]]=6,CONCATENATE(Tabelle_Auswertung[[#This Row],[Bildname]],\" von \",Tabelle_Auswertung[[#This Row],[Autor(in)]]),\"\")","v":""},{"$f":"IF(Tabelle_Auswertung[[#This Row],[Platz]]=7,CONCATENATE(Tabelle_Auswertung[[#This Row],[Bildname]],\" von \",Tabelle_Auswertung[[#This Row],[Autor(in)]]),\"\")","v":""},{"$f":"IF(Tabelle_Auswertung[[#This Row],[Platz]]=8,CONCATENATE(Tabelle_Auswertung[[#This Row],[Bildname]],\" von \",Tabelle_Auswertung[[#This Row],[Autor(in)]]),\"\")","v":""},{"$f":"IF(Tabelle_Auswertung[[#This Row],[Platz]]=9,CONCATENATE(Tabelle_Auswertung[[#This Row],[Bildname]],\" von \",Tabelle_Auswertung[[#This Row],[Autor(in)]]),\"\")","v":""},{"$f":"IF(Tabelle_Auswertung[[#This Row],[Platz]]=10,CONCATENATE(Tabelle_Auswertung[[#This Row],[Bildname]],\" von \",Tabelle_Auswertung[[#This Row],[Autor(in)]]),\"\")","v":""}]
[{"$nulls":21},{"$f":"IF(Tabelle_Auswertung[[#This Row],[Bildname]]<>\"\",SUM(Tabelle_Auswertung[[#This Row],[Juror 1]:[Juror 20]]),\" - \")","v":" - "},{"$f":"IF(Tabelle_Auswertung[[#This Row],[Bildname]]<>\"\",IF(Tabelle_Auswertung[[#This Row],[Punkte]]>0,AVERAGE(Tabelle_Auswertung[[#This Row],[Juror 1]:[Juror 20]]),\" - \"),\" - \")","v":" - "},{"$f":"IF(Tabelle_Auswertung[[#This Row],[Bildname]]<>\"\",IF(Tabelle_Auswertung[[#This Row],[Punkte]]>0,RANK(Tabelle_Auswertung[[#This Row],[Punkte]],[Punkte],0),\" - \"),\" - \")","v":" - "}," - - -",{"$f":"IF(Tabelle_Auswertung[[#This Row],[Platz]]=1,CONCATENATE(Tabelle_Auswertung[[#This Row],[Bildname]],\" von \",Tabelle_Auswertung[[#This Row],[Autor(in)]]),\"\")","v":""},{"$f":"IF(Tabelle_Auswertung[[#This Row],[Platz]]=2,CONCATENATE(Tabelle_Auswertung[[#This Row],[Bildname]],\" von \",Tabelle_Auswertung[[#This Row],[Autor(in)]]),\"\")","v":""},{"$f":"IF(Tabelle_Auswertung[[#This Row],[Platz]]=3,CONCATENATE(Tabelle_Auswertung[[#This Row],[Bildname]],\" von \",Tabelle_Auswertung[[#This Row],[Autor(in)]]),\"\")","v":""},{"$f":"IF(Tabelle_Auswertung[[#This Row],[Platz]]=4,CONCATENATE(Tabelle_Auswertung[[#This Row],[Bildname]],\" von \",Tabelle_Auswertung[[#This Row],[Autor(in)]]),\"\")","v":""},{"$f":"IF(Tabelle_Auswertung[[#This Row],[Platz]]=5,CONCATENATE(Tabelle_Auswertung[[#This Row],[Bildname]],\" von \",Tabelle_Auswertung[[#This Row],[Autor(in)]]),\"\")","v":""},{"$f":"IF(Tabelle_Auswertung[[#This Row],[Platz]]=6,CONCATENATE(Tabelle_Auswertung[[#This Row],[Bildname]],\" von \",Tabelle_Auswertung[[#This Row],[Autor(in)]]),\"\")","v":""},{"$f":"IF(Tabelle_Auswertung[[#This Row],[Platz]]=7,CONCATENATE(Tabelle_Auswertung[[#This Row],[Bildname]],\" von \",Tabelle_Auswertung[[#This Row],[Autor(in)]]),\"\")","v":""},{"$f":"IF(Tabelle_Auswertung[[#This Row],[Platz]]=8,CONCATENATE(Tabelle_Auswertung[[#This Row],[Bildname]],\" von \",Tabelle_Auswertung[[#This Row],[Autor(in)]]),\"\")","v":""},{"$f":"IF(Tabelle_Auswertung[[#This Row],[Platz]]=9,CONCATENATE(Tabelle_Auswertung[[#This Row],[Bildname]],\" von \",Tabelle_Auswertung[[#This Row],[Autor(in)]]),\"\")","v":""},{"$f":"IF(Tabelle_Auswertung[[#This Row],[Platz]]=10,CONCATENATE(Tabelle_Auswertung[[#This Row],[Bildname]],\" von \",Tabelle_Auswertung[[#This Row],[Autor(in)]]),\"\")","v":""}]
[{"$nulls":21},{"$f":"IF(Tabelle_Auswertung[[#This Row],[Bildname]]<>\"\",SUM(Tabelle_Auswertung[[#This Row],[Juror 1]:[Juror 20]]),\" - \")","v":" - "},{"$f":"IF(Tabelle_Auswertung[[#This Row],[Bildname]]<>\"\",IF(Tabelle_Auswertung[[#This Row],[Punkte]]>0,AVERAGE(Tabelle_Auswertung[[#This Row],[Juror 1]:[Juror 20]]),\" - \"),\" - \")","v":" - "},{"$f":"IF(Tabelle_Auswertung[[#This Row],[Bildname]]<>\"\",IF(Tabelle_Auswertung[[#This Row],[Punkte]]>0,RANK(Tabelle_Auswertung[[#This Row],[Punkte]],[Punkte],0),\" - \"),\" - \")","v":" - "}," - - -",{"$f":"IF(Tabelle_Auswertung[[#This Row],[Platz]]=1,CONCATENATE(Tabelle_Auswertung[[#This Row],[Bildname]],\" von \",Tabelle_Auswertung[[#This Row],[Autor(in)]]),\"\")","v":""},{"$f":"IF(Tabelle_Auswertung[[#This Row],[Platz]]=2,CONCATENATE(Tabelle_Auswertung[[#This Row],[Bildname]],\" von \",Tabelle_Auswertung[[#This Row],[Autor(in)]]),\"\")","v":""},{"$f":"IF(Tabelle_Auswertung[[#This Row],[Platz]]=3,CONCATENATE(Tabelle_Auswertung[[#This Row],[Bildname]],\" von \",Tabelle_Auswertung[[#This Row],[Autor(in)]]),\"\")","v":""},{"$f":"IF(Tabelle_Auswertung[[#This Row],[Platz]]=4,CONCATENATE(Tabelle_Auswertung[[#This Row],[Bildname]],\" von \",Tabelle_Auswertung[[#This Row],[Autor(in)]]),\"\")","v":""},{"$f":"IF(Tabelle_Auswertung[[#This Row],[Platz]]=5,CONCATENATE(Tabelle_Auswertung[[#This Row],[Bildname]],\" von \",Tabelle_Auswertung[[#This Row],[Autor(in)]]),\"\")","v":""},{"$f":"IF(Tabelle_Auswertung[[#This Row],[Platz]]=6,CONCATENATE(Tabelle_Auswertung[[#This Row],[Bildname]],\" von \",Tabelle_Auswertung[[#This Row],[Autor(in)]]),\"\")","v":""},{"$f":"IF(Tabelle_Auswertung[[#This Row],[Platz]]=7,CONCATENATE(Tabelle_Auswertung[[#This Row],[Bildname]],\" von \",Tabelle_Auswertung[[#This Row],[Autor(in)]]),\"\")","v":""},{"$f":"IF(Tabelle_Auswertung[[#This Row],[Platz]]=8,CONCATENATE(Tabelle_Auswertung[[#This Row],[Bildname]],\" von \",Tabelle_Auswertung[[#This Row],[Autor(in)]]),\"\")","v":""},{"$f":"IF(Tabelle_Auswertung[[#This Row],[Platz]]=9,CONCATENATE(Tabelle_Auswertung[[#This Row],[Bildname]],\" von \",Tabelle_Auswertung[[#This Row],[Autor(in)]]),\"\")","v":""},{"$f":"IF(Tabelle_Auswertung[[#This Row],[Platz]]=10,CONCATENATE(Tabelle_Auswertung[[#This Row],[Bildname]],\" von \",Tabelle_Auswertung[[#This Row],[Autor(in)]]),\"\")","v":""}]
[{"$nulls":21},{"$f":"IF(Tabelle_Auswertung[[#This Row],[Bildname]]<>\"\",SUM(Tabelle_Auswertung[[#This Row],[Juror 1]:[Juror 20]]),\" - \")","v":" - "},{"$f":"IF(Tabelle_Auswertung[[#This Row],[Bildname]]<>\"\",IF(Tabelle_Auswertung[[#This Row],[Punkte]]>0,AVERAGE(Tabelle_Auswertung[[#This Row],[Juror 1]:[Juror 20]]),\" - \"),\" - \")","v":" - "},{"$f":"IF(Tabelle_Auswertung[[#This Row],[Bildname]]<>\"\",IF(Tabelle_Auswertung[[#This Row],[Punkte]]>0,RANK(Tabelle_Auswertung[[#This Row],[Punkte]],[Punkte],0),\" - \"),\" - \")","v":" - "}," - - -",{"$f":"IF(Tabelle_Auswertung[[#This Row],[Platz]]=1,CONCATENATE(Tabelle_Auswertung[[#This Row],[Bildname]],\" von \",Tabelle_Auswertung[[#This Row],[Autor(in)]]),\"\")","v":""},{"$f":"IF(Tabelle_Auswertung[[#This Row],[Platz]]=2,CONCATENATE(Tabelle_Auswertung[[#This Row],[Bildname]],\" von \",Tabelle_Auswertung[[#This Row],[Autor(in)]]),\"\")","v":""},{"$f":"IF(Tabelle_Auswertung[[#This Row],[Platz]]=3,CONCATENATE(Tabelle_Auswertung[[#This Row],[Bildname]],\" von \",Tabelle_Auswertung[[#This Row],[Autor(in)]]),\"\")","v":""},{"$f":"IF(Tabelle_Auswertung[[#This Row],[Platz]]=4,CONCATENATE(Tabelle_Auswertung[[#This Row],[Bildname]],\" von \",Tabelle_Auswertung[[#This Row],[Autor(in)]]),\"\")","v":""},{"$f":"IF(Tabelle_Auswertung[[#This Row],[Platz]]=5,CONCATENATE(Tabelle_Auswertung[[#This Row],[Bildname]],\" von \",Tabelle_Auswertung[[#This Row],[Autor(in)]]),\"\")","v":""},{"$f":"IF(Tabelle_Auswertung[[#This Row],[Platz]]=6,CONCATENATE(Tabelle_Auswertung[[#This Row],[Bildname]],\" von \",Tabelle_Auswertung[[#This Row],[Autor(in)]]),\"\")","v":""},{"$f":"IF(Tabelle_Auswertung[[#This Row],[Platz]]=7,CONCATENATE(Tabelle_Auswertung[[#This Row],[Bildname]],\" von \",Tabelle_Auswertung[[#This Row],[Autor(in)]]),\"\")","v":""},{"$f":"IF(Tabelle_Auswertung[[#This Row],[Platz]]=8,CONCATENATE(Tabelle_Auswertung[[#This Row],[Bildname]],\" von \",Tabelle_Auswertung[[#This Row],[Autor(in)]]),\"\")","v":""},{"$f":"IF(Tabelle_Auswertung[[#This Row],[Platz]]=9,CONCATENATE(Tabelle_Auswertung[[#This Row],[Bildname]],\" von \",Tabelle_Auswertung[[#This Row],[Autor(in)]]),\"\")","v":""},{"$f":"IF(Tabelle_Auswertung[[#This Row],[Platz]]=10,CONCATENATE(Tabelle_Auswertung[[#This Row],[Bildname]],\" von \",Tabelle_Auswertung[[#This Row],[Autor(in)]]),\"\")","v":""}]
[{"$nulls":21},{"$f":"IF(Tabelle_Auswertung[[#This Row],[Bildname]]<>\"\",SUM(Tabelle_Auswertung[[#This Row],[Juror 1]:[Juror 20]]),\" - \")","v":" - "},{"$f":"IF(Tabelle_Auswertung[[#This Row],[Bildname]]<>\"\",IF(Tabelle_Auswertung[[#This Row],[Punkte]]>0,AVERAGE(Tabelle_Auswertung[[#This Row],[Juror 1]:[Juror 20]]),\" - \"),\" - \")","v":" - "},{"$f":"IF(Tabelle_Auswertung[[#This Row],[Bildname]]<>\"\",IF(Tabelle_Auswertung[[#This Row],[Punkte]]>0,RANK(Tabelle_Auswertung[[#This Row],[Punkte]],[Punkte],0),\" - \"),\" - \")","v":" - "}," - - -",{"$f":"IF(Tabelle_Auswertung[[#This Row],[Platz]]=1,CONCATENATE(Tabelle_Auswertung[[#This Row],[Bildname]],\" von \",Tabelle_Auswertung[[#This Row],[Autor(in)]]),\"\")","v":""},{"$f":"IF(Tabelle_Auswertung[[#This Row],[Platz]]=2,CONCATENATE(Tabelle_Auswertung[[#This Row],[Bildname]],\" von \",Tabelle_Auswertung[[#This Row],[Autor(in)]]),\"\")","v":""},{"$f":"IF(Tabelle_Auswertung[[#This Row],[Platz]]=3,CONCATENATE(Tabelle_Auswertung[[#This Row],[Bildname]],\" von \",Tabelle_Auswertung[[#This Row],[Autor(in)]]),\"\")","v":""},{"$f":"IF(Tabelle_Auswertung[[#This Row],[Platz]]=4,CONCATENATE(Tabelle_Auswertung[[#This Row],[Bildname]],\" von \",Tabelle_Auswertung[[#This Row],[Autor(in)]]),\"\")","v":""},{"$f":"IF(Tabelle_Auswertung[[#This Row],[Platz]]=5,CONCATENATE(Tabelle_Auswertung[[#This Row],[Bildname]],\" von \",Tabelle_Auswertung[[#This Row],[Autor(in)]]),\"\")","v":""},{"$f":"IF(Tabelle_Auswertung[[#This Row],[Platz]]=6,CONCATENATE(Tabelle_Auswertung[[#This Row],[Bildname]],\" von \",Tabelle_Auswertung[[#This Row],[Autor(in)]]),\"\")","v":""},{"$f":"IF(Tabelle_Auswertung[[#This Row],[Platz]]=7,CONCATENATE(Tabelle_Auswertung[[#This Row],[Bildname]],\" von \",Tabelle_Auswertung[[#This Row],[Autor(in)]]),\"\")","v":""},{"$f":"IF(Tabelle_Auswertung[[#This Row],[Platz]]=8,CONCATENATE(Tabelle_Auswertung[[#This Row],[Bildname]],\" von \",Tabelle_Auswertung[[#This Row],[Autor(in)]]),\"\")","v":""},{"$f":"IF(Tabelle_Auswertung[[#This Row],[Platz]]=9,CONCATENATE(Tabelle_Auswertung[[#This Row],[Bildname]],\" von \",Tabelle_Auswertung[[#This Row],[Autor(in)]]),\"\")","v":""},{"$f":"IF(Tabelle_Auswertung[[#This Row],[Platz]]=10,CONCATENATE(Tabelle_Auswertung[[#This Row],[Bildname]],\" von \",Tabelle_Auswertung[[#This Row],[Autor(in)]]),\"\")","v":""}]
[{"$nulls":21},{"$f":"IF(Tabelle_Auswertung[[#This Row],[Bildname]]<>\"\",SUM(Tabelle_Auswertung[[#This Row],[Juror 1]:[Juror 20]]),\" - \")","v":" - "},{"$f":"IF(Tabelle_Auswertung[[#This Row],[Bildname]]<>\"\",IF(Tabelle_Auswertung[[#This Row],[Punkte]]>0,AVERAGE(Tabelle_Auswertung[[#This Row],[Juror 1]:[Juror 20]]),\" - \"),\" - \")","v":" - "},{"$f":"IF(Tabelle_Auswertung[[#This Row],[Bildname]]<>\"\",IF(Tabelle_Auswertung[[#This Row],[Punkte]]>0,RANK(Tabelle_Auswertung[[#This Row],[Punkte]],[Punkte],0),\" - \"),\" - \")","v":" - "}," - - -",{"$f":"IF(Tabelle_Auswertung[[#This Row],[Platz]]=1,CONCATENATE(Tabelle_Auswertung[[#This Row],[Bildname]],\" von \",Tabelle_Auswertung[[#This Row],[Autor(in)]]),\"\")","v":""},{"$f":"IF(Tabelle_Auswertung[[#This Row],[Platz]]=2,CONCATENATE(Tabelle_Auswertung[[#This Row],[Bildname]],\" von \",Tabelle_Auswertung[[#This Row],[Autor(in)]]),\"\")","v":""},{"$f":"IF(Tabelle_Auswertung[[#This Row],[Platz]]=3,CONCATENATE(Tabelle_Auswertung[[#This Row],[Bildname]],\" von \",Tabelle_Auswertung[[#This Row],[Autor(in)]]),\"\")","v":""},{"$f":"IF(Tabelle_Auswertung[[#This Row],[Platz]]=4,CONCATENATE(Tabelle_Auswertung[[#This Row],[Bildname]],\" von \",Tabelle_Auswertung[[#This Row],[Autor(in)]]),\"\")","v":""},{"$f":"IF(Tabelle_Auswertung[[#This Row],[Platz]]=5,CONCATENATE(Tabelle_Auswertung[[#This Row],[Bildname]],\" von \",Tabelle_Auswertung[[#This Row],[Autor(in)]]),\"\")","v":""},{"$f":"IF(Tabelle_Auswertung[[#This Row],[Platz]]=6,CONCATENATE(Tabelle_Auswertung[[#This Row],[Bildname]],\" von \",Tabelle_Auswertung[[#This Row],[Autor(in)]]),\"\")","v":""},{"$f":"IF(Tabelle_Auswertung[[#This Row],[Platz]]=7,CONCATENATE(Tabelle_Auswertung[[#This Row],[Bildname]],\" von \",Tabelle_Auswertung[[#This Row],[Autor(in)]]),\"\")","v":""},{"$f":"IF(Tabelle_Auswertung[[#This Row],[Platz]]=8,CONCATENATE(Tabelle_Auswertung[[#This Row],[Bildname]],\" von \",Tabelle_Auswertung[[#This Row],[Autor(in)]]),\"\")","v":""},{"$f":"IF(Tabelle_Auswertung[[#This Row],[Platz]]=9,CONCATENATE(Tabelle_Auswertung[[#This Row],[Bildname]],\" von \",Tabelle_Auswertung[[#This Row],[Autor(in)]]),\"\")","v":""},{"$f":"IF(Tabelle_Auswertung[[#This Row],[Platz]]=10,CONCATENATE(Tabelle_Auswertung[[#This Row],[Bildname]],\" von \",Tabelle_Auswertung[[#This Row],[Autor(in)]]),\"\")","v":""}]
[{"$nulls":21},{"$f":"IF(Tabelle_Auswertung[[#This Row],[Bildname]]<>\"\",SUM(Tabelle_Auswertung[[#This Row],[Juror 1]:[Juror 20]]),\" - \")","v":" - "},{"$f":"IF(Tabelle_Auswertung[[#This Row],[Bildname]]<>\"\",IF(Tabelle_Auswertung[[#This Row],[Punkte]]>0,AVERAGE(Tabelle_Auswertung[[#This Row],[Juror 1]:[Juror 20]]),\" - \"),\" - \")","v":" - "},{"$f":"IF(Tabelle_Auswertung[[#This Row],[Bildname]]<>\"\",IF(Tabelle_Auswertung[[#This Row],[Punkte]]>0,RANK(Tabelle_Auswertung[[#This Row],[Punkte]],[Punkte],0),\" - \"),\" - \")","v":" - "}," - - -",{"$f":"IF(Tabelle_Auswertung[[#This Row],[Platz]]=1,CONCATENATE(Tabelle_Auswertung[[#This Row],[Bildname]],\" von \",Tabelle_Auswertung[[#This Row],[Autor(in)]]),\"\")","v":""},{"$f":"IF(Tabelle_Auswertung[[#This Row],[Platz]]=2,CONCATENATE(Tabelle_Auswertung[[#This Row],[Bildname]],\" von \",Tabelle_Auswertung[[#This Row],[Autor(in)]]),\"\")","v":""},{"$f":"IF(Tabelle_Auswertung[[#This Row],[Platz]]=3,CONCATENATE(Tabelle_Auswertung[[#This Row],[Bildname]],\" von \",Tabelle_Auswertung[[#This Row],[Autor(in)]]),\"\")","v":""},{"$f":"IF(Tabelle_Auswertung[[#This Row],[Platz]]=4,CONCATENATE(Tabelle_Auswertung[[#This Row],[Bildname]],\" von \",Tabelle_Auswertung[[#This Row],[Autor(in)]]),\"\")","v":""},{"$f":"IF(Tabelle_Auswertung[[#This Row],[Platz]]=5,CONCATENATE(Tabelle_Auswertung[[#This Row],[Bildname]],\" von \",Tabelle_Auswertung[[#This Row],[Autor(in)]]),\"\")","v":""},{"$f":"IF(Tabelle_Auswertung[[#This Row],[Platz]]=6,CONCATENATE(Tabelle_Auswertung[[#This Row],[Bildname]],\" von \",Tabelle_Auswertung[[#This Row],[Autor(in)]]),\"\")","v":""},{"$f":"IF(Tabelle_Auswertung[[#This Row],[Platz]]=7,CONCATENATE(Tabelle_Auswertung[[#This Row],[Bildname]],\" von \",Tabelle_Auswertung[[#This Row],[Autor(in)]]),\"\")","v":""},{"$f":"IF(Tabelle_Auswertung[[#This Row],[Platz]]=8,CONCATENATE(Tabelle_Auswertung[[#This Row],[Bildname]],\" von \",Tabelle_Auswertung[[#This Row],[Autor(in)]]),\"\")","v":""},{"$f":"IF(Tabelle_Auswertung[[#This Row],[Platz]]=9,CONCATENATE(Tabelle_Auswertung[[#This Row],[Bildname]],\" von \",Tabelle_Auswertung[[#This Row],[Autor(in)]]),\"\")","v":""},{"$f":"IF(Tabelle_Auswertung[[#This Row],[Platz]]=10,CONCATENATE(Tabelle_Auswertung[[#This Row],[Bildname]],\" von \",Tabelle_Auswertung[[#This Row],[Autor(in)]]),\"\")","v":""}]
[{"$nulls":21},{"$f":"IF(Tabelle_Auswertung[[#This Row],[Bildname]]<>\"\",SUM(Tabelle_Auswertung[[#This Row],[Juror 1]:[Juror 20]]),\" - \")","v":" - "},{"$f":"IF(Tabelle_Auswertung[[#This Row],[Bildname]]<>\"\",IF(Tabelle_Auswertung[[#This Row],[Punkte]]>0,AVERAGE(Tabelle_Auswertung[[#This Row],[Juror 1]:[Juror 20]]),\" - \"),\" - \")","v":" - "},{"$f":"IF(Tabelle_Auswertung[[#This Row],[Bildname]]<>\"\",IF(Tabelle_Auswertung[[#This Row],[Punkte]]>0,RANK(Tabelle_Auswertung[[#This Row],[Punkte]],[Punkte],0),\" - \"),\" - \")","v":" - "}," - - -",{"$f":"IF(Tabelle_Auswertung[[#This Row],[Platz]]=1,CONCATENATE(Tabelle_Auswertung[[#This Row],[Bildname]],\" von \",Tabelle_Auswertung[[#This Row],[Autor(in)]]),\"\")","v":""},{"$f":"IF(Tabelle_Auswertung[[#This Row],[Platz]]=2,CONCATENATE(Tabelle_Auswertung[[#This Row],[Bildname]],\" von \",Tabelle_Auswertung[[#This Row],[Autor(in)]]),\"\")","v":""},{"$f":"IF(Tabelle_Auswertung[[#This Row],[Platz]]=3,CONCATENATE(Tabelle_Auswertung[[#This Row],[Bildname]],\" von \",Tabelle_Auswertung[[#This Row],[Autor(in)]]),\"\")","v":""},{"$f":"IF(Tabelle_Auswertung[[#This Row],[Platz]]=4,CONCATENATE(Tabelle_Auswertung[[#This Row],[Bildname]],\" von \",Tabelle_Auswertung[[#This Row],[Autor(in)]]),\"\")","v":""},{"$f":"IF(Tabelle_Auswertung[[#This Row],[Platz]]=5,CONCATENATE(Tabelle_Auswertung[[#This Row],[Bildname]],\" von \",Tabelle_Auswertung[[#This Row],[Autor(in)]]),\"\")","v":""},{"$f":"IF(Tabelle_Auswertung[[#This Row],[Platz]]=6,CONCATENATE(Tabelle_Auswertung[[#This Row],[Bildname]],\" von \",Tabelle_Auswertung[[#This Row],[Autor(in)]]),\"\")","v":""},{"$f":"IF(Tabelle_Auswertung[[#This Row],[Platz]]=7,CONCATENATE(Tabelle_Auswertung[[#This Row],[Bildname]],\" von \",Tabelle_Auswertung[[#This Row],[Autor(in)]]),\"\")","v":""},{"$f":"IF(Tabelle_Auswertung[[#This Row],[Platz]]=8,CONCATENATE(Tabelle_Auswertung[[#This Row],[Bildname]],\" von \",Tabelle_Auswertung[[#This Row],[Autor(in)]]),\"\")","v":""},{"$f":"IF(Tabelle_Auswertung[[#This Row],[Platz]]=9,CONCATENATE(Tabelle_Auswertung[[#This Row],[Bildname]],\" von \",Tabelle_Auswertung[[#This Row],[Autor(in)]]),\"\")","v":""},{"$f":"IF(Tabelle_Auswertung[[#This Row],[Platz]]=10,CONCATENATE(Tabelle_Auswertung[[#This Row],[Bildname]],\" von \",Tabelle_Auswertung[[#This Row],[Autor(in)]]),\"\")","v":""}]
[{"$nulls":21},{"$f":"IF(Tabelle_Auswertung[[#This Row],[Bildname]]<>\"\",SUM(Tabelle_Auswertung[[#This Row],[Juror 1]:[Juror 20]]),\" - \")","v":" - "},{"$f":"IF(Tabelle_Auswertung[[#This Row],[Bildname]]<>\"\",IF(Tabelle_Auswertung[[#This Row],[Punkte]]>0,AVERAGE(Tabelle_Auswertung[[#This Row],[Juror 1]:[Juror 20]]),\" - \"),\" - \")","v":" - "},{"$f":"IF(Tabelle_Auswertung[[#This Row],[Bildname]]<>\"\",IF(Tabelle_Auswertung[[#This Row],[Punkte]]>0,RANK(Tabelle_Auswertung[[#This Row],[Punkte]],[Punkte],0),\" - \"),\" - \")","v":" - "}," - - -",{"$f":"IF(Tabelle_Auswertung[[#This Row],[Platz]]=1,CONCATENATE(Tabelle_Auswertung[[#This Row],[Bildname]],\" von \",Tabelle_Auswertung[[#This Row],[Autor(in)]]),\"\")","v":""},{"$f":"IF(Tabelle_Auswertung[[#This Row],[Platz]]=2,CONCATENATE(Tabelle_Auswertung[[#This Row],[Bildname]],\" von \",Tabelle_Auswertung[[#This Row],[Autor(in)]]),\"\")","v":""},{"$f":"IF(Tabelle_Auswertung[[#This Row],[Platz]]=3,CONCATENATE(Tabelle_Auswertung[[#This Row],[Bildname]],\" von \",Tabelle_Auswertung[[#This Row],[Autor(in)]]),\"\")","v":""},{"$f":"IF(Tabelle_Auswertung[[#This Row],[Platz]]=4,CONCATENATE(Tabelle_Auswertung[[#This Row],[Bildname]],\" von \",Tabelle_Auswertung[[#This Row],[Autor(in)]]),\"\")","v":""},{"$f":"IF(Tabelle_Auswertung[[#This Row],[Platz]]=5,CONCATENATE(Tabelle_Auswertung[[#This Row],[Bildname]],\" von \",Tabelle_Auswertung[[#This Row],[Autor(in)]]),\"\")","v":""},{"$f":"IF(Tabelle_Auswertung[[#This Row],[Platz]]=6,CONCATENATE(Tabelle_Auswertung[[#This Row],[Bildname]],\" von \",Tabelle_Auswertung[[#This Row],[Autor(in)]]),\"\")","v":""},{"$f":"IF(Tabelle_Auswertung[[#This Row],[Platz]]=7,CONCATENATE(Tabelle_Auswertung[[#This Row],[Bildname]],\" von \",Tabelle_Auswertung[[#This Row],[Autor(in)]]),\"\")","v":""},{"$f":"IF(Tabelle_Auswertung[[#This Row],[Platz]]=8,CONCATENATE(Tabelle_Auswertung[[#This Row],[Bildname]],\" von \",Tabelle_Auswertung[[#This Row],[Autor(in)]]),\"\")","v":""},{"$f":"IF(Tabelle_Auswertung[[#This Row],[Platz]]=9,CONCATENATE(Tabelle_Auswertung[[#This Row],[Bildname]],\" von \",Tabelle_Auswertung[[#This Row],[Autor(in)]]),\"\")","v":""},{"$f":"IF(Tabelle_Auswertung[[#This Row],[Platz]]=10,CONCATENATE(Tabelle_Auswertung[[#This Row],[Bildname]],\" von \",Tabelle_Auswertung[[#This Row],[Autor(in)]]),\"\")","v":""}]
[{"$nulls":21},{"$f":"IF(Tabelle_Auswertung[[#This Row],[Bildname]]<>\"\",SUM(Tabelle_Auswertung[[#This Row],[Juror 1]:[Juror 20]]),\" - \")","v":" - "},{"$f":"IF(Tabelle_Auswertung[[#This Row],[Bildname]]<>\"\",IF(Tabelle_Auswertung[[#This Row],[Punkte]]>0,AVERAGE(Tabelle_Auswertung[[#This Row],[Juror 1]:[Juror 20]]),\" - \"),\" - \")","v":" - "},{"$f":"IF(Tabelle_Auswertung[[#This Row],[Bildname]]<>\"\",IF(Tabelle_Auswertung[[#This Row],[Punkte]]>0,RANK(Tabelle_Auswertung[[#This Row],[Punkte]],[Punkte],0),\" - \"),\" - \")","v":" - "}," - - -",{"$f":"IF(Tabelle_Auswertung[[#This Row],[Platz]]=1,CONCATENATE(Tabelle_Auswertung[[#This Row],[Bildname]],\" von \",Tabelle_Auswertung[[#This Row],[Autor(in)]]),\"\")","v":""},{"$f":"IF(Tabelle_Auswertung[[#This Row],[Platz]]=2,CONCATENATE(Tabelle_Auswertung[[#This Row],[Bildname]],\" von \",Tabelle_Auswertung[[#This Row],[Autor(in)]]),\"\")","v":""},{"$f":"IF(Tabelle_Auswertung[[#This Row],[Platz]]=3,CONCATENATE(Tabelle_Auswertung[[#This Row],[Bildname]],\" von \",Tabelle_Auswertung[[#This Row],[Autor(in)]]),\"\")","v":""},{"$f":"IF(Tabelle_Auswertung[[#This Row],[Platz]]=4,CONCATENATE(Tabelle_Auswertung[[#This Row],[Bildname]],\" von \",Tabelle_Auswertung[[#This Row],[Autor(in)]]),\"\")","v":""},{"$f":"IF(Tabelle_Auswertung[[#This Row],[Platz]]=5,CONCATENATE(Tabelle_Auswertung[[#This Row],[Bildname]],\" von \",Tabelle_Auswertung[[#This Row],[Autor(in)]]),\"\")","v":""},{"$f":"IF(Tabelle_Auswertung[[#This Row],[Platz]]=6,CONCATENATE(Tabelle_Auswertung[[#This Row],[Bildname]],\" von \",Tabelle_Auswertung[[#This Row],[Autor(in)]]),\"\")","v":""},{"$f":"IF(Tabelle_Auswertung[[#This Row],[Platz]]=7,CONCATENATE(Tabelle_Auswertung[[#This Row],[Bildname]],\" von \",Tabelle_Auswertung[[#This Row],[Autor(in)]]),\"\")","v":""},{"$f":"IF(Tabelle_Auswertung[[#This Row],[Platz]]=8,CONCATENATE(Tabelle_Auswertung[[#This Row],[Bildname]],\" von \",Tabelle_Auswertung[[#This Row],[Autor(in)]]),\"\")","v":""},{"$f":"IF(Tabelle_Auswertung[[#This Row],[Platz]]=9,CONCATENATE(Tabelle_Auswertung[[#This Row],[Bildname]],\" von \",Tabelle_Auswertung[[#This Row],[Autor(in)]]),\"\")","v":""},{"$f":"IF(Tabelle_Auswertung[[#This Row],[Platz]]=10,CONCATENATE(Tabelle_Auswertung[[#This Row],[Bildname]],\" von \",Tabelle_Auswertung[[#This Row],[Autor(in)]]),\"\")","v":""}]
[{"$nulls":21},{"$f":"IF(Tabelle_Auswertung[[#This Row],[Bildname]]<>\"\",SUM(Tabelle_Auswertung[[#This Row],[Juror 1]:[Juror 20]]),\" - \")","v":" - "},{"$f":"IF(Tabelle_Auswertung[[#This Row],[Bildname]]<>\"\",IF(Tabelle_Auswertung[[#This Row],[Punkte]]>0,AVERAGE(Tabelle_Auswertung[[#This Row],[Juror 1]:[Juror 20]]),\" - \"),\" - \")","v":" - "},{"$f":"IF(Tabelle_Auswertung[[#This Row],[Bildname]]<>\"\",IF(Tabelle_Auswertung[[#This Row],[Punkte]]>0,RANK(Tabelle_Auswertung[[#This Row],[Punkte]],[Punkte],0),\" - \"),\" - \")","v":" - "}," - - -",{"$f":"IF(Tabelle_Auswertung[[#This Row],[Platz]]=1,CONCATENATE(Tabelle_Auswertung[[#This Row],[Bildname]],\" von \",Tabelle_Auswertung[[#This Row],[Autor(in)]]),\"\")","v":""},{"$f":"IF(Tabelle_Auswertung[[#This Row],[Platz]]=2,CONCATENATE(Tabelle_Auswertung[[#This Row],[Bildname]],\" von \",Tabelle_Auswertung[[#This Row],[Autor(in)]]),\"\")","v":""},{"$f":"IF(Tabelle_Auswertung[[#This Row],[Platz]]=3,CONCATENATE(Tabelle_Auswertung[[#This Row],[Bildname]],\" von \",Tabelle_Auswertung[[#This Row],[Autor(in)]]),\"\")","v":""},{"$f":"IF(Tabelle_Auswertung[[#This Row],[Platz]]=4,CONCATENATE(Tabelle_Auswertung[[#This Row],[Bildname]],\" von \",Tabelle_Auswertung[[#This Row],[Autor(in)]]),\"\")","v":""},{"$f":"IF(Tabelle_Auswertung[[#This Row],[Platz]]=5,CONCATENATE(Tabelle_Auswertung[[#This Row],[Bildname]],\" von \",Tabelle_Auswertung[[#This Row],[Autor(in)]]),\"\")","v":""},{"$f":"IF(Tabelle_Auswertung[[#This Row],[Platz]]=6,CONCATENATE(Tabelle_Auswertung[[#This Row],[Bildname]],\" von \",Tabelle_Auswertung[[#This Row],[Autor(in)]]),\"\")","v":""},{"$f":"IF(Tabelle_Auswertung[[#This Row],[Platz]]=7,CONCATENATE(Tabelle_Auswertung[[#This Row],[Bildname]],\" von \",Tabelle_Auswertung[[#This Row],[Autor(in)]]),\"\")","v":""},{"$f":"IF(Tabelle_Auswertung[[#This Row],[Platz]]=8,CONCATENATE(Tabelle_Auswertung[[#This Row],[Bildname]],\" von \",Tabelle_Auswertung[[#This Row],[Autor(in)]]),\"\")","v":""},{"$f":"IF(Tabelle_Auswertung[[#This Row],[Platz]]=9,CONCATENATE(Tabelle_Auswertung[[#This Row],[Bildname]],\" von \",Tabelle_Auswertung[[#This Row],[Autor(in)]]),\"\")","v":""},{"$f":"IF(Tabelle_Auswertung[[#This Row],[Platz]]=10,CONCATENATE(Tabelle_Auswertung[[#This Row],[Bildname]],\" von \",Tabelle_Auswertung[[#This Row],[Autor(in)]]),\"\")","v":""}]
[{"$nulls":21},{"$f":"IF(Tabelle_Auswertung[[#This Row],[Bildname]]<>\"\",SUM(Tabelle_Auswertung[[#This Row],[Juror 1]:[Juror 20]]),\" - \")","v":" - "},{"$f":"IF(Tabelle_Auswertung[[#This Row],[Bildname]]<>\"\",IF(Tabelle_Auswertung[[#This Row],[Punkte]]>0,AVERAGE(Tabelle_Auswertung[[#This Row],[Juror 1]:[Juror 20]]),\" - \"),\" - \")","v":" - "},{"$f":"IF(Tabelle_Auswertung[[#This Row],[Bildname]]<>\"\",IF(Tabelle_Auswertung[[#This Row],[Punkte]]>0,RANK(Tabelle_Auswertung[[#This Row],[Punkte]],[Punkte],0),\" - \"),\" - \")","v":" - "}," - - -",{"$f":"IF(Tabelle_Auswertung[[#This Row],[Platz]]=1,CONCATENATE(Tabelle_Auswertung[[#This Row],[Bildname]],\" von \",Tabelle_Auswertung[[#This Row],[Autor(in)]]),\"\")","v":""},{"$f":"IF(Tabelle_Auswertung[[#This Row],[Platz]]=2,CONCATENATE(Tabelle_Auswertung[[#This Row],[Bildname]],\" von \",Tabelle_Auswertung[[#This Row],[Autor(in)]]),\"\")","v":""},{"$f":"IF(Tabelle_Auswertung[[#This Row],[Platz]]=3,CONCATENATE(Tabelle_Auswertung[[#This Row],[Bildname]],\" von \",Tabelle_Auswertung[[#This Row],[Autor(in)]]),\"\")","v":""},{"$f":"IF(Tabelle_Auswertung[[#This Row],[Platz]]=4,CONCATENATE(Tabelle_Auswertung[[#This Row],[Bildname]],\" von \",Tabelle_Auswertung[[#This Row],[Autor(in)]]),\"\")","v":""},{"$f":"IF(Tabelle_Auswertung[[#This Row],[Platz]]=5,CONCATENATE(Tabelle_Auswertung[[#This Row],[Bildname]],\" von \",Tabelle_Auswertung[[#This Row],[Autor(in)]]),\"\")","v":""},{"$f":"IF(Tabelle_Auswertung[[#This Row],[Platz]]=6,CONCATENATE(Tabelle_Auswertung[[#This Row],[Bildname]],\" von \",Tabelle_Auswertung[[#This Row],[Autor(in)]]),\"\")","v":""},{"$f":"IF(Tabelle_Auswertung[[#This Row],[Platz]]=7,CONCATENATE(Tabelle_Auswertung[[#This Row],[Bildname]],\" von \",Tabelle_Auswertung[[#This Row],[Autor(in)]]),\"\")","v":""},{"$f":"IF(Tabelle_Auswertung[[#This Row],[Platz]]=8,CONCATENATE(Tabelle_Auswertung[[#This Row],[Bildname]],\" von \",Tabelle_Auswertung[[#This Row],[Autor(in)]]),\"\")","v":""},{"$f":"IF(Tabelle_Auswertung[[#This Row],[Platz]]=9,CONCATENATE(Tabelle_Auswertung[[#This Row],[Bildname]],\" von \",Tabelle_Auswertung[[#This Row],[Autor(in)]]),\"\")","v":""},{"$f":"IF(Tabelle_Auswertung[[#This Row],[Platz]]=10,CONCATENATE(Tabelle_Auswertung[[#This Row],[Bildname]],\" von \",Tabelle_Auswertung[[#This Row],[Autor(in)]]),\"\")","v":""}]
[{"$nulls":21},{"$f":"IF(Tabelle_Auswertung[[#This Row],[Bildname]]<>\"\",SUM(Tabelle_Auswertung[[#This Row],[Juror 1]:[Juror 20]]),\" - \")","v":" - "},{"$f":"IF(Tabelle_Auswertung[[#This Row],[Bildname]]<>\"\",IF(Tabelle_Auswertung[[#This Row],[Punkte]]>0,AVERAGE(Tabelle_Auswertung[[#This Row],[Juror 1]:[Juror 20]]),\" - \"),\" - \")","v":" - "},{"$f":"IF(Tabelle_Auswertung[[#This Row],[Bildname]]<>\"\",IF(Tabelle_Auswertung[[#This Row],[Punkte]]>0,RANK(Tabelle_Auswertung[[#This Row],[Punkte]],[Punkte],0),\" - \"),\" - \")","v":" - "}," - - -",{"$f":"IF(Tabelle_Auswertung[[#This Row],[Platz]]=1,CONCATENATE(Tabelle_Auswertung[[#This Row],[Bildname]],\" von \",Tabelle_Auswertung[[#This Row],[Autor(in)]]),\"\")","v":""},{"$f":"IF(Tabelle_Auswertung[[#This Row],[Platz]]=2,CONCATENATE(Tabelle_Auswertung[[#This Row],[Bildname]],\" von \",Tabelle_Auswertung[[#This Row],[Autor(in)]]),\"\")","v":""},{"$f":"IF(Tabelle_Auswertung[[#This Row],[Platz]]=3,CONCATENATE(Tabelle_Auswertung[[#This Row],[Bildname]],\" von \",Tabelle_Auswertung[[#This Row],[Autor(in)]]),\"\")","v":""},{"$f":"IF(Tabelle_Auswertung[[#This Row],[Platz]]=4,CONCATENATE(Tabelle_Auswertung[[#This Row],[Bildname]],\" von \",Tabelle_Auswertung[[#This Row],[Autor(in)]]),\"\")","v":""},{"$f":"IF(Tabelle_Auswertung[[#This Row],[Platz]]=5,CONCATENATE(Tabelle_Auswertung[[#This Row],[Bildname]],\" von \",Tabelle_Auswertung[[#This Row],[Autor(in)]]),\"\")","v":""},{"$f":"IF(Tabelle_Auswertung[[#This Row],[Platz]]=6,CONCATENATE(Tabelle_Auswertung[[#This Row],[Bildname]],\" von \",Tabelle_Auswertung[[#This Row],[Autor(in)]]),\"\")","v":""},{"$f":"IF(Tabelle_Auswertung[[#This Row],[Platz]]=7,CONCATENATE(Tabelle_Auswertung[[#This Row],[Bildname]],\" von \",Tabelle_Auswertung[[#This Row],[Autor(in)]]),\"\")","v":""},{"$f":"IF(Tabelle_Auswertung[[#This Row],[Platz]]=8,CONCATENATE(Tabelle_Auswertung[[#This Row],[Bildname]],\" von \",Tabelle_Auswertung[[#This Row],[Autor(in)]]),\"\")","v":""},{"$f":"IF(Tabelle_Auswertung[[#This Row],[Platz]]=9,CONCATENATE(Tabelle_Auswertung[[#This Row],[Bildname]],\" von \",Tabelle_Auswertung[[#This Row],[Autor(in)]]),\"\")","v":""},{"$f":"IF(Tabelle_Auswertung[[#This Row],[Platz]]=10,CONCATENATE(Tabelle_Auswertung[[#This Row],[Bildname]],\" von \",Tabelle_Auswertung[[#This Row],[Autor(in)]]),\"\")","v":""}]
[{"$nulls":21},{"$f":"IF(Tabelle_Auswertung[[#This Row],[Bildname]]<>\"\",SUM(Tabelle_Auswertung[[#This Row],[Juror 1]:[Juror 20]]),\" - \")","v":" - "},{"$f":"IF(Tabelle_Auswertung[[#This Row],[Bildname]]<>\"\",IF(Tabelle_Auswertung[[#This Row],[Punkte]]>0,AVERAGE(Tabelle_Auswertung[[#This Row],[Juror 1]:[Juror 20]]),\" - \"),\" - \")","v":" - "},{"$f":"IF(Tabelle_Auswertung[[#This Row],[Bildname]]<>\"\",IF(Tabelle_Auswertung[[#This Row],[Punkte]]>0,RANK(Tabelle_Auswertung[[#This Row],[Punkte]],[Punkte],0),\" - \"),\" - \")","v":" - "}," - - -",{"$f":"IF(Tabelle_Auswertung[[#This Row],[Platz]]=1,CONCATENATE(Tabelle_Auswertung[[#This Row],[Bildname]],\" von \",Tabelle_Auswertung[[#This Row],[Autor(in)]]),\"\")","v":""},{"$f":"IF(Tabelle_Auswertung[[#This Row],[Platz]]=2,CONCATENATE(Tabelle_Auswertung[[#This Row],[Bildname]],\" von \",Tabelle_Auswertung[[#This Row],[Autor(in)]]),\"\")","v":""},{"$f":"IF(Tabelle_Auswertung[[#This Row],[Platz]]=3,CONCATENATE(Tabelle_Auswertung[[#This Row],[Bildname]],\" von \",Tabelle_Auswertung[[#This Row],[Autor(in)]]),\"\")","v":""},{"$f":"IF(Tabelle_Auswertung[[#This Row],[Platz]]=4,CONCATENATE(Tabelle_Auswertung[[#This Row],[Bildname]],\" von \",Tabelle_Auswertung[[#This Row],[Autor(in)]]),\"\")","v":""},{"$f":"IF(Tabelle_Auswertung[[#This Row],[Platz]]=5,CONCATENATE(Tabelle_Auswertung[[#This Row],[Bildname]],\" von \",Tabelle_Auswertung[[#This Row],[Autor(in)]]),\"\")","v":""},{"$f":"IF(Tabelle_Auswertung[[#This Row],[Platz]]=6,CONCATENATE(Tabelle_Auswertung[[#This Row],[Bildname]],\" von \",Tabelle_Auswertung[[#This Row],[Autor(in)]]),\"\")","v":""},{"$f":"IF(Tabelle_Auswertung[[#This Row],[Platz]]=7,CONCATENATE(Tabelle_Auswertung[[#This Row],[Bildname]],\" von \",Tabelle_Auswertung[[#This Row],[Autor(in)]]),\"\")","v":""},{"$f":"IF(Tabelle_Auswertung[[#This Row],[Platz]]=8,CONCATENATE(Tabelle_Auswertung[[#This Row],[Bildname]],\" von \",Tabelle_Auswertung[[#This Row],[Autor(in)]]),\"\")","v":""},{"$f":"IF(Tabelle_Auswertung[[#This Row],[Platz]]=9,CONCATENATE(Tabelle_Auswertung[[#This Row],[Bildname]],\" von \",Tabelle_Auswertung[[#This Row],[Autor(in)]]),\"\")","v":""},{"$f":"IF(Tabelle_Auswertung[[#This Row],[Platz]]=10,CONCATENATE(Tabelle_Auswertung[[#This Row],[Bildname]],\" von \",Tabelle_Auswertung[[#This Row],[Autor(in)]]),\"\")","v":""}]
[{"$nulls":21},{"$f":"IF(Tabelle_Auswertung[[#This Row],[Bildname]]<>\"\",SUM(Tabelle_Auswertung[[#This Row],[Juror 1]:[Juror 20]]),\" - \")","v":" - "},{"$f":"IF(Tabelle_Auswertung[[#This Row],[Bildname]]<>\"\",IF(Tabelle_Auswertung[[#This Row],[Punkte]]>0,AVERAGE(Tabelle_Auswertung[[#This Row],[Juror 1]:[Juror 20]]),\" - \"),\" - \")","v":" - "},{"$f":"IF(Tabelle_Auswertung[[#This Row],[Bildname]]<>\"\",IF(Tabelle_Auswertung[[#This Row],[Punkte]]>0,RANK(Tabelle_Auswertung[[#This Row],[Punkte]],[Punkte],0),\" - \"),\" - \")","v":" - "}," - - -",{"$f":"IF(Tabelle_Auswertung[[#This Row],[Platz]]=1,CONCATENATE(Tabelle_Auswertung[[#This Row],[Bildname]],\" von \",Tabelle_Auswertung[[#This Row],[Autor(in)]]),\"\")","v":""},{"$f":"IF(Tabelle_Auswertung[[#This Row],[Platz]]=2,CONCATENATE(Tabelle_Auswertung[[#This Row],[Bildname]],\" von \",Tabelle_Auswertung[[#This Row],[Autor(in)]]),\"\")","v":""},{"$f":"IF(Tabelle_Auswertung[[#This Row],[Platz]]=3,CONCATENATE(Tabelle_Auswertung[[#This Row],[Bildname]],\" von \",Tabelle_Auswertung[[#This Row],[Autor(in)]]),\"\")","v":""},{"$f":"IF(Tabelle_Auswertung[[#This Row],[Platz]]=4,CONCATENATE(Tabelle_Auswertung[[#This Row],[Bildname]],\" von \",Tabelle_Auswertung[[#This Row],[Autor(in)]]),\"\")","v":""},{"$f":"IF(Tabelle_Auswertung[[#This Row],[Platz]]=5,CONCATENATE(Tabelle_Auswertung[[#This Row],[Bildname]],\" von \",Tabelle_Auswertung[[#This Row],[Autor(in)]]),\"\")","v":""},{"$f":"IF(Tabelle_Auswertung[[#This Row],[Platz]]=6,CONCATENATE(Tabelle_Auswertung[[#This Row],[Bildname]],\" von \",Tabelle_Auswertung[[#This Row],[Autor(in)]]),\"\")","v":""},{"$f":"IF(Tabelle_Auswertung[[#This Row],[Platz]]=7,CONCATENATE(Tabelle_Auswertung[[#This Row],[Bildname]],\" von \",Tabelle_Auswertung[[#This Row],[Autor(in)]]),\"\")","v":""},{"$f":"IF(Tabelle_Auswertung[[#This Row],[Platz]]=8,CONCATENATE(Tabelle_Auswertung[[#This Row],[Bildname]],\" von \",Tabelle_Auswertung[[#This Row],[Autor(in)]]),\"\")","v":""},{"$f":"IF(Tabelle_Auswertung[[#This Row],[Platz]]=9,CONCATENATE(Tabelle_Auswertung[[#This Row],[Bildname]],\" von \",Tabelle_Auswertung[[#This Row],[Autor(in)]]),\"\")","v":""},{"$f":"IF(Tabelle_Auswertung[[#This Row],[Platz]]=10,CONCATENATE(Tabelle_Auswertung[[#This Row],[Bildname]],\" von \",Tabelle_Auswertung[[#This Row],[Autor(in)]]),\"\")","v":""}]

{"sheet":"Statistik nach Autor(in)","index":1,"n_rows":36,"n_cols":11,"rows_kept":36,"merged":[[0,0,3,3]]}
["Statistik",{"$nulls":8},1," - Platz 1"]
[{"$nulls":9},2," - Platz 2"]
[{"$nulls":9},3," - Platz 3"]
[{"$nulls":9}," 4-10"," - Top 10"]
["Autor(in)","Punkte","Platz","Teilnahme","1ster","2ter","3ter","TOP 10"]
[{"$f":"IF(AND(Fotografen!$A25<>\"\",Fotografen!$A25<>\" - - -\"),Fotografen!$A25,\"\")","v":"Nadja Cassim"},{"$f":"IF(Tabelle_Statistik[[#This Row],[Teilnahme]]=\"ja\",SUMIF(Tabelle_Auswertung[Autor(in)],Tabelle_Statistik[[#This Row],[Autor(in)]],Tabelle_Auswertung[Punkte]),IF(Tabelle_Statistik[[#This Row],[Autor(in)]]<>\"\",\" - \",\"\"))","v":171},{"$f":"IF(Tabelle_Statistik[[#This Row],[Teilnahme]]=\"ja\",RANK(Tabelle_Statistik[[#This Row],[Punkte]],[Punkte],0),IF(Tabelle_Statistik[[#This Row],[Autor(in)]]<>\"\",\" - \",\"\"))","v":1},{"$f":"IF(Tabelle_Statistik[[#This Row],[Autor(in)]]<>\"\",IF(COUNTIF(Tabelle_Auswertung[Autor(in)],Tabelle_Statistik[[#This Row],[Autor(in)]])>0,\"ja\",\"nein\"),\"\")","v":"ja"},{"$f":"IF(Tabelle_Statistik[[#This Row],[Platz]]=1,Tabelle_Statistik[[#This Row],[Autor(in)]],\"\")","v":"Nadja Cassim"},{"$f":"IF(Tabelle_Statistik[[#This Row],[Platz]]=2,Tabelle_Statistik[[#This Row],[Autor(in)]],\"\")","v":""},{"$f":"IF(Tabelle_Statistik[[#This Row],[Platz]]=3,Tabelle_Statistik[[#This Row],[Autor(in)]],\"\")","v":""},{"$f":"IF(Tabelle_Statistik[[#This Row],[Platz]]<11,Tabelle_Statistik[[#This Row],[Autor(in)]],\"\")","v":"Nadja Cassim"}]
[{"$f":"IF(AND(Fotografen!$A5<>\"\",Fotografen!$A5<>\" - - -\"),Fotografen!$A5,\"\")","v":"Andreas Toltz"},{"$f":"IF(Tabelle_Statistik[[#This Row],[Teilnahme]]=\"ja\",SUMIF(Tabelle_Auswertung[Autor(in)],Tabelle_Statistik[[#This Row],[Autor(in)]],Tabelle_Auswertung[Punkte]),IF(Tabelle_Statistik[[#This Row],[Autor(in)]]<>\"\",\" - \",\"\"))","v":170},{"$f":"IF(Tabelle_Statistik[[#This Row],[Teilnahme]]=\"ja\",RANK(Tabelle_Statistik[[#This Row],[Punkte]],[Punkte],0),IF(Tabelle_Statistik[[#This Row],[Autor(in)]]<>\"\",\" - \",\"\"))","v":2},{"$f":"IF(Tabelle_Statistik[[#This Row],[Autor(in)]]<>\"\",IF(COUNTIF(Tabelle_Auswertung[Autor(in)],Tabelle_Statistik[[#This Row],[Autor(in)]])>0,\"ja\",\"nein\"),\"\")","v":"ja"},{"$f":"IF(Tabelle_Statistik[[#This Row],[Platz]]=1,Tabelle_Statistik[[#This Row],[Autor(in)]],\"\")","v":""},{"$f":"IF(Tabelle_Statistik[[#This Row],[Platz]]=2,Tabelle_Statistik[[#This Row],[Autor(in)]],\"\")","v":"Andreas Toltz"},{"$f":"IF(Tabelle_Statistik[[#This Row],[Platz]]=3,Tabelle_Statistik[[#This Row],[Autor(in)]],\"\")","v":""},{"$f":"IF(Tabelle_Statistik[[#This Row],[Platz]]<11,Tabelle_Statistik[[#This Row],[Autor(in)]],\"\")","v":"Andreas Toltz"}]
[{"$f":"IF(AND(Fotografen!$A12<>\"\",Fotografen!$A12<>\" - - -\"),Fotografen!$A12,\"\")","v":"Gerhard Rieß"},{"$f":"IF(Tabelle_Statistik[[#This Row],[Teilnahme]]=\"ja\",SUMIF(Tabelle_Auswertung[Autor(in)],Tabelle_Statistik[[#This Row],[Autor(in)]],Tabelle_Auswertung[Punkte]),IF(Tabelle_Statistik[[#This Row],[Autor(in)]]<>\"\",\" - \",\"\"))","v":145},{"$f":"IF(Tabelle_Statistik[[#This Row],[Teilnahme]]=\"ja\",RANK(Tabelle_Statistik[[#This Row],[Punkte]],[Punkte],0),IF(Tabelle_Statistik[[#This Row],[Autor(in)]]<>\"\",\" - \",\"\"))","v":3},{"$f":"IF(Tabelle_Statistik[[#This Row],[Autor(in)]]<>\"\",IF(COUNTIF(Tabelle_Auswertung[Autor(in)],Tabelle_Statistik[[#This Row],[Autor(in)]])>0,\"ja\",\"nein\"),\"\")","v":"ja"},{"$f":"IF(Tabelle_Statistik[[#This Row],[Platz]]=1,Tabelle_Statistik[[#This Row],[Autor(in)]],\"\")","v":""},{"$f":"IF(Tabelle_Statistik[[#This Row],[Platz]]=2,Tabelle_Statistik[[#This Row],[Autor(in)]],\"\")","v":""},{"$f":"IF(Tabelle_Statistik[[#This Row],[Platz]]=3,Tabelle_Statistik[[#This Row],[Autor(in)]],\"\")","v":"Gerhard Rieß"},{"$f":"IF(Tabelle_Statistik[[#This Row],[Platz]]<11,Tabelle_Statistik[[#This Row],[Autor(in)]],\"\")","v":"Gerhard Rieß"}]
[{"$f":"IF(AND(Fotografen!$A17<>\"\",Fotografen!$A17<>\" - - -\"),Fotografen!$A17,\"\")","v":"Jan Grünler"},{"$f":"IF(Tabelle_Statistik[[#This Row],[Teilnahme]]=\"ja\",SUMIF(Tabelle_Auswertung[Autor(in)],Tabelle_Statistik[[#This Row],[Autor(in)]],Tabelle_Auswertung[Punkte]),IF(Tabelle_Statistik[[#This Row],[Autor(in)]]<>\"\",\" - \",\"\"))","v":143},{"$f":"IF(Tabelle_Statistik[[#This Row],[Teilnahme]]=\"ja\",RANK(Tabelle_Statistik[[#This Row],[Punkte]],[Punkte],0),IF(Tabelle_Statistik[[#This Row],[Autor(in)]]<>\"\",\" - \",\"\"))","v":4},{"$f":"IF(Tabelle_Statistik[[#This Row],[Autor(in)]]<>\"\",IF(COUNTIF(Tabelle_Auswertung[Autor(in)],Tabelle_Statistik[[#This Row],[Autor(in)]])>0,\"ja\",\"nein\"),\"\")","v":"ja"},{"$f":"IF(Tabelle_Statistik[[#This Row],[Platz]]=1,Tabelle_Statistik[[#This Row],[Autor(in)]],\"\")","v":""},{"$f":"IF(Tabelle_Statistik[[#This Row],[Platz]]=2,Tabelle_Statistik[[#This Row],[Autor(in)]],\"\")","v":""},{"$f":"IF(Tabelle_Statistik[[#This Row],[Platz]]=3,Tabelle_Statistik[[#This Row],[Autor(in)]],\"\")","v":""},{"$f":"IF(Tabelle_Statistik[[#This Row],[Platz]]<11,Tabelle_Statistik[[#This Row],[Autor(in)]],\"\")","v":"Jan Grünler"}]
[{"$f":"IF(AND(Fotografen!$A13<>\"\",Fotografen!$A13<>\" - - -\"),Fotografen!$A13,\"\")","v":"Gert Häberlein"},{"$f":"IF(Tabelle_Statistik[[#This Row],[Teilnahme]]=\"ja\",SUMIF(Tabelle_Auswertung[Autor(in)],Tabelle_Statistik[[#This Row],[Autor(in)]],Tabelle_Auswertung[Punkte]),IF(Tabelle_Statistik[[#This Row],[Autor(in)]]<>\"\",\" - \",\"\"))","v":140},{"$f":"IF(Tabelle_Statistik[[#This Row],[Teilnahme]]=\"ja\",RANK(Tabelle_Statistik[[#This Row],[Punkte]],[Punkte],0),IF(Tabelle_Statistik[[#This Row],[Autor(in)]]<>\"\",\" - \",\"\"))","v":5},{"$f":"IF(Tabelle_Statistik[[#This Row],[Autor(in)]]<>\"\",IF(COUNTIF(Tabelle_Auswertung[Autor(in)],Tabelle_Statistik[[#This Row],[Autor(in)]])>0,\"ja\",\"nein\"),\"\")","v":"ja"},{"$f":"IF(Tabelle_Statistik[[#This Row],[Platz]]=1,Tabelle_Statistik[[#This Row],[Autor(in)]],\"\")","v":""},{"$f":"IF(Tabelle_Statistik[[#This Row],[Platz]]=2,Tabelle_Statistik[[#This Row],[Autor(in)]],\"\")","v":""},{"$f":"IF(Tabelle_Statistik[[#This Row],[Platz]]=3,Tabelle_Statistik[[#This Row],[Autor(in)]],\"\")","v":""},{"$f":"IF(Tabelle_Statistik[[#This Row],[Platz]]<11,Tabelle_Statistik[[#This Row],[Autor(in)]],\"\")","v":"Gert Häberlein"}]
[{"$f":"IF(AND(Fotografen!$A8<>\"\",Fotografen!$A8<>\" - - -\"),Fotografen!$A8,\"\")","v":"Chris Finsterer"},{"$f":"IF(Tabelle_Statistik[[#This Row],[Teilnahme]]=\"ja\",SUMIF(Tabelle_Auswertung[Autor(in)],Tabelle_Statistik[[#This Row],[Autor(in)]],Tabelle_Auswertung[Punkte]),IF(Tabelle_Statistik[[#This Row],[Autor(in)]]<>\"\",\" - \",\"\"))","v":136},{"$f":"IF(Tabelle_Statistik[[#This Row],[Teilnahme]]=\"ja\",RANK(Tabelle_Statistik[[#This Row],[Punkte]],[Punkte],0),IF(Tabelle_Statistik[[#This Row],[Autor(in)]]<>\"\",\" - \",\"\"))","v":6},{"$f":"IF(Tabelle_Statistik[[#This Row],[Autor(in)]]<>\"\",IF(COUNTIF(Tabelle_Auswertung[Autor(in)],Tabelle_Statistik[[#This Row],[Autor(in)]])>0,\"ja\",\"nein\"),\"\")","v":"ja"},{"$f":"IF(Tabelle_Statistik[[#This Row],[Platz]]=1,Tabelle_Statistik[[#This Row],[Autor(in)]],\"\")","v":""},{"$f":"IF(Tabelle_Statistik[[#This Row],[Platz]]=2,Tabelle_Statistik[[#This Row],[Autor(in)]],\"\")","v":""},{"$f":"IF(Tabelle_Statistik[[#This Row],[Platz]]=3,Tabelle_Statistik[[#This Row],[Autor(in)]],\"\")","v":""},{"$f":"IF(Tabelle_Statistik[[#This Row],[Platz]]<11,Tabelle_Statistik[[#This Row],[Autor(in)]],\"\")","v":"Chris Finsterer"}]
[{"$f":"IF(AND(Fotografen!$A9<>\"\",Fotografen!$A9<>\" - - -\"),Fotografen!$A9,\"\")","v":"Claudia Dommel"},{"$f":"IF(Tabelle_Statistik[[#This Row],[Teilnahme]]=\"ja\",SUMIF(Tabelle_Auswertung[Autor(in)],Tabelle_Statistik[[#This Row],[Autor(in)]],Tabelle_Auswertung[Punkte]),IF(Tabelle_Statistik[[#This Row],[Autor(in)]]<>\"\",\" - \",\"\"))","v":133},{"$f":"IF(Tabelle_Statistik[[#This Row],[Teilnahme]]=\"ja\",RANK(Tabelle_Statistik[[#This Row],[Punkte]],[Punkte],0),IF(Tabelle_Statistik[[#This Row],[Autor(in)]]<>\"\",\" - \",\"\"))","v":7},{"$f":"IF(Tabelle_Statistik[[#This Row],[Autor(in)]]<>\"\",IF(COUNTIF(Tabelle_Auswertung[Autor(in)],Tabelle_Statistik[[#This Row],[Autor(in)]])>0,\"ja\",\"nein\"),\"\")","v":"ja"},{"$f":"IF(Tabelle_Statistik[[#This Row],[Platz]]=1,Tabelle_Statistik[[#This Row],[Autor(in)]],\"\")","v":""},{"$f":"IF(Tabelle_Statistik[[#This Row],[Platz]]=2,Tabelle_Statistik[[#This Row],[Autor(in)]],\"\")","v":""},{"$f":"IF(Tabelle_Statistik[[#This Row],[Platz]]=3,Tabelle_Statistik[[#This Row],[Autor(in)]],\"\")","v":""},{"$f":"IF(Tabelle_Statistik[[#This Row],[Platz]]<11,Tabelle_Statistik[[#This Row],[Autor(in)]],\"\")","v":"Claudia Dommel"}]
[{"$f":"IF(AND(Fotografen!$A29<>\"\",Fotografen!$A29<>\" - - -\"),Fotografen!$A29,\"\")","v":"Susanne Deinhardt"},{"$f":"IF(Tabelle_Statistik[[#This Row],[Teilnahme]]=\"ja\",SUMIF(Tabelle_Auswertung[Autor(in)],Tabelle_Statistik[[#This Row],[Autor(in)]],Tabelle_Auswertung[Punkte]),IF(Tabelle_Statistik[[#This Row],[Autor(in)]]<>\"\",\" - \",\"\"))","v":125},{"$f":"IF(Tabelle_Statistik[[#This Row],[Teilnahme]]=\"ja\",RANK(Tabelle_Statistik[[#This Row],[Punkte]],[Punkte],0),IF(Tabelle_Statistik[[#This Row],[Autor(in)]]<>\"\",\" - \",\"\"))","v":8},{"$f":"IF(Tabelle_Statistik[[#This Row],[Autor(in)]]<>\"\",IF(COUNTIF(Tabelle_Auswertung[Autor(in)],Tabelle_Statistik[[#This Row],[Autor(in)]])>0,\"ja\",\"nein\"),\"\")","v":"ja"},{"$f":"IF(Tabelle_Statistik[[#This Row],[Platz]]=1,Tabelle_Statistik[[#This Row],[Autor(in)]],\"\")","v":""},{"$f":"IF(Tabelle_Statistik[[#This Row],[Platz]]=2,Tabelle_Statistik[[#This Row],[Autor(in)]],\"\")","v":""},{"$f":"IF(Tabelle_Statistik[[#This Row],[Platz]]=3,Tabelle_Statistik[[#This Row],[Autor(in)]],\"\")","v":""},{"$f":"IF(Tabelle_Statistik[[#This Row],[Platz]]<11,Tabelle_Statistik[[#This Row],[Autor(in)]],\"\")","v":"Susanne Deinhardt"}]
[{"$f":"IF(AND(Fotografen!$A3<>\"\",Fotografen!$A3<>\" - - -\"),Fotografen!$A3,\"\")","v":"Albrecht Flierl"},{"$f":"IF(Tabelle_Statistik[[#This Row],[Teilnahme]]=\"ja\",SUMIF(Tabelle_Auswertung[Autor(in)],Tabelle_Statistik[[#This Row],[Autor(in)]],Tabelle_Auswertung[Punkte]),IF(Tabelle_Statistik[[#This Row],[Autor(in)]]<>\"\",\" - \",\"\"))","v":113},{"$f":"IF(Tabelle_Statistik[[#This Row],[Teilnahme]]=\"ja\",RANK(Tabelle_Statistik[[#This Row],[Punkte]],[Punkte],0),IF(Tabelle_Statistik[[#This Row],[Autor(in)]]<>\"\",\" - \",\"\"))","v":9},{"$f":"IF(Tabelle_Statistik[[#This Row],[Autor(in)]]<>\"\",IF(COUNTIF(Tabelle_Auswertung[Autor(in)],Tabelle_Statistik[[#This Row],[Autor(in)]])>0,\"ja\",\"nein\"),\"\")","v":"ja"},{"$f":"IF(Tabelle_Statistik[[#This Row],[Platz]]=1,Tabelle_Statistik[[#This Row],[Autor(in)]],\"\")","v":""},{"$f":"IF(Tabelle_Statistik[[#This Row],[Platz]]=2,Tabelle_Statistik[[#This Row],[Autor(in)]],\"\")","v":""},{"$f":"IF(Tabelle_Statistik[[#This Row],[Platz]]=3,Tabelle_Statistik[[#This Row],[Autor(in)]],\"\")","v":""},{"$f":"IF(Tabelle_Statistik[[#This Row],[Platz]]<11,Tabelle_Statistik[[#This Row],[Autor(in)]],\"\")","v":"Albrecht Flierl"}]
[{"$f":"IF(AND(Fotografen!$A2<>\"\",Fotografen!$A2<>\" - - -\"),Fotografen!$A2,\"\")","v":""},{"$f":"IF(Tabelle_Statistik[[#This Row],[Teilnahme]]=\"ja\",SUMIF(Tabelle_Auswertung[Autor(in)],Tabelle_Statistik[[#This Row],[Autor(in)]],Tabelle_Auswertung[Punkte]),IF(Tabelle_Statistik[[#This Row],[Autor(in)]]<>\"\",\" - \",\"\"))","v":""},{"$f":"IF(Tabelle_Statistik[[#This Row],[Teilnahme]]=\"ja\",RANK(Tabelle_Statistik[[#This Row],[Punkte]],[Punkte],0),IF(Tabelle_Statistik[[#This Row],[Autor(in)]]<>\"\",\" - \",\"\"))","v":""},{"$f":"IF(Tabelle_Statistik[[#This Row],[Autor(in)]]<>\"\",IF(COUNTIF(Tabelle_Auswertung[Autor(in)],Tabelle_Statistik[[#This Row],[Autor(in)]])>0,\"ja\",\"nein\"),\"\")","v":""},{"$f":"IF(Tabelle_Statistik[[#This Row],[Platz]]=1,Tabelle_Statistik[[#This Row],[Autor(in)]],\"\")","v":""},{"$f":"IF(Tabelle_Statistik[[#This Row],[Platz]]=2,Tabelle_Statistik[[#This Row],[Autor(in)]],\"\")","v":""},{"$f":"IF(Tabelle_Statistik[[#This Row],[Platz]]=3,Tabelle_Statistik[[#This Row],[Autor(in)]],\"\")","v":""},{"$f":"IF(Tabelle_Statistik[[#This Row],[Platz]]<11,Tabelle_Statistik[[#This Row],[Autor(in)]],\"\")","v":""}]
[{"$f":"IF(AND(Fotografen!$A18<>\"\",Fotografen!$A18<>\" - - -\"),Fotografen!$A18,\"\")","v":"Jürgen Abt"},{"$f":"IF(Tabelle_Statistik[[#This Row],[Teilnahme]]=\"ja\",SUMIF(Tabelle_Auswertung[Autor(in)],Tabelle_Statistik[[#This Row],[Autor(in)]],Tabelle_Auswertung[Punkte]),IF(Tabelle_Statistik[[#This Row],[Autor(in)]]<>\"\",\" - \",\"\"))","v":" - "},{"$f":"IF(Tabelle_Statistik[[#This Row],[Teilnahme]]=\"ja\",RANK(Tabelle_Statistik[[#This Row],[Punkte]],[Punkte],0),IF(Tabelle_Statistik[[#This Row],[Autor(in)]]<>\"\",\" - \",\"\"))","v":" - "},{"$f":"IF(Tabelle_Statistik[[#This Row],[Autor(in)]]<>\"\",IF(COUNTIF(Tabelle_Auswertung[Autor(in)],Tabelle_Statistik[[#This Row],[Autor(in)]])>0,\"ja\",\"nein\"),\"\")","v":"nein"},{"$f":"IF(Tabelle_Statistik[[#This Row],[Platz]]=1,Tabelle_Statistik[[#This Row],[Autor(in)]],\"\")","v":""},{"$f":"IF(Tabelle_Statistik[[#This Row],[Platz]]=2,Tabelle_Statistik[[#This Row],[Autor(in)]],\"\")","v":""},{"$f":"IF(Tabelle_Statistik[[#This Row],[Platz]]=3,Tabelle_Statistik[[#This Row],[Autor(in)]],\"\")","v":""},{"$f":"IF(Tabelle_Statistik[[#This Row],[Platz]]<11,Tabelle_Statistik[[#This Row],[Autor(in)]],\"\")","v":""}]
[{"$f":"IF(AND(Fotografen!$A10<>\"\",Fotografen!$A10<>\" - - -\"),Fotografen!$A10,\"\")","v":"Georg Held"},{"$f":"IF(Tabelle_Statistik[[#This Row],[Teilnahme]]=\"ja\",SUMIF(Tabelle_Auswertung[Autor(in)],Tabelle_Statistik[[#This Row],[Autor(in)]],Tabelle_Auswertung[Punkte]),IF(Tabelle_Statistik[[#This Row],[Autor(in)]]<>\"\",\" - \",\"\"))","v":" - "},{"$f":"IF(Tabelle_Statistik[[#This Row],[Teilnahme]]=\"ja\",RANK(Tabelle_Statistik[[#This Row],[Punkte]],[Punkte],0),IF(Tabelle_Statistik[[#This Row],[Autor(in)]]<>\"\",\" - \",\"\"))","v":" - "},{"$f":"IF(Tabelle_Statistik[[#This Row],[Autor(in)]]<>\"\",IF(COUNTIF(Tabelle_Auswertung[Autor(in)],Tabelle_Statistik[[#This Row],[Autor(in)]])>0,\"ja\",\"nein\"),\"\")","v":"nein"},{"$f":"IF(Tabelle_Statistik[[#This Row],[Platz]]=1,Tabelle_Statistik[[#This Row],[Autor(in)]],\"\")","v":""},{"$f":"IF(Tabelle_Statistik[[#This Row],[Platz]]=2,Tabelle_Statistik[[#This Row],[Autor(in)]],\"\")","v":""},{"$f":"IF(Tabelle_Statistik[[#This Row],[Platz]]=3,Tabelle_Statistik[[#This Row],[Autor(in)]],\"\")","v":""},{"$f":"IF(Tabelle_Statistik[[#This Row],[Platz]]<11,Tabelle_Statistik[[#This Row],[Autor(in)]],\"\")","v":""}]
[{"$f":"IF(AND(Fotografen!$A11<>\"\",Fotografen!$A11<>\" - - -\"),Fotografen!$A11,\"\")","v":"Georg Lindörfer"},{"$f":"IF(Tabelle_Statistik[[#This Row],[Teilnahme]]=\"ja\",SUMIF(Tabelle_Auswertung[Autor(in)],Tabelle_Statistik[[#This Row],[Autor(in)]],Tabelle_Auswertung[Punkte]),IF(Tabelle_Statistik[[#This Row],[Autor(in)]]<>\"\",\" - \",\"\"))","v":" - "},{"$f":"IF(Tabelle_Statistik[[#This Row],[Teilnahme]]=\"ja\",RANK(Tabelle_Statistik[[#This Row],[Punkte]],[Punkte],0),IF(Tabelle_Statistik[[#This Row],[Autor(in)]]<>\"\",\" - \",\"\"))","v":" - "},{"$f":"IF(Tabelle_Statistik[[#This Row],[Autor(in)]]<>\"\",IF(COUNTIF(Tabelle_Auswertung[Autor(in)],Tabelle_Statistik[[#This Row],[Autor(in)]])>0,\"ja\",\"nein\"),\"\")","v":"nein"},{"$f":"IF(Tabelle_Statistik[[#This Row],[Platz]]=1,Tabelle_Statistik[[#This Row],[Autor(in)]],\"\")","v":""},{"$f":"IF(Tabelle_Statistik[[#This Row],[Platz]]=2,Tabelle_Statistik[[#This Row],[Autor(in)]],\"\")","v":""},{"$f":"IF(Tabelle_Statistik[[#This Row],[Platz]]=3,Tabelle_Statistik[[#This Row],[Autor(in)]],\"\")","v":""},{"$f":"IF(Tabelle_Statistik[[#This Row],[Platz]]<11,Tabelle_Statistik[[#This Row],[Autor(in)]],\"\")","v":""}]
[{"$f":"IF(AND(Fotografen!$A7<>\"\",Fotografen!$A7<>\" - - -\"),Fotografen!$A7,\"\")","v":"Bernd Marek"},{"$f":"IF(Tabelle_Statistik[[#This Row],[Teilnahme]]=\"ja\",SUMIF(Tabelle_Auswertung[Autor(in)],Tabelle_Statistik[[#This Row],[Autor(in)]],Tabelle_Auswertung[Punkte]),IF(Tabelle_Statistik[[#This Row],[Autor(in)]]<>\"\",\" - \",\"\"))","v":" - "},{"$f":"IF(Tabelle_Statistik[[#This Row],[Teilnahme]]=\"ja\",RANK(Tabelle_Statistik[[#This Row],[Punkte]],[Punkte],0),IF(Tabelle_Statistik[[#This Row],[Autor(in)]]<>\"\",\" - \",\"\"))","v":" - "},{"$f":"IF(Tabelle_Statistik[[#This Row],[Autor(in)]]<>\"\",IF(COUNTIF(Tabelle_Auswertung[Autor(in)],Tabelle_Statistik[[#This Row],[Autor(in)]])>0,\"ja\",\"nein\"),\"\")","v":"nein"},{"$f":"IF(Tabelle_Statistik[[#This Row],[Platz]]=1,Tabelle_Statistik[[#This Row],[Autor(in)]],\"\")","v":""},{"$f":"IF(Tabelle_Statistik[[#This Row],[Platz]]=2,Tabelle_Statistik[[#This Row],[Autor(in)]],\"\")","v":""},{"$f":"IF(Tabelle_Statistik[[#This Row],[Platz]]=3,Tabelle_Statistik[[#This Row],[Autor(in)]],\"\")","v":""},{"$f":"IF(Tabelle_Statistik[[#This Row],[Platz]]<11,Tabelle_Statistik[[#This Row],[Autor(in)]],\"\")","v":""}]
[{"$f":"IF(AND(Fotografen!$A21<>\"\",Fotografen!$A21<>\" - - -\"),Fotografen!$A21,\"\")","v":"Lisa Schmidt"},{"$f":"IF(Tabelle_Statistik[[#This Row],[Teilnahme]]=\"ja\",SUMIF(Tabelle_Auswertung[Autor(in)],Tabelle_Statistik[[#This Row],[Autor(in)]],Tabelle_Auswertung[Punkte]),IF(Tabelle_Statistik[[#This Row],[Autor(in)]]<>\"\",\" - \",\"\"))","v":" - "},{"$f":"IF(Tabelle_Statistik[[#This Row],[Teilnahme]]=\"ja\",RANK(Tabelle_Statistik[[#This Row],[Punkte]],[Punkte],0),IF(Tabelle_Statistik[[#This Row],[Autor(in)]]<>\"\",\" - \",\"\"))","v":" - "},{"$f":"IF(Tabelle_Statistik[[#This Row],[Autor(in)]]<>\"\",IF(COUNTIF(Tabelle_Auswertung[Autor(in)],Tabelle_Statistik[[#This Row],[Autor(in)]])>0,\"ja\",\"nein\"),\"\")","v":"nein"},{"$f":"IF(Tabelle_Statistik[[#This Row],[Platz]]=1,Tabelle_Statistik[[#This Row],[Autor(in)]],\"\")","v":""},{"$f":"IF(Tabelle_Statistik[[#This Row],[Platz]]=2,Tabelle_Statistik[[#This Row],[Autor(in)]],\"\")","v":""},{"$f":"IF(Tabelle_Statistik[[#This Row],[Platz]]=3,Tabelle_Statistik[[#This Row],[Autor(in)]],\"\")","v":""},{"$f":"IF(Tabelle_Statistik[[#This Row],[Platz]]<11,Tabelle_Statistik[[#This Row],[Autor(in)]],\"\")","v":""}]
[{"$f":"IF(AND(Fotografen!$A4<>\"\",Fotografen!$A4<>\" - - -\"),Fotografen!$A4,\"\")","v":"Alexander Häberlein"},{"$f":"IF(Tabelle_Statistik[[#This Row],[Teilnahme]]=\"ja\",SUMIF(Tabelle_Auswertung[Autor(in)],Tabelle_Statistik[[#This Row],[Autor(in)]],Tabelle_Auswertung[Punkte]),IF(Tabelle_Statistik[[#This Row],[Autor(in)]]<>\"\",\" - \",\"\"))","v":" - "},{"$f":"IF(Tabelle_Statistik[[#This Row],[Teilnahme]]=\"ja\",RANK(Tabelle_Statistik[[#This Row],[Punkte]],[Punkte],0),IF(Tabelle_Statistik[[#This Row],[Autor(in)]]<>\"\",\" - \",\"\"))","v":" - "},{"$f":"IF(Tabelle_Statistik[[#This Row],[Autor(in)]]<>\"\",IF(COUNTIF(Tabelle_Auswertung[Autor(in)],Tabelle_Statistik[[#This Row],[Autor(in)]])>0,\"ja\",\"nein\"),\"\")","v":"nein"},{"$f":"IF(Tabelle_Statistik[[#This Row],[Platz]]=1,Tabelle_Statistik[[#This Row],[Autor(in)]],\"\")","v":""},{"$f":"IF(Tabelle_Statistik[[#This Row],[Platz]]=2,Tabelle_Statistik[[#This Row],[Autor(in)]],\"\")","v":""},{"$f":"IF(Tabelle_Statistik[[#This Row],[Platz]]=3,Tabelle_Statistik[[#This Row],[Autor(in)]],\"\")","v":""},{"$f":"IF(Tabelle_Statistik[[#This Row],[Platz]]<11,Tabelle_Statistik[[#This Row],[Autor(in)]],\"\")","v":""}]
[{"$f":"IF(AND(Fotografen!$A6<>\"\",Fotografen!$A6<>\" - - -\"),Fotografen!$A6,\"\")","v":"Bernd Kober"},{"$f":"IF(Tabelle_Statistik[[#This Row],[Teilnahme]]=\"ja\",SUMIF(Tabelle_Auswertung[Autor(in)],Tabelle_Statistik[[#This Row],[Autor(in)]],Tabelle_Auswertung[Punkte]),IF(Tabelle_Statistik[[#This Row],[Autor(in)]]<>\"\",\" - \",\"\"))","v":" - "},{"$f":"IF(Tabelle_Statistik[[#This Row],[Teilnahme]]=\"ja\",RANK(Tabelle_Statistik[[#This Row],[Punkte]],[Punkte],0),IF(Tabelle_Statistik[[#This Row],[Autor(in)]]<>\"\",\" - \",\"\"))","v":" - "},{"$f":"IF(Tabelle_Statistik[[#This Row],[Autor(in)]]<>\"\",IF(COUNTIF(Tabelle_Auswertung[Autor(in)],Tabelle_Statistik[[#This Row],[Autor(in)]])>0,\"ja\",\"nein\"),\"\")","v":"nein"},{"$f":"IF(Tabelle_Statistik[[#This Row],[Platz]]=1,Tabelle_Statistik[[#This Row],[Autor(in)]],\"\")","v":""},{"$f":"IF(Tabelle_Statistik[[#This Row],[Platz]]=2,Tabelle_Statistik[[#This Row],[Autor(in)]],\"\")","v":""},{"$f":"IF(Tabelle_Statistik[[#This Row],[Platz]]=3,Tabelle_Statistik[[#This Row],[Autor(in)]],\"\")","v":""},{"$f":"IF(Tabelle_Statistik[[#This Row],[Platz]]<11,Tabelle_Statistik[[#This Row],[Autor(in)]],\"\")","v":""}]
[{"$f":"IF(AND(Fotografen!$A14<>\"\",Fotografen!$A14<>\" - - -\"),Fotografen!$A14,\"\")","v":"Günter Buckl"},{"$f":"IF(Tabelle_Statistik[[#This Row],[Teilnahme]]=\"ja\",SUMIF(Tabelle_Auswertung[Autor(in)],Tabelle_Statistik[[#This Row],[Autor(in)]],Tabelle_Auswertung[Punkte]),IF(Tabelle_Statistik[[#This Row],[Autor(in)]]<>\"\",\" - \",\"\"))","v":" - "},{"$f":"IF(Tabelle_Statistik[[#This Row],[Teilnahme]]=\"ja\",RANK(Tabelle_Statistik[[#This Row],[Punkte]],[Punkte],0),IF(Tabelle_Statistik[[#This Row],[Autor(in)]]<>\"\",\" - \",\"\"))","v":" - "},{"$f":"IF(Tabelle_Statistik[[#This Row],[Autor(in)]]<>\"\",IF(COUNTIF(Tabelle_Auswertung[Autor(in)],Tabelle_Statistik[[#This Row],[Autor(in)]])>0,\"ja\",\"nein\"),\"\")","v":"nein"},{"$f":"IF(Tabelle_Statistik[[#This Row],[Platz]]=1,Tabelle_Statistik[[#This Row],[Autor(in)]],\"\")","v":""},{"$f":"IF(Tabelle_Statistik[[#This Row],[Platz]]=2,Tabelle_Statistik[[#This Row],[Autor(in)]],\"\")","v":""},{"$f":"IF(Tabelle_Statistik[[#This Row],[Platz]]=3,Tabelle_Statistik[[#This Row],[Autor(in)]],\"\")","v":""},{"$f":"IF(Tabelle_Statistik[[#This Row],[Platz]]<11,Tabelle_Statistik[[#This Row],[Autor(in)]],\"\")","v":""}]
[{"$f":"IF(AND(Fotografen!$A15<>\"\",Fotografen!$A15<>\" - - -\"),Fotografen!$A15,\"\")","v":"Günter Wieser"},{"$f":"IF(Tabelle_Statistik[[#This Row],[Teilnahme]]=\"ja\",SUMIF(Tabelle_Auswertung[Autor(in)],Tabelle_Statistik[[#This Row],[Autor(in)]],Tabelle_Auswertung[Punkte]),IF(Tabelle_Statistik[[#This Row],[Autor(in)]]<>\"\",\" - \",\"\"))","v":" - "},{"$f":"IF(Tabelle_Statistik[[#This Row],[Teilnahme]]=\"ja\",RANK(Tabelle_Statistik[[#This Row],[Punkte]],[Punkte],0),IF(Tabelle_Statistik[[#This Row],[Autor(in)]]<>\"\",\" - \",\"\"))","v":" - "},{"$f":"IF(Tabelle_Statistik[[#This Row],[Autor(in)]]<>\"\",IF(COUNTIF(Tabelle_Auswertung[Autor(in)],Tabelle_Statistik[[#This Row],[Autor(in)]])>0,\"ja\",\"nein\"),\"\")","v":"nein"},{"$f":"IF(Tabelle_Statistik[[#This Row],[Platz]]=1,Tabelle_Statistik[[#This Row],[Autor(in)]],\"\")","v":""},{"$f":"IF(Tabelle_Statistik[[#This Row],[Platz]]=2,Tabelle_Statistik[[#This Row],[Autor(in)]],\"\")","v":""},{"$f":"IF(Tabelle_Statistik[[#This Row],[Platz]]=3,Tabelle_Statistik[[#This Row],[Autor(in)]],\"\")","v":""},{"$f":"IF(Tabelle_Statistik[[#This Row],[Platz]]<11,Tabelle_Statistik[[#This Row],[Autor(in)]],\"\")","v":""}]
[{"$f":"IF(AND(Fotografen!$A16<>\"\",Fotografen!$A16<>\" - - -\"),Fotografen!$A16,\"\")","v":"Günther Arold"},{"$f":"IF(Tabelle_Statistik[[#This Row],[Teilnahme]]=\"ja\",SUMIF(Tabelle_Auswertung[Autor(in)],Tabelle_Statistik[[#This Row],[Autor(in)]],Tabelle_Auswertung[Punkte]),IF(Tabelle_Statistik[[#This Row],[Autor(in)]]<>\"\",\" - \",\"\"))","v":" - "},{"$f":"IF(Tabelle_Statistik[[#This Row],[Teilnahme]]=\"ja\",RANK(Tabelle_Statistik[[#This Row],[Punkte]],[Punkte],0),IF(Tabelle_Statistik[[#This Row],[Autor(in)]]<>\"\",\" - \",\"\"))","v":" - "},{"$f":"IF(Tabelle_Statistik[[#This Row],[Autor(in)]]<>\"\",IF(COUNTIF(Tabelle_Auswertung[Autor(in)],Tabelle_Statistik[[#This Row],[Autor(in)]])>0,\"ja\",\"nein\"),\"\")","v":"nein"},{"$f":"IF(Tabelle_Statistik[[#This Row],[Platz]]=1,Tabelle_Statistik[[#This Row],[Autor(in)]],\"\")","v":""},{"$f":"IF(Tabelle_Statistik[[#This Row],[Platz]]=2,Tabelle_Statistik[[#This Row],[Autor(in)]],\"\")","v":""},{"$f":"IF(Tabelle_Statistik[[#This Row],[Platz]]=3,Tabelle_Statistik[[#This Row],[Autor(in)]],\"\")","v":""},{"$f":"IF(Tabelle_Statistik[[#This Row],[Platz]]<11,Tabelle_Statistik[[#This Row],[Autor(in)]],\"\")","v":""}]
[{"$f":"IF(AND(Fotografen!$A19<>\"\",Fotografen!$A19<>\" - - -\"),Fotografen!$A19,\"\")","v":"Klaus Leitloff"},{"$f":"IF(Tabelle_Statistik[[#This Row],[Teilnahme]]=\"ja\",SUMIF(Tabelle_Auswertung[Autor(in)],Tabelle_Statistik[[#This Row],[Autor(in)]],Tabelle_Auswertung[Punkte]),IF(Tabelle_Statistik[[#This Row],[Autor(in)]]<>\"\",\" - \",\"\"))","v":" - "},{"$f":"IF(Tabelle_Statistik[[#This Row],[Teilnahme]]=\"ja\",RANK(Tabelle_Statistik[[#This Row],[Punkte]],[Punkte],0),IF(Tabelle_Statistik[[#This Row],[Autor(in)]]<>\"\",\" - \",\"\"))","v":" - "},{"$f":"IF(Tabelle_Statistik[[#This Row],[Autor(in)]]<>\"\",IF(COUNTIF(Tabelle_Auswertung[Autor(in)],Tabelle_Statistik[[#This Row],[Autor(in)]])>0,\"ja\",\"nein\"),\"\")","v":"nein"},{"$f":"IF(Tabelle_Statistik[[#This Row],[Platz]]=1,Tabelle_Statistik[[#This Row],[Autor(in)]],\"\")","v":""},{"$f":"IF(Tabelle_Statistik[[#This Row],[Platz]]=2,Tabelle_Statistik[[#This Row],[Autor(in)]],\"\")","v":""},{"$f":"IF(Tabelle_Statistik[[#This Row],[Platz]]=3,Tabelle_Statistik[[#This Row],[Autor(in)]],\"\")","v":""},{"$f":"IF(Tabelle_Statistik[[#This Row],[Platz]]<11,Tabelle_Statistik[[#This Row],[Autor(in)]],\"\")","v":""}]
[{"$f":"IF(AND(Fotografen!$A20<>\"\",Fotografen!$A20<>\" - - -\"),Fotografen!$A20,\"\")","v":"Klaus Lindörfer"},{"$f":"IF(Tabelle_Statistik[[#This Row],[Teilnahme]]=\"ja\",SUMIF(Tabelle_Auswertung[Autor(in)],Tabelle_Statistik[[#This Row],[Autor(in)]],Tabelle_Auswertung[Punkte]),IF(Tabelle_Statistik[[#This Row],[Autor(in)]]<>\"\",\" - \",\"\"))","v":" - "},{"$f":"IF(Tabelle_Statistik[[#This Row],[Teilnahme]]=\"ja\",RANK(Tabelle_Statistik[[#This Row],[Punkte]],[Punkte],0),IF(Tabelle_Statistik[[#This Row],[Autor(in)]]<>\"\",\" - \",\"\"))","v":" - "},{"$f":"IF(Tabelle_Statistik[[#This Row],[Autor(in)]]<>\"\",IF(COUNTIF(Tabelle_Auswertung[Autor(in)],Tabelle_Statistik[[#This Row],[Autor(in)]])>0,\"ja\",\"nein\"),\"\")","v":"nein"},{"$f":"IF(Tabelle_Statistik[[#This Row],[Platz]]=1,Tabelle_Statistik[[#This Row],[Autor(in)]],\"\")","v":""},{"$f":"IF(Tabelle_Statistik[[#This Row],[Platz]]=2,Tabelle_Statistik[[#This Row],[Autor(in)]],\"\")","v":""},{"$f":"IF(Tabelle_Statistik[[#This Row],[Platz]]=3,Tabelle_Statistik[[#This Row],[Autor(in)]],\"\")","v":""},{"$f":"IF(Tabelle_Statistik[[#This Row],[Platz]]<11,Tabelle_Statistik[[#This Row],[Autor(in)]],\"\")","v":""}]
[{"$f":"IF(AND(Fotografen!$A22<>\"\",Fotografen!$A22<>\" - - -\"),Fotografen!$A22,\"\")","v":"Manfred Schwab"},{"$f":"IF(Tabelle_Statistik[[#This Row],[Teilnahme]]=\"ja\",SUMIF(Tabelle_Auswertung[Autor(in)],Tabelle_Statistik[[#This Row],[Autor(in)]],Tabelle_Auswertung[Punkte]),IF(Tabelle_Statistik[[#This Row],[Autor(in)]]<>\"\",\" - \",\"\"))","v":" - "},{"$f":"IF(Tabelle_Statistik[[#This Row],[Teilnahme]]=\"ja\",RANK(Tabelle_Statistik[[#This Row],[Punkte]],[Punkte],0),IF(Tabelle_Statistik[[#This Row],[Autor(in)]]<>\"\",\" - \",\"\"))","v":" - "},{"$f":"IF(Tabelle_Statistik[[#This Row],[Autor(in)]]<>\"\",IF(COUNTIF(Tabelle_Auswertung[Autor(in)],Tabelle_Statistik[[#This Row],[Autor(in)]])>0,\"ja\",\"nein\"),\"\")","v":"nein"},{"$f":"IF(Tabelle_Statistik[[#This Row],[Platz]]=1,Tabelle_Statistik[[#This Row],[Autor(in)]],\"\")","v":""},{"$f":"IF(Tabelle_Statistik[[#This Row],[Platz]]=2,Tabelle_Statistik[[#This Row],[Autor(in)]],\"\")","v":""},{"$f":"IF(Tabelle_Statistik[[#This Row],[Platz]]=3,Tabelle_Statistik[[#This Row],[Autor(in)]],\"\")","v":""},{"$f":"IF(Tabelle_Statistik[[#This Row],[Platz]]<11,Tabelle_Statistik[[#This Row],[Autor(in)]],\"\")","v":""}]
[{"$f":"IF(AND(Fotografen!$A23<>\"\",Fotografen!$A23<>\" - - -\"),Fotografen!$A23,\"\")","v":"Manfred Wenz"},{"$f":"IF(Tabelle_Statistik[[#This Row],[Teilnahme]]=\"ja\",SUMIF(Tabelle_Auswertung[Autor(in)],Tabelle_Statistik[[#This Row],[Autor(in)]],Tabelle_Auswertung[Punkte]),IF(Tabelle_Statistik[[#This Row],[Autor(in)]]<>\"\",\" - \",\"\"))","v":" - "},{"$f":"IF(Tabelle_Statistik[[#This Row],[Teilnahme]]=\"ja\",RANK(Tabelle_Statistik[[#This Row],[Punkte]],[Punkte],0),IF(Tabelle_Statistik[[#This Row],[Autor(in)]]<>\"\",\" - \",\"\"))","v":" - "},{"$f":"IF(Tabelle_Statistik[[#This Row],[Autor(in)]]<>\"\",IF(COUNTIF(Tabelle_Auswertung[Autor(in)],Tabelle_Statistik[[#This Row],[Autor(in)]])>0,\"ja\",\"nein\"),\"\")","v":"nein"},{"$f":"IF(Tabelle_Statistik[[#This Row],[Platz]]=1,Tabelle_Statistik[[#This Row],[Autor(in)]],\"\")","v":""},{"$f":"IF(Tabelle_Statistik[[#This Row],[Platz]]=2,Tabelle_Statistik[[#This Row],[Autor(in)]],\"\")","v":""},{"$f":"IF(Tabelle_Statistik[[#This Row],[Platz]]=3,Tabelle_Statistik[[#This Row],[Autor(in)]],\"\")","v":""},{"$f":"IF(Tabelle_Statistik[[#This Row],[Platz]]<11,Tabelle_Statistik[[#This Row],[Autor(in)]],\"\")","v":""}]
[{"$f":"IF(AND(Fotografen!$A24<>\"\",Fotografen!$A24<>\" - - -\"),Fotografen!$A24,\"\")","v":"Margit Schmidt"},{"$f":"IF(Tabelle_Statistik[[#This Row],[Teilnahme]]=\"ja\",SUMIF(Tabelle_Auswertung[Autor(in)],Tabelle_Statistik[[#This Row],[Autor(in)]],Tabelle_Auswertung[Punkte]),IF(Tabelle_Statistik[[#This Row],[Autor(in)]]<>\"\",\" - \",\"\"))","v":" - "},{"$f":"IF(Tabelle_Statistik[[#This Row],[Teilnahme]]=\"ja\",RANK(Tabelle_Statistik[[#This Row],[Punkte]],[Punkte],0),IF(Tabelle_Statistik[[#This Row],[Autor(in)]]<>\"\",\" - \",\"\"))","v":" - "},{"$f":"IF(Tabelle_Statistik[[#This Row],[Autor(in)]]<>\"\",IF(COUNTIF(Tabelle_Auswertung[Autor(in)],Tabelle_Statistik[[#This Row],[Autor(in)]])>0,\"ja\",\"nein\"),\"\")","v":"nein"},{"$f":"IF(Tabelle_Statistik[[#This Row],[Platz]]=1,Tabelle_Statistik[[#This Row],[Autor(in)]],\"\")","v":""},{"$f":"IF(Tabelle_Statistik[[#This Row],[Platz]]=2,Tabelle_Statistik[[#This Row],[Autor(in)]],\"\")","v":""},{"$f":"IF(Tabelle_Statistik[[#This Row],[Platz]]=3,Tabelle_Statistik[[#This Row],[Autor(in)]],\"\")","v":""},{"$f":"IF(Tabelle_Statistik[[#This Row],[Platz]]<11,Tabelle_Statistik[[#This Row],[Autor(in)]],\"\")","v":""}]
[{"$f":"IF(AND(Fotografen!$A26<>\"\",Fotografen!$A26<>\" - - -\"),Fotografen!$A26,\"\")","v":"Oliver von Guérard"},{"$f":"IF(Tabelle_Statistik[[#This Row],[Teilnahme]]=\"ja\",SUMIF(Tabelle_Auswertung[Autor(in)],Tabelle_Statistik[[#This Row],[Autor(in)]],Tabelle_Auswertung[Punkte]),IF(Tabelle_Statistik[[#This Row],[Autor(in)]]<>\"\",\" - \",\"\"))","v":" - "},{"$f":"IF(Tabelle_Statistik[[#This Row],[Teilnahme]]=\"ja\",RANK(Tabelle_Statistik[[#This Row],[Punkte]],[Punkte],0),IF(Tabelle_Statistik[[#This Row],[Autor(in)]]<>\"\",\" - \",\"\"))","v":" - "},{"$f":"IF(Tabelle_Statistik[[#This Row],[Autor(in)]]<>\"\",IF(COUNTIF(Tabelle_Auswertung[Autor(in)],Tabelle_Statistik[[#This Row],[Autor(in)]])>0,\"ja\",\"nein\"),\"\")","v":"nein"},{"$f":"IF(Tabelle_Statistik[[#This Row],[Platz]]=1,Tabelle_Statistik[[#This Row],[Autor(in)]],\"\")","v":""},{"$f":"IF(Tabelle_Statistik[[#This Row],[Platz]]=2,Tabelle_Statistik[[#This Row],[Autor(in)]],\"\")","v":""},{"$f":"IF(Tabelle_Statistik[[#This Row],[Platz]]=3,Tabelle_Statistik[[#This Row],[Autor(in)]],\"\")","v":""},{"$f":"IF(Tabelle_Statistik[[#This Row],[Platz]]<11,Tabelle_Statistik[[#This Row],[Autor(in)]],\"\")","v":""}]
[{"$f":"IF(AND(Fotografen!$A27<>\"\",Fotografen!$A27<>\" - - -\"),Fotografen!$A27,\"\")","v":"Patricia Spyra"},{"$f":"IF(Tabelle_Statistik[[#This Row],[Teilnahme]]=\"ja\",SUMIF(Tabelle_Auswertung[Autor(in)],Tabelle_Statistik[[#This Row],[Autor(in)]],Tabelle_Auswertung[Punkte]),IF(Tabelle_Statistik[[#This Row],[Autor(in)]]<>\"\",\" - \",\"\"))","v":" - "},{"$f":"IF(Tabelle_Statistik[[#This Row],[Teilnahme]]=\"ja\",RANK(Tabelle_Statistik[[#This Row],[Punkte]],[Punkte],0),IF(Tabelle_Statistik[[#This Row],[Autor(in)]]<>\"\",\" - \",\"\"))","v":" - "},{"$f":"IF(Tabelle_Statistik[[#This Row],[Autor(in)]]<>\"\",IF(COUNTIF(Tabelle_Auswertung[Autor(in)],Tabelle_Statistik[[#This Row],[Autor(in)]])>0,\"ja\",\"nein\"),\"\")","v":"nein"},{"$f":"IF(Tabelle_Statistik[[#This Row],[Platz]]=1,Tabelle_Statistik[[#This Row],[Autor(in)]],\"\")","v":""},{"$f":"IF(Tabelle_Statistik[[#This Row],[Platz]]=2,Tabelle_Statistik[[#This Row],[Autor(in)]],\"\")","v":""},{"$f":"IF(Tabelle_Statistik[[#This Row],[Platz]]=3,Tabelle_Statistik[[#This Row],[Autor(in)]],\"\")","v":""},{"$f":"IF(Tabelle_Statistik[[#This Row],[Platz]]<11,Tabelle_Statistik[[#This Row],[Autor(in)]],\"\")","v":""}]
[{"$f":"IF(AND(Fotografen!$A28<>\"\",Fotografen!$A28<>\" - - -\"),Fotografen!$A28,\"\")","v":"Peter Höhn"},{"$f":"IF(Tabelle_Statistik[[#This Row],[Teilnahme]]=\"ja\",SUMIF(Tabelle_Auswertung[Autor(in)],Tabelle_Statistik[[#This Row],[Autor(in)]],Tabelle_Auswertung[Punkte]),IF(Tabelle_Statistik[[#This Row],[Autor(in)]]<>\"\",\" - \",\"\"))","v":" - "},{"$f":"IF(Tabelle_Statistik[[#This Row],[Teilnahme]]=\"ja\",RANK(Tabelle_Statistik[[#This Row],[Punkte]],[Punkte],0),IF(Tabelle_Statistik[[#This Row],[Autor(in)]]<>\"\",\" - \",\"\"))","v":" - "},{"$f":"IF(Tabelle_Statistik[[#This Row],[Autor(in)]]<>\"\",IF(COUNTIF(Tabelle_Auswertung[Autor(in)],Tabelle_Statistik[[#This Row],[Autor(in)]])>0,\"ja\",\"nein\"),\"\")","v":"nein"},{"$f":"IF(Tabelle_Statistik[[#This Row],[Platz]]=1,Tabelle_Statistik[[#This Row],[Autor(in)]],\"\")","v":""},{"$f":"IF(Tabelle_Statistik[[#This Row],[Platz]]=2,Tabelle_Statistik[[#This Row],[Autor(in)]],\"\")","v":""},{"$f":"IF(Tabelle_Statistik[[#This Row],[Platz]]=3,Tabelle_Statistik[[#This Row],[Autor(in)]],\"\")","v":""},{"$f":"IF(Tabelle_Statistik[[#This Row],[Platz]]<11,Tabelle_Statistik[[#This Row],[Autor(in)]],\"\")","v":""}]
[{"$f":"IF(AND(Fotografen!$A30<>\"\",Fotografen!$A30<>\" - - -\"),Fotografen!$A30,\"\")","v":"Thomas Fuchs"},{"$f":"IF(Tabelle_Statistik[[#This Row],[Teilnahme]]=\"ja\",SUMIF(Tabelle_Auswertung[Autor(in)],Tabelle_Statistik[[#This Row],[Autor(in)]],Tabelle_Auswertung[Punkte]),IF(Tabelle_Statistik[[#This Row],[Autor(in)]]<>\"\",\" - \",\"\"))","v":" - "},{"$f":"IF(Tabelle_Statistik[[#This Row],[Teilnahme]]=\"ja\",RANK(Tabelle_Statistik[[#This Row],[Punkte]],[Punkte],0),IF(Tabelle_Statistik[[#This Row],[Autor(in)]]<>\"\",\" - \",\"\"))","v":" - "},{"$f":"IF(Tabelle_Statistik[[#This Row],[Autor(in)]]<>\"\",IF(COUNTIF(Tabelle_Auswertung[Autor(in)],Tabelle_Statistik[[#This Row],[Autor(in)]])>0,\"ja\",\"nein\"),\"\")","v":"nein"},{"$f":"IF(Tabelle_Statistik[[#This Row],[Platz]]=1,Tabelle_Statistik[[#This Row],[Autor(in)]],\"\")","v":""},{"$f":"IF(Tabelle_Statistik[[#This Row],[Platz]]=2,Tabelle_Statistik[[#This Row],[Autor(in)]],\"\")","v":""},{"$f":"IF(Tabelle_Statistik[[#This Row],[Platz]]=3,Tabelle_Statistik[[#This Row],[Autor(in)]],\"\")","v":""},{"$f":"IF(Tabelle_Statistik[[#This Row],[Platz]]<11,Tabelle_Statistik[[#This Row],[Autor(in)]],\"\")","v":""}]
[{"$f":"IF(AND(Fotografen!$A31<>\"\",Fotografen!$A31<>\" - - -\"),Fotografen!$A31,\"\")","v":"Walter Böse"},{"$f":"IF(Tabelle_Statistik[[#This Row],[Teilnahme]]=\"ja\",SUMIF(Tabelle_Auswertung[Autor(in)],Tabelle_Statistik[[#This Row],[Autor(in)]],Tabelle_Auswertung[Punkte]),IF(Tabelle_Statistik[[#This Row],[Autor(in)]]<>\"\",\" - \",\"\"))","v":" - "},{"$f":"IF(Tabelle_Statistik[[#This Row],[Teilnahme]]=\"ja\",RANK(Tabelle_Statistik[[#This Row],[Punkte]],[Punkte],0),IF(Tabelle_Statistik[[#This Row],[Autor(in)]]<>\"\",\" - \",\"\"))","v":" - "},{"$f":"IF(Tabelle_Statistik[[#This Row],[Autor(in)]]<>\"\",IF(COUNTIF(Tabelle_Auswertung[Autor(in)],Tabelle_Statistik[[#This Row],[Autor(in)]])>0,\"ja\",\"nein\"),\"\")","v":"nein"},{"$f":"IF(Tabelle_Statistik[[#This Row],[Platz]]=1,Tabelle_Statistik[[#This Row],[Autor(in)]],\"\")","v":""},{"$f":"IF(Tabelle_Statistik[[#This Row],[Platz]]=2,Tabelle_Statistik[[#This Row],[Autor(in)]],\"\")","v":""},{"$f":"IF(Tabelle_Statistik[[#This Row],[Platz]]=3,Tabelle_Statistik[[#This Row],[Autor(in)]],\"\")","v":""},{"$f":"IF(Tabelle_Statistik[[#This Row],[Platz]]<11,Tabelle_Statistik[[#This Row],[Autor(in)]],\"\")","v":""}]
[{"$f":"IF(AND(Fotografen!$A32<>\"\",Fotografen!$A32<>\" - - -\"),Fotografen!$A32,\"\")","v":"Wolfgang Brenner"},{"$f":"IF(Tabelle_Statistik[[#This Row],[Teilnahme]]=\"ja\",SUMIF(Tabelle_Auswertung[Autor(in)],Tabelle_Statistik[[#This Row],[Autor(in)]],Tabelle_Auswertung[Punkte]),IF(Tabelle_Statistik[[#This Row],[Autor(in)]]<>\"\",\" - \",\"\"))","v":" - "},{"$f":"IF(Tabelle_Statistik[[#This Row],[Teilnahme]]=\"ja\",RANK(Tabelle_Statistik[[#This Row],[Punkte]],[Punkte],0),IF(Tabelle_Statistik[[#This Row],[Autor(in)]]<>\"\",\" - \",\"\"))","v":" - "},{"$f":"IF(Tabelle_Statistik[[#This Row],[Autor(in)]]<>\"\",IF(COUNTIF(Tabelle_Auswertung[Autor(in)],Tabelle_Statistik[[#This Row],[Autor(in)]])>0,\"ja\",\"nein\"),\"\")","v":"nein"},{"$f":"IF(Tabelle_Statistik[[#This Row],[Platz]]=1,Tabelle_Statistik[[#This Row],[Autor(in)]],\"\")","v":""},{"$f":"IF(Tabelle_Statistik[[#This Row],[Platz]]=2,Tabelle_Statistik[[#This Row],[Autor(in)]],\"\")","v":""},{"$f":"IF(Tabelle_Statistik[[#This Row],[Platz]]=3,Tabelle_Statistik[[#This Row],[Autor(in)]],\"\")","v":""},{"$f":"IF(Tabelle_Statistik[[#This Row],[Platz]]<11,Tabelle_Statistik[[#This Row],[Autor(in)]],\"\")","v":""}]

{"sheet":"Top 10 Bilder","index":2,"n_rows":15,"n_cols":2,"rows_kept":15,"merged":[[0,0,3,1]]}
["TOP 10 Bilder"]
[]
[]
[]
["Platz","Bild(er)"]
[1,{"$f":"VERKETTEN_P1(Tabelle_Auswertung[Platz 1],CHAR(10))","v":"Schneeflocke.jpg von Nadja Cassim"}]
[2,{"$f":"VERKETTEN_P1(Tabelle_Auswertung[Platz 2],CHAR(10))","v":"Aufzug.jpg von Andreas Toltz\nHuch.jpg von Andreas Toltz"}]
[3,{"$f":"VERKETTEN_P1(Tabelle_Auswertung[Platz 3],CHAR(10))","v":""}]
[4,{"$f":"VERKETTEN_P1(Tabelle_Auswertung[Platz 4],CHAR(10))","v":"Hallo.jpg von Nadja Cassim\nJongleurin.jpg von Gert Häberlein\nLarven.JPG von Nadja Cassim\nTowerBridgePano.jpg von Andreas Toltz"}]
[5,{"$f":"VERKETTEN_P1(Tabelle_Auswertung[Platz 5],CHAR(10))","v":""}]
[6,{"$f":"VERKETTEN_P1(Tabelle_Auswertung[Platz 6],CHAR(10))","v":""}]
[7,{"$f":"VERKETTEN_P1(Tabelle_Auswertung[Platz 6],CHAR(10))","v":""}]
[8,{"$f":"VERKETTEN_P1(Tabelle_Auswertung[Platz 8],CHAR(10))","v":"Big Belly.jpg von Jan Grünler\nHunger.JPG von Nadja Cassim"}]
[9,{"$f":"VERKETTEN_P1(Tabelle_Auswertung[Platz 9],CHAR(10))","v":""}]
[10,{"$f":"VERKETTEN_P1(Tabelle_Auswertung[Platz 10],CHAR(10))","v":"Motorradartist.jpg von Gert Häberlein\nSeifenblase.jpg von Nadja Cassim\nStefanie.jpg von Gerhard Rieß"}]

{"sheet":"Fotografen","index":3,"n_rows":39,"n_cols":1,"rows_kept":39}
["Autoren"]
[" - - -"]
["Albrecht Flierl"]
["Alexander Häberlein"]
["Andreas Toltz"]
["Bernd Kober"]
["Bernd Marek"]
["Chris Finsterer"]
["Claudia Dommel"]
["Georg Held"]
["Georg Lindörfer"]
["Gerhard Rieß"]
["Gert Häberlein"]
["Günter Buckl"]
["Günter Wieser"]
["Günther Arold"]
["Jan Grünler"]
["Jürgen Abt"]
["Klaus Leitloff"]
["Klaus Lindörfer"]
["Lisa Schmidt"]
["Manfred Schwab"]
["Manfred Wenz"]
["Margit Schmidt"]
["Nadja Cassim"]
["Oliver von Guérard"]
["Patricia Spyra"]
["Peter Höhn"]
["Susanne Deinhardt"]
["Thomas Fuchs"]
["Walter Böse"]
["Wolfgang Brenner"]
["Gast 1"]
["Gast 2"]
["Gast 3"]
["Gast 4"]
["Gast 5"]
["Gast 6"]
["Gast 7"]

{"sheet":"online","index":4,"n_rows":13,"n_cols":11,"rows_kept":13}
["Sortierung","Titel","Punkte","Schnitt","Platz","Fotograf/in","Tags",null,"Fotograf/in","Gesamtpunkte","Platz"]
[1,"Schneeflocke.jpg",33,8.25,1,"Nadja Cassim",{"$f":"CONCATENATE(\",\",Tabelle4[[#This Row],[Fotograf/in]])","v":",Nadja Cassim"},null,"Nadja Cassim",171,1]
[2,"Aufzug.jpg",32,8,2,"Andreas Toltz",{"$f":"CONCATENATE(\",\",Tabelle4[[#This Row],[Fotograf/in]])","v":",Andreas Toltz"},null,"Andreas Toltz",170,2]
[3,"Huch.jpg",32,8,2,"Andreas Toltz",{"$f":"CONCATENATE(\",\",Tabelle4[[#This Row],[Fotograf/in]])","v":",Andreas Toltz"},null,"Gerhard Rieß",145,3]
[4,"Hallo.jpg",30,7.5,4,"Nadja Cassim",{"$f":"CONCATENATE(\",\",Tabelle4[[#This Row],[Fotograf/in]])","v":",Nadja Cassim"},null,"Jan Grünler",143,4]
[5,"Jongleurin.jpg",30,7.5,4,"Gert Häberlein",{"$f":"CONCATENATE(\",\",Tabelle4[[#This Row],[Fotograf/in]])","v":",Gert Häberlein"},null,"Gert Häberlein",140,5]
[6,"Larven.JPG",30,7.5,4,"Nadja Cassim",{"$f":"CONCATENATE(\",\",Tabelle4[[#This Row],[Fotograf/in]])","v":",Nadja Cassim"},null,"Chris Finsterer",136,6]
[7,"TowerBridgePano.jpg",30,7.5,4,"Andreas Toltz",{"$f":"CONCATENATE(\",\",Tabelle4[[#This Row],[Fotograf/in]])","v":",Andreas Toltz"},null,"Claudia Dommel",133,7]
[8,"Big Belly.jpg",29,7.25,8,"Jan Grünler",{"$f":"CONCATENATE(\",\",Tabelle4[[#This Row],[Fotograf/in]])","v":",Jan Grünler"},null,"Susanne Deinhardt",125,8]
[9,"Hunger.JPG",29,7.25,8,"Nadja Cassim",{"$f":"CONCATENATE(\",\",Tabelle4[[#This Row],[Fotograf/in]])","v":",Nadja Cassim"},null,"Albrecht Flierl",113,9]
[10,"Motorradartist.jpg",28,7,10,"Gert Häberlein",{"$f":"CONCATENATE(\",\",Tabelle4[[#This Row],[Fotograf/in]])","v":",Gert Häberlein"}]
[11,"Seifenblase.jpg",28,7,10,"Nadja Cassim",{"$f":"CONCATENATE(\",\",Tabelle4[[#This Row],[Fotograf/in]])","v":",Nadja Cassim"}]
[12,"Stefanie.jpg",28,7,10,"Gerhard Rieß",{"$f":"CONCATENATE(\",\",Tabelle4[[#This Row],[Fotograf/in]])","v":",Gerhard Rieß"}]